Workbook

Sheet AJMER
A1: S.No. | B1: Activity | C1: Year 2016-17 | K1: n | T1: Outlay Recommended for 2017-18 | AC1: Remarks
C2: Outlay approved by PAB (including spillover) | E2: Anticipated Achievement upto March 2017 | I2: Savings | K2: Spill Over | M2: Deferred laibility of 2014-15 | O2: Fresh | R2: Total | T2: Spill Over | V2: Deferred laibility of 2014-15 | X2: Fresh | AA2: Total
C3: Phy. | D3: Fin | E3: Phy. | F3: Fin. | G3: Phy. (%) | H3: Fin. (%) | I3: Phy. | J3: Fin. | K3: Phy. | L3: Fin. | M3: Phy. | N3: Fin. | O3: Unit Cost | P3: Phy. | Q3: Fin. | R3: Phy. | S3: Fin. | T3: Phy. | U3: Fin. | V3: Phy. | W3: Fin. | X3: Unit Cost | Y3: Phy. | Z3: Fin. | AA3: Phy. | AB3: Fin.
A4: I | B4: ACCESS
B5: SSA
A6: 1 | B6: Opening of New Schools
A7: 1.01 | B7: New Primary School | C7: 0 | D7: 0 | E7: 0 | F7: 0 | G7: =E7/C7*100 ->  | H7: =F7/D7*100 ->  | I7: =C7-E7 -> 0 | J7: =D7-F7 -> 0 | K7: 0 | L7: 0 | M7: 0 | N7: 0 | P7: 0 | Q7: =O7*P7 -> 0 | R7: =K7+M7+P7 -> 0 | S7: =L7+N7+Q7 -> 0 | T7: 0 | U7: 0 | V7: 0 | W7: 0 | Y7: 0 | Z7: =X7*Y7 -> 0 | AA7: =T7+V7+Y7 -> 0 | AB7: =U7+W7+Z7 -> 0
A8: 1.02 | B8: Upgradation of PS to UPS | C8: 0 | D8: 0 | E8: 0 | F8: 0 | G8: =E8/C8*100 ->  | H8: =F8/D8*100 ->  | I8: =C8-E8 -> 0 | J8: =D8-F8 -> 0 | K8: 0 | L8: 0 | M8: 0 | N8: 0 | P8: 0 | Q8: =O8*P8 -> 0 | R8: =K8+M8+P8 -> 0 | S8: 0 | T8: 0 | U8: 0 | V8: 0 | W8: 0 | Y8: 0 | Z8: =X8*Y8 -> 0 | AA8: =T8+V8+Y8 -> 0 | AB8: 0
A9: 1.03 | B9: Composite Schools | C9: 0 | D9: 0 | E9: 0 | F9: 0 | I9: 0 | J9: 0 | K9: 0 | L9: 0 | M9: 0 | N9: 0 | P9: 0 | Q9: 0 | R9: 0 | S9: 0 | T9: 0 | U9: 0 | V9: 0 | W9: 0 | Y9: 0 | Z9: 0 | AA9: 0 | AB9: 0
A10: 1.04 | B10: Residential schools for specific category of children | C10: 0 | D10: 0 | E10: 0 | F10: 0 | I10: 0 | J10: 0 | K10: 0 | L10: 0 | M10: 0 | N10: 0 | P10: 0 | Q10: 0 | R10: 0 | S10: 0 | T10: 0 | U10: 0 | V10: 0 | W10: 0 | Y10: 0 | Z10: 0 | AA10: 0 | AB10: 0
A11: 1.05 | B11: Residential Hostel | C11: 0 | D11: 0 | E11: 0 | F11: 0 | I11: 0 | J11: 0 | K11: 0 | L11: 0 | M11: 0 | N11: 0 | P11: 0 | Q11: 0 | R11: 0 | S11: 0 | T11: 0 | U11: 0 | V11: 0 | W11: 0 | Y11: 0 | Z11: 0 | AA11: 0 | AB11: 0
A12: 1.06 | B12: Integration of Class V with primary schools | C12: 0 | D12: 0 | E12: 0 | F12: 0 | I12: 0 | J12: 0 | K12: 0 | L12: 0 | M12: 0 | N12: 0 | P12: 0 | Q12: 0 | R12: 0 | S12: 0 | T12: 0 | U12: 0 | V12: 0 | W12: 0 | Y12: 0 | Z12: 0 | AA12: 0 | AB12: 0
A13: 1.07 | B13: Integration of Class VIII with upper primary schools | C13: 0 | D13: 0 | E13: 0 | F13: 0 | I13: 0 | J13: 0 | K13: 0 | L13: 0 | M13: 0 | N13: 0 | P13: 0 | Q13: 0 | R13: 0 | S13: 0 | T13: 0 | U13: 0 | V13: 0 | W13: 0 | Y13: 0 | Z13: 0 | AA13: 0 | AB13: 0
A14: 2 | B14: Residential Schools for specific category of children
B15: 50 children
B16: Non-recurring (one time grant)
A17: 2.01 | B17: Furniture/ Equipment (including kitchen) | C17: 0 | D17: 0 | E17: 0 | F17: 0 | G17: =E17/C17*100 ->  | I17: =C17-E17 -> 0 | J17: 0 | M17: 0 | N17: 0 | O17: 2 | P17: 0 | Q17: =O17*P17 -> 0 | R17: =K17+M17+P17 -> 0 | S17: 0 | V17: 0 | W17: 0 | X17: 2 | Y17: 0 | Z17: =X17*Y17 -> 0 | AA17: =T17+V17+Y17 -> 0 | AB17: 0
A18: 2.02 | B18: TLM and equipment including library books | C18: 0 | D18: 0 | E18: 0 | F18: 0 | I18: 0 | J18: 0 | M18: 0 | N18: 0 | O18: 3 | P18: 0 | Q18: =O18*P18 -> 0 | R18: 0 | S18: 0 | V18: 0 | W18: 0 | X18: 3 | Y18: 0 | Z18: =X18*Y18 -> 0 | AA18: 0 | AB18: 0
A19: 2.03 | B19: Bedding (new) | C19: 0 | D19: 0 | E19: 0 | F19: 0 | I19: 0 | J19: 0 | M19: 0 | N19: 0 | O19: 0.375 | P19: 0 | Q19: =O19*P19 -> 0 | R19: 0 | S19: 0 | V19: 0 | W19: 0 | X19: 0.375 | Y19: 0 | Z19: =X19*Y19 -> 0 | AA19: 0 | AB19: 0
A20: 2.04 | B20: Replacement of bedding (once in 3 years) | C20: 0 | D20: 0 | E20: 0 | F20: 0 | I20: 0 | J20: 0 | M20: 0 | N20: 0 | O20: 0.0075 | P20: 0 | Q20: =O20*P20 -> 0 | R20: 0 | S20: 0 | V20: 0 | W20: 0 | X20: 0.0075 | Y20: 0 | Z20: =X20*Y20 -> 0 | AA20: 0 | AB20: 0
B21: Sub Total (Non Recurring) | C21: =SUM(C17:C20) -> 0 | D21: =SUM(D17:D20) -> 0 | E21: =SUM(E17:E20) -> 0 | F21: =SUM(F17:F20) -> 0 | I21: =SUM(I17:I20) -> 0 | J21: 0 | K21: 0 | L21: 0 | M21: 0 | N21: 0 | P21: =SUM(P17:P20) -> 0 | Q21: 0 | R21: 0 | S21: 0 | T21: 0 | U21: 0 | V21: 0 | W21: 0 | Y21: =SUM(Y17:Y20) -> 0 | Z21: =SUM(Z17:Z20) -> 0 | AA21: =SUM(AA17:AA20) -> 0 | AB21: =SUM(AB17:AB20) -> 0
B22: Recurring (50 children)
A23: 2.05 | B23: Maintenance per child Per month @ Rs.1500/- | C23: 0 | D23: 0 | E23: 0 | F23: 0 | G23: =E23/C23*100 ->  | I23: =C23-E23 -> 0 | J23: 0 | M23: 0 | N23: 0 | O23: 0.18 | P23: 0 | Q23: =O23*P23 -> 0 | R23: =K23+M23+P23 -> 0 | S23: 0 | V23: 0 | W23: 0 | X23: 0.18 | Y23: 0 | Z23: =X23*Y23 -> 0 | AA23: =T23+V23+Y23 -> 0 | AB23: 0
A24: 2.06 | B24: Stipend per child per month @ Rs.100/- | C24: 0 | D24: 0 | E24: 0 | F24: 0 | I24: 0 | J24: 0 | M24: 0 | N24: 0 | O24: 0.012 | P24: 0 | Q24: =O24*P24 -> 0 | R24: 0 | S24: 0 | V24: 0 | W24: 0 | X24: 0.012 | Y24: 0 | Z24: =X24*Y24 -> 0 | AA24: 0 | AB24: 0
A25: 2.07 | B25: Supplementary TLM, Stationery and other educational material @Rs.1000/- per child per annum | C25: 0 | D25: 0 | E25: 0 | F25: 0 | I25: 0 | J25: 0 | M25: 0 | N25: 0 | O25: 0.01 | P25: 0 | Q25: =O25*P25 -> 0 | R25: 0 | S25: 0 | V25: 0 | W25: 0 | X25: 0.01 | Y25: 0 | Z25: =X25*Y25 -> 0 | AA25: 0 | AB25: 0
A26: 2.08 | B26: Salaries | C26: 0 | D26: 0 | E26: 0 | F26: 0
A27: (a) | B27: 1 Warden @ Rs.25000/- per month | C27: 0 | D27: 0 | E27: 0 | F27: 0 | G27: =E27/C27*100 ->  | H27: =F27/D27*100 ->  | I27: =C27-E27 -> 0 | J27: =D27-F27 -> 0 | M27: 0 | N27: 0 | O27: 3 | P27: 0 | Q27: =O27*P27 -> 0 | R27: =K27+M27+P27 -> 0 | S27: =L27+N27+Q27 -> 0 | V27: 0 | W27: 0 | X27: 3 | Y27: 0 | Z27: =X27*Y27 -> 0 | AA27: =T27+V27+Y27 -> 0 | AB27: =U27+W27+Z27 -> 0
A28: (b) | B28: 4 Fulltime teachers as per RTE Norms @ Rs. 20,000/- per month per teacher | C28: 0 | D28: 0 | E28: 0 | F28: 0 | I28: 0 | J28: 0 | M28: 0 | N28: 0 | O28: 0 | P28: 0 | Q28: 0 | R28: 0 | S28: 0 | V28: 0 | W28: 0 | X28: 0 | Y28: 0 | Z28: 0 | AA28: 0 | AB28: 0
A29: (c) | B29: 2 Urdu Teachers (only for Blocks with muslim population above 20% and select urban areas) @ Rs.12,000/- per month per teacher. | C29: 0 | D29: 0 | E29: 0 | F29: 0 | I29: 0 | J29: 0 | M29: 0 | N29: 0 | O29: 0 | P29: 0 | Q29: 0 | R29: 0 | S29: 0 | V29: 0 | W29: 0 | X29: 0 | Y29: 0 | Z29: 0 | AA29: 0 | AB29: 0
A30: (d) | B30: 3 Part time teachers @ Rs.5,000/- per month per teacher | C30: 0 | D30: 0 | E30: 0 | F30: 0 | I30: 0 | J30: 0 | M30: 0 | N30: 0 | O30: 0 | P30: 0 | Q30: 0 | R30: 0 | S30: 0 | V30: 0 | W30: 0 | X30: 0 | Y30: 0 | Z30: 0 | AA30: 0 | AB30: 0
A31: (e) | B31: 1 Full time Accountant @ Rs. 10,000/- per month | C31: 0 | D31: 0 | E31: 0 | F31: 0 | I31: 0 | J31: 0 | M31: 0 | N31: 0 | O31: 1.2 | P31: 0 | Q31: 0 | R31: 0 | S31: 0 | V31: 0 | W31: 0 | X31: 1.2 | Y31: 0 | Z31: 0 | AA31: 0 | AB31: 0
A32: (f) | B32: 2 Support staff - (Accountant/Assistant, Peon, Chowkidar) @ Rs. 5,000/- per month per staff | C32: 0 | D32: 0 | E32: 0 | F32: 0 | I32: 0 | J32: 0 | M32: 0 | N32: 0 | O32: 0.6 | P32: 0 | Q32: 0 | R32: 0 | S32: 0 | V32: 0 | W32: 0 | X32: 0.6 | Y32: 0 | Z32: 0 | AA32: 0 | AB32: 0
A33: (g) | B33: 1 Head Cook @ Rs. 6,000/- per month and upto 2 Asstt. Cooks @ Rs. 4,500/- per month per cook | C33: 0 | D33: 0 | E33: 0 | F33: 0 | I33: 0 | J33: 0 | M33: 0 | N33: 0 | O33: 1.8 | P33: 0 | Q33: 0 | R33: 0 | S33: 0 | V33: 0 | W33: 0 | X33: 1.8 | Y33: 0 | Z33: 0 | AA33: 0 | AB33: 0
A34: 2.09 | B34: Specific Skill training @ Rs.1000/- per annum per child | C34: 0 | D34: 0 | E34: 0 | F34: 0 | I34: 0 | J34: 0 | M34: 0 | N34: 0 | O34: 0 | P34: 0 | Q34: 0 | R34: 0 | S34: 0 | V34: 0 | W34: 0 | X34: 0 | Y34: 0 | Z34: 0 | AA34: 0 | AB34: 0
A35: 2.1 | B35: Electricity / water charges @ Rs. 1000/- per annum per child | C35: 0 | D35: 0 | E35: 0 | F35: 0 | I35: 0 | J35: 0 | M35: 0 | N35: 0 | O35: 0.01 | P35: 0 | Q35: 0 | R35: 0 | S35: 0 | V35: 0 | W35: 0 | X35: 0.01 | Y35: 0 | Z35: 0 | AA35: 0 | AB35: 0
A36: =+A35+0.01 -> 2.11 | B36: Medical care/contingencies @ Rs.1250/- per annum per child | C36: 0 | D36: 0 | E36: 0 | F36: 0 | I36: 0 | J36: 0 | M36: 0 | N36: 0 | O36: 0.0125 | P36: 0 | Q36: 0 | R36: 0 | S36: 0 | V36: 0 | W36: 0 | X36: 0.0125 | Y36: 0 | Z36: 0 | AA36: 0 | AB36: 0
A37: =+A36+0.01 -> 2.12 | B37: Maintenance @ Rs. 750/- per child per annum | C37: 0 | D37: 0 | E37: 0 | F37: 0 | I37: 0 | J37: 0 | M37: 0 | N37: 0 | O37: 0.0075 | P37: 0 | Q37: 0 | R37: 0 | S37: 0 | V37: 0 | W37: 0 | X37: 0.0075 | Y37: 0 | Z37: 0 | AA37: 0 | AB37: 0
A38: 2.13 | B38: Miscellaneous @ Rs. 750/- per child per annum | C38: 0 | D38: 0 | E38: 0 | F38: 0 | I38: 0 | J38: 0 | M38: 0 | N38: 0 | O38: 0.0075 | P38: 0 | Q38: 0 | R38: 0 | S38: 0 | V38: 0 | W38: 0 | X38: 0.0075 | Y38: 0 | Z38: 0 | AA38: 0 | AB38: 0
A39: 2.14 | B39: Preparatory camps @ Rs. 300/- per child per annum | C39: 0 | D39: 0 | E39: 0 | F39: 0 | I39: 0 | J39: 0 | M39: 0 | N39: 0 | O39: 0 | P39: 0 | Q39: 0 | R39: 0 | S39: 0 | V39: 0 | W39: 0 | X39: 0 | Y39: 0 | Z39: 0 | AA39: 0 | AB39: 0
A40: 2.15 | B40: P.T.A / school functions @ Rs. 300/- per child per annum | C40: 0 | D40: 0 | E40: 0 | F40: 0 | I40: 0 | J40: 0 | M40: 0 | N40: 0 | O40: 0.003 | P40: 0 | Q40: 0 | R40: 0 | S40: 0 | V40: 0 | W40: 0 | X40: 0.003 | Y40: 0 | Z40: 0 | AA40: 0 | AB40: 0
A41: 2.16 | B41: Provision of Rent @ Rs. 10,000/- per child per annum | C41: 0 | D41: 0 | E41: 0 | F41: 0 | I41: 0 | J41: 0 | M41: 0 | N41: 0 | O41: 0 | P41: 0 | Q41: 0 | R41: 0 | S41: 0 | V41: 0 | W41: 0 | X41: 0 | Y41: 0 | Z41: 0 | AA41: 0 | AB41: 0
A42: 2.17 | B42: Capacity Building @ Rs. 500/- per child per annum | C42: 0 | D42: 0 | E42: 0 | F42: 0 | I42: 0 | J42: 0 | M42: 0 | N42: 0 | O42: 0.005 | P42: 0 | Q42: 0 | R42: 0 | S42: 0 | V42: 0 | W42: 0 | X42: 0.005 | Y42: 0 | Z42: 0 | AA42: 0 | AB42: 0
A43: 2.18 | B43: Physical / Self Defence Training @ Rs.200/- per child per annum | C43: 0 | D43: 0 | E43: 0 | F43: 0 | I43: 0 | J43: 0 | M43: 0 | N43: 0 | O43: 0 | P43: 0 | Q43: 0 | R43: 0 | S43: 0 | V43: 0 | W43: 0 | X43: 0 | Y43: 0 | Z43: 0 | AA43: 0 | AB43: 0
B44: Sub Total (Recurring) | C44: =C23 -> 0 | D44: =SUM(D23:D43) -> 0 | E44: =E23 -> 0 | F44: =SUM(F23:F43) -> 0 | G44: =E44/C44*100 ->  | H44: =F44/D44*100 ->  | I44: =I23 -> 0 | J44: =SUM(J23:J43) -> 0 | K44: =SUM(K23:K43) -> 0 | L44: =SUM(L23:L43) -> 0 | M44: =SUM(M23:M43) -> 0 | N44: =SUM(N23:N43) -> 0 | P44: =P23 -> 0 | Q44: =SUM(Q23:Q43) -> 0 | R44: =R23 -> 0 | S44: =SUM(S23:S43) -> 0 | T44: =SUM(T23:T43) -> 0 | U44: =SUM(U23:U43) -> 0 | V44: =SUM(V23:V43) -> 0 | W44: =SUM(W23:W43) -> 0 | Y44: =Y23 -> 0 | Z44: =SUM(Z23:Z43) -> 0 | AA44: =AA23 -> 0 | AB44: =SUM(AB23:AB43) -> 0
B45: Total (Non Recurring + Recurring) | C45: =C44 -> 0 | D45: =SUM(D21+D44) -> 0 | E45: =E44 -> 0 | F45: =SUM(F21+F44) -> 0 | G45: =E45/C45*100 ->  | H45: =F45/D45*100 ->  | I45: =I44 -> 0 | J45: =SUM(J21+J44) -> 0 | K45: =SUM(K21+K44) -> 0 | L45: =SUM(L21+L44) -> 0 | M45: =SUM(M21+M44) -> 0 | N45: =SUM(N21+N44) -> 0 | P45: =P44 -> 0 | Q45: =SUM(Q21+Q44) -> 0 | R45: =R44 -> 0 | S45: =SUM(S21+S44) -> 0 | T45: =SUM(T21+T44) -> 0 | U45: =SUM(U21+U44) -> 0 | V45: =SUM(V21+V44) -> 0 | W45: =SUM(W21+W44) -> 0 | Y45: =Y44 -> 0 | Z45: =SUM(Z21+Z44) -> 0 | AA45: =AA44 -> 0 | AB45: =SUM(AB21+AB44) -> 0
B46: 100 children
B47: Non-recurring (one time grant)
A48: 2.19 | B48: Furniture / Equipment (including kitchen equipment) | C48: 0 | D48: 0 | E48: 0 | F48: 0 | G48: =E48/C48*100 ->  | I48: =C48-E48 -> 0 | J48: 0 | M48: 0 | N48: 0 | O48: 3 | P48: 0 | Q48: =O48*P48 -> 0 | R48: =K48+M48+P48 -> 0 | S48: 0 | V48: 0 | W48: 0 | X48: 3 | Y48: 0 | Z48: =X48*Y48 -> 0 | AA48: =T48+V48+Y48 -> 0 | AB48: 0
A49: =+A48+0.01 -> 2.2 | B49: TLM and equipment including library books (New) | C49: 0 | D49: 0 | E49: 0 | F49: 0 | I49: 0 | J49: 0 | M49: 0 | N49: 0 | O49: 3.5 | P49: 0 | Q49: =O49*P49 -> 0 | R49: 0 | S49: 0 | V49: 0 | W49: 0 | X49: 3.5 | Y49: 0 | Z49: =X49*Y49 -> 0 | AA49: 0 | AB49: 0
A50: =+A49+0.01 -> 2.21 | B50: Bedding (New) | C50: 0 | D50: 0 | E50: 0 | F50: 0 | I50: 0 | J50: 0 | M50: 0 | N50: 0 | O50: 0.75 | P50: 0 | Q50: =O50*P50 -> 0 | R50: 0 | S50: 0 | V50: 0 | W50: 0 | X50: 0.75 | Y50: 0 | Z50: =X50*Y50 -> 0 | AA50: 0 | AB50: 0
A51: =+A50+0.01 -> 2.22 | B51: Replacement of bedding (once in 3 years) | C51: 0 | D51: 0 | E51: 0 | F51: 0 | I51: 0 | J51: 0 | M51: 0 | N51: 0 | O51: 0.0075 | P51: 0 | Q51: =O51*P51 -> 0 | R51: 0 | S51: 0 | V51: 0 | W51: 0 | X51: 0.0075 | Y51: 0 | Z51: =X51*Y51 -> 0 | AA51: 0 | AB51: 0
B52: Sub Total Non-recurring | C52: =SUM(C48:C51) -> 0 | D52: =SUM(D48:D51) -> 0 | E52: =SUM(E48:E51) -> 0 | F52: =SUM(F48:F51) -> 0 | I52: =SUM(I48:I51) -> 0 | J52: 0 | K52: 0 | L52: 0 | M52: 0 | N52: 0 | P52: =SUM(P48:P51) -> 0 | Q52: 0 | R52: 0 | S52: 0 | T52: 0 | U52: 0 | V52: 0 | W52: 0 | Y52: =SUM(Y48:Y51) -> 0 | Z52: =SUM(Z48:Z51) -> 0 | AA52: =SUM(AA48:AA51) -> 0 | AB52: =SUM(AB48:AB51) -> 0
B53: Recurring
A54: 2.23 | B54: Maintenance per child per month @ Rs. 1500/- | C54: 0 | D54: 0 | E54: 0 | F54: 0 | G54: =E54/C54*100 ->  | H54: =F54/D54*100 ->  | I54: =C54-E54 -> 0 | J54: =D54-F54 -> 0 | M54: 0 | N54: 0 | O54: 0.18 | P54: 0 | Q54: =O54*P54 -> 0 | R54: =K54+M54+P54 -> 0 | S54: 0 | V54: 0 | W54: 0 | X54: 0.18 | Y54: 0 | Z54: =X54*Y54 -> 0 | AA54: =T54+V54+Y54 -> 0 | AB54: 0
A55: =+A54+0.01 -> 2.24 | B55: Stipend per child per month @ Rs.100/- | C55: 0 | D55: 0 | E55: 0 | F55: 0 | I55: 0 | J55: 0 | M55: 0 | N55: 0 | O55: 0.012 | P55: 0 | Q55: =O55*P55 -> 0 | R55: 0 | S55: 0 | V55: 0 | W55: 0 | X55: 0.012 | Y55: 0 | Z55: =X55*Y55 -> 0 | AA55: 0 | AB55: 0
A56: 2.25 | B56: Supplementary TLM, Stationery and other educational material per child @1000/- per annum | C56: 0 | D56: 0 | E56: 0 | F56: 0 | I56: 0 | J56: 0 | M56: 0 | N56: 0 | O56: 0.01 | P56: 0 | Q56: =O56*P56 -> 0 | R56: 0 | S56: 0 | V56: 0 | W56: 0 | X56: 0.01 | Y56: 0 | Z56: =X56*Y56 -> 0 | AA56: 0 | AB56: 0
A57: 2.26 | B57: Salaries | E57: 0 | F57: 0
A58: (a) | B58: 1 Warden @ Rs. 25,000/- per month | C58: 0 | D58: 0 | E58: 0 | F58: 0 | I58: 0 | J58: 0 | M58: 0 | N58: 0 | O58: 3 | P58: 0 | Q58: =O58*P58 -> 0 | R58: =K58+M58+P58 -> 0 | S58: =L58+N58+Q58 -> 0 | V58: 0 | W58: 0 | X58: 3 | Y58: 0 | Z58: =X58*Y58 -> 0 | AA58: =T58+V58+Y58 -> 0 | AB58: =U58+W58+Z58 -> 0
A59: (b) | B59: 1 head teacher @ Rs. 25,000/- per month in case the enrollment exceeds 100 | C59: 0 | D59: 0 | E59: 0 | F59: 0 | I59: 0 | J59: 0 | M59: 0 | N59: 0 | O59: 3 | P59: 0 | Q59: 0 | R59: 0 | S59: 0 | V59: 0 | W59: 0 | X59: 3 | Y59: 0 | Z59: 0 | AA59: 0 | AB59: 0
A60: (c) | B60: 4 - 5 Full time teachers as per RTE norms @ Rs. 20,000/- per month per teacher | C60: 0 | D60: 0 | E60: 0 | F60: 0 | I60: 0 | J60: 0 | M60: 0 | N60: 0 | O60: 2.4 | P60: 0 | Q60: 0 | R60: 0 | S60: 0 | V60: 0 | W60: 0 | X60: 2.4 | Z60: 0 | AA60: 0 | AB60: 0
A61: (d) | B61: 2 Urdu Teachers (only for blocks with muslim population above 20% and select urban areas), if required @ Rs. 12,000/- per month per teacher | C61: 0 | D61: 0 | E61: 0 | F61: 0 | I61: 0 | J61: 0 | M61: 0 | N61: 0 | O61: 0 | P61: 0 | Q61: 0 | R61: 0 | S61: 0 | V61: 0 | W61: 0 | X61: 0 | Y61: 0 | Z61: 0 | AA61: 0 | AB61: 0
A62: (e) | B62: 3 part time teachers @ Rs. 5,000/- per month per teacher | C62: 0 | D62: 0 | E62: 0 | F62: 0 | I62: 0 | J62: 0 | M62: 0 | N62: 0 | O62: 0.6 | P62: 0 | Q62: 0 | R62: 0 | S62: 0 | V62: 0 | W62: 0 | X62: 0.6 | Y62: 0 | Z62: 0 | AA62: 0 | AB62: 0
A63: (f) | B63: 1 Full time Accountant @ Rs. 10,000/- per month | C63: 0 | D63: 0 | E63: 0 | F63: 0 | I63: 0 | J63: 0 | M63: 0 | N63: 0 | O63: 1.2 | P63: 0 | Q63: 0 | R63: 0 | S63: 0 | V63: 0 | W63: 0 | X63: 1.2 | Y63: 0 | Z63: 0 | AA63: 0 | AB63: 0
A64: (g) | B64: 2 Support Staff – (Accountant/ Assistant, Peon, Chowkidar) @ Rs. 5,000/- per month per staff | C64: 0 | D64: 0 | E64: 0 | F64: 0 | I64: 0 | J64: 0 | M64: 0 | N64: 0 | O64: 0.6 | P64: 0 | Q64: 0 | R64: 0 | S64: 0 | V64: 0 | W64: 0 | X64: 0.6 | Y64: 0 | Z64: 0 | AA64: 0 | AB64: 0
A65: (h) | B65: 1 Head cook @ Rs. 6,000/- per month and upto 2 Asstt. Cooks @ Rs. 4,500/- per month per cook | C65: 0 | D65: 0 | E65: 0 | F65: 0 | I65: 0 | J65: 0 | M65: 0 | N65: 0 | O65: 1.8 | P65: 0 | Q65: 0 | R65: 0 | S65: 0 | V65: 0 | W65: 0 | X65: 1.8 | Y65: 0 | Z65: 0 | AA65: 0 | AB65: 0
A66: 2.27 | B66: Specific skill training per child @ Rs.1000/- per annum | C66: 0 | D66: 0 | E66: 0 | F66: 0 | I66: 0 | J66: 0 | M66: 0 | N66: 0 | O66: 0 | P66: 0 | Q66: 0 | R66: 0 | S66: 0 | V66: 0 | W66: 0 | X66: 0 | Y66: 0 | Z66: 0 | AA66: 0 | AB66: 0
A67: 2.28 | B67: Electricity / water charges per child @Rs.1000/- per annum | C67: 0 | D67: 0 | E67: 0 | F67: 0 | I67: 0 | J67: 0 | M67: 0 | N67: 0 | O67: 0.01 | P67: 0 | Q67: 0 | R67: 0 | S67: 0 | V67: 0 | W67: 0 | X67: 0.01 | Y67: 0 | Z67: 0 | AA67: 0 | AB67: 0
A68: 2.29 | B68: Medical care/contingencies @ Rs.1250/- per child per annum | C68: 0 | D68: 0 | E68: 0 | F68: 0 | I68: 0 | J68: 0 | M68: 0 | N68: 0 | O68: 0.013 | P68: 0 | Q68: 0 | R68: 0 | S68: 0 | V68: 0 | W68: 0 | X68: 0.013 | Y68: 0 | Z68: 0 | AA68: 0 | AB68: 0
A69: 2.3 | B69: Maintenance @ Rs.750/- per child per annum | C69: 0 | D69: 0 | E69: 0 | F69: 0 | I69: 0 | J69: 0 | M69: 0 | N69: 0 | O69: 0.008 | P69: 0 | Q69: 0 | R69: 0 | S69: 0 | V69: 0 | W69: 0 | X69: 0.008 | Y69: 0 | Z69: 0 | AA69: 0 | AB69: 0
A70: 2.31 | B70: Miscellaneous @ Rs.750/- per child per annum | C70: 0 | D70: 0 | E70: 0 | F70: 0 | I70: 0 | J70: 0 | M70: 0 | N70: 0 | O70: 0.008 | P70: 0 | Q70: 0 | R70: 0 | S70: 0 | V70: 0 | W70: 0 | X70: 0.008 | Y70: 0 | Z70: 0 | AA70: 0 | AB70: 0
A71: 2.32 | B71: Preparatory camps @ Rs.200/- per child per annum | C71: 0 | D71: 0 | E71: 0 | F71: 0 | I71: 0 | J71: 0 | M71: 0 | N71: 0 | O71: 0 | P71: 0 | Q71: 0 | R71: 0 | S71: 0 | V71: 0 | W71: 0 | X71: 0 | Y71: 0 | Z71: 0 | AA71: 0 | AB71: 0
A72: 2.33 | B72: P.T.A / school functions @ Rs.200/- per child per annum | C72: 0 | D72: 0 | E72: 0 | F72: 0 | I72: 0 | J72: 0 | M72: 0 | N72: 0 | O72: 0.003 | P72: 0 | Q72: 0 | R72: 0 | S72: 0 | V72: 0 | W72: 0 | X72: 0.003 | Y72: 0 | Z72: 0 | AA72: 0 | AB72: 0
A73: 2.34 | B73: Provision of Rent @ Rs. 6000/- per child per annum | C73: 0 | D73: 0 | E73: 0 | F73: 0 | I73: 0 | J73: 0 | M73: 0 | N73: 0 | O73: 0 | P73: 0 | Q73: 0 | R73: 0 | S73: 0 | V73: 0 | W73: 0 | X73: 0 | Y73: 0 | Z73: 0 | AA73: 0 | AB73: 0
A74: 2.35 | B74: Capacity Building @ Rs.500/- per child per annum | C74: 0 | D74: 0 | E74: 0 | F74: 0 | I74: 0 | J74: 0 | M74: 0 | N74: 0 | O74: 0.005 | P74: 0 | Q74: 0 | R74: 0 | S74: 0 | V74: 0 | W74: 0 | X74: 0.005 | Y74: 0 | Z74: 0 | AA74: 0 | AB74: 0
A75: 2.36 | B75: Physical / Self Defence training @ Rs. 200/- per child per annum. | C75: 0 | D75: 0 | E75: 0 | F75: 0 | I75: 0 | J75: 0 | M75: 0 | N75: 0 | O75: 0 | P75: 0 | Q75: 0 | R75: 0 | S75: 0 | V75: 0 | W75: 0 | X75: 0 | Y75: 0 | Z75: 0 | AA75: 0 | AB75: 0
B76: Sub Total (Recurring) | C76: =C54 -> 0 | D76: =SUM(D54:D75) -> 0 | E76: =E54 -> 0 | F76: =SUM(F54:F75) -> 0 | I76: =I54 -> 0 | J76: =SUM(J54:J75) -> 0 | K76: =SUM(K54:K75) -> 0 | L76: =SUM(L54:L75) -> 0 | M76: =SUM(M54:M75) -> 0 | N76: =SUM(N54:N75) -> 0 | P76: =P54 -> 0 | Q76: =SUM(Q54:Q75) -> 0 | R76: =R54 -> 0 | S76: 0 | T76: 0 | U76: 0 | V76: 0 | W76: 0 | Y76: =Y54 -> 0 | Z76: =SUM(Z54:Z75) -> 0 | AA76: =AA54 -> 0 | AB76: =SUM(AB54:AB75) -> 0
B77: Total (Recurring + Non Recurring) | C77: =C76 -> 0 | D77: =SUM(D52+D76) -> 0 | E77: =E76 -> 0 | F77: =SUM(F52+F76) -> 0 | I77: =I76 -> 0 | J77: =SUM(J52+J76) -> 0 | K77: =SUM(K52+K76) -> 0 | L77: =SUM(L52+L76) -> 0 | M77: =SUM(M52+M76) -> 0 | N77: =SUM(N52+N76) -> 0 | P77: =P76 -> 0 | Q77: =SUM(Q52+Q76) -> 0 | R77: =R76 -> 0 | S77: 0 | T77: 0 | U77: 0 | V77: 0 | W77: 0 | Y77: =Y76 -> 0 | Z77: =SUM(Z52+Z76) -> 0 | AA77: =AA76 -> 0 | AB77: =SUM(AB52+AB76) -> 0
B78: Total (50 + 100 children) | C78: =C45+C77 -> 0 | D78: =SUM(D45+D77) -> 0 | E78: =E45+E77 -> 0 | F78: =SUM(F45+F77) -> 0 | G78: =E78/C78*100 ->  | H78: =F78/D78*100 ->  | I78: =I45+I77 -> 0 | J78: =SUM(J45+J77) -> 0 | K78: =SUM(K45+K77) -> 0 | L78: =SUM(L45+L77) -> 0 | M78: =SUM(M45+M77) -> 0 | N78: =SUM(N45+N77) -> 0 | P78: =P45+P77 -> 0 | Q78: =SUM(Q45+Q77) -> 0 | R78: =R45+R77 -> 0 | S78: =SUM(S45+S77) -> 0 | T78: =SUM(T45+T77) -> 0 | U78: =SUM(U45+U77) -> 0 | V78: =SUM(V45+V77) -> 0 | W78: =SUM(W45+W77) -> 0 | Y78: =Y45+Y77 -> 0 | Z78: =SUM(Z45+Z77) -> 0 | AA78: =AA45+AA77 -> 0 | AB78: =SUM(AB45+AB77) -> 0
A79: 3 | B79: Residential Hostel for specific category of children
A80: (A) | B80: 50 children
B81: Non-recurring (one time grant) | R81: =K81+M81+P81 -> 0 | S81: 0 | AA81: =T81+V81+Y81 -> 0 | AB81: 0
A82: 3.01 | B82: Furniture/ Equipment (including kitchen) | C82: 0 | D82: 0 | E82: 0 | F82: 0 | G82: =E82/C82*100 ->  | I82: =C82-E82 -> 0 | J82: 0 | M82: 0 | N82: 0 | O82: 2 | P82: 0 | Q82: =O82*P82 -> 0 | R82: 0 | S82: 0 | V82: 0 | W82: 0 | X82: 2 | Y82: 0 | Z82: =X82*Y82 -> 0 | AA82: 0 | AB82: 0
A83: =+A82+0.01 -> 3.02 | B83: TLM and equipment including library books | C83: 0 | D83: 0 | E83: 0 | F83: 0 | I83: 0 | J83: 0 | M83: 0 | N83: 0 | O83: 3 | P83: 0 | Q83: =O83*P83 -> 0 | R83: 0 | S83: 0 | V83: 0 | W83: 0 | X83: 3 | Y83: 0 | Z83: =X83*Y83 -> 0 | AA83: 0 | AB83: 0
A84: =+A83+0.01 -> 3.03 | B84: Bedding (new) | C84: 0 | D84: 0 | E84: 0 | F84: 0 | I84: 0 | J84: 0 | M84: 0 | N84: 0 | O84: 0.375 | P84: 0 | Q84: =O84*P84 -> 0 | R84: 0 | S84: 0 | V84: 0 | W84: 0 | X84: 0.375 | Y84: 0 | Z84: =X84*Y84 -> 0 | AA84: 0 | AB84: 0
A85: =+A84+0.01 -> 3.04 | B85: Replacement of bedding (once in 3 years) | C85: 0 | D85: 0 | E85: 0 | F85: 0 | I85: 0 | J85: 0 | M85: 0 | N85: 0 | O85: 0.0075 | P85: 0 | Q85: =O85*P85 -> 0 | R85: 0 | S85: 0 | V85: 0 | W85: 0 | X85: 0.0075 | Y85: 0 | Z85: =X85*Y85 -> 0 | AA85: 0 | AB85: 0
B86: Sub Total (Non Recurring) | C86: =SUM(C82:C85) -> 0 | D86: =SUM(D82:D85) -> 0 | E86: =SUM(E82:E85) -> 0 | F86: =SUM(F82:F85) -> 0 | I86: =SUM(I82:I85) -> 0 | J86: 0 | K86: 0 | L86: 0 | M86: 0 | N86: 0 | P86: =SUM(P82:P85) -> 0 | Q86: 0 | R86: 0 | S86: 0 | T86: 0 | U86: 0 | V86: 0 | W86: 0 | Y86: =SUM(Y82:Y85) -> 0 | Z86: =SUM(Z82:Z85) -> 0 | AA86: =SUM(AA82:AA85) -> 0 | AB86: =SUM(AB82:AB85) -> 0
B87: Recurring (50 children)
A88: 3.05 | B88: Maintenance per child Per month @ Rs.1500/- | C88: 0 | D88: 0 | E88: 0 | F88: 0 | G88: =E88/C88*100 ->  | I88: =C88-E88 -> 0 | J88: 0 | M88: 0 | N88: 0 | O88: 0.18 | P88: 0 | Q88: =O88*P88 -> 0 | R88: =K88+M88+P88 -> 0 | S88: =L88+N88+Q88 -> 0 | V88: 0 | W88: 0 | X88: 0.18 | Y88: 0 | Z88: =X88*Y88 -> 0 | AA88: =T88+V88+Y88 -> 0 | AB88: =U88+W88+Z88 -> 0
A89: =+A88+0.01 -> 3.06 | B89: Stipend per child per month @ Rs.100/- | C89: 0 | D89: 0 | E89: 0 | F89: 0 | I89: 0 | J89: 0 | M89: 0 | N89: 0 | O89: 0.012 | P89: 0 | Q89: =O89*P89 -> 0 | R89: 0 | S89: 0 | V89: 0 | W89: 0 | X89: 0.012 | Y89: 0 | Z89: =X89*Y89 -> 0 | AA89: 0 | AB89: 0
A90: =+A89+0.01 -> 3.07 | B90: Supplementary TLM, Stationery and other educational material @Rs.1000/- per child per annum | C90: 0 | D90: 0 | E90: 0 | F90: 0 | I90: 0 | J90: 0 | M90: 0 | N90: 0 | O90: 0.01 | P90: 0 | Q90: =O90*P90 -> 0 | R90: 0 | S90: 0 | V90: 0 | W90: 0 | X90: 0.01 | Y90: 0 | Z90: =X90*Y90 -> 0 | AA90: 0 | AB90: 0
B91: Salaries | R91: 0 | S91: 0 | AA91: 0 | AB91: 0
A92: (a) | B92: 1 Warden @ Rs.25000/- per month | C92: 0 | D92: 0 | E92: 0 | F92: 0 | G92: =E92/C92*100 ->  | H92: =F92/D92*100 ->  | I92: =C92-E92 -> 0 | J92: =D92-F92 -> 0 | M92: 0 | N92: 0 | O92: 3 | P92: 0 | Q92: =O92*P92 -> 0 | R92: 0 | S92: 0 | V92: 0 | W92: 0 | X92: 3 | Y92: 0 | Z92: =X92*Y92 -> 0 | AA92: 0 | AB92: 0
A93: (b) | B93: 4 Fulltime teachers as per RTE Norms @ Rs. 20,000/- per month per teacher | C93: 0 | D93: 0 | E93: 0 | F93: 0 | I93: 0 | J93: 0 | M93: 0 | N93: 0 | O93: 0 | P93: 0 | Q93: 0 | R93: 0 | S93: 0 | V93: 0 | W93: 0 | X93: =0.2*12*4 -> 9.6 | Y93: 0 | Z93: 0 | AA93: 0 | AB93: 0
A94: (c) | B94: 2 Urdu Teachers (only for Blocks with muslim population above 20% and select urban areas) @ Rs.12,000/- per month per teacher. | C94: 0 | D94: 0 | E94: 0 | F94: 0 | I94: 0 | J94: 0 | M94: 0 | N94: 0 | O94: 0 | P94: 0 | Q94: 0 | R94: 0 | S94: 0 | V94: 0 | W94: 0 | X94: 0 | Y94: 0 | Z94: 0 | AA94: 0 | AB94: 0
A95: (d) | B95: 3 Part time teachers @ Rs.5,000/- per month per teacher | C95: 0 | D95: 0 | E95: 0 | F95: 0 | I95: 0 | J95: 0 | M95: 0 | N95: 0 | O95: 1.8 | P95: 0 | Q95: 0 | R95: 0 | S95: 0 | V95: 0 | W95: 0 | X95: =0.05*12*3 -> 1.8 | Y95: 0 | Z95: 0 | AA95: 0 | AB95: 0
A96: (e) | B96: 1 Full time Accountant @ Rs. 10,000/- per month | C96: 0 | D96: 0 | E96: 0 | F96: 0 | I96: 0 | J96: 0 | M96: 0 | N96: 0 | O96: 1.2 | P96: 0 | Q96: 0 | R96: 0 | S96: 0 | V96: 0 | W96: 0 | X96: 1.2 | Y96: 0 | Z96: 0 | AA96: 0 | AB96: 0
A97: (f) | B97: 2 Support staff - (Accountant/Assistant, Peon, Chowkidar) @ Rs. 5,000/- per month per staff | C97: 0 | D97: 0 | E97: 0 | F97: 0 | I97: 0 | J97: 0 | M97: 0 | N97: 0 | O97: 1.2 | P97: 0 | Q97: 0 | R97: 0 | S97: 0 | V97: 0 | W97: 0 | X97: =0.05*12*2 -> 1.2 | Y97: 0 | Z97: 0 | AA97: 0 | AB97: 0
A98: (g) | B98: 1 Head Cook @ Rs. 6,000/- per month and upto 2 Asstt. Cooks @ Rs. 4,500/- per month per cook | C98: 0 | D98: 0 | E98: 0 | F98: 0 | I98: 0 | J98: 0 | M98: 0 | N98: 0 | O98: 1.8 | P98: 0 | Q98: 0 | R98: 0 | S98: 0 | V98: 0 | W98: 0 | X98: 1.8 | Y98: 0 | Z98: 0 | AA98: 0 | AB98: 0
A99: 3.08 | B99: Specific Skill training @ Rs.1000/- per annum per child | C99: 0 | D99: 0 | E99: 0 | F99: 0 | I99: 0 | J99: 0 | M99: 0 | N99: 0 | O99: 0 | P99: 0 | Q99: 0 | R99: 0 | S99: 0 | V99: 0 | W99: 0 | X99: 0.01 | Y99: 0 | Z99: 0 | AA99: 0 | AB99: 0
A100: =+A99+0.01 -> 3.09 | B100: Electricity / water charges @ Rs. 1000/- per annum per child | C100: 0 | D100: 0 | E100: 0 | F100: 0 | I100: 0 | J100: 0 | M100: 0 | N100: 0 | O100: 0.01 | P100: 0 | Q100: 0 | R100: 0 | S100: 0 | V100: 0 | W100: 0 | X100: 0.01 | Y100: 0 | Z100: 0 | AA100: 0 | AB100: 0
A101: 3.1 | B101: Medical care/contingencies @ Rs.1250/- per annum per child | C101: 0 | D101: 0 | E101: 0 | F101: 0 | I101: 0 | J101: 0 | M101: 0 | N101: 0 | O101: 0.0125 | P101: 0 | Q101: 0 | R101: 0 | S101: 0 | V101: 0 | W101: 0 | X101: 0.0125 | Y101: 0 | Z101: 0 | AA101: 0 | AB101: 0
A102: 3.11 | B102: Maintenance @ Rs. 750/- per child per annum | C102: 0 | D102: 0 | E102: 0 | F102: 0 | I102: 0 | J102: 0 | M102: 0 | N102: 0 | O102: 0.0075 | P102: 0 | Q102: 0 | R102: 0 | S102: 0 | V102: 0 | W102: 0 | X102: 0.0075 | Y102: 0 | Z102: 0 | AA102: 0 | AB102: 0
A103: 3.12 | B103: Miscellaneous @ Rs. 750/- per child per annum | C103: 0 | D103: 0 | E103: 0 | F103: 0 | I103: 0 | J103: 0 | M103: 0 | N103: 0 | O103: 0.0075 | P103: 0 | Q103: 0 | R103: 0 | S103: 0 | V103: 0 | W103: 0 | X103: 0.0075 | Y103: 0 | Z103: 0 | AA103: 0 | AB103: 0
A104: 3.13 | B104: Preparatory camps @ Rs. 300/- per child per annum | C104: 0 | D104: 0 | E104: 0 | F104: 0 | I104: 0 | J104: 0 | M104: 0 | N104: 0 | O104: 0 | P104: 0 | Q104: 0 | R104: 0 | S104: 0 | V104: 0 | W104: 0 | X104: 0.003 | Y104: 0 | Z104: 0 | AA104: 0 | AB104: 0
A105: 3.14 | B105: P.T.A / school functions @ Rs. 300/- per child per annum | C105: 0 | D105: 0 | E105: 0 | F105: 0 | I105: 0 | J105: 0 | M105: 0 | N105: 0 | O105: 0.003 | P105: 0 | Q105: 0 | R105: 0 | S105: 0 | V105: 0 | W105: 0 | X105: 0.003 | Y105: 0 | Z105: 0 | AA105: 0 | AB105: 0
A106: 3.15 | B106: Provision of Rent @ Rs. 10,000/- per child per annum | C106: 0 | D106: 0 | E106: 0 | F106: 0 | I106: 0 | J106: 0 | M106: 0 | N106: 0 | O106: 0 | P106: 0 | Q106: 0 | R106: 0 | S106: 0 | V106: 0 | W106: 0 | X106: 0 | Y106: 0 | Z106: 0 | AA106: 0 | AB106: 0
A107: 3.16 | B107: Capacity Building @ Rs. 500/- per child per annum | C107: 0 | D107: 0 | E107: 0 | F107: 0 | I107: 0 | J107: 0 | M107: 0 | N107: 0 | O107: 0.005 | P107: 0 | Q107: 0 | R107: 0 | S107: 0 | V107: 0 | W107: 0 | X107: 0.005 | Y107: 0 | Z107: 0 | AA107: 0 | AB107: 0
A108: 3.17 | B108: Physical / Self Defence Training @ Rs.200/- per child per annum | C108: 0 | D108: 0 | E108: 0 | F108: 0 | G108: =E108/C108*100 ->  | I108: =C108-E108 -> 0 | J108: =D108-F108 -> 0 | M108: 0 | N108: 0 | O108: 0 | P108: 0 | Q108: 0 | R108: 0 | S108: 0 | V108: 0 | W108: 0 | X108: 0.002 | Y108: 0 | Z108: 0 | AA108: 0 | AB108: 0
B109: Sub Total (Recurring) | C109: =C88 -> 0 | D109: =SUM(D88:D108) -> 0 | E109: =E88 -> 0 | F109: =SUM(F88:F108) -> 0 | I109: =SUM(I88:I108) -> 0 | J109: 0 | K109: 0 | L109: 0 | M109: 0 | N109: 0 | P109: =P88 -> 0 | Q109: =SUM(Q88:Q108) -> 0 | R109: =R88 -> 0 | S109: 0 | T109: 0 | U109: 0 | V109: 0 | W109: 0 | Y109: =Y88 -> 0 | Z109: =SUM(Z88:Z108) -> 0 | AA109: =AA88 -> 0 | AB109: =SUM(AB88:AB108) -> 0
B110: Total (Non Recurring + Recurring) | C110: =C109 -> 0 | D110: =SUM(D86+D109) -> 0 | E110: =E109 -> 0 | F110: =SUM(F86+F109) -> 0 | I110: =SUM(I86+I109) -> 0 | J110: 0 | K110: 0 | L110: 0 | M110: 0 | N110: 0 | P110: =P109 -> 0 | Q110: =SUM(Q86+Q109) -> 0 | R110: =R109 -> 0 | S110: 0 | T110: 0 | U110: 0 | V110: 0 | W110: 0 | Y110: =Y109 -> 0 | Z110: =SUM(Z86+Z109) -> 0 | AA110: =AA109 -> 0 | AB110: =SUM(AB86+AB109) -> 0
A111: (B) | B111: 100 Children
B112: Non-recurring (one time grant)
A113: 3.18 | B113: Furniture / Equipment (including kitchen equipment) | C113: 0 | D113: 0 | E113: 0 | F113: 0 | G113: =E113/C113*100 ->  | I113: =C113-E113 -> 0 | J113: 0 | M113: 0 | N113: 0 | O113: 0 | P113: 0 | Q113: =O113*P113 -> 0 | R113: =K113+M113+P113 -> 0 | S113: 0 | V113: 0 | W113: 0 | X113: 0 | Y113: 0 | Z113: =X113*Y113 -> 0 | AA113: =T113+V113+Y113 -> 0 | AB113: 0
A114: =+A113+0.01 -> 3.19 | B114: TLM and equipment including library books (New) | C114: 0 | D114: 0 | E114: 0 | F114: 0 | I114: 0 | J114: 0 | M114: 0 | N114: 0 | O114: 0 | P114: 0 | Q114: =O114*P114 -> 0 | R114: 0 | S114: 0 | V114: 0 | W114: 0 | X114: 0 | Y114: 0 | Z114: =X114*Y114 -> 0 | AA114: 0 | AB114: 0
A115: =+A114+0.01 -> 3.2 | B115: Bedding (New) | C115: 0 | D115: 0 | E115: 0 | F115: 0 | I115: 0 | J115: 0 | M115: 0 | N115: 0 | O115: 0 | P115: 0 | Q115: =O115*P115 -> 0 | R115: 0 | S115: 0 | V115: 0 | W115: 0 | X115: 0 | Y115: 0 | Z115: =X115*Y115 -> 0 | AA115: 0 | AB115: 0
A116: =+A115+0.01 -> 3.21 | B116: Replacement of bedding (once in 3 years) | C116: 0 | D116: 0 | E116: 0 | F116: 0 | I116: 0 | J116: 0 | M116: 0 | N116: 0 | O116: 0 | P116: 0 | Q116: =O116*P116 -> 0 | R116: 0 | S116: 0 | V116: 0 | W116: 0 | X116: 0 | Y116: 0 | Z116: =X116*Y116 -> 0 | AA116: 0 | AB116: 0
B117: Sub Total Non-recurring | C117: =SUM(C113:C116) -> 0 | D117: =SUM(D113:D116) -> 0 | E117: =SUM(E113:E116) -> 0 | F117: =SUM(F113:F116) -> 0 | I117: =SUM(I113:I116) -> 0 | J117: 0 | K117: 0 | L117: 0 | M117: 0 | N117: 0 | Q117: =SUM(Q113:Q116) -> 0 | R117: 0 | S117: 0 | T117: 0 | U117: 0 | V117: 0 | W117: 0 | Z117: =SUM(Z113:Z116) -> 0 | AA117: =SUM(AA113:AA116) -> 0 | AB117: =SUM(AB113:AB116) -> 0
B118: Recurring
A119: 3.22 | B119: Maintenance per child per month @ Rs. 1500/- | C119: 0 | D119: 0 | E119: 0 | F119: 0 | G119: =E119/C119*100 ->  | H119: =F119/D119*100 ->  | I119: =C119-E119 -> 0 | J119: =D119-F119 -> 0 | M119: 0 | N119: 0 | O119: 0 | P119: 0 | Q119: =O119*P119 -> 0 | R119: =K119+M119+P119 -> 0 | S119: =L119+N119+Q119 -> 0 | V119: 0 | W119: 0 | X119: 0 | Y119: 0 | Z119: =X119*Y119 -> 0 | AA119: =T119+V119+Y119 -> 0 | AB119: =U119+W119+Z119 -> 0
A120: =+A119+0.01 -> 3.23 | B120: Stipend per child per month @ Rs.100/- | C120: 0 | D120: 0 | E120: 0 | F120: 0 | I120: 0 | J120: 0 | M120: 0 | N120: 0 | O120: 0 | P120: 0 | Q120: 0 | R120: =K120+M120+P120 -> 0 | S120: 0 | V120: 0 | W120: 0 | X120: 0 | Y120: 0 | Z120: 0 | AA120: =T120+V120+Y120 -> 0 | AB120: 0
A121: =+A120+0.01 -> 3.24 | B121: Supplementary TLM, Stationery and other educational material per child @1000/- per annum | C121: 0 | D121: 0 | E121: 0 | F121: 0 | I121: 0 | J121: 0 | M121: 0 | N121: 0 | O121: 0 | P121: 0 | Q121: 0 | R121: =K121+M121+P121 -> 0 | S121: 0 | V121: 0 | W121: 0 | X121: 0 | Y121: 0 | Z121: 0 | AA121: =T121+V121+Y121 -> 0 | AB121: 0
B122: Salaries | M122: 0 | N122: 0 | O122: 0 | P122: 0 | Q122: 0 | S122: 0 | V122: 0 | W122: 0 | X122: 0 | Y122: 0 | Z122: 0 | AB122: 0
A123: (a) | B123: 1 Warden @ Rs. 25,000/- per month | C123: 0 | D123: 0 | E123: 0 | F123: 0 | I123: 0 | J123: 0 | M123: 0 | N123: 0 | O123: 0 | P123: 0 | Q123: 0 | R123: =K123+M123+P123 -> 0 | S123: 0 | V123: 0 | W123: 0 | X123: 0 | Y123: 0 | Z123: 0 | AA123: =T123+V123+Y123 -> 0 | AB123: 0
A124: (b) | B124: 1 head teacher @ Rs. 25,000/- per month in case the enrollment exceeds 100 | C124: 0 | D124: 0 | E124: 0 | F124: 0 | I124: 0 | J124: 0 | M124: 0 | N124: 0 | O124: 0 | P124: 0 | Q124: 0 | R124: 0 | S124: 0 | V124: 0 | W124: 0 | X124: 0 | Y124: 0 | Z124: 0 | AA124: 0 | AB124: 0
A125: (c) | B125: 4 - 5 Full time teachers as per RTE norms @ Rs. 20,000/- per month per teacher | C125: 0 | D125: 0 | E125: 0 | F125: 0 | I125: 0 | J125: 0 | M125: 0 | N125: 0 | O125: 0 | P125: 0 | Q125: 0 | R125: 0 | S125: 0 | V125: 0 | W125: 0 | X125: 0 | Y125: 0 | Z125: 0 | AA125: 0 | AB125: 0
A126: (d) | B126: 2 Urdu Teachers (only for blocks with muslim population above 20% and select urban areas), if required @ Rs. 12,000/- per month per teacher | C126: 0 | D126: 0 | E126: 0 | F126: 0 | I126: 0 | J126: 0 | M126: 0 | N126: 0 | O126: 0 | P126: 0 | Q126: 0 | R126: 0 | S126: 0 | V126: 0 | W126: 0 | X126: 0 | Y126: 0 | Z126: 0 | AA126: 0 | AB126: 0
A127: (e) | B127: 3 part time teachers @ Rs. 5,000/- per month per teacher | C127: 0 | D127: 0 | E127: 0 | F127: 0 | I127: 0 | J127: 0 | M127: 0 | N127: 0 | O127: 0 | P127: 0 | Q127: 0 | R127: 0 | S127: 0 | V127: 0 | W127: 0 | X127: 0 | Y127: 0 | Z127: 0 | AA127: 0 | AB127: 0
A128: (f) | B128: 1 Full time Accountant @ Rs. 10,000/- per month | C128: 0 | D128: 0 | E128: 0 | F128: 0 | I128: 0 | J128: 0 | M128: 0 | N128: 0 | O128: 0 | P128: 0 | Q128: 0 | R128: 0 | S128: 0 | V128: 0 | W128: 0 | X128: 0 | Y128: 0 | Z128: 0 | AA128: 0 | AB128: 0
A129: 3.25 | B129: 2 Support Staff – (Accountant/ Assistant, Peon, Chowkidar) @ Rs. 5,000/- per month per staff | C129: 0 | D129: 0 | E129: 0 | F129: 0 | I129: 0 | J129: 0 | M129: 0 | N129: 0 | O129: 0 | P129: 0 | Q129: 0 | R129: 0 | S129: 0 | V129: 0 | W129: 0 | X129: 0 | Y129: 0 | Z129: 0 | AA129: 0 | AB129: 0
A130: =+A129+0.01 -> 3.26 | B130: 1 Head cook @ Rs. 6,000/- per month and upto 2 Asstt. Cooks @ Rs. 4,500/- per month per cook | C130: 0 | D130: 0 | E130: 0 | F130: 0 | I130: 0 | J130: 0 | M130: 0 | N130: 0 | O130: 0 | P130: 0 | Q130: 0 | R130: 0 | S130: 0 | V130: 0 | W130: 0 | X130: 0 | Y130: 0 | Z130: 0 | AA130: 0 | AB130: 0
A131: 3.27 | B131: Specific skill training per child @ Rs.1000/- per annum | C131: 0 | D131: 0 | E131: 0 | F131: 0 | I131: 0 | J131: 0 | M131: 0 | N131: 0 | O131: 0 | P131: 0 | Q131: 0 | R131: 0 | S131: 0 | V131: 0 | W131: 0 | X131: 0 | Y131: 0 | Z131: 0 | AA131: 0 | AB131: 0
A132: 3.28 | B132: Electricity / water charges per child @Rs.1000/- per annum | C132: 0 | D132: 0 | E132: 0 | F132: 0 | I132: 0 | J132: 0 | M132: 0 | N132: 0 | O132: 0 | P132: 0 | Q132: 0 | R132: 0 | S132: 0 | V132: 0 | W132: 0 | X132: 0 | Y132: 0 | Z132: 0 | AA132: 0 | AB132: 0
A133: 3.29 | B133: Medical care/contingencies @ Rs.1250/- per child per annum | C133: 0 | D133: 0 | E133: 0 | F133: 0 | I133: 0 | J133: 0 | M133: 0 | N133: 0 | O133: 0 | P133: 0 | Q133: 0 | R133: 0 | S133: 0 | V133: 0 | W133: 0 | X133: 0 | Y133: 0 | Z133: 0 | AA133: 0 | AB133: 0
A134: 3.3 | B134: Maintenance @ Rs.750/- per child per annum | C134: 0 | D134: 0 | E134: 0 | F134: 0 | I134: 0 | J134: 0 | M134: 0 | N134: 0 | O134: 0 | P134: 0 | Q134: 0 | R134: 0 | S134: 0 | V134: 0 | W134: 0 | X134: 0 | Y134: 0 | Z134: 0 | AA134: 0 | AB134: 0
A135: 3.31 | B135: Miscellaneous @ Rs.750/- per child per annum | C135: 0 | D135: 0 | E135: 0 | F135: 0 | I135: 0 | J135: 0 | M135: 0 | N135: 0 | O135: 0 | P135: 0 | Q135: 0 | R135: 0 | S135: 0 | V135: 0 | W135: 0 | X135: 0 | Y135: 0 | Z135: 0 | AA135: 0 | AB135: 0
A136: 3.32 | B136: Preparatory camps @ Rs.200/- per child per annum | C136: 0 | D136: 0 | E136: 0 | F136: 0 | I136: 0 | J136: 0 | M136: 0 | N136: 0 | O136: 0 | P136: 0 | Q136: 0 | R136: 0 | S136: 0 | V136: 0 | W136: 0 | X136: 0 | Y136: 0 | Z136: 0 | AA136: 0 | AB136: 0
A137: 3.33 | B137: P.T.A / school functions @ Rs.200/- per child per annum | C137: 0 | D137: 0 | E137: 0 | F137: 0 | I137: 0 | J137: 0 | M137: 0 | N137: 0 | O137: 0 | P137: 0 | Q137: 0 | R137: 0 | S137: 0 | V137: 0 | W137: 0 | X137: 0 | Y137: 0 | Z137: 0 | AA137: 0 | AB137: 0
A138: 3.34 | B138: Provision of Rent @ Rs. 6000/- per child per annum | C138: 0 | D138: 0 | E138: 0 | F138: 0 | I138: 0 | J138: 0 | M138: 0 | N138: 0 | O138: 0 | P138: 0 | Q138: 0 | R138: 0 | S138: 0 | V138: 0 | W138: 0 | X138: 0 | Y138: 0 | Z138: 0 | AA138: 0 | AB138: 0
A139: 3.35 | B139: Capacity Building @ Rs.500/- per child per annum | C139: 0 | D139: 0 | E139: 0 | F139: 0 | I139: 0 | J139: 0 | M139: 0 | N139: 0 | O139: 0 | P139: 0 | Q139: 0 | R139: 0 | S139: 0 | V139: 0 | W139: 0 | X139: 0 | Y139: 0 | Z139: 0 | AA139: 0 | AB139: 0
A140: 3.36 | B140: Physical / Self Defence training @ Rs. 200/- per child per annum. | C140: 0 | D140: 0 | E140: 0 | F140: 0 | I140: 0 | J140: 0 | M140: 0 | N140: 0 | O140: 0 | P140: 0 | Q140: 0 | R140: 0 | S140: 0 | V140: 0 | W140: 0 | X140: 0 | Y140: 0 | Z140: 0 | AA140: 0 | AB140: 0
B141: Sub Total (Recurring) | C141: =SUM(C119:C140) -> 0 | D141: =SUM(D119:D140) -> 0 | E141: =SUM(E119:E140) -> 0 | F141: =SUM(F119:F140) -> 0 | G141: =E141/C141*100 ->  | I141: =SUM(I119:I140) -> 0 | J141: 0 | K141: 0 | L141: 0 | M141: 0 | N141: 0 | P141: =SUM(P119:P140) -> 0 | Q141: 0 | R141: 0 | S141: 0 | T141: 0 | U141: 0 | V141: 0 | W141: 0 | Y141: =SUM(Y119:Y140) -> 0 | Z141: =SUM(Z119:Z140) -> 0 | AA141: =SUM(AA119:AA140) -> 0 | AB141: =SUM(AB119:AB140) -> 0
B142: Total (Recurring + Non Recurring) | C142: =SUM(C117+C141) -> 0 | D142: =SUM(D117+D141) -> 0 | E142: =SUM(E117+E141) -> 0 | F142: =SUM(F117+F141) -> 0 | I142: =SUM(I117+I141) -> 0 | J142: 0 | K142: 0 | L142: 0 | M142: 0 | N142: 0 | P142: =SUM(P117+P141) -> 0 | Q142: 0 | R142: 0 | S142: 0 | T142: 0 | U142: 0 | V142: 0 | W142: 0 | Y142: =SUM(Y117+Y141) -> 0 | Z142: =SUM(Z117+Z141) -> 0 | AA142: =SUM(AA117+AA141) -> 0 | AB142: =SUM(AB117+AB141) -> 0
B143: Total (A + B) | C143: =SUM(C78+C110+C142) -> 0 | D143: =SUM(D78+D110+D142) -> 0 | E143: =SUM(E78+E110+E142) -> 0 | F143: =SUM(F78+F110+F142) -> 0 | I143: =SUM(I78+I110+I142) -> 0 | J143: 0 | K143: 0 | L143: 0 | M143: 0 | N143: 0 | P143: =SUM(P78+P110+P142) -> 0 | Q143: 0 | R143: 0 | S143: 0 | T143: 0 | U143: 0 | V143: 0 | W143: 0 | Y143: =SUM(Y78+Y110+Y142) -> 0 | Z143: =SUM(Z78+Z110+Z142) -> 0 | AA143: =SUM(AA78+AA110+AA142) -> 0 | AB143: =SUM(AB78+AB110+AB142) -> 0
A144: 4 | B144: Transport/Escort Facility
A145: 4.01 | B145: Children in remote habitation | C145: 0 | D145: 0 | E145: 0 | F145: 0 | G145: =E145/C145*100 ->  | I145: =C145-E145 -> 0 | J145: =D145-F145 -> 0 | M145: 0 | N145: 0 | O145: 0.03 | P145: =1027+122 -> 1149 | Q145: =O145*P145 -> 34.47 | R145: =K145+M145+P145 -> 1149 | S145: =L145+N145+Q145 -> 34.47 | V145: 0 | W145: 0 | X145: 0.03 | Y145: =1027+122 -> 1149 | Z145: =X145*Y145 -> 34.47 | AA145: =T145+V145+Y145 -> 1149 | AB145: =U145+W145+Z145 -> 34.47
A146: 4.02 | B146: Urban deprived children/children without adult protection | C146: 0 | D146: 0 | E146: 0 | F146: 0 | I146: =C146-E146 -> 0 | J146: =D146-F146 -> 0 | M146: 0 | N146: 0 | O146: 0.025 | P146: 0 | Q146: =O146*P146 -> 0 | R146: =K146+M146+P146 -> 0 | S146: =L146+N146+Q146 -> 0 | V146: 0 | W146: 0 | X146: 0.025 | Y146: 0 | Z146: =X146*Y146 -> 0 | AA146: =T146+V146+Y146 -> 0 | AB146: =U146+W146+Z146 -> 0
B147: Sub Total | C147: =SUM(C145:C146) -> 0 | D147: =SUM(D145:D146) -> 0 | E147: =SUM(E145:E146) -> 0 | F147: =SUM(F145:F146) -> 0 | I147: =SUM(I145:I146) -> 0 | J147: 0 | K147: 0 | L147: 0 | M147: 0 | N147: 0 | P147: =SUM(P145:P146) -> 1149 | Q147: 34.47 | R147: 1149 | S147: 34.47 | T147: 0 | U147: 0 | V147: 0 | W147: 0 | Y147: =SUM(Y145:Y146) -> 1149 | Z147: =SUM(Z145:Z146) -> 34.47 | AA147: =SUM(AA145:AA146) -> 1149 | AB147: =SUM(AB145:AB146) -> 34.47
A148: 5 | B148: Reimbursement of Fee against 25% admission under Section 12(1)(c) of RTE Act 2009 (Entry Level) subject to upper limit of 20% of AWP&B subject to guidelines issued by MHRD | C148: 6757 | D148: 147.56935 | E148: =C148 -> 6757 | F148: =D148 -> 147.56935 | G148: 100 | H148: 100 | I148: =C148-E148 -> 0 | J148: =D148-F148 -> 0 | M148: 0 | N148: 0 | P148: 20440 | Q148: 938.78 | R148: =K148+M148+P148 -> 20440 | S148: =L148+N148+Q148 -> 938.78 | V148: 0 | W148: 0 | Z148: 292.99286 | AA148: =T148+V148+Y148 -> 0 | AB148: =U148+W148+Z148 -> 292.99286
B149: Sub Total | C149: =SUM(C148) -> 6757 | D149: =SUM(D148) -> 147.56935 | E149: =SUM(E148) -> 6757 | F149: =SUM(F148) -> 147.56935 | G149: 100 | H149: 100 | I149: =SUM(I148) -> 0 | J149: 0 | K149: 0 | L149: 0 | M149: 0 | N149: 0 | P149: =SUM(P148) -> 20440 | Q149: 938.78 | R149: 20440 | S149: 938.78 | T149: 0 | U149: 0 | V149: 0 | W149: 0 | Y149: =SUM(Y148) -> 0 | Z149: =SUM(Z148) -> 292.99286 | AA149: =SUM(AA148) -> 0 | AB149: =SUM(AB148) -> 292.99286
A150: =+A148+1 -> 6 | B150: Special Training for mainstreaming of out of school children
A151: 6.01 | B151: Residential (Fresh)
B152: (a) 12 months | C152: 0 | D152: 0 | E152: 0 | F152: 0 | G152: =E152/C152*100 ->  | I152: =C152-E152 -> 0 | J152: 0 | M152: 0 | N152: 0 | O152: 0.2 | P152: 0 | Q152: =O152*P152 -> 0 | R152: =K152+M152+P152 -> 0 | S152: 0 | V152: 0 | W152: 0 | X152: 0.2 | Y152: 0 | Z152: =X152*Y152 -> 0 | AA152: =T152+V152+Y152 -> 0 | AB152: 0
B153: (b) 9 months | C153: 0 | D153: 0 | E153: 0 | F153: 0 | I153: 0 | J153: 0 | M153: 0 | N153: 0 | O153: =0.2/12*9 -> 0.15 | P153: 0 | Q153: =O153*P153 -> 0 | R153: 0 | S153: 0 | V153: 0 | W153: 0 | X153: =0.2/12*9 -> 0.15 | Y153: 0 | Z153: =X153*Y153 -> 0 | AA153: 0 | AB153: 0
B154: (c) 6 months | C154: 0 | D154: 0 | E154: 0 | F154: 0 | I154: 0 | J154: 0 | M154: 0 | N154: 0 | O154: 0.105 | P154: 0 | Q154: =O154*P154 -> 0 | R154: 0 | S154: 0 | V154: 0 | W154: 0 | X154: 0.1 | Y154: 0 | Z154: =X154*Y154 -> 0 | AA154: 0 | AB154: 0
B155: (d) 3 months | C155: 0 | D155: 0 | E155: 0 | F155: 0 | I155: 0 | J155: 0 | M155: 0 | N155: 0 | O155: =0.2/12*3 -> 0.05 | P155: 0 | Q155: =O155*P155 -> 0 | R155: 0 | S155: 0 | V155: 0 | W155: 0 | X155: =0.2/12*3 -> 0.05 | Y155: 0 | Z155: =X155*Y155 -> 0 | AA155: 0 | AB155: 0
B156: Sub Total | C156: =SUM(C152:C155) -> 0 | D156: =SUM(D152:D155) -> 0 | E156: =SUM(E152:E155) -> 0 | F156: =SUM(F152:F155) -> 0 | I156: =SUM(I152:I155) -> 0 | J156: 0 | K156: 0 | L156: 0 | M156: 0 | N156: 0 | P156: =SUM(P152:P155) -> 0 | Q156: 0 | R156: 0 | S156: 0 | T156: 0 | U156: 0 | V156: 0 | W156: 0 | Y156: =SUM(Y152:Y155) -> 0 | Z156: =SUM(Z152:Z155) -> 0 | AA156: =SUM(AA152:AA155) -> 0 | AB156: =SUM(AB152:AB155) -> 0
A157: =+A151+0.01 -> 6.02 | B157: Residential (Continuing from previous year)
B158: (a) 12 months | C158: 0 | D158: 0 | E158: 0 | F158: 0 | G158: =E158/C158*100 ->  | I158: =C158-E158 -> 0 | J158: 0 | M158: 0 | N158: 0 | O158: 0.2 | P158: 0 | Q158: =O158*P158 -> 0 | R158: =K158+M158+P158 -> 0 | S158: 0 | V158: 0 | W158: 0 | X158: 0.2 | Y158: 0 | Z158: =X158*Y158 -> 0 | AA158: =T158+V158+Y158 -> 0 | AB158: 0
B159: (b) 9 months | C159: 0 | D159: 0 | E159: 0 | F159: 0 | I159: 0 | J159: 0 | M159: 0 | N159: 0 | O159: =0.2/12*9 -> 0.15 | P159: 0 | Q159: =O159*P159 -> 0 | R159: 0 | S159: 0 | V159: 0 | W159: 0 | X159: =0.2/12*9 -> 0.15 | Y159: 0 | Z159: =X159*Y159 -> 0 | AA159: 0 | AB159: 0
B160: (c) 6 months | C160: 0 | D160: 0 | E160: 0 | F160: 0 | I160: 0 | J160: 0 | M160: 0 | N160: 0 | O160: =0.2/12*6 -> 0.1 | P160: 0 | Q160: =O160*P160 -> 0 | R160: 0 | S160: 0 | V160: 0 | W160: 0 | X160: =0.2/12*6 -> 0.1 | Y160: 0 | Z160: =X160*Y160 -> 0 | AA160: 0 | AB160: 0
B161: (d) 3 months | C161: 0 | D161: 0 | E161: 0 | F161: 0 | I161: 0 | J161: 0 | M161: 0 | N161: 0 | O161: 0.05 | P161: 0 | Q161: =O161*P161 -> 0 | R161: 0 | S161: 0 | V161: 0 | W161: 0 | X161: 0.05 | Y161: 0 | Z161: =X161*Y161 -> 0 | AA161: 0 | AB161: 0
B162: Sub Total | C162: =SUM(C158:C161) -> 0 | D162: =SUM(D158:D161) -> 0 | E162: =SUM(E158:E161) -> 0 | F162: =SUM(F158:F161) -> 0 | I162: =SUM(I158:I161) -> 0 | J162: 0 | K162: 0 | L162: 0 | M162: 0 | N162: 0 | P162: =SUM(P158:P161) -> 0 | Q162: 0 | R162: 0 | S162: 0 | T162: 0 | U162: 0 | V162: 0 | W162: 0 | Y162: =SUM(Y158:Y161) -> 0 | Z162: =SUM(Z158:Z161) -> 0 | AA162: =SUM(AA158:AA161) -> 0 | AB162: =SUM(AB158:AB161) -> 0
A163: 6.03 | B163: Non-Residential (Fresh)
B164: (a) 12 months | C164: 0 | D164: 0 | E164: 0 | F164: 0 | G164: =E164/C164*100 ->  | I164: =C164-E164 -> 0 | J164: 0 | M164: 0 | N164: 0 | O164: 0.06 | P164: 0 | Q164: =O164*P164 -> 0 | R164: =K164+M164+P164 -> 0 | S164: 0 | V164: 0 | W164: 0 | X164: 0.06 | Y164: 0 | Z164: =X164*Y164 -> 0 | AA164: =T164+V164+Y164 -> 0 | AB164: 0
B165: (b) 9 months | C165: 90 | D165: 3.24 | E165: 35 | F165: 0.373896 | G165: 38.88888889 | H165: 11.54 | I165: 55 | J165: 2.866104 | M165: 0 | N165: 0 | O165: 0.036 | P165: 0 | Q165: =O165*P165 -> 0 | R165: 0 | S165: 0 | V165: 0 | W165: 0 | X165: 0.036 | Y165: 0 | Z165: =X165*Y165 -> 0 | AA165: 0 | AB165: 0
B166: (c) 6 months | C166: 100 | D166: 2.4 | E166: 144 | F166: 0.75648 | G166: 144 | H166: 31.52 | I166: -44 | J166: 1.64352 | M166: 0 | N166: 0 | O166: 0.031 | P166: 200 | Q166: =O166*P166 -> 6.2 | R166: 200 | S166: 6.2 | V166: 0 | W166: 0 | X166: 0.03 | Y166: 200 | Z166: =X166*Y166 -> 6 | AA166: 200 | AB166: 6
B167: (d) 3 months | C167: 300 | D167: 3.6 | E167: 273 | F167: 1.36944 | G167: 91 | H167: 38.04 | I167: 27 | J167: 2.23056 | M167: 0 | N167: 0 | O167: 0.0155 | P167: 300 | Q167: =O167*P167 -> 4.65 | R167: 300 | S167: 4.65 | V167: 0 | W167: 0 | X167: 0.015 | Y167: 300 | Z167: =X167*Y167 -> 4.5 | AA167: 300 | AB167: 4.5
B168: Sub Total | C168: =SUM(C164:C167) -> 490 | D168: =SUM(D164:D167) -> 9.24 | E168: =SUM(E164:E167) -> 452 | F168: =SUM(F164:F167) -> 2.499816 | G168: 92.24489796 | H168: 27.05428571 | I168: =SUM(I164:I167) -> 38 | J168: 6.740184 | K168: 0 | L168: 0 | M168: 0 | N168: 0 | P168: =SUM(P164:P167) -> 500 | Q168: 10.85 | R168: 500 | S168: 10.85 | T168: 0 | U168: 0 | V168: 0 | W168: 0 | Y168: =SUM(Y164:Y167) -> 500 | Z168: =SUM(Z164:Z167) -> 10.5 | AA168: =SUM(AA164:AA167) -> 500 | AB168: =SUM(AB164:AB167) -> 10.5
A169: 6.04 | B169: Non-Residential (Continuing from previous year)
B170: (a) 12 months | C170: 0 | D170: 0 | E170: 0 | F170: 0 | G170: =E170/C170*100 ->  | I170: =C170-E170 -> 0 | J170: 0 | M170: 0 | N170: 0 | O170: =0.06 -> 0.06 | P170: 0 | Q170: =O170*P170 -> 0 | R170: =K170+M170+P170 -> 0 | S170: 0 | V170: 0 | W170: 0 | X170: =0.06 -> 0.06 | Y170: 0 | Z170: =X170*Y170 -> 0 | AA170: =T170+V170+Y170 -> 0 | AB170: 0
B171: (b) 9 months | C171: 0 | D171: 0 | E171: 0 | F171: 0 | I171: 0 | J171: 0 | M171: 0 | N171: 0 | O171: =0.06/12*9 -> 0.045 | P171: 0 | Q171: =O171*P171 -> 0 | R171: 0 | S171: 0 | V171: 0 | W171: 0 | X171: =0.06/12*9 -> 0.045 | Y171: 0 | Z171: =X171*Y171 -> 0 | AA171: 0 | AB171: 0
B172: (c) 6 months | C172: 0 | D172: 0 | E172: 0 | F172: 0 | I172: 0 | J172: 0 | M172: 0 | N172: 0 | O172: =0.06/12*6 -> 0.03 | P172: 0 | Q172: =O172*P172 -> 0 | R172: 0 | S172: 0 | V172: 0 | W172: 0 | X172: =0.06/12*6 -> 0.03 | Y172: 0 | Z172: =X172*Y172 -> 0 | AA172: 0 | AB172: 0
B173: (d) 3 months | C173: 0 | D173: 0 | E173: 0 | F173: 0 | I173: 0 | J173: 0 | M173: 0 | N173: 0 | O173: =0.06/12*3 -> 0.015 | P173: 0 | Q173: =O173*P173 -> 0 | R173: 0 | S173: 0 | V173: 0 | W173: 0 | X173: =0.06/12*3 -> 0.015 | Y173: 0 | Z173: =X173*Y173 -> 0 | AA173: 0 | AB173: 0
B174: Sub Total | C174: =SUM(C170:C173) -> 0 | D174: =SUM(D170:D173) -> 0 | E174: =SUM(E170:E173) -> 0 | F174: =SUM(F170:F173) -> 0 | I174: =SUM(I170:I173) -> 0 | J174: 0 | K174: 0 | L174: 0 | M174: 0 | N174: 0 | P174: =SUM(P170:P173) -> 0 | Q174: 0 | R174: 0 | S174: 0 | T174: 0 | U174: 0 | V174: 0 | W174: 0 | Y174: =SUM(Y170:Y173) -> 0 | Z174: =SUM(Z170:Z173) -> 0 | AA174: =SUM(AA170:AA173) -> 0 | AB174: =SUM(AB170:AB173) -> 0
A175: 6.05 | B175: Madarasa/Maktab
B176: (a) 12 months | C176: 0 | D176: 0 | E176: 0 | F176: 0 | G176: =E176/C176*100 ->  | I176: =C176-E176 -> 0 | J176: 0 | M176: 0 | N176: 0 | O176: =0.06 -> 0.06 | P176: 0 | Q176: =O176*P176 -> 0 | R176: =K176+M176+P176 -> 0 | S176: 0 | V176: 0 | W176: 0 | X176: =0.06 -> 0.06 | Y176: 0 | Z176: =X176*Y176 -> 0 | AA176: =T176+V176+Y176 -> 0 | AB176: 0
B177: (b) 9 months | C177: 0 | D177: 0 | E177: 0 | F177: 0 | I177: 0 | J177: 0 | M177: 0 | N177: 0 | O177: =0.06/12*9 -> 0.045 | P177: 0 | Q177: =O177*P177 -> 0 | R177: 0 | S177: 0 | V177: 0 | W177: 0 | X177: =0.06/12*9 -> 0.045 | Y177: 0 | Z177: =X177*Y177 -> 0 | AA177: 0 | AB177: 0
B178: (c) 6 months | C178: 0 | D178: 0 | E178: 0 | F178: 0 | I178: 0 | J178: 0 | M178: 0 | N178: 0 | O178: 0.0892 | P178: 0 | Q178: =O178*P178 -> 0 | R178: 0 | S178: 0 | V178: 0 | W178: 0 | X178: 0.0892 | Y178: 0 | Z178: =X178*Y178 -> 0 | AA178: 0 | AB178: 0
B179: (d) 3 months | C179: 0 | D179: 0 | E179: 0 | F179: 0 | I179: 0 | J179: 0 | M179: 0 | N179: 0 | O179: =0.06/12*3 -> 0.015 | P179: 0 | Q179: =O179*P179 -> 0 | R179: 0 | S179: 0 | V179: 0 | W179: 0 | X179: =0.06/12*3 -> 0.015 | Y179: 0 | Z179: =X179*Y179 -> 0 | AA179: 0 | AB179: 0
B180: Sub Total | C180: =SUM(C176:C179) -> 0 | D180: =SUM(D176:D179) -> 0 | E180: =SUM(E176:E179) -> 0 | F180: =SUM(F176:F179) -> 0 | I180: =SUM(I176:I179) -> 0 | J180: 0 | K180: 0 | L180: 0 | M180: 0 | N180: 0 | P180: =SUM(P176:P179) -> 0 | Q180: 0 | R180: 0 | S180: 0 | T180: 0 | U180: 0 | V180: 0 | W180: 0 | Y180: =SUM(Y176:Y179) -> 0 | Z180: =SUM(Z176:Z179) -> 0 | AA180: =SUM(AA176:AA179) -> 0 | AB180: =SUM(AB176:AB179) -> 0
A181: 6.06 | B181: Seasonal Hostel (Residential)
B182: (a) 12 months | C182: 0 | D182: 0 | E182: 0 | F182: 0 | G182: =E182/C182*100 ->  | I182: =C182-E182 -> 0 | J182: 0 | M182: 0 | N182: 0 | O182: 0.2 | P182: 0 | Q182: =O182*P182 -> 0 | R182: =K182+M182+P182 -> 0 | S182: 0 | V182: 0 | W182: 0 | X182: 0.2 | Y182: 0 | Z182: =X182*Y182 -> 0 | AA182: =T182+V182+Y182 -> 0 | AB182: 0
B183: (b) 9 months | C183: 0 | D183: 0 | E183: 0 | F183: 0 | I183: 0 | J183: 0 | M183: 0 | N183: 0 | O183: =0.2/12*9 -> 0.15 | P183: 0 | Q183: =O183*P183 -> 0 | R183: 0 | S183: 0 | V183: 0 | W183: 0 | X183: =0.2/12*9 -> 0.15 | Y183: 0 | Z183: =X183*Y183 -> 0 | AA183: 0 | AB183: 0
B184: (c) 6 months | C184: 0 | D184: 0 | E184: 0 | F184: 0 | I184: 0 | J184: 0 | M184: 0 | N184: 0 | O184: 0.0892 | P184: 0 | Q184: =O184*P184 -> 0 | R184: 0 | S184: 0 | V184: 0 | W184: 0 | X184: 0.1 | Y184: 0 | Z184: =X184*Y184 -> 0 | AA184: 0 | AB184: 0
B185: (d) 3 months | C185: 0 | D185: 0 | E185: 0 | F185: 0 | I185: 0 | J185: 0 | M185: 0 | N185: 0 | O185: =0.2/12*3 -> 0.05 | P185: 0 | Q185: =O185*P185 -> 0 | R185: 0 | S185: 0 | V185: 0 | W185: 0 | X185: =0.2/12*3 -> 0.05 | Y185: 0 | Z185: =X185*Y185 -> 0 | AA185: 0 | AB185: 0
B186: Sub Total | C186: =SUM(C182:C185) -> 0 | D186: =SUM(D182:D185) -> 0 | E186: =SUM(E182:E185) -> 0 | F186: =SUM(F182:F185) -> 0 | I186: =SUM(I182:I185) -> 0 | J186: 0 | K186: 0 | L186: 0 | M186: 0 | N186: 0 | P186: =SUM(P182:P185) -> 0 | Q186: 0 | R186: 0 | S186: 0 | T186: 0 | U186: 0 | V186: 0 | W186: 0 | Y186: =SUM(Y182:Y185) -> 0 | Z186: =SUM(Z182:Z185) -> 0 | AA186: =SUM(AA182:AA185) -> 0 | AB186: =SUM(AB182:AB185) -> 0
A187: 6.07 | B187: Seasonal Hostel (Non Residential)
B188: (a) 12 months | C188: 0 | D188: 0 | E188: 0 | F188: 0 | G188: =E188/C188*100 ->  | I188: =C188-E188 -> 0 | J188: 0 | M188: 0 | N188: 0 | O188: =0.06 -> 0.06 | P188: 0 | Q188: =O188*P188 -> 0 | R188: =K188+M188+P188 -> 0 | S188: 0 | V188: 0 | W188: 0 | X188: =0.06 -> 0.06 | Y188: 0 | Z188: =X188*Y188 -> 0 | AA188: =T188+V188+Y188 -> 0 | AB188: 0
B189: (b) 9 months | C189: 0 | D189: 0 | E189: 0 | F189: 0 | I189: 0 | J189: 0 | M189: 0 | N189: 0 | O189: =0.06/12*9 -> 0.045 | P189: 0 | Q189: =O189*P189 -> 0 | R189: 0 | S189: 0 | V189: 0 | W189: 0 | X189: =0.06/12*9 -> 0.045 | Y189: 0 | Z189: =X189*Y189 -> 0 | AA189: 0 | AB189: 0
B190: (c) 6 months | C190: 0 | D190: 0 | E190: 0 | F190: 0 | I190: 0 | J190: 0 | M190: 0 | N190: 0 | O190: =0.06/12*6 -> 0.03 | P190: 0 | Q190: =O190*P190 -> 0 | R190: 0 | S190: 0 | V190: 0 | W190: 0 | X190: =0.06/12*6 -> 0.03 | Y190: 0 | Z190: =X190*Y190 -> 0 | AA190: 0 | AB190: 0
B191: (d) 3 months | C191: 0 | D191: 0 | E191: 0 | F191: 0 | I191: 0 | J191: 0 | M191: 0 | N191: 0 | O191: =0.06/12*3 -> 0.015 | P191: 0 | Q191: =O191*P191 -> 0 | R191: 0 | S191: 0 | V191: 0 | W191: 0 | X191: =0.06/12*3 -> 0.015 | Y191: 0 | Z191: =X191*Y191 -> 0 | AA191: 0 | AB191: 0
B192: Sub Total | C192: 0 | D192: 0 | E192: =SUM(E188:E191) -> 0 | F192: =SUM(F188:F191) -> 0 | I192: =SUM(I188:I191) -> 0 | J192: 0 | K192: 0 | L192: 0 | M192: 0 | N192: 0 | P192: =SUM(P188:P191) -> 0 | Q192: 0 | R192: 0 | S192: 0 | T192: 0 | U192: 0 | V192: 0 | W192: 0 | Y192: =SUM(Y188:Y191) -> 0 | Z192: =SUM(Z188:Z191) -> 0 | AA192: =SUM(AA188:AA191) -> 0 | AB192: =SUM(AB188:AB191) -> 0
B193: Total | C193: =C156+C162+C168+C174+C180+C186+C192 -> 490 | D193: =D156+D162+D168+D174+D180+D186+D192 -> 9.24 | E193: =E156+E162+E168+E174+E180+E186+E192 -> 452 | F193: =F156+F162+F168+F174+F180+F186+F192 -> 2.499816 | G193: 92.24489796 | H193: 27.05428571 | I193: =I156+I162+I168+I174+I180+I186+I192 -> 38 | J193: 6.740184 | K193: 0 | L193: 0 | M193: 0 | N193: 0 | P193: =P156+P162+P168+P174+P180+P186+P192 -> 500 | Q193: 10.85 | R193: 500 | S193: 10.85 | T193: 0 | U193: 0 | V193: 0 | W193: 0 | Y193: =Y156+Y162+Y168+Y174+Y180+Y186+Y192 -> 500 | Z193: =Z156+Z162+Z168+Z174+Z180+Z186+Z192 -> 10.5 | AA193: =AA156+AA162+AA168+AA174+AA180+AA186+AA192 -> 500 | AB193: =AB156+AB162+AB168+AB174+AB180+AB186+AB192 -> 10.5
A194: II | B194: RETENTION
A195: 7 | B195: Free Text Books
A196: 7.01 | B196: Free Text Books (UP) TOPUP | Q196: =O196*P196 -> 0 | R196: =K196+M196+P196 -> 0 | S196: =L196+N196+Q196 -> 0 | Z196: =X196*Y196 -> 0 | AA196: =T196+V196+Y196 -> 0 | AB196: =U196+W196+Z196 -> 0
B197: (a) Class I & II | Q197: 0 | R197: 0 | S197: 0 | Z197: 0 | AA197: 0 | AB197: 0
B198: (b) Braille Books Class I & II | O198: 0.0015 | P198: 8 | Q198: 0.012 | R198: 8 | S198: 0.012 | X198: 0.0015 | Y198: 8 | Z198: 0.012 | AA198: 8 | AB198: 0.012 | AD198: =Y198*X198 -> 0.012
B199: (c) Large Print Books Class I & II | O199: 0.0015 | P199: 5 | Q199: 0.0075 | R199: 5 | S199: 0.0075 | X199: 0.0015 | Y199: 5 | Z199: 0.0075 | AA199: 5 | AB199: 0.0075 | AD199: 0.0075
B200: (d) Class III to V | Q200: 0 | R200: 0 | S200: 0 | Z200: 0 | AA200: 0 | AB200: 0 | AD200: 0
... 295 more rows

Sheet ALWAR
A1: S.No. | B1: Activity | C1: Year 2016-17 | K1: n | T1: Outlay Recommended for 2017-18 | AC1: Remarks
C2: Outlay approved by PAB (including spillover) | E2: Anticipated Achievement upto March 2017 | I2: Savings | K2: Spill Over | M2: Deferred laibility of 2014-15 | O2: Fresh | R2: Total | T2: Spill Over | V2: Deferred laibility of 2014-15 | X2: Fresh | AA2: Total
C3: Phy. | D3: Fin | E3: Phy. | F3: Fin. | G3: Phy. (%) | H3: Fin. (%) | I3: Phy. | J3: Fin. | K3: Phy. | L3: Fin. | M3: Phy. | N3: Fin. | O3: Unit Cost | P3: Phy. | Q3: Fin. | R3: Phy. | S3: Fin. | T3: Phy. | U3: Fin. | V3: Phy. | W3: Fin. | X3: Unit Cost | Y3: Phy. | Z3: Fin. | AA3: Phy. | AB3: Fin.
A4: I | B4: ACCESS
B5: SSA
A6: 1 | B6: Opening of New Schools
A7: 1.01 | B7: New Primary School | C7: 0 | D7: 0 | E7: 0 | F7: 0 | G7: =E7/C7*100 ->  | H7: =F7/D7*100 ->  | I7: =C7-E7 -> 0 | J7: =D7-F7 -> 0 | K7: 0 | L7: 0 | M7: 0 | N7: 0 | P7: 0 | Q7: =O7*P7 -> 0 | R7: =K7+M7+P7 -> 0 | S7: =L7+N7+Q7 -> 0 | T7: 0 | U7: 0 | V7: 0 | W7: 0 | Y7: 0 | Z7: =X7*Y7 -> 0 | AA7: =T7+V7+Y7 -> 0 | AB7: =U7+W7+Z7 -> 0
A8: 1.02 | B8: Upgradation of PS to UPS | C8: 0 | D8: 0 | E8: 0 | F8: 0 | G8: =E8/C8*100 ->  | H8: =F8/D8*100 ->  | I8: =C8-E8 -> 0 | J8: =D8-F8 -> 0 | K8: 0 | L8: 0 | M8: 0 | N8: 0 | P8: 0 | Q8: =O8*P8 -> 0 | R8: =K8+M8+P8 -> 0 | S8: 0 | T8: 0 | U8: 0 | V8: 0 | W8: 0 | Y8: 0 | Z8: =X8*Y8 -> 0 | AA8: =T8+V8+Y8 -> 0 | AB8: 0
A9: 1.03 | B9: Composite Schools | C9: 0 | D9: 0 | E9: 0 | F9: 0 | I9: 0 | J9: 0 | K9: 0 | L9: 0 | M9: 0 | N9: 0 | P9: 0 | Q9: 0 | R9: 0 | S9: 0 | T9: 0 | U9: 0 | V9: 0 | W9: 0 | Y9: 0 | Z9: 0 | AA9: 0 | AB9: 0
A10: 1.04 | B10: Residential schools for specific category of children | C10: 0 | D10: 0 | E10: 0 | F10: 0 | I10: 0 | J10: 0 | K10: 0 | L10: 0 | M10: 0 | N10: 0 | P10: 0 | Q10: 0 | R10: 0 | S10: 0 | T10: 0 | U10: 0 | V10: 0 | W10: 0 | Y10: 0 | Z10: 0 | AA10: 0 | AB10: 0
A11: 1.05 | B11: Residential Hostel | C11: 0 | D11: 0 | E11: 0 | F11: 0 | I11: 0 | J11: 0 | K11: 0 | L11: 0 | M11: 0 | N11: 0 | P11: 0 | Q11: 0 | R11: 0 | S11: 0 | T11: 0 | U11: 0 | V11: 0 | W11: 0 | Y11: 0 | Z11: 0 | AA11: 0 | AB11: 0
A12: 1.06 | B12: Integration of Class V with primary schools | C12: 0 | D12: 0 | E12: 0 | F12: 0 | I12: 0 | J12: 0 | K12: 0 | L12: 0 | M12: 0 | N12: 0 | P12: 0 | Q12: 0 | R12: 0 | S12: 0 | T12: 0 | U12: 0 | V12: 0 | W12: 0 | Y12: 0 | Z12: 0 | AA12: 0 | AB12: 0
A13: 1.07 | B13: Integration of Class VIII with upper primary schools | C13: 0 | D13: 0 | E13: 0 | F13: 0 | I13: 0 | J13: 0 | K13: 0 | L13: 0 | M13: 0 | N13: 0 | P13: 0 | Q13: 0 | R13: 0 | S13: 0 | T13: 0 | U13: 0 | V13: 0 | W13: 0 | Y13: 0 | Z13: 0 | AA13: 0 | AB13: 0
A14: 2 | B14: Residential Schools for specific category of children
B15: 50 children
B16: Non-recurring (one time grant)
A17: 2.01 | B17: Furniture/ Equipment (including kitchen) | C17: 0 | D17: 0 | E17: 0 | F17: 0 | G17: =E17/C17*100 ->  | I17: =C17-E17 -> 0 | J17: 0 | M17: 0 | N17: 0 | O17: 2 | P17: 0 | Q17: =O17*P17 -> 0 | R17: =K17+M17+P17 -> 0 | S17: 0 | V17: 0 | W17: 0 | X17: 2 | Y17: 0 | Z17: =X17*Y17 -> 0 | AA17: =T17+V17+Y17 -> 0 | AB17: 0
A18: 2.02 | B18: TLM and equipment including library books | C18: 0 | D18: 0 | E18: 0 | F18: 0 | I18: 0 | J18: 0 | M18: 0 | N18: 0 | O18: 3 | P18: 0 | Q18: =O18*P18 -> 0 | R18: 0 | S18: 0 | V18: 0 | W18: 0 | X18: 3 | Y18: 0 | Z18: =X18*Y18 -> 0 | AA18: 0 | AB18: 0
A19: 2.03 | B19: Bedding (new) | C19: 0 | D19: 0 | E19: 0 | F19: 0 | I19: 0 | J19: 0 | M19: 0 | N19: 0 | O19: 0.375 | P19: 0 | Q19: =O19*P19 -> 0 | R19: 0 | S19: 0 | V19: 0 | W19: 0 | X19: 0.375 | Y19: 0 | Z19: =X19*Y19 -> 0 | AA19: 0 | AB19: 0
A20: 2.04 | B20: Replacement of bedding (once in 3 years) | C20: 0 | D20: 0 | E20: 0 | F20: 0 | I20: 0 | J20: 0 | M20: 0 | N20: 0 | O20: 0.0075 | P20: 0 | Q20: =O20*P20 -> 0 | R20: 0 | S20: 0 | V20: 0 | W20: 0 | X20: 0.0075 | Y20: 0 | Z20: =X20*Y20 -> 0 | AA20: 0 | AB20: 0
B21: Sub Total (Non Recurring) | C21: =SUM(C17:C20) -> 0 | D21: =SUM(D17:D20) -> 0 | E21: =SUM(E17:E20) -> 0 | F21: =SUM(F17:F20) -> 0 | I21: =SUM(I17:I20) -> 0 | J21: 0 | K21: 0 | L21: 0 | M21: 0 | N21: 0 | P21: =SUM(P17:P20) -> 0 | Q21: 0 | R21: 0 | S21: 0 | T21: 0 | U21: 0 | V21: 0 | W21: 0 | Y21: =SUM(Y17:Y20) -> 0 | Z21: =SUM(Z17:Z20) -> 0 | AA21: =SUM(AA17:AA20) -> 0 | AB21: =SUM(AB17:AB20) -> 0
B22: Recurring (50 children)
A23: 2.05 | B23: Maintenance per child Per month @ Rs.1500/- | C23: 0 | D23: 0 | E23: 0 | F23: 0 | G23: =E23/C23*100 ->  | I23: =C23-E23 -> 0 | J23: 0 | M23: 0 | N23: 0 | O23: 0.18 | P23: 0 | Q23: =O23*P23 -> 0 | R23: =K23+M23+P23 -> 0 | S23: 0 | V23: 0 | W23: 0 | X23: 0.18 | Y23: 0 | Z23: =X23*Y23 -> 0 | AA23: =T23+V23+Y23 -> 0 | AB23: 0
A24: 2.06 | B24: Stipend per child per month @ Rs.100/- | C24: 0 | D24: 0 | E24: 0 | F24: 0 | I24: 0 | J24: 0 | M24: 0 | N24: 0 | O24: 0.012 | P24: 0 | Q24: =O24*P24 -> 0 | R24: 0 | S24: 0 | V24: 0 | W24: 0 | X24: 0.012 | Y24: 0 | Z24: =X24*Y24 -> 0 | AA24: 0 | AB24: 0
A25: 2.07 | B25: Supplementary TLM, Stationery and other educational material @Rs.1000/- per child per annum | C25: 0 | D25: 0 | E25: 0 | F25: 0 | I25: 0 | J25: 0 | M25: 0 | N25: 0 | O25: 0.01 | P25: 0 | Q25: =O25*P25 -> 0 | R25: 0 | S25: 0 | V25: 0 | W25: 0 | X25: 0.01 | Y25: 0 | Z25: =X25*Y25 -> 0 | AA25: 0 | AB25: 0
A26: 2.08 | B26: Salaries | C26: 0 | D26: 0 | E26: 0 | F26: 0
A27: (a) | B27: 1 Warden @ Rs.25000/- per month | C27: 0 | D27: 0 | E27: 0 | F27: 0 | G27: =E27/C27*100 ->  | H27: =F27/D27*100 ->  | I27: =C27-E27 -> 0 | J27: =D27-F27 -> 0 | M27: 0 | N27: 0 | O27: 3 | P27: 0 | Q27: =O27*P27 -> 0 | R27: =K27+M27+P27 -> 0 | S27: =L27+N27+Q27 -> 0 | V27: 0 | W27: 0 | X27: 3 | Y27: 0 | Z27: =X27*Y27 -> 0 | AA27: =T27+V27+Y27 -> 0 | AB27: =U27+W27+Z27 -> 0
A28: (b) | B28: 4 Fulltime teachers as per RTE Norms @ Rs. 20,000/- per month per teacher | C28: 0 | D28: 0 | E28: 0 | F28: 0 | I28: 0 | J28: 0 | M28: 0 | N28: 0 | O28: 0 | P28: 0 | Q28: 0 | R28: 0 | S28: 0 | V28: 0 | W28: 0 | X28: 0 | Y28: 0 | Z28: 0 | AA28: 0 | AB28: 0
A29: (c) | B29: 2 Urdu Teachers (only for Blocks with muslim population above 20% and select urban areas) @ Rs.12,000/- per month per teacher. | C29: 0 | D29: 0 | E29: 0 | F29: 0 | I29: 0 | J29: 0 | M29: 0 | N29: 0 | O29: 0 | P29: 0 | Q29: 0 | R29: 0 | S29: 0 | V29: 0 | W29: 0 | X29: 0 | Y29: 0 | Z29: 0 | AA29: 0 | AB29: 0
A30: (d) | B30: 3 Part time teachers @ Rs.5,000/- per month per teacher | C30: 0 | D30: 0 | E30: 0 | F30: 0 | I30: 0 | J30: 0 | M30: 0 | N30: 0 | O30: 0 | P30: 0 | Q30: 0 | R30: 0 | S30: 0 | V30: 0 | W30: 0 | X30: 0 | Y30: 0 | Z30: 0 | AA30: 0 | AB30: 0
A31: (e) | B31: 1 Full time Accountant @ Rs. 10,000/- per month | C31: 0 | D31: 0 | E31: 0 | F31: 0 | I31: 0 | J31: 0 | M31: 0 | N31: 0 | O31: 1.2 | P31: 0 | Q31: 0 | R31: 0 | S31: 0 | V31: 0 | W31: 0 | X31: 1.2 | Y31: 0 | Z31: 0 | AA31: 0 | AB31: 0
A32: (f) | B32: 2 Support staff - (Accountant/Assistant, Peon, Chowkidar) @ Rs. 5,000/- per month per staff | C32: 0 | D32: 0 | E32: 0 | F32: 0 | I32: 0 | J32: 0 | M32: 0 | N32: 0 | O32: 0.6 | P32: 0 | Q32: 0 | R32: 0 | S32: 0 | V32: 0 | W32: 0 | X32: 0.6 | Y32: 0 | Z32: 0 | AA32: 0 | AB32: 0
A33: (g) | B33: 1 Head Cook @ Rs. 6,000/- per month and upto 2 Asstt. Cooks @ Rs. 4,500/- per month per cook | C33: 0 | D33: 0 | E33: 0 | F33: 0 | I33: 0 | J33: 0 | M33: 0 | N33: 0 | O33: 1.8 | P33: 0 | Q33: 0 | R33: 0 | S33: 0 | V33: 0 | W33: 0 | X33: 1.8 | Y33: 0 | Z33: 0 | AA33: 0 | AB33: 0
A34: 2.09 | B34: Specific Skill training @ Rs.1000/- per annum per child | C34: 0 | D34: 0 | E34: 0 | F34: 0 | I34: 0 | J34: 0 | M34: 0 | N34: 0 | O34: 0 | P34: 0 | Q34: 0 | R34: 0 | S34: 0 | V34: 0 | W34: 0 | X34: 0 | Y34: 0 | Z34: 0 | AA34: 0 | AB34: 0
A35: 2.1 | B35: Electricity / water charges @ Rs. 1000/- per annum per child | C35: 0 | D35: 0 | E35: 0 | F35: 0 | I35: 0 | J35: 0 | M35: 0 | N35: 0 | O35: 0.01 | P35: 0 | Q35: 0 | R35: 0 | S35: 0 | V35: 0 | W35: 0 | X35: 0.01 | Y35: 0 | Z35: 0 | AA35: 0 | AB35: 0
A36: =+A35+0.01 -> 2.11 | B36: Medical care/contingencies @ Rs.1250/- per annum per child | C36: 0 | D36: 0 | E36: 0 | F36: 0 | I36: 0 | J36: 0 | M36: 0 | N36: 0 | O36: 0.0125 | P36: 0 | Q36: 0 | R36: 0 | S36: 0 | V36: 0 | W36: 0 | X36: 0.0125 | Y36: 0 | Z36: 0 | AA36: 0 | AB36: 0
A37: =+A36+0.01 -> 2.12 | B37: Maintenance @ Rs. 750/- per child per annum | C37: 0 | D37: 0 | E37: 0 | F37: 0 | I37: 0 | J37: 0 | M37: 0 | N37: 0 | O37: 0.0075 | P37: 0 | Q37: 0 | R37: 0 | S37: 0 | V37: 0 | W37: 0 | X37: 0.0075 | Y37: 0 | Z37: 0 | AA37: 0 | AB37: 0
A38: 2.13 | B38: Miscellaneous @ Rs. 750/- per child per annum | C38: 0 | D38: 0 | E38: 0 | F38: 0 | I38: 0 | J38: 0 | M38: 0 | N38: 0 | O38: 0.0075 | P38: 0 | Q38: 0 | R38: 0 | S38: 0 | V38: 0 | W38: 0 | X38: 0.0075 | Y38: 0 | Z38: 0 | AA38: 0 | AB38: 0
A39: 2.14 | B39: Preparatory camps @ Rs. 300/- per child per annum | C39: 0 | D39: 0 | E39: 0 | F39: 0 | I39: 0 | J39: 0 | M39: 0 | N39: 0 | O39: 0 | P39: 0 | Q39: 0 | R39: 0 | S39: 0 | V39: 0 | W39: 0 | X39: 0 | Y39: 0 | Z39: 0 | AA39: 0 | AB39: 0
A40: 2.15 | B40: P.T.A / school functions @ Rs. 300/- per child per annum | C40: 0 | D40: 0 | E40: 0 | F40: 0 | I40: 0 | J40: 0 | M40: 0 | N40: 0 | O40: 0.003 | P40: 0 | Q40: 0 | R40: 0 | S40: 0 | V40: 0 | W40: 0 | X40: 0.003 | Y40: 0 | Z40: 0 | AA40: 0 | AB40: 0
A41: 2.16 | B41: Provision of Rent @ Rs. 10,000/- per child per annum | C41: 0 | D41: 0 | E41: 0 | F41: 0 | I41: 0 | J41: 0 | M41: 0 | N41: 0 | O41: 0 | P41: 0 | Q41: 0 | R41: 0 | S41: 0 | V41: 0 | W41: 0 | X41: 0 | Y41: 0 | Z41: 0 | AA41: 0 | AB41: 0
A42: 2.17 | B42: Capacity Building @ Rs. 500/- per child per annum | C42: 0 | D42: 0 | E42: 0 | F42: 0 | I42: 0 | J42: 0 | M42: 0 | N42: 0 | O42: 0.005 | P42: 0 | Q42: 0 | R42: 0 | S42: 0 | V42: 0 | W42: 0 | X42: 0.005 | Y42: 0 | Z42: 0 | AA42: 0 | AB42: 0
A43: 2.18 | B43: Physical / Self Defence Training @ Rs.200/- per child per annum | C43: 0 | D43: 0 | E43: 0 | F43: 0 | I43: 0 | J43: 0 | M43: 0 | N43: 0 | O43: 0 | P43: 0 | Q43: 0 | R43: 0 | S43: 0 | V43: 0 | W43: 0 | X43: 0 | Y43: 0 | Z43: 0 | AA43: 0 | AB43: 0
B44: Sub Total (Recurring) | C44: =C23 -> 0 | D44: =SUM(D23:D43) -> 0 | E44: =E23 -> 0 | F44: =SUM(F23:F43) -> 0 | G44: =E44/C44*100 ->  | H44: =F44/D44*100 ->  | I44: =I23 -> 0 | J44: =SUM(J23:J43) -> 0 | K44: =SUM(K23:K43) -> 0 | L44: =SUM(L23:L43) -> 0 | M44: =SUM(M23:M43) -> 0 | N44: =SUM(N23:N43) -> 0 | P44: =P23 -> 0 | Q44: =SUM(Q23:Q43) -> 0 | R44: =R23 -> 0 | S44: =SUM(S23:S43) -> 0 | T44: =SUM(T23:T43) -> 0 | U44: =SUM(U23:U43) -> 0 | V44: =SUM(V23:V43) -> 0 | W44: =SUM(W23:W43) -> 0 | Y44: =Y23 -> 0 | Z44: =SUM(Z23:Z43) -> 0 | AA44: =AA23 -> 0 | AB44: =SUM(AB23:AB43) -> 0
B45: Total (Non Recurring + Recurring) | C45: =C44 -> 0 | D45: =SUM(D21+D44) -> 0 | E45: =E44 -> 0 | F45: =SUM(F21+F44) -> 0 | G45: =E45/C45*100 ->  | H45: =F45/D45*100 ->  | I45: =I44 -> 0 | J45: =SUM(J21+J44) -> 0 | K45: =SUM(K21+K44) -> 0 | L45: =SUM(L21+L44) -> 0 | M45: =SUM(M21+M44) -> 0 | N45: =SUM(N21+N44) -> 0 | P45: =P44 -> 0 | Q45: =SUM(Q21+Q44) -> 0 | R45: =R44 -> 0 | S45: =SUM(S21+S44) -> 0 | T45: =SUM(T21+T44) -> 0 | U45: =SUM(U21+U44) -> 0 | V45: =SUM(V21+V44) -> 0 | W45: =SUM(W21+W44) -> 0 | Y45: =Y44 -> 0 | Z45: =SUM(Z21+Z44) -> 0 | AA45: =AA44 -> 0 | AB45: =SUM(AB21+AB44) -> 0
B46: 100 children
B47: Non-recurring (one time grant)
A48: 2.19 | B48: Furniture / Equipment (including kitchen equipment) | C48: 0 | D48: 0 | E48: 0 | F48: 0 | G48: =E48/C48*100 ->  | I48: =C48-E48 -> 0 | J48: 0 | M48: 0 | N48: 0 | O48: 3 | P48: 0 | Q48: =O48*P48 -> 0 | R48: =K48+M48+P48 -> 0 | S48: 0 | V48: 0 | W48: 0 | X48: 3 | Y48: 0 | Z48: =X48*Y48 -> 0 | AA48: =T48+V48+Y48 -> 0 | AB48: 0
A49: =+A48+0.01 -> 2.2 | B49: TLM and equipment including library books (New) | C49: 0 | D49: 0 | E49: 0 | F49: 0 | I49: 0 | J49: 0 | M49: 0 | N49: 0 | O49: 3.5 | P49: 0 | Q49: =O49*P49 -> 0 | R49: 0 | S49: 0 | V49: 0 | W49: 0 | X49: 3.5 | Y49: 0 | Z49: =X49*Y49 -> 0 | AA49: 0 | AB49: 0
A50: =+A49+0.01 -> 2.21 | B50: Bedding (New) | C50: 0 | D50: 0 | E50: 0 | F50: 0 | I50: 0 | J50: 0 | M50: 0 | N50: 0 | O50: 0.75 | P50: 0 | Q50: =O50*P50 -> 0 | R50: 0 | S50: 0 | V50: 0 | W50: 0 | X50: 0.75 | Y50: 0 | Z50: =X50*Y50 -> 0 | AA50: 0 | AB50: 0
A51: =+A50+0.01 -> 2.22 | B51: Replacement of bedding (once in 3 years) | C51: 100 | D51: 0.75 | E51: 100 | F51: 0.75 | G51: 100 | H51: 100 | I51: 0 | J51: 0 | M51: 0 | N51: 0 | O51: 0.0075 | P51: 0 | Q51: =O51*P51 -> 0 | R51: 0 | S51: 0 | V51: 0 | W51: 0 | X51: 0.0075 | Y51: 0 | Z51: =X51*Y51 -> 0 | AA51: 0 | AB51: 0
B52: Sub Total Non-recurring | C52: =SUM(C48:C51) -> 100 | D52: =SUM(D48:D51) -> 0.75 | E52: =SUM(E48:E51) -> 100 | F52: =SUM(F48:F51) -> 0.75 | G52: 100 | H52: 100 | I52: =SUM(I48:I51) -> 0 | J52: 0 | K52: 0 | L52: 0 | M52: 0 | N52: 0 | P52: =SUM(P48:P51) -> 0 | Q52: 0 | R52: 0 | S52: 0 | T52: 0 | U52: 0 | V52: 0 | W52: 0 | Y52: =SUM(Y48:Y51) -> 0 | Z52: =SUM(Z48:Z51) -> 0 | AA52: =SUM(AA48:AA51) -> 0 | AB52: =SUM(AB48:AB51) -> 0
B53: Recurring
A54: 2.23 | B54: Maintenance per child per month @ Rs. 1500/- | C54: 100 | D54: 18 | E54: 100 | F54: 15 | G54: =E54/C54*100 -> 100 | H54: =F54/D54*100 -> 83.33333333 | I54: =C54-E54 -> 0 | J54: =D54-F54 -> 3 | M54: 0 | N54: 0 | O54: 0.18 | P54: 100 | Q54: =O54*P54 -> 18 | R54: =K54+M54+P54 -> 100 | S54: 18 | V54: 0 | W54: 0 | X54: 0.18 | Y54: 100 | Z54: =X54*Y54 -> 18 | AA54: =T54+V54+Y54 -> 100 | AB54: 18
A55: =+A54+0.01 -> 2.24 | B55: Stipend per child per month @ Rs.100/- | C55: 100 | D55: 1.2 | E55: 100 | F55: 1.2 | G55: 100 | H55: 100 | I55: 0 | J55: 0 | M55: 0 | N55: 0 | O55: 0.012 | P55: 100 | Q55: =O55*P55 -> 1.2 | R55: 100 | S55: 1.2 | V55: 0 | W55: 0 | X55: 0.012 | Y55: 100 | Z55: =X55*Y55 -> 1.2 | AA55: 100 | AB55: 1.2
A56: 2.25 | B56: Supplementary TLM, Stationery and other educational material per child @1000/- per annum | C56: 100 | D56: 1 | E56: 100 | F56: 0.64 | G56: 100 | H56: 64 | I56: 0 | J56: 0.36 | M56: 0 | N56: 0 | O56: 0.01 | P56: 100 | Q56: =O56*P56 -> 1 | R56: 100 | S56: 1 | V56: 0 | W56: 0 | X56: 0.01 | Y56: 100 | Z56: =X56*Y56 -> 1 | AA56: 100 | AB56: 1
A57: 2.26 | B57: Salaries | F57: 0
A58: (a) | B58: 1 Warden @ Rs. 25,000/- per month | C58: 1 | D58: 3 | E58: 1 | F58: 1.8 | G58: 100 | H58: 60 | I58: 0 | J58: 1.2 | M58: 0 | N58: 0 | O58: 3 | P58: 1 | Q58: =O58*P58 -> 3 | R58: =K58+M58+P58 -> 1 | S58: =L58+N58+Q58 -> 3 | V58: 0 | W58: 0 | X58: 3 | Y58: 1 | Z58: =X58*Y58 -> 3 | AA58: =T58+V58+Y58 -> 1 | AB58: =U58+W58+Z58 -> 3
A59: (b) | B59: 1 head teacher @ Rs. 25,000/- per month in case the enrollment exceeds 100 | C59: 0 | D59: 0 | E59: 0 | F59: 0 | I59: 0 | J59: 0 | M59: 0 | N59: 0 | O59: 3 | P59: 0 | Q59: 0 | R59: 0 | S59: 0 | V59: 0 | W59: 0 | X59: 3 | Y59: 1 | Z59: 3 | AA59: 1 | AB59: 3
A60: (c) | B60: 4 - 5 Full time teachers as per RTE norms @ Rs. 20,000/- per month per teacher | C60: 2 | D60: 4.8 | E60: 2 | F60: 2.21 | G60: 100 | H60: 46.04166667 | I60: 0 | J60: 2.59 | M60: 0 | N60: 0 | O60: 2.4 | P60: 2 | Q60: 4.8 | R60: 2 | S60: 4.8 | V60: 0 | W60: 0 | X60: =0.2*12*4 -> 9.6 | Y60: 1 | Z60: 9.6 | AA60: 1 | AB60: 9.6
A61: (d) | B61: 2 Urdu Teachers (only for blocks with muslim population above 20% and select urban areas), if required @ Rs. 12,000/- per month per teacher | C61: 0 | D61: 0 | E61: 0 | F61: 0 | I61: 0 | J61: 0 | M61: 0 | N61: 0 | O61: 0 | P61: 0 | Q61: 0 | R61: 0 | S61: 0 | V61: 0 | W61: 0 | X61: 0 | Y61: 0 | Z61: 0 | AA61: 0 | AB61: 0
A62: (e) | B62: 3 part time teachers @ Rs. 5,000/- per month per teacher | C62: 0 | D62: 0 | E62: 0 | F62: 0 | I62: 0 | J62: 0 | M62: 0 | N62: 0 | O62: 0.6 | P62: 0 | Q62: 0 | R62: 0 | S62: 0 | V62: 0 | W62: 0 | X62: =0.05*12*3 -> 1.8 | Y62: 1 | Z62: 1.8 | AA62: 1 | AB62: 1.8
A63: (f) | B63: 1 Full time Accountant @ Rs. 10,000/- per month | C63: 1 | D63: 1.2 | E63: 1 | F63: 1.2 | G63: 100 | H63: 100 | I63: 0 | J63: 0 | M63: 0 | N63: 0 | O63: 1.2 | P63: 1 | Q63: 1.2 | R63: 1 | S63: 1.2 | V63: 0 | W63: 0 | X63: 1.2 | Y63: 1 | Z63: 1.2 | AA63: 1 | AB63: 1.2
A64: (g) | B64: 2 Support Staff – (Accountant/ Assistant, Peon, Chowkidar) @ Rs. 5,000/- per month per staff | C64: 2 | D64: 1.2 | E64: 2 | F64: 1.2 | G64: 100 | H64: 100 | I64: 0 | J64: 0 | M64: 0 | N64: 0 | O64: 0.6 | P64: 2 | Q64: 1.2 | R64: 2 | S64: 1.2 | V64: 0 | W64: 0 | X64: =0.05*12*2 -> 1.2 | Y64: 1 | Z64: 1.2 | AA64: 1 | AB64: 1.2
A65: (h) | B65: 1 Head cook @ Rs. 6,000/- per month and upto 2 Asstt. Cooks @ Rs. 4,500/- per month per cook | C65: 1 | D65: 1.8 | E65: 1 | F65: 1.8 | G65: 100 | H65: 100 | I65: 0 | J65: 0 | M65: 0 | N65: 0 | O65: 1.8 | P65: 1 | Q65: 1.8 | R65: 1 | S65: 1.8 | V65: 0 | W65: 0 | X65: 1.8 | Y65: 1 | Z65: 1.8 | AA65: 1 | AB65: 1.8
A66: 2.27 | B66: Specific skill training per child @ Rs.1000/- per annum | C66: 0 | D66: 0 | E66: 0 | F66: 0 | I66: 0 | J66: 0 | M66: 0 | N66: 0 | O66: 0 | P66: 0 | Q66: 0 | R66: 0 | S66: 0 | V66: 0 | W66: 0 | X66: 0.01 | Y66: 100 | Z66: 1 | AA66: 100 | AB66: 1
A67: 2.28 | B67: Electricity / water charges per child @Rs.1000/- per annum | C67: 100 | D67: 1 | E67: 100 | F67: 1 | G67: 100 | H67: 100 | I67: 0 | J67: 0 | M67: 0 | N67: 0 | O67: 0.01 | P67: 100 | Q67: 1 | R67: 100 | S67: 1 | V67: 0 | W67: 0 | X67: 0.01 | Y67: 100 | Z67: 1 | AA67: 100 | AB67: 1
A68: 2.29 | B68: Medical care/contingencies @ Rs.1250/- per child per annum | C68: 100 | D68: 1.25 | E68: 100 | F68: 1 | G68: 100 | H68: 80 | I68: 0 | J68: 0.25 | M68: 0 | N68: 0 | O68: 0.0125 | P68: 100 | Q68: 1.25 | R68: 100 | S68: 1.25 | V68: 0 | W68: 0 | X68: 0.0125 | Y68: 100 | Z68: 1.25 | AA68: 100 | AB68: 1.25
A69: 2.3 | B69: Maintenance @ Rs.750/- per child per annum | C69: 100 | D69: 0.75 | E69: 100 | F69: 0.75 | G69: 100 | H69: 100 | I69: 0 | J69: 0 | M69: 0 | N69: 0 | O69: 0.0075 | P69: 100 | Q69: 0.75 | R69: 100 | S69: 0.75 | V69: 0 | W69: 0 | X69: 0.0075 | Y69: 100 | Z69: 0.75 | AA69: 100 | AB69: 0.75
A70: 2.31 | B70: Miscellaneous @ Rs.750/- per child per annum | C70: 100 | D70: 0.75 | E70: 100 | F70: 0.75 | G70: 100 | H70: 100 | I70: 0 | J70: 0 | M70: 0 | N70: 0 | O70: 0.0075 | P70: 100 | Q70: 0.75 | R70: 100 | S70: 0.75 | V70: 0 | W70: 0 | X70: 0.0075 | Y70: 100 | Z70: 0.75 | AA70: 100 | AB70: 0.75
A71: 2.32 | B71: Preparatory camps @ Rs.200/- per child per annum | C71: 0 | D71: 0 | E71: 0 | F71: 0 | I71: 0 | J71: 0 | M71: 0 | N71: 0 | O71: 0 | P71: 0 | Q71: 0 | R71: 0 | S71: 0 | V71: 0 | W71: 0 | X71: 0.002 | Y71: 100 | Z71: 0.2 | AA71: 100 | AB71: 0.2
A72: 2.33 | B72: P.T.A / school functions @ Rs.200/- per child per annum | C72: 0 | D72: 0 | E72: 0 | F72: 0 | I72: 0 | J72: 0 | M72: 0 | N72: 0 | O72: 0.003 | P72: 100 | Q72: 0.3 | R72: 100 | S72: 0.3 | V72: 0 | W72: 0 | X72: 0.002 | Y72: 100 | Z72: 0.2 | AA72: 100 | AB72: 0.2
A73: 2.34 | B73: Provision of Rent @ Rs. 6000/- per child per annum | C73: 0 | D73: 0 | E73: 0 | F73: 0 | I73: 0 | J73: 0 | M73: 0 | N73: 0 | O73: 0 | P73: 0 | Q73: 0 | R73: 0 | S73: 0 | V73: 0 | W73: 0 | X73: 0 | Y73: 0 | Z73: 0 | AA73: 0 | AB73: 0
A74: 2.35 | B74: Capacity Building @ Rs.500/- per child per annum | C74: 100 | D74: 0.5 | E74: 100 | F74: 0.5 | G74: 100 | H74: 100 | I74: 0 | J74: 0 | M74: 0 | N74: 0 | O74: 0.005 | P74: 100 | Q74: 0.5 | R74: 100 | S74: 0.5 | V74: 0 | W74: 0 | X74: 0.005 | Y74: 100 | Z74: 0.5 | AA74: 100 | AB74: 0.5
A75: 2.36 | B75: Physical / Self Defence training @ Rs. 200/- per child per annum. | C75: 0 | D75: 0 | E75: 0 | F75: 0 | I75: 0 | J75: 0 | M75: 0 | N75: 0 | O75: 0 | P75: 0 | Q75: 0 | R75: 0 | S75: 0 | V75: 0 | W75: 0 | X75: 0.002 | Y75: 100 | Z75: 0.2 | AA75: 100 | AB75: 0.2
B76: Sub Total (Recurring) | C76: =C54 -> 100 | D76: =SUM(D54:D75) -> 36.45 | E76: =E54 -> 100 | F76: =SUM(F54:F75) -> 29.05 | G76: 100 | H76: 79.69821674 | I76: =I54 -> 0 | J76: =SUM(J54:J75) -> 7.4 | K76: =SUM(K54:K75) -> 0 | L76: =SUM(L54:L75) -> 0 | M76: =SUM(M54:M75) -> 0 | N76: =SUM(N54:N75) -> 0 | P76: =P54 -> 100 | Q76: =SUM(Q54:Q75) -> 36.75 | R76: =R54 -> 100 | S76: 36.75 | T76: 0 | U76: 0 | V76: 0 | W76: 0 | Y76: =Y54 -> 100 | Z76: =SUM(Z54:Z75) -> 47.65 | AA76: =AA54 -> 100 | AB76: =SUM(AB54:AB75) -> 47.65
B77: Total (Recurring + Non Recurring) | C77: =C76 -> 100 | D77: =SUM(D52+D76) -> 37.2 | E77: =E76 -> 100 | F77: =SUM(F52+F76) -> 29.8 | G77: 100 | H77: 80.10752688 | I77: =I76 -> 0 | J77: =SUM(J52+J76) -> 7.4 | K77: =SUM(K52+K76) -> 0 | L77: =SUM(L52+L76) -> 0 | M77: =SUM(M52+M76) -> 0 | N77: =SUM(N52+N76) -> 0 | P77: =P76 -> 100 | Q77: =SUM(Q52+Q76) -> 36.75 | R77: =R76 -> 100 | S77: 36.75 | T77: 0 | U77: 0 | V77: 0 | W77: 0 | Y77: =Y76 -> 100 | Z77: =SUM(Z52+Z76) -> 47.65 | AA77: =AA76 -> 100 | AB77: =SUM(AB52+AB76) -> 47.65
B78: Total (50 + 100 children) | C78: =C45+C77 -> 100 | D78: =SUM(D45+D77) -> 37.2 | E78: =E45+E77 -> 100 | F78: =SUM(F45+F77) -> 29.8 | G78: =E78/C78*100 -> 100 | H78: =F78/D78*100 -> 80.10752688 | I78: =I45+I77 -> 0 | J78: =SUM(J45+J77) -> 7.4 | K78: =SUM(K45+K77) -> 0 | L78: =SUM(L45+L77) -> 0 | M78: =SUM(M45+M77) -> 0 | N78: =SUM(N45+N77) -> 0 | P78: =P45+P77 -> 100 | Q78: =SUM(Q45+Q77) -> 36.75 | R78: =R45+R77 -> 100 | S78: =SUM(S45+S77) -> 36.75 | T78: =SUM(T45+T77) -> 0 | U78: =SUM(U45+U77) -> 0 | V78: =SUM(V45+V77) -> 0 | W78: =SUM(W45+W77) -> 0 | Y78: =Y45+Y77 -> 100 | Z78: =SUM(Z45+Z77) -> 47.65 | AA78: =AA45+AA77 -> 100 | AB78: =SUM(AB45+AB77) -> 47.65
A79: 3 | B79: Residential Hostel for specific category of children
A80: (A) | B80: 50 children
B81: Non-recurring (one time grant) | R81: =K81+M81+P81 -> 0 | S81: 0 | AA81: =T81+V81+Y81 -> 0 | AB81: 0
A82: 3.01 | B82: Furniture/ Equipment (including kitchen) | C82: 0 | D82: 0 | E82: 0 | F82: 0 | G82: =E82/C82*100 ->  | I82: =C82-E82 -> 0 | J82: 0 | M82: 0 | N82: 0 | O82: 2 | P82: 0 | Q82: =O82*P82 -> 0 | R82: 0 | S82: 0 | V82: 0 | W82: 0 | X82: 2 | Y82: 0 | Z82: =X82*Y82 -> 0 | AA82: 0 | AB82: 0
A83: =+A82+0.01 -> 3.02 | B83: TLM and equipment including library books | C83: 0 | D83: 0 | E83: 0 | F83: 0 | I83: 0 | J83: 0 | M83: 0 | N83: 0 | O83: 3 | P83: 0 | Q83: =O83*P83 -> 0 | R83: 0 | S83: 0 | V83: 0 | W83: 0 | X83: 3 | Y83: 0 | Z83: =X83*Y83 -> 0 | AA83: 0 | AB83: 0
A84: =+A83+0.01 -> 3.03 | B84: Bedding (new) | C84: 0 | D84: 0 | E84: 0 | F84: 0 | I84: 0 | J84: 0 | M84: 0 | N84: 0 | O84: 0.375 | P84: 0 | Q84: =O84*P84 -> 0 | R84: 0 | S84: 0 | V84: 0 | W84: 0 | X84: 0.375 | Y84: 0 | Z84: =X84*Y84 -> 0 | AA84: 0 | AB84: 0
A85: =+A84+0.01 -> 3.04 | B85: Replacement of bedding (once in 3 years) | C85: 500 | D85: 3.75 | E85: 428 | F85: 3.21 | G85: 85.6 | H85: 85.6 | I85: 72 | J85: 0.54 | M85: 0 | N85: 0 | O85: 0.0075 | P85: 0 | Q85: =O85*P85 -> 0 | R85: 0 | S85: 0 | V85: 0 | W85: 0 | X85: 0.0075 | Y85: 0 | Z85: =X85*Y85 -> 0 | AA85: 0 | AB85: 0
B86: Sub Total (Non Recurring) | C86: =SUM(C82:C85) -> 500 | D86: =SUM(D82:D85) -> 3.75 | E86: =SUM(E82:E85) -> 428 | F86: =SUM(F82:F85) -> 3.21 | G86: 85.6 | H86: 85.6 | I86: =SUM(I82:I85) -> 72 | J86: 0.54 | K86: 0 | L86: 0 | M86: 0 | N86: 0 | P86: =SUM(P82:P85) -> 0 | Q86: 0 | R86: 0 | S86: 0 | T86: 0 | U86: 0 | V86: 0 | W86: 0 | Y86: =SUM(Y82:Y85) -> 0 | Z86: =SUM(Z82:Z85) -> 0 | AA86: =SUM(AA82:AA85) -> 0 | AB86: =SUM(AB82:AB85) -> 0
B87: Recurring (50 children)
A88: 3.05 | B88: Maintenance per child Per month @ Rs.1500/- | C88: 500 | D88: 90 | E88: 428 | F88: 61.75 | G88: =E88/C88*100 -> 85.6 | H88: 68.61111111 | I88: =C88-E88 -> 72 | J88: 28.25 | M88: 0 | N88: 0 | O88: 0.18 | P88: 500 | Q88: =O88*P88 -> 90 | R88: =K88+M88+P88 -> 500 | S88: =L88+N88+Q88 -> 90 | V88: 0 | W88: 0 | X88: 0.18 | Y88: 450 | Z88: =X88*Y88 -> 81 | AA88: =T88+V88+Y88 -> 450 | AB88: =U88+W88+Z88 -> 81 | AC88: =0.015*12 -> 0.18
A89: =+A88+0.01 -> 3.06 | B89: Stipend per child per month @ Rs.100/- | C89: 0 | D89: 0 | E89: 0 | F89: 0 | I89: 0 | J89: 0 | M89: 0 | N89: 0 | O89: 0.012 | P89: 500 | Q89: =O89*P89 -> 6 | R89: 500 | S89: 6 | V89: 0 | W89: 0 | X89: 0.012 | Y89: 450 | Z89: =X89*Y89 -> 5.4 | AA89: 450 | AB89: 5.4
A90: =+A89+0.01 -> 3.07 | B90: Supplementary TLM, Stationery and other educational material @Rs.1000/- per child per annum | C90: 500 | D90: 5 | E90: 428 | F90: 3.98 | G90: 85.6 | H90: 79.6 | I90: 72 | J90: 1.02 | M90: 0 | N90: 0 | O90: 0.01 | P90: 500 | Q90: =O90*P90 -> 5 | R90: 500 | S90: 5 | V90: 0 | W90: 0 | X90: 0.01 | Y90: 450 | Z90: =X90*Y90 -> 4.5 | AA90: 450 | AB90: 4.5
B91: Salaries | R91: 0 | S91: 0 | AA91: 0 | AB91: 0
A92: (a) | B92: 1 Warden @ Rs.25000/- per month | C92: 10 | D92: 30 | E92: 9 | F92: 19.35 | G92: =E92/C92*100 -> 90 | H92: =F92/D92*100 -> 64.5 | I92: =C92-E92 -> 1 | J92: =D92-F92 -> 10.65 | M92: 0 | N92: 0 | O92: 3 | P92: 10 | Q92: =O92*P92 -> 30 | R92: 10 | S92: 30 | V92: 0 | W92: 0 | X92: 3 | Y92: 9 | Z92: =X92*Y92 -> 27 | AA92: 9 | AB92: 27
A93: (b) | B93: 4 Fulltime teachers as per RTE Norms @ Rs. 20,000/- per month per teacher | C93: 0 | D93: 0 | E93: 0 | F93: 0 | I93: 0 | J93: 0 | M93: 0 | N93: 0 | O93: 1.8 | P93: 0 | Q93: 0 | R93: 0 | S93: 0 | V93: 0 | W93: 0 | X93: =0.2*12*4 -> 9.6 | Y93: 9 | Z93: 86.4 | AA93: 9 | AB93: 86.4
A94: (c) | B94: 2 Urdu Teachers (only for Blocks with muslim population above 20% and select urban areas) @ Rs.12,000/- per month per teacher. | C94: 0 | D94: 0 | E94: 0 | F94: 0 | I94: 0 | J94: 0 | M94: 0 | N94: 0 | O94: 0 | P94: 0 | Q94: 0 | R94: 0 | S94: 0 | V94: 0 | W94: 0 | X94: 0 | Y94: 0 | Z94: 0 | AA94: 0 | AB94: 0
A95: (d) | B95: 3 Part time teachers @ Rs.5,000/- per month per teacher | C95: 10 | D95: 18 | E95: 10 | F95: 12 | G95: 100 | H95: 66.66666667 | I95: 0 | J95: 6 | M95: 0 | N95: 0 | O95: 1.8 | P95: 10 | Q95: 18 | R95: 10 | S95: 18 | V95: 0 | W95: 0 | X95: =0.05*12*3 -> 1.8 | Y95: 9 | Z95: 16.2 | AA95: 9 | AB95: 16.2
A96: (e) | B96: 1 Full time Accountant @ Rs. 10,000/- per month | C96: 10 | D96: 12 | E96: 10 | F96: 9 | G96: 100 | H96: 75 | I96: 0 | J96: 3 | M96: 0 | N96: 0 | O96: 1.2 | P96: 10 | Q96: 12 | R96: 10 | S96: 12 | V96: 0 | W96: 0 | X96: 1.2 | Y96: 9 | Z96: 10.8 | AA96: 9 | AB96: 10.8
A97: (f) | B97: 2 Support staff - (Accountant/Assistant, Peon, Chowkidar) @ Rs. 5,000/- per month per staff | C97: 10 | D97: 12 | E97: 10 | F97: 9 | G97: 100 | H97: 75 | I97: 0 | J97: 3 | M97: 0 | N97: 0 | O97: 1.2 | P97: 10 | Q97: 12 | R97: 10 | S97: 12 | V97: 0 | W97: 0 | X97: =0.05*12*2 -> 1.2 | Y97: 9 | Z97: 10.8 | AA97: 9 | AB97: 10.8
A98: (g) | B98: 1 Head Cook @ Rs. 6,000/- per month and upto 2 Asstt. Cooks @ Rs. 4,500/- per month per cook | C98: 10 | D98: 18 | E98: 10 | F98: 16 | G98: 100 | H98: 88.88888889 | I98: 0 | J98: 2 | M98: 0 | N98: 0 | O98: 1.8 | P98: 10 | Q98: 18 | R98: 10 | S98: 18 | V98: 0 | W98: 0 | X98: 1.8 | Y98: 9 | Z98: 16.2 | AA98: 9 | AB98: 16.2
A99: 3.08 | B99: Specific Skill training @ Rs.1000/- per annum per child | C99: 0 | D99: 0 | E99: 0 | F99: 0 | I99: 0 | J99: 0 | M99: 0 | N99: 0 | O99: 0 | P99: 0 | Q99: 0 | R99: 0 | S99: 0 | V99: 0 | W99: 0 | X99: 0.01 | Y99: 450 | Z99: 4.5 | AA99: 450 | AB99: 4.5
A100: =+A99+0.01 -> 3.09 | B100: Electricity / water charges @ Rs. 1000/- per annum per child | C100: 500 | D100: 5 | E100: 428 | F100: 2.021 | G100: 85.6 | H100: 40.42 | I100: 72 | J100: 2.979 | M100: 0 | N100: 0 | O100: 0.01 | P100: 500 | Q100: 5 | R100: 500 | S100: 5 | V100: 0 | W100: 0 | X100: 0.01 | Y100: 450 | Z100: 4.5 | AA100: 450 | AB100: 4.5
A101: 3.1 | B101: Medical care/contingencies @ Rs.1250/- per annum per child | C101: 500 | D101: 6.25 | E101: 428 | F101: 1.543 | G101: 85.6 | H101: 24.688 | I101: 72 | J101: 4.707 | M101: 0 | N101: 0 | O101: 0.0125 | P101: 500 | Q101: 6.25 | R101: 500 | S101: 6.25 | V101: 0 | W101: 0 | X101: 0.0125 | Y101: 450 | Z101: 5.625 | AA101: 450 | AB101: 5.625
A102: 3.11 | B102: Maintenance @ Rs. 750/- per child per annum | C102: 500 | D102: 3.75 | E102: 428 | F102: 3.21 | G102: 85.6 | H102: 85.6 | I102: 72 | J102: 0.54 | M102: 0 | N102: 0 | O102: 0.0075 | P102: 500 | Q102: 3.75 | R102: 500 | S102: 3.75 | V102: 0 | W102: 0 | X102: 0.0075 | Y102: 450 | Z102: 3.375 | AA102: 450 | AB102: 3.375
A103: 3.12 | B103: Miscellaneous @ Rs. 750/- per child per annum | C103: 500 | D103: 3.75 | E103: 428 | F103: 3.22 | G103: 85.6 | H103: 85.86666667 | I103: 72 | J103: 0.53 | M103: 0 | N103: 0 | O103: 0.0075 | P103: 500 | Q103: 3.75 | R103: 500 | S103: 3.75 | V103: 0 | W103: 0 | X103: 0.0075 | Y103: 450 | Z103: 3.375 | AA103: 450 | AB103: 3.375
A104: 3.13 | B104: Preparatory camps @ Rs. 300/- per child per annum | C104: 0 | D104: 0 | E104: 0 | F104: 0 | I104: 0 | J104: 0 | M104: 0 | N104: 0 | O104: 0 | P104: 0 | Q104: 0 | R104: 0 | S104: 0 | V104: 0 | W104: 0 | X104: 0.003 | Y104: 450 | Z104: 1.35 | AA104: 450 | AB104: 1.35
A105: 3.14 | B105: P.T.A / school functions @ Rs. 300/- per child per annum | C105: 0 | D105: 0 | E105: 0 | F105: 0 | I105: 0 | J105: 0 | M105: 0 | N105: 0 | O105: 0.003 | P105: 500 | Q105: 1.5 | R105: 500 | S105: 1.5 | V105: 0 | W105: 0 | X105: 0.003 | Y105: 450 | Z105: 1.35 | AA105: 450 | AB105: 1.35
A106: 3.15 | B106: Provision of Rent @ Rs. 10,000/- per child per annum | C106: 0 | D106: 0 | E106: 0 | F106: 0 | I106: 0 | J106: 0 | M106: 0 | N106: 0 | O106: 0 | P106: 0 | Q106: 0 | R106: 0 | S106: 0 | V106: 0 | W106: 0 | X106: 0 | Y106: 0 | Z106: 0 | AA106: 0 | AB106: 0
A107: 3.16 | B107: Capacity Building @ Rs. 500/- per child per annum | C107: 500 | D107: 2.5 | E107: 0 | F107: 2.5 | G107: 0 | H107: 100 | I107: 500 | J107: 0 | M107: 0 | N107: 0 | O107: 0.005 | P107: 500 | Q107: 2.5 | R107: 500 | S107: 2.5 | V107: 0 | W107: 0 | X107: 0.005 | Y107: 450 | Z107: 2.25 | AA107: 450 | AB107: 2.25
A108: 3.17 | B108: Physical / Self Defence Training @ Rs.200/- per child per annum | C108: 0 | D108: 0 | E108: 0 | F108: 0 | G108: =E108/C108*100 ->  | I108: =C108-E108 -> 0 | J108: =D108-F108 -> 0 | M108: 0 | N108: 0 | O108: 0 | P108: 0 | Q108: 0 | R108: 0 | S108: 0 | V108: 0 | W108: 0 | X108: 0.002 | Y108: 450 | Z108: 0.9 | AA108: 450 | AB108: 0.9
B109: Sub Total (Recurring) | C109: =C88 -> 500 | D109: =SUM(D88:D108) -> 206.25 | E109: =E88 -> 428 | F109: =SUM(F88:F108) -> 143.574 | G109: 85.6 | H109: 69.61163636 | I109: =SUM(I88:I108) -> 933 | J109: 62.676 | K109: 0 | L109: 0 | M109: 0 | N109: 0 | P109: =P88 -> 500 | Q109: =SUM(Q88:Q108) -> 213.75 | R109: =R88 -> 500 | S109: 213.75 | T109: 0 | U109: 0 | V109: 0 | W109: 0 | Y109: =Y88 -> 450 | Z109: =SUM(Z88:Z108) -> 285.525 | AA109: =AA88 -> 450 | AB109: =SUM(AB88:AB108) -> 285.525
B110: Total (Non Recurring + Recurring) | C110: =C109 -> 500 | D110: =SUM(D86+D109) -> 210 | E110: =E109 -> 428 | F110: =SUM(F86+F109) -> 146.784 | G110: 85.6 | H110: 69.89714286 | I110: =SUM(I86+I109) -> 1005 | J110: 63.216 | K110: 0 | L110: 0 | M110: 0 | N110: 0 | P110: =P109 -> 500 | Q110: =SUM(Q86+Q109) -> 213.75 | R110: =R109 -> 500 | S110: 213.75 | T110: 0 | U110: 0 | V110: 0 | W110: 0 | Y110: =Y109 -> 450 | Z110: =SUM(Z86+Z109) -> 285.525 | AA110: =AA109 -> 450 | AB110: =SUM(AB86+AB109) -> 285.525
A111: (B) | B111: 100 Children
B112: Non-recurring (one time grant)
A113: 3.18 | B113: Furniture / Equipment (including kitchen equipment) | C113: 0 | D113: 0 | E113: 0 | F113: 0 | G113: =E113/C113*100 ->  | I113: =C113-E113 -> 0 | J113: 0 | M113: 0 | N113: 0 | O113: 0 | P113: 0 | Q113: =O113*P113 -> 0 | R113: =K113+M113+P113 -> 0 | S113: 0 | V113: 0 | W113: 0 | X113: 0 | Y113: 0 | Z113: =X113*Y113 -> 0 | AA113: =T113+V113+Y113 -> 0 | AB113: 0
A114: =+A113+0.01 -> 3.19 | B114: TLM and equipment including library books (New) | C114: 0 | D114: 0 | E114: 0 | F114: 0 | I114: 0 | J114: 0 | M114: 0 | N114: 0 | O114: 0 | P114: 0 | Q114: =O114*P114 -> 0 | R114: 0 | S114: 0 | V114: 0 | W114: 0 | X114: 0 | Y114: 0 | Z114: =X114*Y114 -> 0 | AA114: 0 | AB114: 0
A115: =+A114+0.01 -> 3.2 | B115: Bedding (New) | C115: 0 | D115: 0 | E115: 0 | F115: 0 | I115: 0 | J115: 0 | M115: 0 | N115: 0 | O115: 0 | P115: 0 | Q115: =O115*P115 -> 0 | R115: 0 | S115: 0 | V115: 0 | W115: 0 | X115: 0 | Y115: 0 | Z115: =X115*Y115 -> 0 | AA115: 0 | AB115: 0
A116: =+A115+0.01 -> 3.21 | B116: Replacement of bedding (once in 3 years) | C116: 0 | D116: 0 | E116: 0 | F116: 0 | I116: 0 | J116: 0 | M116: 0 | N116: 0 | O116: 0 | P116: 0 | Q116: =O116*P116 -> 0 | R116: 0 | S116: 0 | V116: 0 | W116: 0 | X116: 0 | Y116: 0 | Z116: =X116*Y116 -> 0 | AA116: 0 | AB116: 0
B117: Sub Total Non-recurring | C117: =SUM(C113:C116) -> 0 | D117: =SUM(D113:D116) -> 0 | E117: =SUM(E113:E116) -> 0 | F117: =SUM(F113:F116) -> 0 | I117: =SUM(I113:I116) -> 0 | J117: 0 | K117: 0 | L117: 0 | M117: 0 | N117: 0 | Q117: =SUM(Q113:Q116) -> 0 | R117: 0 | S117: 0 | T117: 0 | U117: 0 | V117: 0 | W117: 0 | Z117: =SUM(Z113:Z116) -> 0 | AA117: =SUM(AA113:AA116) -> 0 | AB117: =SUM(AB113:AB116) -> 0
B118: Recurring
A119: 3.22 | B119: Maintenance per child per month @ Rs. 1500/- | C119: 0 | D119: 0 | E119: 0 | F119: 0 | G119: =E119/C119*100 ->  | H119: =F119/D119*100 ->  | I119: =C119-E119 -> 0 | J119: =D119-F119 -> 0 | M119: 0 | N119: 0 | O119: 0 | P119: 0 | Q119: =O119*P119 -> 0 | R119: =K119+M119+P119 -> 0 | S119: =L119+N119+Q119 -> 0 | V119: 0 | W119: 0 | X119: 0 | Y119: 0 | Z119: =X119*Y119 -> 0 | AA119: =T119+V119+Y119 -> 0 | AB119: =U119+W119+Z119 -> 0
A120: =+A119+0.01 -> 3.23 | B120: Stipend per child per month @ Rs.100/- | C120: 0 | D120: 0 | E120: 0 | F120: 0 | I120: 0 | J120: 0 | M120: 0 | N120: 0 | O120: 0 | P120: 0 | Q120: 0 | R120: =K120+M120+P120 -> 0 | S120: 0 | V120: 0 | W120: 0 | X120: 0 | Y120: 0 | Z120: 0 | AA120: =T120+V120+Y120 -> 0 | AB120: 0
A121: =+A120+0.01 -> 3.24 | B121: Supplementary TLM, Stationery and other educational material per child @1000/- per annum | C121: 0 | D121: 0 | E121: 0 | F121: 0 | I121: 0 | J121: 0 | M121: 0 | N121: 0 | O121: 0 | P121: 0 | Q121: 0 | R121: =K121+M121+P121 -> 0 | S121: 0 | V121: 0 | W121: 0 | X121: 0 | Y121: 0 | Z121: 0 | AA121: =T121+V121+Y121 -> 0 | AB121: 0
B122: Salaries | M122: 0 | N122: 0 | O122: 0 | P122: 0 | Q122: 0 | S122: 0 | V122: 0 | W122: 0 | X122: 0 | Y122: 0 | Z122: 0 | AB122: 0
A123: (a) | B123: 1 Warden @ Rs. 25,000/- per month | C123: 0 | D123: 0 | E123: 0 | F123: 0 | I123: 0 | J123: 0 | M123: 0 | N123: 0 | O123: 0 | P123: 0 | Q123: 0 | R123: =K123+M123+P123 -> 0 | S123: 0 | V123: 0 | W123: 0 | X123: 0 | Y123: 0 | Z123: 0 | AA123: =T123+V123+Y123 -> 0 | AB123: 0
A124: (b) | B124: 1 head teacher @ Rs. 25,000/- per month in case the enrollment exceeds 100 | C124: 0 | D124: 0 | E124: 0 | F124: 0 | I124: 0 | J124: 0 | M124: 0 | N124: 0 | O124: 0 | P124: 0 | Q124: 0 | R124: 0 | S124: 0 | V124: 0 | W124: 0 | X124: 0 | Y124: 0 | Z124: 0 | AA124: 0 | AB124: 0
A125: (c) | B125: 4 - 5 Full time teachers as per RTE norms @ Rs. 20,000/- per month per teacher | C125: 0 | D125: 0 | E125: 0 | F125: 0 | I125: 0 | J125: 0 | M125: 0 | N125: 0 | O125: 0 | P125: 0 | Q125: 0 | R125: 0 | S125: 0 | V125: 0 | W125: 0 | X125: 0 | Y125: 0 | Z125: 0 | AA125: 0 | AB125: 0
A126: (d) | B126: 2 Urdu Teachers (only for blocks with muslim population above 20% and select urban areas), if required @ Rs. 12,000/- per month per teacher | C126: 0 | D126: 0 | E126: 0 | F126: 0 | I126: 0 | J126: 0 | M126: 0 | N126: 0 | O126: 0 | P126: 0 | Q126: 0 | R126: 0 | S126: 0 | V126: 0 | W126: 0 | X126: 0 | Y126: 0 | Z126: 0 | AA126: 0 | AB126: 0
A127: (e) | B127: 3 part time teachers @ Rs. 5,000/- per month per teacher | C127: 0 | D127: 0 | E127: 0 | F127: 0 | I127: 0 | J127: 0 | M127: 0 | N127: 0 | O127: 0 | P127: 0 | Q127: 0 | R127: 0 | S127: 0 | V127: 0 | W127: 0 | X127: 0 | Y127: 0 | Z127: 0 | AA127: 0 | AB127: 0
A128: (f) | B128: 1 Full time Accountant @ Rs. 10,000/- per month | C128: 0 | D128: 0 | E128: 0 | F128: 0 | I128: 0 | J128: 0 | M128: 0 | N128: 0 | O128: 0 | P128: 0 | Q128: 0 | R128: 0 | S128: 0 | V128: 0 | W128: 0 | X128: 0 | Y128: 0 | Z128: 0 | AA128: 0 | AB128: 0
A129: 3.25 | B129: 2 Support Staff – (Accountant/ Assistant, Peon, Chowkidar) @ Rs. 5,000/- per month per staff | C129: 0 | D129: 0 | E129: 0 | F129: 0 | I129: 0 | J129: 0 | M129: 0 | N129: 0 | O129: 0 | P129: 0 | Q129: 0 | R129: 0 | S129: 0 | V129: 0 | W129: 0 | X129: 0 | Y129: 0 | Z129: 0 | AA129: 0 | AB129: 0
A130: =+A129+0.01 -> 3.26 | B130: 1 Head cook @ Rs. 6,000/- per month and upto 2 Asstt. Cooks @ Rs. 4,500/- per month per cook | C130: 0 | D130: 0 | E130: 0 | F130: 0 | I130: 0 | J130: 0 | M130: 0 | N130: 0 | O130: 0 | P130: 0 | Q130: 0 | R130: 0 | S130: 0 | V130: 0 | W130: 0 | X130: 0 | Y130: 0 | Z130: 0 | AA130: 0 | AB130: 0
A131: 3.27 | B131: Specific skill training per child @ Rs.1000/- per annum | C131: 0 | D131: 0 | E131: 0 | F131: 0 | I131: 0 | J131: 0 | M131: 0 | N131: 0 | O131: 0 | P131: 0 | Q131: 0 | R131: 0 | S131: 0 | V131: 0 | W131: 0 | X131: 0 | Y131: 0 | Z131: 0 | AA131: 0 | AB131: 0
A132: 3.28 | B132: Electricity / water charges per child @Rs.1000/- per annum | C132: 0 | D132: 0 | E132: 0 | F132: 0 | I132: 0 | J132: 0 | M132: 0 | N132: 0 | O132: 0 | P132: 0 | Q132: 0 | R132: 0 | S132: 0 | V132: 0 | W132: 0 | X132: 0 | Y132: 0 | Z132: 0 | AA132: 0 | AB132: 0
A133: 3.29 | B133: Medical care/contingencies @ Rs.1250/- per child per annum | C133: 0 | D133: 0 | E133: 0 | F133: 0 | I133: 0 | J133: 0 | M133: 0 | N133: 0 | O133: 0 | P133: 0 | Q133: 0 | R133: 0 | S133: 0 | V133: 0 | W133: 0 | X133: 0 | Y133: 0 | Z133: 0 | AA133: 0 | AB133: 0
A134: 3.3 | B134: Maintenance @ Rs.750/- per child per annum | C134: 0 | D134: 0 | E134: 0 | F134: 0 | I134: 0 | J134: 0 | M134: 0 | N134: 0 | O134: 0 | P134: 0 | Q134: 0 | R134: 0 | S134: 0 | V134: 0 | W134: 0 | X134: 0 | Y134: 0 | Z134: 0 | AA134: 0 | AB134: 0
A135: 3.31 | B135: Miscellaneous @ Rs.750/- per child per annum | C135: 0 | D135: 0 | E135: 0 | F135: 0 | I135: 0 | J135: 0 | M135: 0 | N135: 0 | O135: 0 | P135: 0 | Q135: 0 | R135: 0 | S135: 0 | V135: 0 | W135: 0 | X135: 0 | Y135: 0 | Z135: 0 | AA135: 0 | AB135: 0
A136: 3.32 | B136: Preparatory camps @ Rs.200/- per child per annum | C136: 0 | D136: 0 | E136: 0 | F136: 0 | I136: 0 | J136: 0 | M136: 0 | N136: 0 | O136: 0 | P136: 0 | Q136: 0 | R136: 0 | S136: 0 | V136: 0 | W136: 0 | X136: 0 | Y136: 0 | Z136: 0 | AA136: 0 | AB136: 0
A137: 3.33 | B137: P.T.A / school functions @ Rs.200/- per child per annum | C137: 0 | D137: 0 | E137: 0 | F137: 0 | I137: 0 | J137: 0 | M137: 0 | N137: 0 | O137: 0 | P137: 0 | Q137: 0 | R137: 0 | S137: 0 | V137: 0 | W137: 0 | X137: 0 | Y137: 0 | Z137: 0 | AA137: 0 | AB137: 0
A138: 3.34 | B138: Provision of Rent @ Rs. 6000/- per child per annum | C138: 0 | D138: 0 | E138: 0 | F138: 0 | I138: 0 | J138: 0 | M138: 0 | N138: 0 | O138: 0 | P138: 0 | Q138: 0 | R138: 0 | S138: 0 | V138: 0 | W138: 0 | X138: 0 | Y138: 0 | Z138: 0 | AA138: 0 | AB138: 0
A139: 3.35 | B139: Capacity Building @ Rs.500/- per child per annum | C139: 0 | D139: 0 | E139: 0 | F139: 0 | I139: 0 | J139: 0 | M139: 0 | N139: 0 | O139: 0 | P139: 0 | Q139: 0 | R139: 0 | S139: 0 | V139: 0 | W139: 0 | X139: 0 | Y139: 0 | Z139: 0 | AA139: 0 | AB139: 0
A140: 3.36 | B140: Physical / Self Defence training @ Rs. 200/- per child per annum. | C140: 0 | D140: 0 | E140: 0 | F140: 0 | I140: 0 | J140: 0 | M140: 0 | N140: 0 | O140: 0 | P140: 0 | Q140: 0 | R140: 0 | S140: 0 | V140: 0 | W140: 0 | X140: 0 | Y140: 0 | Z140: 0 | AA140: 0 | AB140: 0
B141: Sub Total (Recurring) | C141: =SUM(C119:C140) -> 0 | D141: =SUM(D119:D140) -> 0 | E141: =SUM(E119:E140) -> 0 | F141: =SUM(F119:F140) -> 0 | G141: =E141/C141*100 ->  | I141: =SUM(I119:I140) -> 0 | J141: 0 | K141: 0 | L141: 0 | M141: 0 | N141: 0 | P141: =SUM(P119:P140) -> 0 | Q141: 0 | R141: 0 | S141: 0 | T141: 0 | U141: 0 | V141: 0 | W141: 0 | Y141: =SUM(Y119:Y140) -> 0 | Z141: =SUM(Z119:Z140) -> 0 | AA141: =SUM(AA119:AA140) -> 0 | AB141: =SUM(AB119:AB140) -> 0
B142: Total (Recurring + Non Recurring) | C142: =SUM(C117+C141) -> 0 | D142: =SUM(D117+D141) -> 0 | E142: =SUM(E117+E141) -> 0 | F142: =SUM(F117+F141) -> 0 | I142: =SUM(I117+I141) -> 0 | J142: 0 | K142: 0 | L142: 0 | M142: 0 | N142: 0 | P142: =SUM(P117+P141) -> 0 | Q142: 0 | R142: 0 | S142: 0 | T142: 0 | U142: 0 | V142: 0 | W142: 0 | Y142: =SUM(Y117+Y141) -> 0 | Z142: =SUM(Z117+Z141) -> 0 | AA142: =SUM(AA117+AA141) -> 0 | AB142: =SUM(AB117+AB141) -> 0
B143: Total (A + B) | C143: =SUM(C78+C110+C142) -> 600 | D143: =SUM(D78+D110+D142) -> 247.2 | E143: =SUM(E78+E110+E142) -> 528 | F143: =SUM(F78+F110+F142) -> 176.584 | G143: 88 | H143: 71.43365696 | I143: =SUM(I78+I110+I142) -> 1005 | J143: 70.616 | K143: 0 | L143: 0 | M143: 0 | N143: 0 | P143: =SUM(P78+P110+P142) -> 600 | Q143: 250.5 | R143: 600 | S143: 250.5 | T143: 0 | U143: 0 | V143: 0 | W143: 0 | Y143: =SUM(Y78+Y110+Y142) -> 550 | Z143: =SUM(Z78+Z110+Z142) -> 333.175 | AA143: =SUM(AA78+AA110+AA142) -> 550 | AB143: =SUM(AB78+AB110+AB142) -> 333.175
A144: 4 | B144: Transport/Escort Facility
A145: 4.01 | B145: Children in remote habitation | C145: 0 | D145: 0 | E145: 0 | F145: 0 | G145: =E145/C145*100 ->  | I145: =C145-E145 -> 0 | J145: =D145-F145 -> 0 | M145: 0 | N145: 0 | O145: 0.03 | P145: =1622+472 -> 2094 | Q145: =O145*P145 -> 62.82 | R145: =K145+M145+P145 -> 2094 | S145: =L145+N145+Q145 -> 62.82 | V145: 0 | W145: 0 | X145: 0.03 | Y145: =1622+472 -> 2094 | Z145: =X145*Y145 -> 62.82 | AA145: =T145+V145+Y145 -> 2094 | AB145: =U145+W145+Z145 -> 62.82
A146: 4.02 | B146: Urban deprived children/children without adult protection | C146: 0 | D146: 0 | E146: 0 | F146: 0 | I146: =C146-E146 -> 0 | J146: =D146-F146 -> 0 | M146: 0 | N146: 0 | O146: 0.025 | P146: 0 | Q146: =O146*P146 -> 0 | R146: =K146+M146+P146 -> 0 | S146: =L146+N146+Q146 -> 0 | V146: 0 | W146: 0 | X146: 0.025 | Y146: 0 | Z146: =X146*Y146 -> 0 | AA146: =T146+V146+Y146 -> 0 | AB146: =U146+W146+Z146 -> 0
B147: Sub Total | C147: =SUM(C145:C146) -> 0 | D147: =SUM(D145:D146) -> 0 | E147: =SUM(E145:E146) -> 0 | F147: =SUM(F145:F146) -> 0 | I147: =SUM(I145:I146) -> 0 | J147: 0 | K147: 0 | L147: 0 | M147: 0 | N147: 0 | P147: =SUM(P145:P146) -> 2094 | Q147: 62.82 | R147: 2094 | S147: 62.82 | T147: 0 | U147: 0 | V147: 0 | W147: 0 | Y147: =SUM(Y145:Y146) -> 2094 | Z147: =SUM(Z145:Z146) -> 62.82 | AA147: =SUM(AA145:AA146) -> 2094 | AB147: =SUM(AB145:AB146) -> 62.82
A148: 5 | B148: Reimbursement of Fee against 25% admission under Section 12(1)(c) of RTE Act 2009 (Entry Level) subject to upper limit of 20% of AWP&B subject to guidelines issued by MHRD | C148: 10698 | D148: 210.68426 | E148: =C148 -> 10698 | F148: =D148 -> 210.68426 | G148: 100 | H148: 100 | I148: =C148-E148 -> 0 | J148: =D148-F148 -> 0 | M148: 0 | N148: 0 | P148: 13996 | Q148: 526 | R148: =K148+M148+P148 -> 13996 | S148: =L148+N148+Q148 -> 526 | V148: 0 | W148: 0 | Z148: 204.72039 | AA148: =T148+V148+Y148 -> 0 | AB148: =U148+W148+Z148 -> 204.72039
B149: Sub Total | C149: =SUM(C148) -> 10698 | D149: =SUM(D148) -> 210.68426 | E149: =SUM(E148) -> 10698 | F149: =SUM(F148) -> 210.68426 | G149: 100 | H149: 100 | I149: =SUM(I148) -> 0 | J149: 0 | K149: 0 | L149: 0 | M149: 0 | N149: 0 | P149: =SUM(P148) -> 13996 | Q149: 526 | R149: 13996 | S149: 526 | T149: 0 | U149: 0 | V149: 0 | W149: 0 | Y149: =SUM(Y148) -> 0 | Z149: =SUM(Z148) -> 204.72039 | AA149: =SUM(AA148) -> 0 | AB149: =SUM(AB148) -> 204.72039
A150: =+A148+1 -> 6 | B150: Special Training for mainstreaming of out of school children
A151: 6.01 | B151: Residential (Fresh)
B152: (a) 12 months | C152: 0 | D152: 0 | E152: 0 | F152: 0 | G152: =E152/C152*100 ->  | I152: =C152-E152 -> 0 | J152: 0 | M152: 0 | N152: 0 | O152: 0.2 | P152: 0 | Q152: =O152*P152 -> 0 | R152: =K152+M152+P152 -> 0 | S152: 0 | V152: 0 | W152: 0 | X152: 0.2 | Y152: 0 | Z152: =X152*Y152 -> 0 | AA152: =T152+V152+Y152 -> 0 | AB152: 0
B153: (b) 9 months | C153: 0 | D153: 0 | E153: 0 | F153: 0 | I153: 0 | J153: 0 | M153: 0 | N153: 0 | O153: =0.2/12*9 -> 0.15 | P153: 0 | Q153: =O153*P153 -> 0 | R153: 0 | S153: 0 | V153: 0 | W153: 0 | X153: =0.2/12*9 -> 0.15 | Y153: 0 | Z153: =X153*Y153 -> 0 | AA153: 0 | AB153: 0
B154: (c) 6 months | C154: 0 | D154: 0 | E154: 0 | F154: 0 | I154: 0 | J154: 0 | M154: 0 | N154: 0 | O154: 0.105 | P154: 0 | Q154: =O154*P154 -> 0 | R154: 0 | S154: 0 | V154: 0 | W154: 0 | X154: 0.1 | Y154: 0 | Z154: =X154*Y154 -> 0 | AA154: 0 | AB154: 0
B155: (d) 3 months | C155: 0 | D155: 0 | E155: 0 | F155: 0 | I155: 0 | J155: 0 | M155: 0 | N155: 0 | O155: =0.2/12*3 -> 0.05 | P155: 0 | Q155: =O155*P155 -> 0 | R155: 0 | S155: 0 | V155: 0 | W155: 0 | X155: =0.2/12*3 -> 0.05 | Y155: 0 | Z155: =X155*Y155 -> 0 | AA155: 0 | AB155: 0
B156: Sub Total | C156: =SUM(C152:C155) -> 0 | D156: =SUM(D152:D155) -> 0 | E156: =SUM(E152:E155) -> 0 | F156: =SUM(F152:F155) -> 0 | I156: =SUM(I152:I155) -> 0 | J156: 0 | K156: 0 | L156: 0 | M156: 0 | N156: 0 | P156: =SUM(P152:P155) -> 0 | Q156: 0 | R156: 0 | S156: 0 | T156: 0 | U156: 0 | V156: 0 | W156: 0 | Y156: =SUM(Y152:Y155) -> 0 | Z156: =SUM(Z152:Z155) -> 0 | AA156: =SUM(AA152:AA155) -> 0 | AB156: =SUM(AB152:AB155) -> 0
A157: =+A151+0.01 -> 6.02 | B157: Residential (Continuing from previous year)
B158: (a) 12 months | C158: 0 | D158: 0 | E158: 0 | F158: 0 | G158: =E158/C158*100 ->  | I158: =C158-E158 -> 0 | J158: 0 | M158: 0 | N158: 0 | O158: 0.2 | P158: 0 | Q158: =O158*P158 -> 0 | R158: =K158+M158+P158 -> 0 | S158: 0 | V158: 0 | W158: 0 | X158: 0.2 | Y158: 0 | Z158: =X158*Y158 -> 0 | AA158: =T158+V158+Y158 -> 0 | AB158: 0
B159: (b) 9 months | C159: 0 | D159: 0 | E159: 0 | F159: 0 | I159: 0 | J159: 0 | M159: 0 | N159: 0 | O159: =0.2/12*9 -> 0.15 | P159: 0 | Q159: =O159*P159 -> 0 | R159: 0 | S159: 0 | V159: 0 | W159: 0 | X159: =0.2/12*9 -> 0.15 | Y159: 0 | Z159: =X159*Y159 -> 0 | AA159: 0 | AB159: 0
B160: (c) 6 months | C160: 0 | D160: 0 | E160: 0 | F160: 0 | I160: 0 | J160: 0 | M160: 0 | N160: 0 | O160: =0.2/12*6 -> 0.1 | P160: 0 | Q160: =O160*P160 -> 0 | R160: 0 | S160: 0 | V160: 0 | W160: 0 | X160: =0.2/12*6 -> 0.1 | Y160: 0 | Z160: =X160*Y160 -> 0 | AA160: 0 | AB160: 0
B161: (d) 3 months | C161: 0 | D161: 0 | E161: 0 | F161: 0 | I161: 0 | J161: 0 | M161: 0 | N161: 0 | O161: 0.05 | P161: 0 | Q161: =O161*P161 -> 0 | R161: 0 | S161: 0 | V161: 0 | W161: 0 | X161: 0.05 | Y161: 0 | Z161: =X161*Y161 -> 0 | AA161: 0 | AB161: 0
B162: Sub Total | C162: =SUM(C158:C161) -> 0 | D162: =SUM(D158:D161) -> 0 | E162: =SUM(E158:E161) -> 0 | F162: =SUM(F158:F161) -> 0 | I162: =SUM(I158:I161) -> 0 | J162: 0 | K162: 0 | L162: 0 | M162: 0 | N162: 0 | P162: =SUM(P158:P161) -> 0 | Q162: 0 | R162: 0 | S162: 0 | T162: 0 | U162: 0 | V162: 0 | W162: 0 | Y162: =SUM(Y158:Y161) -> 0 | Z162: =SUM(Z158:Z161) -> 0 | AA162: =SUM(AA158:AA161) -> 0 | AB162: =SUM(AB158:AB161) -> 0
A163: 6.03 | B163: Non-Residential (Fresh)
B164: (a) 12 months | C164: 0 | D164: 0 | E164: 0 | F164: 0 | G164: =E164/C164*100 ->  | I164: =C164-E164 -> 0 | J164: 0 | M164: 0 | N164: 0 | O164: 0.06 | P164: 0 | Q164: =O164*P164 -> 0 | R164: =K164+M164+P164 -> 0 | S164: 0 | V164: 0 | W164: 0 | X164: 0.06 | Y164: 0 | Z164: =X164*Y164 -> 0 | AA164: =T164+V164+Y164 -> 0 | AB164: 0
B165: (b) 9 months | C165: 0 | D165: 0 | E165: 0 | F165: 0 | I165: 0 | J165: 0 | M165: 0 | N165: 0 | O165: 0.036 | P165: 0 | Q165: =O165*P165 -> 0 | R165: 0 | S165: 0 | V165: 0 | W165: 0 | X165: 0.036 | Y165: 0 | Z165: =X165*Y165 -> 0 | AA165: 0 | AB165: 0
B166: (c) 6 months | C166: 90 | D166: 2.16 | E166: 0 | F166: 0.680832 | G166: 0 | H166: 31.52 | I166: 90 | J166: 1.479168 | M166: 0 | N166: 0 | O166: 0.031 | P166: 100 | Q166: =O166*P166 -> 3.1 | R166: 100 | S166: 3.1 | V166: 0 | W166: 0 | X166: 0.03 | Y166: 100 | Z166: =X166*Y166 -> 3 | AA166: 100 | AB166: 3
B167: (d) 3 months | C167: 330 | D167: 3.96 | E167: 320 | F167: 1.506384 | G167: 96.96969697 | H167: 38.04 | I167: 10 | J167: 2.453616 | M167: 0 | N167: 0 | O167: 0.0155 | P167: 200 | Q167: =O167*P167 -> 3.1 | R167: 200 | S167: 3.1 | V167: 0 | W167: 0 | X167: 0.015 | Y167: 200 | Z167: =X167*Y167 -> 3 | AA167: 200 | AB167: 3
B168: Sub Total | C168: =SUM(C164:C167) -> 420 | D168: =SUM(D164:D167) -> 6.12 | E168: =SUM(E164:E167) -> 320 | F168: =SUM(F164:F167) -> 2.187216 | G168: 76.19047619 | H168: 35.73882353 | I168: =SUM(I164:I167) -> 100 | J168: 3.932784 | K168: 0 | L168: 0 | M168: 0 | N168: 0 | P168: =SUM(P164:P167) -> 300 | Q168: 6.2 | R168: 300 | S168: 6.2 | T168: 0 | U168: 0 | V168: 0 | W168: 0 | Y168: =SUM(Y164:Y167) -> 300 | Z168: =SUM(Z164:Z167) -> 6 | AA168: =SUM(AA164:AA167) -> 300 | AB168: =SUM(AB164:AB167) -> 6
A169: 6.04 | B169: Non-Residential (Continuing from previous year)
B170: (a) 12 months | C170: 0 | D170: 0 | E170: 0 | F170: 0 | G170: =E170/C170*100 ->  | I170: =C170-E170 -> 0 | J170: 0 | M170: 0 | N170: 0 | O170: =0.06 -> 0.06 | P170: 0 | Q170: =O170*P170 -> 0 | R170: =K170+M170+P170 -> 0 | S170: 0 | V170: 0 | W170: 0 | X170: =0.06 -> 0.06 | Y170: 0 | Z170: =X170*Y170 -> 0 | AA170: =T170+V170+Y170 -> 0 | AB170: 0
B171: (b) 9 months | C171: 0 | D171: 0 | E171: 0 | F171: 0 | I171: 0 | J171: 0 | M171: 0 | N171: 0 | O171: =0.06/12*9 -> 0.045 | P171: 0 | Q171: =O171*P171 -> 0 | R171: 0 | S171: 0 | V171: 0 | W171: 0 | X171: =0.06/12*9 -> 0.045 | Y171: 0 | Z171: =X171*Y171 -> 0 | AA171: 0 | AB171: 0
B172: (c) 6 months | C172: 0 | D172: 0 | E172: 0 | F172: 0 | I172: 0 | J172: 0 | M172: 0 | N172: 0 | O172: =0.06/12*6 -> 0.03 | P172: 0 | Q172: =O172*P172 -> 0 | R172: 0 | S172: 0 | V172: 0 | W172: 0 | X172: =0.06/12*6 -> 0.03 | Y172: 0 | Z172: =X172*Y172 -> 0 | AA172: 0 | AB172: 0
B173: (d) 3 months | C173: 0 | D173: 0 | E173: 0 | F173: 0 | I173: 0 | J173: 0 | M173: 0 | N173: 0 | O173: =0.06/12*3 -> 0.015 | P173: 0 | Q173: =O173*P173 -> 0 | R173: 0 | S173: 0 | V173: 0 | W173: 0 | X173: =0.06/12*3 -> 0.015 | Y173: 0 | Z173: =X173*Y173 -> 0 | AA173: 0 | AB173: 0
B174: Sub Total | C174: =SUM(C170:C173) -> 0 | D174: =SUM(D170:D173) -> 0 | E174: =SUM(E170:E173) -> 0 | F174: =SUM(F170:F173) -> 0 | I174: =SUM(I170:I173) -> 0 | J174: 0 | K174: 0 | L174: 0 | M174: 0 | N174: 0 | P174: =SUM(P170:P173) -> 0 | Q174: 0 | R174: 0 | S174: 0 | T174: 0 | U174: 0 | V174: 0 | W174: 0 | Y174: =SUM(Y170:Y173) -> 0 | Z174: =SUM(Z170:Z173) -> 0 | AA174: =SUM(AA170:AA173) -> 0 | AB174: =SUM(AB170:AB173) -> 0
A175: 6.05 | B175: Madarasa/Maktab
B176: (a) 12 months | C176: 0 | D176: 0 | E176: 0 | F176: 0 | G176: =E176/C176*100 ->  | I176: =C176-E176 -> 0 | J176: 0 | M176: 0 | N176: 0 | O176: =0.06 -> 0.06 | P176: 0 | Q176: =O176*P176 -> 0 | R176: =K176+M176+P176 -> 0 | S176: 0 | V176: 0 | W176: 0 | X176: =0.06 -> 0.06 | Y176: 0 | Z176: =X176*Y176 -> 0 | AA176: =T176+V176+Y176 -> 0 | AB176: 0
B177: (b) 9 months | C177: 0 | D177: 0 | E177: 0 | F177: 0 | I177: 0 | J177: 0 | M177: 0 | N177: 0 | O177: =0.06/12*9 -> 0.045 | P177: 0 | Q177: =O177*P177 -> 0 | R177: 0 | S177: 0 | V177: 0 | W177: 0 | X177: =0.06/12*9 -> 0.045 | Y177: 0 | Z177: =X177*Y177 -> 0 | AA177: 0 | AB177: 0
B178: (c) 6 months | C178: 0 | D178: 0 | E178: 0 | F178: 0 | I178: 0 | J178: 0 | M178: 0 | N178: 0 | O178: 0.0892 | P178: 0 | Q178: =O178*P178 -> 0 | R178: 0 | S178: 0 | V178: 0 | W178: 0 | X178: 0.0892 | Y178: 0 | Z178: =X178*Y178 -> 0 | AA178: 0 | AB178: 0
B179: (d) 3 months | C179: 0 | D179: 0 | E179: 0 | F179: 0 | I179: 0 | J179: 0 | M179: 0 | N179: 0 | O179: =0.06/12*3 -> 0.015 | P179: 0 | Q179: =O179*P179 -> 0 | R179: 0 | S179: 0 | V179: 0 | W179: 0 | X179: =0.06/12*3 -> 0.015 | Y179: 0 | Z179: =X179*Y179 -> 0 | AA179: 0 | AB179: 0
B180: Sub Total | C180: =SUM(C176:C179) -> 0 | D180: =SUM(D176:D179) -> 0 | E180: =SUM(E176:E179) -> 0 | F180: =SUM(F176:F179) -> 0 | I180: =SUM(I176:I179) -> 0 | J180: 0 | K180: 0 | L180: 0 | M180: 0 | N180: 0 | P180: =SUM(P176:P179) -> 0 | Q180: 0 | R180: 0 | S180: 0 | T180: 0 | U180: 0 | V180: 0 | W180: 0 | Y180: =SUM(Y176:Y179) -> 0 | Z180: =SUM(Z176:Z179) -> 0 | AA180: =SUM(AA176:AA179) -> 0 | AB180: =SUM(AB176:AB179) -> 0
A181: 6.06 | B181: Seasonal Hostel (Residential)
B182: (a) 12 months | C182: 0 | D182: 0 | E182: 0 | F182: 0 | G182: =E182/C182*100 ->  | I182: =C182-E182 -> 0 | J182: 0 | M182: 0 | N182: 0 | O182: 0.2 | P182: 0 | Q182: =O182*P182 -> 0 | R182: =K182+M182+P182 -> 0 | S182: 0 | V182: 0 | W182: 0 | X182: 0.2 | Y182: 0 | Z182: =X182*Y182 -> 0 | AA182: =T182+V182+Y182 -> 0 | AB182: 0
B183: (b) 9 months | C183: 0 | D183: 0 | E183: 0 | F183: 0 | I183: 0 | J183: 0 | M183: 0 | N183: 0 | O183: =0.2/12*9 -> 0.15 | P183: 0 | Q183: =O183*P183 -> 0 | R183: 0 | S183: 0 | V183: 0 | W183: 0 | X183: =0.2/12*9 -> 0.15 | Y183: 0 | Z183: =X183*Y183 -> 0 | AA183: 0 | AB183: 0
B184: (c) 6 months | C184: 0 | D184: 0 | E184: 0 | F184: 0 | I184: 0 | J184: 0 | M184: 0 | N184: 0 | O184: 0.0892 | P184: 100 | Q184: =O184*P184 -> 8.92 | R184: 100 | S184: 8.92 | V184: 0 | W184: 0 | X184: 0.1 | Y184: 100 | Z184: =X184*Y184 -> 10 | AA184: 100 | AB184: 10
B185: (d) 3 months | C185: 0 | D185: 0 | E185: 0 | F185: 0 | I185: 0 | J185: 0 | M185: 0 | N185: 0 | O185: =0.2/12*3 -> 0.05 | P185: 0 | Q185: =O185*P185 -> 0 | R185: 0 | S185: 0 | V185: 0 | W185: 0 | X185: =0.2/12*3 -> 0.05 | Y185: 0 | Z185: =X185*Y185 -> 0 | AA185: 0 | AB185: 0
B186: Sub Total | C186: =SUM(C182:C185) -> 0 | D186: =SUM(D182:D185) -> 0 | E186: =SUM(E182:E185) -> 0 | F186: =SUM(F182:F185) -> 0 | I186: =SUM(I182:I185) -> 0 | J186: 0 | K186: 0 | L186: 0 | M186: 0 | N186: 0 | P186: =SUM(P182:P185) -> 100 | Q186: 8.92 | R186: 100 | S186: 8.92 | T186: 0 | U186: 0 | V186: 0 | W186: 0 | Y186: =SUM(Y182:Y185) -> 100 | Z186: =SUM(Z182:Z185) -> 10 | AA186: =SUM(AA182:AA185) -> 100 | AB186: =SUM(AB182:AB185) -> 10
A187: 6.07 | B187: Seasonal Hostel (Non Residential)
B188: (a) 12 months | C188: 0 | D188: 0 | E188: 0 | F188: 0 | G188: =E188/C188*100 ->  | I188: =C188-E188 -> 0 | J188: 0 | M188: 0 | N188: 0 | O188: =0.06 -> 0.06 | P188: 0 | Q188: =O188*P188 -> 0 | R188: =K188+M188+P188 -> 0 | S188: 0 | V188: 0 | W188: 0 | X188: =0.06 -> 0.06 | Y188: 0 | Z188: =X188*Y188 -> 0 | AA188: =T188+V188+Y188 -> 0 | AB188: 0
B189: (b) 9 months | C189: 0 | D189: 0 | E189: 0 | F189: 0 | I189: 0 | J189: 0 | M189: 0 | N189: 0 | O189: =0.06/12*9 -> 0.045 | P189: 0 | Q189: =O189*P189 -> 0 | R189: 0 | S189: 0 | V189: 0 | W189: 0 | X189: =0.06/12*9 -> 0.045 | Y189: 0 | Z189: =X189*Y189 -> 0 | AA189: 0 | AB189: 0
B190: (c) 6 months | C190: 0 | D190: 0 | E190: 0 | F190: 0 | I190: 0 | J190: 0 | M190: 0 | N190: 0 | O190: =0.06/12*6 -> 0.03 | P190: 0 | Q190: =O190*P190 -> 0 | R190: 0 | S190: 0 | V190: 0 | W190: 0 | X190: =0.06/12*6 -> 0.03 | Y190: 0 | Z190: =X190*Y190 -> 0 | AA190: 0 | AB190: 0
B191: (d) 3 months | C191: 0 | D191: 0 | E191: 0 | F191: 0 | I191: 0 | J191: 0 | M191: 0 | N191: 0 | O191: =0.06/12*3 -> 0.015 | P191: 0 | Q191: =O191*P191 -> 0 | R191: 0 | S191: 0 | V191: 0 | W191: 0 | X191: =0.06/12*3 -> 0.015 | Y191: 0 | Z191: =X191*Y191 -> 0 | AA191: 0 | AB191: 0
B192: Sub Total | C192: 0 | D192: 0 | E192: =SUM(E188:E191) -> 0 | F192: =SUM(F188:F191) -> 0 | I192: =SUM(I188:I191) -> 0 | J192: 0 | K192: 0 | L192: 0 | M192: 0 | N192: 0 | P192: =SUM(P188:P191) -> 0 | Q192: 0 | R192: 0 | S192: 0 | T192: 0 | U192: 0 | V192: 0 | W192: 0 | Y192: =SUM(Y188:Y191) -> 0 | Z192: =SUM(Z188:Z191) -> 0 | AA192: =SUM(AA188:AA191) -> 0 | AB192: =SUM(AB188:AB191) -> 0
B193: Total | C193: =C156+C162+C168+C174+C180+C186+C192 -> 420 | D193: =D156+D162+D168+D174+D180+D186+D192 -> 6.12 | E193: =E156+E162+E168+E174+E180+E186+E192 -> 320 | F193: =F156+F162+F168+F174+F180+F186+F192 -> 2.187216 | G193: 76.19047619 | H193: 35.73882353 | I193: =I156+I162+I168+I174+I180+I186+I192 -> 100 | J193: 3.932784 | K193: 0 | L193: 0 | M193: 0 | N193: 0 | P193: =P156+P162+P168+P174+P180+P186+P192 -> 400 | Q193: 15.12 | R193: 400 | S193: 15.12 | T193: 0 | U193: 0 | V193: 0 | W193: 0 | Y193: =Y156+Y162+Y168+Y174+Y180+Y186+Y192 -> 400 | Z193: =Z156+Z162+Z168+Z174+Z180+Z186+Z192 -> 16 | AA193: =AA156+AA162+AA168+AA174+AA180+AA186+AA192 -> 400 | AB193: =AB156+AB162+AB168+AB174+AB180+AB186+AB192 -> 16
A194: II | B194: RETENTION
A195: 7 | B195: Free Text Books
A196: 7.01 | B196: Free Text Books (UP) TOPUP | Q196: =O196*P196 -> 0 | R196: =K196+M196+P196 -> 0 | S196: =L196+N196+Q196 -> 0 | Z196: =X196*Y196 -> 0 | AA196: =T196+V196+Y196 -> 0 | AB196: =U196+W196+Z196 -> 0
B197: (a) Class I & II | Q197: 0 | R197: 0 | S197: 0 | Z197: 0 | AA197: 0 | AB197: 0
B198: (b) Braille Books Class I & II | O198: 0.0015 | P198: 5 | Q198: 0.0075 | R198: 5 | S198: 0.0075 | X198: 0.0015 | Y198: 5 | Z198: 0.0075 | AA198: 5 | AB198: 0.0075 | AD198: =Y198*X198 -> 0.0075
B199: (c) Large Print Books Class I & II | O199: 0.0015 | P199: 6 | Q199: 0.009 | R199: 6 | S199: 0.009 | X199: 0.0015 | Y199: 6 | Z199: 0.009 | AA199: 6 | AB199: 0.009 | AD199: 0.009
B200: (d) Class III to V | Q200: 0 | R200: 0 | S200: 0 | Z200: 0 | AA200: 0 | AB200: 0 | AD200: 0
... 295 more rows

Sheet BANSWARA
A1: S.No. | B1: Activity | C1: Year 2016-17 | K1: n | T1: Outlay Recommended for 2017-18 | AC1: Remarks
C2: Outlay approved by PAB (including spillover) | E2: Anticipated Achievement upto March 2017 | I2: Savings | K2: Spill Over | M2: Deferred laibility of 2014-15 | O2: Fresh | R2: Total | T2: Spill Over | V2: Deferred laibility of 2014-15 | X2: Fresh | AA2: Total
C3: Phy. | D3: Fin | E3: Phy. | F3: Fin. | G3: Phy. (%) | H3: Fin. (%) | I3: Phy. | J3: Fin. | K3: Phy. | L3: Fin. | M3: Phy. | N3: Fin. | O3: Unit Cost | P3: Phy. | Q3: Fin. | R3: Phy. | S3: Fin. | T3: Phy. | U3: Fin. | V3: Phy. | W3: Fin. | X3: Unit Cost | Y3: Phy. | Z3: Fin. | AA3: Phy. | AB3: Fin.
A4: I | B4: ACCESS
B5: SSA
A6: 1 | B6: Opening of New Schools
A7: 1.01 | B7: New Primary School | C7: 0 | D7: 0 | E7: 0 | F7: 0 | G7: =E7/C7*100 ->  | H7: =F7/D7*100 ->  | I7: =C7-E7 -> 0 | J7: =D7-F7 -> 0 | K7: 0 | L7: 0 | M7: 0 | N7: 0 | P7: 0 | Q7: =O7*P7 -> 0 | R7: =K7+M7+P7 -> 0 | S7: =L7+N7+Q7 -> 0 | T7: 0 | U7: 0 | V7: 0 | W7: 0 | Y7: 0 | Z7: =X7*Y7 -> 0 | AA7: =T7+V7+Y7 -> 0 | AB7: =U7+W7+Z7 -> 0
A8: 1.02 | B8: Upgradation of PS to UPS | C8: 2 | D8: 0 | E8: 2 | F8: 0 | G8: =E8/C8*100 -> 100 | H8: =F8/D8*100 ->  | I8: =C8-E8 -> 0 | J8: =D8-F8 -> 0 | K8: 0 | L8: 0 | M8: 0 | N8: 0 | P8: 0 | Q8: =O8*P8 -> 0 | R8: =K8+M8+P8 -> 0 | S8: 0 | T8: 0 | U8: 0 | V8: 0 | W8: 0 | Y8: 0 | Z8: =X8*Y8 -> 0 | AA8: =T8+V8+Y8 -> 0 | AB8: 0
A9: 1.03 | B9: Composite Schools | C9: 0 | D9: 0 | E9: 0 | F9: 0 | I9: 0 | J9: 0 | K9: 0 | L9: 0 | M9: 0 | N9: 0 | P9: 0 | Q9: 0 | R9: 0 | S9: 0 | T9: 0 | U9: 0 | V9: 0 | W9: 0 | Y9: 0 | Z9: 0 | AA9: 0 | AB9: 0
A10: 1.04 | B10: Residential schools for specific category of children | C10: 0 | D10: 0 | E10: 0 | F10: 0 | I10: 0 | J10: 0 | K10: 0 | L10: 0 | M10: 0 | N10: 0 | P10: 0 | Q10: 0 | R10: 0 | S10: 0 | T10: 0 | U10: 0 | V10: 0 | W10: 0 | Y10: 0 | Z10: 0 | AA10: 0 | AB10: 0
A11: 1.05 | B11: Residential Hostel | C11: 0 | D11: 0 | E11: 0 | F11: 0 | I11: 0 | J11: 0 | K11: 0 | L11: 0 | M11: 0 | N11: 0 | P11: 0 | Q11: 0 | R11: 0 | S11: 0 | T11: 0 | U11: 0 | V11: 0 | W11: 0 | Y11: 0 | Z11: 0 | AA11: 0 | AB11: 0
A12: 1.06 | B12: Integration of Class V with primary schools | C12: 0 | D12: 0 | E12: 0 | F12: 0 | I12: 0 | J12: 0 | K12: 0 | L12: 0 | M12: 0 | N12: 0 | P12: 0 | Q12: 0 | R12: 0 | S12: 0 | T12: 0 | U12: 0 | V12: 0 | W12: 0 | Y12: 0 | Z12: 0 | AA12: 0 | AB12: 0
A13: 1.07 | B13: Integration of Class VIII with upper primary schools | C13: 0 | D13: 0 | E13: 0 | F13: 0 | I13: 0 | J13: 0 | K13: 0 | L13: 0 | M13: 0 | N13: 0 | P13: 0 | Q13: 0 | R13: 0 | S13: 0 | T13: 0 | U13: 0 | V13: 0 | W13: 0 | Y13: 0 | Z13: 0 | AA13: 0 | AB13: 0
A14: 2 | B14: Residential Schools for specific category of children
B15: 50 children
B16: Non-recurring (one time grant)
A17: 2.01 | B17: Furniture/ Equipment (including kitchen) | C17: 0 | D17: 0 | E17: 0 | F17: 0 | G17: =E17/C17*100 ->  | I17: =C17-E17 -> 0 | J17: 0 | M17: 0 | N17: 0 | O17: 2 | P17: 0 | Q17: =O17*P17 -> 0 | R17: =K17+M17+P17 -> 0 | S17: 0 | V17: 0 | W17: 0 | X17: 2 | Y17: 0 | Z17: =X17*Y17 -> 0 | AA17: =T17+V17+Y17 -> 0 | AB17: 0
A18: 2.02 | B18: TLM and equipment including library books | C18: 0 | D18: 0 | E18: 0 | F18: 0 | I18: 0 | J18: 0 | M18: 0 | N18: 0 | O18: 3 | P18: 0 | Q18: =O18*P18 -> 0 | R18: 0 | S18: 0 | V18: 0 | W18: 0 | X18: 3 | Y18: 0 | Z18: =X18*Y18 -> 0 | AA18: 0 | AB18: 0
A19: 2.03 | B19: Bedding (new) | C19: 0 | D19: 0 | E19: 0 | F19: 0 | I19: 0 | J19: 0 | M19: 0 | N19: 0 | O19: 0.375 | P19: 0 | Q19: =O19*P19 -> 0 | R19: 0 | S19: 0 | V19: 0 | W19: 0 | X19: 0.375 | Y19: 0 | Z19: =X19*Y19 -> 0 | AA19: 0 | AB19: 0
A20: 2.04 | B20: Replacement of bedding (once in 3 years) | C20: 0 | D20: 0 | E20: 0 | F20: 0 | I20: 0 | J20: 0 | M20: 0 | N20: 0 | O20: 0.0075 | P20: 0 | Q20: =O20*P20 -> 0 | R20: 0 | S20: 0 | V20: 0 | W20: 0 | X20: 0.0075 | Y20: 0 | Z20: =X20*Y20 -> 0 | AA20: 0 | AB20: 0
B21: Sub Total (Non Recurring) | C21: =SUM(C17:C20) -> 0 | D21: =SUM(D17:D20) -> 0 | E21: =SUM(E17:E20) -> 0 | F21: =SUM(F17:F20) -> 0 | I21: =SUM(I17:I20) -> 0 | J21: 0 | K21: 0 | L21: 0 | M21: 0 | N21: 0 | P21: =SUM(P17:P20) -> 0 | Q21: 0 | R21: 0 | S21: 0 | T21: 0 | U21: 0 | V21: 0 | W21: 0 | Y21: =SUM(Y17:Y20) -> 0 | Z21: =SUM(Z17:Z20) -> 0 | AA21: =SUM(AA17:AA20) -> 0 | AB21: =SUM(AB17:AB20) -> 0
B22: Recurring (50 children)
A23: 2.05 | B23: Maintenance per child Per month @ Rs.1500/- | C23: 0 | D23: 0 | E23: 0 | F23: 0 | G23: =E23/C23*100 ->  | I23: =C23-E23 -> 0 | J23: 0 | M23: 0 | N23: 0 | O23: 0.18 | P23: 0 | Q23: =O23*P23 -> 0 | R23: =K23+M23+P23 -> 0 | S23: 0 | V23: 0 | W23: 0 | X23: 0.18 | Y23: 0 | Z23: =X23*Y23 -> 0 | AA23: =T23+V23+Y23 -> 0 | AB23: 0
A24: 2.06 | B24: Stipend per child per month @ Rs.100/- | C24: 0 | D24: 0 | E24: 0 | F24: 0 | I24: 0 | J24: 0 | M24: 0 | N24: 0 | O24: 0.012 | P24: 0 | Q24: =O24*P24 -> 0 | R24: 0 | S24: 0 | V24: 0 | W24: 0 | X24: 0.012 | Y24: 0 | Z24: =X24*Y24 -> 0 | AA24: 0 | AB24: 0
A25: 2.07 | B25: Supplementary TLM, Stationery and other educational material @Rs.1000/- per child per annum | C25: 0 | D25: 0 | E25: 0 | F25: 0 | I25: 0 | J25: 0 | M25: 0 | N25: 0 | O25: 0.01 | P25: 0 | Q25: =O25*P25 -> 0 | R25: 0 | S25: 0 | V25: 0 | W25: 0 | X25: 0.01 | Y25: 0 | Z25: =X25*Y25 -> 0 | AA25: 0 | AB25: 0
A26: 2.08 | B26: Salaries | C26: 0 | D26: 0 | E26: 0 | F26: 0
A27: (a) | B27: 1 Warden @ Rs.25000/- per month | C27: 0 | D27: 0 | E27: 0 | F27: 0 | G27: =E27/C27*100 ->  | H27: =F27/D27*100 ->  | I27: =C27-E27 -> 0 | J27: =D27-F27 -> 0 | M27: 0 | N27: 0 | O27: 3 | P27: 0 | Q27: =O27*P27 -> 0 | R27: =K27+M27+P27 -> 0 | S27: =L27+N27+Q27 -> 0 | V27: 0 | W27: 0 | X27: 3 | Y27: 0 | Z27: =X27*Y27 -> 0 | AA27: =T27+V27+Y27 -> 0 | AB27: =U27+W27+Z27 -> 0
A28: (b) | B28: 4 Fulltime teachers as per RTE Norms @ Rs. 20,000/- per month per teacher | C28: 0 | D28: 0 | E28: 0 | F28: 0 | I28: 0 | J28: 0 | M28: 0 | N28: 0 | O28: 0 | P28: 0 | Q28: 0 | R28: 0 | S28: 0 | V28: 0 | W28: 0 | X28: 0 | Y28: 0 | Z28: 0 | AA28: 0 | AB28: 0
A29: (c) | B29: 2 Urdu Teachers (only for Blocks with muslim population above 20% and select urban areas) @ Rs.12,000/- per month per teacher. | C29: 0 | D29: 0 | E29: 0 | F29: 0 | I29: 0 | J29: 0 | M29: 0 | N29: 0 | O29: 0 | P29: 0 | Q29: 0 | R29: 0 | S29: 0 | V29: 0 | W29: 0 | X29: 0 | Y29: 0 | Z29: 0 | AA29: 0 | AB29: 0
A30: (d) | B30: 3 Part time teachers @ Rs.5,000/- per month per teacher | C30: 0 | D30: 0 | E30: 0 | F30: 0 | I30: 0 | J30: 0 | M30: 0 | N30: 0 | O30: 0 | P30: 0 | Q30: 0 | R30: 0 | S30: 0 | V30: 0 | W30: 0 | X30: 0 | Y30: 0 | Z30: 0 | AA30: 0 | AB30: 0
A31: (e) | B31: 1 Full time Accountant @ Rs. 10,000/- per month | C31: 0 | D31: 0 | E31: 0 | F31: 0 | I31: 0 | J31: 0 | M31: 0 | N31: 0 | O31: 1.2 | P31: 0 | Q31: 0 | R31: 0 | S31: 0 | V31: 0 | W31: 0 | X31: 1.2 | Y31: 0 | Z31: 0 | AA31: 0 | AB31: 0
A32: (f) | B32: 2 Support staff - (Accountant/Assistant, Peon, Chowkidar) @ Rs. 5,000/- per month per staff | C32: 0 | D32: 0 | E32: 0 | F32: 0 | I32: 0 | J32: 0 | M32: 0 | N32: 0 | O32: 0.6 | P32: 0 | Q32: 0 | R32: 0 | S32: 0 | V32: 0 | W32: 0 | X32: 0.6 | Y32: 0 | Z32: 0 | AA32: 0 | AB32: 0
A33: (g) | B33: 1 Head Cook @ Rs. 6,000/- per month and upto 2 Asstt. Cooks @ Rs. 4,500/- per month per cook | C33: 0 | D33: 0 | E33: 0 | F33: 0 | I33: 0 | J33: 0 | M33: 0 | N33: 0 | O33: 1.8 | P33: 0 | Q33: 0 | R33: 0 | S33: 0 | V33: 0 | W33: 0 | X33: 1.8 | Y33: 0 | Z33: 0 | AA33: 0 | AB33: 0
A34: 2.09 | B34: Specific Skill training @ Rs.1000/- per annum per child | C34: 0 | D34: 0 | E34: 0 | F34: 0 | I34: 0 | J34: 0 | M34: 0 | N34: 0 | O34: 0 | P34: 0 | Q34: 0 | R34: 0 | S34: 0 | V34: 0 | W34: 0 | X34: 0 | Y34: 0 | Z34: 0 | AA34: 0 | AB34: 0
A35: 2.1 | B35: Electricity / water charges @ Rs. 1000/- per annum per child | C35: 0 | D35: 0 | E35: 0 | F35: 0 | I35: 0 | J35: 0 | M35: 0 | N35: 0 | O35: 0.01 | P35: 0 | Q35: 0 | R35: 0 | S35: 0 | V35: 0 | W35: 0 | X35: 0.01 | Y35: 0 | Z35: 0 | AA35: 0 | AB35: 0
A36: =+A35+0.01 -> 2.11 | B36: Medical care/contingencies @ Rs.1250/- per annum per child | C36: 0 | D36: 0 | E36: 0 | F36: 0 | I36: 0 | J36: 0 | M36: 0 | N36: 0 | O36: 0.0125 | P36: 0 | Q36: 0 | R36: 0 | S36: 0 | V36: 0 | W36: 0 | X36: 0.0125 | Y36: 0 | Z36: 0 | AA36: 0 | AB36: 0
A37: =+A36+0.01 -> 2.12 | B37: Maintenance @ Rs. 750/- per child per annum | C37: 0 | D37: 0 | E37: 0 | F37: 0 | I37: 0 | J37: 0 | M37: 0 | N37: 0 | O37: 0.0075 | P37: 0 | Q37: 0 | R37: 0 | S37: 0 | V37: 0 | W37: 0 | X37: 0.0075 | Y37: 0 | Z37: 0 | AA37: 0 | AB37: 0
A38: 2.13 | B38: Miscellaneous @ Rs. 750/- per child per annum | C38: 0 | D38: 0 | E38: 0 | F38: 0 | I38: 0 | J38: 0 | M38: 0 | N38: 0 | O38: 0.0075 | P38: 0 | Q38: 0 | R38: 0 | S38: 0 | V38: 0 | W38: 0 | X38: 0.0075 | Y38: 0 | Z38: 0 | AA38: 0 | AB38: 0
A39: 2.14 | B39: Preparatory camps @ Rs. 300/- per child per annum | C39: 0 | D39: 0 | E39: 0 | F39: 0 | I39: 0 | J39: 0 | M39: 0 | N39: 0 | O39: 0 | P39: 0 | Q39: 0 | R39: 0 | S39: 0 | V39: 0 | W39: 0 | X39: 0 | Y39: 0 | Z39: 0 | AA39: 0 | AB39: 0
A40: 2.15 | B40: P.T.A / school functions @ Rs. 300/- per child per annum | C40: 0 | D40: 0 | E40: 0 | F40: 0 | I40: 0 | J40: 0 | M40: 0 | N40: 0 | O40: 0.003 | P40: 0 | Q40: 0 | R40: 0 | S40: 0 | V40: 0 | W40: 0 | X40: 0.003 | Y40: 0 | Z40: 0 | AA40: 0 | AB40: 0
A41: 2.16 | B41: Provision of Rent @ Rs. 10,000/- per child per annum | C41: 0 | D41: 0 | E41: 0 | F41: 0 | I41: 0 | J41: 0 | M41: 0 | N41: 0 | O41: 0 | P41: 0 | Q41: 0 | R41: 0 | S41: 0 | V41: 0 | W41: 0 | X41: 0 | Y41: 0 | Z41: 0 | AA41: 0 | AB41: 0
A42: 2.17 | B42: Capacity Building @ Rs. 500/- per child per annum | C42: 0 | D42: 0 | E42: 0 | F42: 0 | I42: 0 | J42: 0 | M42: 0 | N42: 0 | O42: 0.005 | P42: 0 | Q42: 0 | R42: 0 | S42: 0 | V42: 0 | W42: 0 | X42: 0.005 | Y42: 0 | Z42: 0 | AA42: 0 | AB42: 0
A43: 2.18 | B43: Physical / Self Defence Training @ Rs.200/- per child per annum | C43: 0 | D43: 0 | E43: 0 | F43: 0 | I43: 0 | J43: 0 | M43: 0 | N43: 0 | O43: 0 | P43: 0 | Q43: 0 | R43: 0 | S43: 0 | V43: 0 | W43: 0 | X43: 0 | Y43: 0 | Z43: 0 | AA43: 0 | AB43: 0
B44: Sub Total (Recurring) | C44: =C23 -> 0 | D44: =SUM(D23:D43) -> 0 | E44: =E23 -> 0 | F44: =SUM(F23:F43) -> 0 | G44: =E44/C44*100 ->  | H44: =F44/D44*100 ->  | I44: =I23 -> 0 | J44: =SUM(J23:J43) -> 0 | K44: =SUM(K23:K43) -> 0 | L44: =SUM(L23:L43) -> 0 | M44: =SUM(M23:M43) -> 0 | N44: =SUM(N23:N43) -> 0 | P44: =P23 -> 0 | Q44: =SUM(Q23:Q43) -> 0 | R44: =R23 -> 0 | S44: =SUM(S23:S43) -> 0 | T44: =SUM(T23:T43) -> 0 | U44: =SUM(U23:U43) -> 0 | V44: =SUM(V23:V43) -> 0 | W44: =SUM(W23:W43) -> 0 | Y44: =Y23 -> 0 | Z44: =SUM(Z23:Z43) -> 0 | AA44: =AA23 -> 0 | AB44: =SUM(AB23:AB43) -> 0
B45: Total (Non Recurring + Recurring) | C45: =C44 -> 0 | D45: =SUM(D21+D44) -> 0 | E45: =E44 -> 0 | F45: =SUM(F21+F44) -> 0 | G45: =E45/C45*100 ->  | H45: =F45/D45*100 ->  | I45: =I44 -> 0 | J45: =SUM(J21+J44) -> 0 | K45: =SUM(K21+K44) -> 0 | L45: =SUM(L21+L44) -> 0 | M45: =SUM(M21+M44) -> 0 | N45: =SUM(N21+N44) -> 0 | P45: =P44 -> 0 | Q45: =SUM(Q21+Q44) -> 0 | R45: =R44 -> 0 | S45: =SUM(S21+S44) -> 0 | T45: =SUM(T21+T44) -> 0 | U45: =SUM(U21+U44) -> 0 | V45: =SUM(V21+V44) -> 0 | W45: =SUM(W21+W44) -> 0 | Y45: =Y44 -> 0 | Z45: =SUM(Z21+Z44) -> 0 | AA45: =AA44 -> 0 | AB45: =SUM(AB21+AB44) -> 0
B46: 100 children
B47: Non-recurring (one time grant)
A48: 2.19 | B48: Furniture / Equipment (including kitchen equipment) | C48: 0 | D48: 0 | E48: 0 | F48: 0 | G48: =E48/C48*100 ->  | I48: =C48-E48 -> 0 | J48: 0 | M48: 0 | N48: 0 | O48: 3 | P48: 0 | Q48: =O48*P48 -> 0 | R48: =K48+M48+P48 -> 0 | S48: 0 | V48: 0 | W48: 0 | X48: 3 | Y48: 0 | Z48: =X48*Y48 -> 0 | AA48: =T48+V48+Y48 -> 0 | AB48: 0
A49: =+A48+0.01 -> 2.2 | B49: TLM and equipment including library books (New) | C49: 0 | D49: 0 | E49: 0 | F49: 0 | I49: 0 | J49: 0 | M49: 0 | N49: 0 | O49: 3.5 | P49: 0 | Q49: =O49*P49 -> 0 | R49: 0 | S49: 0 | V49: 0 | W49: 0 | X49: 3.5 | Y49: 0 | Z49: =X49*Y49 -> 0 | AA49: 0 | AB49: 0
A50: =+A49+0.01 -> 2.21 | B50: Bedding (New) | C50: 0 | D50: 0 | E50: 0 | F50: 0 | I50: 0 | J50: 0 | M50: 0 | N50: 0 | O50: 0.75 | P50: 0 | Q50: =O50*P50 -> 0 | R50: 0 | S50: 0 | V50: 0 | W50: 0 | X50: 0.75 | Y50: 0 | Z50: =X50*Y50 -> 0 | AA50: 0 | AB50: 0
A51: =+A50+0.01 -> 2.22 | B51: Replacement of bedding (once in 3 years) | C51: 0 | D51: 0 | E51: 0 | F51: 0 | I51: 0 | J51: 0 | M51: 0 | N51: 0 | O51: 0.0075 | P51: 0 | Q51: =O51*P51 -> 0 | R51: 0 | S51: 0 | V51: 0 | W51: 0 | X51: 0.0075 | Y51: 0 | Z51: =X51*Y51 -> 0 | AA51: 0 | AB51: 0
B52: Sub Total Non-recurring | C52: =SUM(C48:C51) -> 0 | D52: =SUM(D48:D51) -> 0 | E52: =SUM(E48:E51) -> 0 | F52: =SUM(F48:F51) -> 0 | I52: =SUM(I48:I51) -> 0 | J52: 0 | K52: 0 | L52: 0 | M52: 0 | N52: 0 | P52: =SUM(P48:P51) -> 0 | Q52: 0 | R52: 0 | S52: 0 | T52: 0 | U52: 0 | V52: 0 | W52: 0 | Y52: =SUM(Y48:Y51) -> 0 | Z52: =SUM(Z48:Z51) -> 0 | AA52: =SUM(AA48:AA51) -> 0 | AB52: =SUM(AB48:AB51) -> 0
B53: Recurring
A54: 2.23 | B54: Maintenance per child per month @ Rs. 1500/- | C54: 0 | D54: 0 | E54: 0 | F54: 0 | G54: =E54/C54*100 ->  | H54: =F54/D54*100 ->  | I54: =C54-E54 -> 0 | J54: =D54-F54 -> 0 | M54: 0 | N54: 0 | O54: 0.18 | P54: 0 | Q54: =O54*P54 -> 0 | R54: =K54+M54+P54 -> 0 | S54: 0 | V54: 0 | W54: 0 | X54: 0.18 | Y54: 0 | Z54: =X54*Y54 -> 0 | AA54: =T54+V54+Y54 -> 0 | AB54: 0
A55: =+A54+0.01 -> 2.24 | B55: Stipend per child per month @ Rs.100/- | C55: 0 | D55: 0 | E55: 0 | F55: 0 | I55: 0 | J55: 0 | M55: 0 | N55: 0 | O55: 0.012 | P55: 0 | Q55: =O55*P55 -> 0 | R55: 0 | S55: 0 | V55: 0 | W55: 0 | X55: 0.012 | Y55: 0 | Z55: =X55*Y55 -> 0 | AA55: 0 | AB55: 0
A56: 2.25 | B56: Supplementary TLM, Stationery and other educational material per child @1000/- per annum | C56: 0 | D56: 0 | E56: 0 | F56: 0 | I56: 0 | J56: 0 | M56: 0 | N56: 0 | O56: 0.01 | P56: 0 | Q56: =O56*P56 -> 0 | R56: 0 | S56: 0 | V56: 0 | W56: 0 | X56: 0.01 | Y56: 0 | Z56: =X56*Y56 -> 0 | AA56: 0 | AB56: 0
A57: 2.26 | B57: Salaries | E57: 0 | F57: 0
A58: (a) | B58: 1 Warden @ Rs. 25,000/- per month | C58: 0 | D58: 0 | E58: 0 | F58: 0 | I58: 0 | J58: 0 | M58: 0 | N58: 0 | O58: 3 | P58: 0 | Q58: =O58*P58 -> 0 | R58: =K58+M58+P58 -> 0 | S58: =L58+N58+Q58 -> 0 | V58: 0 | W58: 0 | X58: 3 | Y58: 0 | Z58: =X58*Y58 -> 0 | AA58: =T58+V58+Y58 -> 0 | AB58: =U58+W58+Z58 -> 0
A59: (b) | B59: 1 head teacher @ Rs. 25,000/- per month in case the enrollment exceeds 100 | C59: 0 | D59: 0 | E59: 0 | F59: 0 | I59: 0 | J59: 0 | M59: 0 | N59: 0 | O59: 3 | P59: 0 | Q59: 0 | R59: 0 | S59: 0 | V59: 0 | W59: 0 | X59: 3 | Y59: 0 | Z59: 0 | AA59: 0 | AB59: 0
A60: (c) | B60: 4 - 5 Full time teachers as per RTE norms @ Rs. 20,000/- per month per teacher | C60: 0 | D60: 0 | E60: 0 | F60: 0 | I60: 0 | J60: 0 | M60: 0 | N60: 0 | O60: 2.4 | P60: 0 | Q60: 0 | R60: 0 | S60: 0 | V60: 0 | W60: 0 | X60: 2.4 | Z60: 0 | AA60: 0 | AB60: 0
A61: (d) | B61: 2 Urdu Teachers (only for blocks with muslim population above 20% and select urban areas), if required @ Rs. 12,000/- per month per teacher | C61: 0 | D61: 0 | E61: 0 | F61: 0 | I61: 0 | J61: 0 | M61: 0 | N61: 0 | O61: 0 | P61: 0 | Q61: 0 | R61: 0 | S61: 0 | V61: 0 | W61: 0 | X61: 0 | Y61: 0 | Z61: 0 | AA61: 0 | AB61: 0
A62: (e) | B62: 3 part time teachers @ Rs. 5,000/- per month per teacher | C62: 0 | D62: 0 | E62: 0 | F62: 0 | I62: 0 | J62: 0 | M62: 0 | N62: 0 | O62: 0.6 | P62: 0 | Q62: 0 | R62: 0 | S62: 0 | V62: 0 | W62: 0 | X62: 0.6 | Y62: 0 | Z62: 0 | AA62: 0 | AB62: 0
A63: (f) | B63: 1 Full time Accountant @ Rs. 10,000/- per month | C63: 0 | D63: 0 | E63: 0 | F63: 0 | I63: 0 | J63: 0 | M63: 0 | N63: 0 | O63: 1.2 | P63: 0 | Q63: 0 | R63: 0 | S63: 0 | V63: 0 | W63: 0 | X63: 1.2 | Y63: 0 | Z63: 0 | AA63: 0 | AB63: 0
A64: (g) | B64: 2 Support Staff – (Accountant/ Assistant, Peon, Chowkidar) @ Rs. 5,000/- per month per staff | C64: 0 | D64: 0 | E64: 0 | F64: 0 | I64: 0 | J64: 0 | M64: 0 | N64: 0 | O64: 0.6 | P64: 0 | Q64: 0 | R64: 0 | S64: 0 | V64: 0 | W64: 0 | X64: 0.6 | Y64: 0 | Z64: 0 | AA64: 0 | AB64: 0
A65: (h) | B65: 1 Head cook @ Rs. 6,000/- per month and upto 2 Asstt. Cooks @ Rs. 4,500/- per month per cook | C65: 0 | D65: 0 | E65: 0 | F65: 0 | I65: 0 | J65: 0 | M65: 0 | N65: 0 | O65: 1.8 | P65: 0 | Q65: 0 | R65: 0 | S65: 0 | V65: 0 | W65: 0 | X65: 1.8 | Y65: 0 | Z65: 0 | AA65: 0 | AB65: 0
A66: 2.27 | B66: Specific skill training per child @ Rs.1000/- per annum | C66: 0 | D66: 0 | E66: 0 | F66: 0 | I66: 0 | J66: 0 | M66: 0 | N66: 0 | O66: 0 | P66: 0 | Q66: 0 | R66: 0 | S66: 0 | V66: 0 | W66: 0 | X66: 0 | Y66: 0 | Z66: 0 | AA66: 0 | AB66: 0
A67: 2.28 | B67: Electricity / water charges per child @Rs.1000/- per annum | C67: 0 | D67: 0 | E67: 0 | F67: 0 | I67: 0 | J67: 0 | M67: 0 | N67: 0 | O67: 0.01 | P67: 0 | Q67: 0 | R67: 0 | S67: 0 | V67: 0 | W67: 0 | X67: 0.01 | Y67: 0 | Z67: 0 | AA67: 0 | AB67: 0
A68: 2.29 | B68: Medical care/contingencies @ Rs.1250/- per child per annum | C68: 0 | D68: 0 | E68: 0 | F68: 0 | I68: 0 | J68: 0 | M68: 0 | N68: 0 | O68: 0.013 | P68: 0 | Q68: 0 | R68: 0 | S68: 0 | V68: 0 | W68: 0 | X68: 0.013 | Y68: 0 | Z68: 0 | AA68: 0 | AB68: 0
A69: 2.3 | B69: Maintenance @ Rs.750/- per child per annum | C69: 0 | D69: 0 | E69: 0 | F69: 0 | I69: 0 | J69: 0 | M69: 0 | N69: 0 | O69: 0.008 | P69: 0 | Q69: 0 | R69: 0 | S69: 0 | V69: 0 | W69: 0 | X69: 0.008 | Y69: 0 | Z69: 0 | AA69: 0 | AB69: 0
A70: 2.31 | B70: Miscellaneous @ Rs.750/- per child per annum | C70: 0 | D70: 0 | E70: 0 | F70: 0 | I70: 0 | J70: 0 | M70: 0 | N70: 0 | O70: 0.008 | P70: 0 | Q70: 0 | R70: 0 | S70: 0 | V70: 0 | W70: 0 | X70: 0.008 | Y70: 0 | Z70: 0 | AA70: 0 | AB70: 0
A71: 2.32 | B71: Preparatory camps @ Rs.200/- per child per annum | C71: 0 | D71: 0 | E71: 0 | F71: 0 | I71: 0 | J71: 0 | M71: 0 | N71: 0 | O71: 0 | P71: 0 | Q71: 0 | R71: 0 | S71: 0 | V71: 0 | W71: 0 | X71: 0 | Y71: 0 | Z71: 0 | AA71: 0 | AB71: 0
A72: 2.33 | B72: P.T.A / school functions @ Rs.200/- per child per annum | C72: 0 | D72: 0 | E72: 0 | F72: 0 | I72: 0 | J72: 0 | M72: 0 | N72: 0 | O72: 0.003 | P72: 0 | Q72: 0 | R72: 0 | S72: 0 | V72: 0 | W72: 0 | X72: 0.003 | Y72: 0 | Z72: 0 | AA72: 0 | AB72: 0
A73: 2.34 | B73: Provision of Rent @ Rs. 6000/- per child per annum | C73: 0 | D73: 0 | E73: 0 | F73: 0 | I73: 0 | J73: 0 | M73: 0 | N73: 0 | O73: 0 | P73: 0 | Q73: 0 | R73: 0 | S73: 0 | V73: 0 | W73: 0 | X73: 0 | Y73: 0 | Z73: 0 | AA73: 0 | AB73: 0
A74: 2.35 | B74: Capacity Building @ Rs.500/- per child per annum | C74: 0 | D74: 0 | E74: 0 | F74: 0 | I74: 0 | J74: 0 | M74: 0 | N74: 0 | O74: 0.005 | P74: 0 | Q74: 0 | R74: 0 | S74: 0 | V74: 0 | W74: 0 | X74: 0.005 | Y74: 0 | Z74: 0 | AA74: 0 | AB74: 0
A75: 2.36 | B75: Physical / Self Defence training @ Rs. 200/- per child per annum. | C75: 0 | D75: 0 | E75: 0 | F75: 0 | I75: 0 | J75: 0 | M75: 0 | N75: 0 | O75: 0 | P75: 0 | Q75: 0 | R75: 0 | S75: 0 | V75: 0 | W75: 0 | X75: 0 | Y75: 0 | Z75: 0 | AA75: 0 | AB75: 0
B76: Sub Total (Recurring) | C76: =C54 -> 0 | D76: =SUM(D54:D75) -> 0 | E76: =E54 -> 0 | F76: =SUM(F54:F75) -> 0 | I76: =I54 -> 0 | J76: =SUM(J54:J75) -> 0 | K76: =SUM(K54:K75) -> 0 | L76: =SUM(L54:L75) -> 0 | M76: =SUM(M54:M75) -> 0 | N76: =SUM(N54:N75) -> 0 | P76: =P54 -> 0 | Q76: =SUM(Q54:Q75) -> 0 | R76: =R54 -> 0 | S76: 0 | T76: 0 | U76: 0 | V76: 0 | W76: 0 | Y76: =Y54 -> 0 | Z76: =SUM(Z54:Z75) -> 0 | AA76: =AA54 -> 0 | AB76: =SUM(AB54:AB75) -> 0
B77: Total (Recurring + Non Recurring) | C77: =C76 -> 0 | D77: =SUM(D52+D76) -> 0 | E77: =E76 -> 0 | F77: =SUM(F52+F76) -> 0 | I77: =I76 -> 0 | J77: =SUM(J52+J76) -> 0 | K77: =SUM(K52+K76) -> 0 | L77: =SUM(L52+L76) -> 0 | M77: =SUM(M52+M76) -> 0 | N77: =SUM(N52+N76) -> 0 | P77: =P76 -> 0 | Q77: =SUM(Q52+Q76) -> 0 | R77: =R76 -> 0 | S77: 0 | T77: 0 | U77: 0 | V77: 0 | W77: 0 | Y77: =Y76 -> 0 | Z77: =SUM(Z52+Z76) -> 0 | AA77: =AA76 -> 0 | AB77: =SUM(AB52+AB76) -> 0
B78: Total (50 + 100 children) | C78: =C45+C77 -> 0 | D78: =SUM(D45+D77) -> 0 | E78: =E45+E77 -> 0 | F78: =SUM(F45+F77) -> 0 | G78: =E78/C78*100 ->  | H78: =F78/D78*100 ->  | I78: =I45+I77 -> 0 | J78: =SUM(J45+J77) -> 0 | K78: =SUM(K45+K77) -> 0 | L78: =SUM(L45+L77) -> 0 | M78: =SUM(M45+M77) -> 0 | N78: =SUM(N45+N77) -> 0 | P78: =P45+P77 -> 0 | Q78: =SUM(Q45+Q77) -> 0 | R78: =R45+R77 -> 0 | S78: =SUM(S45+S77) -> 0 | T78: =SUM(T45+T77) -> 0 | U78: =SUM(U45+U77) -> 0 | V78: =SUM(V45+V77) -> 0 | W78: =SUM(W45+W77) -> 0 | Y78: =Y45+Y77 -> 0 | Z78: =SUM(Z45+Z77) -> 0 | AA78: =AA45+AA77 -> 0 | AB78: =SUM(AB45+AB77) -> 0
A79: 3 | B79: Residential Hostel for specific category of children
A80: (A) | B80: 50 children
B81: Non-recurring (one time grant) | R81: =K81+M81+P81 -> 0 | S81: 0 | AA81: =T81+V81+Y81 -> 0 | AB81: 0
A82: 3.01 | B82: Furniture/ Equipment (including kitchen) | C82: 0 | D82: 0 | E82: 0 | F82: 0 | G82: =E82/C82*100 ->  | I82: =C82-E82 -> 0 | J82: 0 | M82: 0 | N82: 0 | O82: 2 | P82: 0 | Q82: =O82*P82 -> 0 | R82: 0 | S82: 0 | V82: 0 | W82: 0 | X82: 2 | Y82: 0 | Z82: =X82*Y82 -> 0 | AA82: 0 | AB82: 0
A83: =+A82+0.01 -> 3.02 | B83: TLM and equipment including library books | C83: 0 | D83: 0 | E83: 0 | F83: 0 | I83: 0 | J83: 0 | M83: 0 | N83: 0 | O83: 3 | P83: 0 | Q83: =O83*P83 -> 0 | R83: 0 | S83: 0 | V83: 0 | W83: 0 | X83: 3 | Y83: 0 | Z83: =X83*Y83 -> 0 | AA83: 0 | AB83: 0
A84: =+A83+0.01 -> 3.03 | B84: Bedding (new) | C84: 0 | D84: 0 | E84: 0 | F84: 0 | I84: 0 | J84: 0 | M84: 0 | N84: 0 | O84: 0.375 | P84: 0 | Q84: =O84*P84 -> 0 | R84: 0 | S84: 0 | V84: 0 | W84: 0 | X84: 0.375 | Y84: 0 | Z84: =X84*Y84 -> 0 | AA84: 0 | AB84: 0
A85: =+A84+0.01 -> 3.04 | B85: Replacement of bedding (once in 3 years) | C85: 0 | D85: 0 | E85: 0 | F85: 0 | I85: 0 | J85: 0 | M85: 0 | N85: 0 | O85: 0.0075 | P85: 0 | Q85: =O85*P85 -> 0 | R85: 0 | S85: 0 | V85: 0 | W85: 0 | X85: 0.0075 | Y85: 0 | Z85: =X85*Y85 -> 0 | AA85: 0 | AB85: 0
B86: Sub Total (Non Recurring) | C86: =SUM(C82:C85) -> 0 | D86: =SUM(D82:D85) -> 0 | E86: =SUM(E82:E85) -> 0 | F86: =SUM(F82:F85) -> 0 | I86: =SUM(I82:I85) -> 0 | J86: 0 | K86: 0 | L86: 0 | M86: 0 | N86: 0 | P86: =SUM(P82:P85) -> 0 | Q86: 0 | R86: 0 | S86: 0 | T86: 0 | U86: 0 | V86: 0 | W86: 0 | Y86: =SUM(Y82:Y85) -> 0 | Z86: =SUM(Z82:Z85) -> 0 | AA86: =SUM(AA82:AA85) -> 0 | AB86: =SUM(AB82:AB85) -> 0
B87: Recurring (50 children)
A88: 3.05 | B88: Maintenance per child Per month @ Rs.1500/- | C88: 0 | D88: 0 | E88: 0 | F88: 0 | G88: =E88/C88*100 ->  | I88: =C88-E88 -> 0 | J88: 0 | M88: 0 | N88: 0 | O88: 0.18 | P88: 0 | Q88: =O88*P88 -> 0 | R88: =K88+M88+P88 -> 0 | S88: =L88+N88+Q88 -> 0 | V88: 0 | W88: 0 | X88: 0.18 | Y88: 0 | Z88: =X88*Y88 -> 0 | AA88: =T88+V88+Y88 -> 0 | AB88: =U88+W88+Z88 -> 0
A89: =+A88+0.01 -> 3.06 | B89: Stipend per child per month @ Rs.100/- | C89: 0 | D89: 0 | E89: 0 | F89: 0 | I89: 0 | J89: 0 | M89: 0 | N89: 0 | O89: 0.012 | P89: 0 | Q89: =O89*P89 -> 0 | R89: 0 | S89: 0 | V89: 0 | W89: 0 | X89: 0.012 | Y89: 0 | Z89: =X89*Y89 -> 0 | AA89: 0 | AB89: 0
A90: =+A89+0.01 -> 3.07 | B90: Supplementary TLM, Stationery and other educational material @Rs.1000/- per child per annum | C90: 0 | D90: 0 | E90: 0 | F90: 0 | I90: 0 | J90: 0 | M90: 0 | N90: 0 | O90: 0.01 | P90: 0 | Q90: =O90*P90 -> 0 | R90: 0 | S90: 0 | V90: 0 | W90: 0 | X90: 0.01 | Y90: 0 | Z90: =X90*Y90 -> 0 | AA90: 0 | AB90: 0
B91: Salaries | R91: 0 | S91: 0 | AA91: 0 | AB91: 0
A92: (a) | B92: 1 Warden @ Rs.25000/- per month | C92: 0 | D92: 0 | E92: 0 | F92: 0 | G92: =E92/C92*100 ->  | H92: =F92/D92*100 ->  | I92: =C92-E92 -> 0 | J92: =D92-F92 -> 0 | M92: 0 | N92: 0 | O92: 3 | P92: 0 | Q92: =O92*P92 -> 0 | R92: 0 | S92: 0 | V92: 0 | W92: 0 | X92: 3 | Y92: 0 | Z92: =X92*Y92 -> 0 | AA92: 0 | AB92: 0
A93: (b) | B93: 4 Fulltime teachers as per RTE Norms @ Rs. 20,000/- per month per teacher | C93: 0 | D93: 0 | E93: 0 | F93: 0 | I93: 0 | J93: 0 | M93: 0 | N93: 0 | O93: 0 | P93: 0 | Q93: 0 | R93: 0 | S93: 0 | V93: 0 | W93: 0 | X93: 0 | Y93: 0 | Z93: 0 | AA93: 0 | AB93: 0
A94: (c) | B94: 2 Urdu Teachers (only for Blocks with muslim population above 20% and select urban areas) @ Rs.12,000/- per month per teacher. | C94: 0 | D94: 0 | E94: 0 | F94: 0 | I94: 0 | J94: 0 | M94: 0 | N94: 0 | O94: 0 | P94: 0 | Q94: 0 | R94: 0 | S94: 0 | V94: 0 | W94: 0 | X94: 0 | Y94: 0 | Z94: 0 | AA94: 0 | AB94: 0
A95: (d) | B95: 3 Part time teachers @ Rs.5,000/- per month per teacher | C95: 0 | D95: 0 | E95: 0 | F95: 0 | I95: 0 | J95: 0 | M95: 0 | N95: 0 | O95: 1.8 | P95: 0 | Q95: 0 | R95: 0 | S95: 0 | V95: 0 | W95: 0 | X95: 1.8 | Y95: 0 | Z95: 0 | AA95: 0 | AB95: 0
A96: (e) | B96: 1 Full time Accountant @ Rs. 10,000/- per month | C96: 0 | D96: 0 | E96: 0 | F96: 0 | I96: 0 | J96: 0 | M96: 0 | N96: 0 | O96: 1.2 | P96: 0 | Q96: 0 | R96: 0 | S96: 0 | V96: 0 | W96: 0 | X96: 1.2 | Y96: 0 | Z96: 0 | AA96: 0 | AB96: 0
A97: (f) | B97: 2 Support staff - (Accountant/Assistant, Peon, Chowkidar) @ Rs. 5,000/- per month per staff | C97: 0 | D97: 0 | E97: 0 | F97: 0 | I97: 0 | J97: 0 | M97: 0 | N97: 0 | O97: 1.2 | P97: 0 | Q97: 0 | R97: 0 | S97: 0 | V97: 0 | W97: 0 | X97: 1.2 | Y97: 0 | Z97: 0 | AA97: 0 | AB97: 0
A98: (g) | B98: 1 Head Cook @ Rs. 6,000/- per month and upto 2 Asstt. Cooks @ Rs. 4,500/- per month per cook | C98: 0 | D98: 0 | E98: 0 | F98: 0 | I98: 0 | J98: 0 | M98: 0 | N98: 0 | O98: 1.8 | P98: 0 | Q98: 0 | R98: 0 | S98: 0 | V98: 0 | W98: 0 | X98: 1.8 | Y98: 0 | Z98: 0 | AA98: 0 | AB98: 0
A99: 3.08 | B99: Specific Skill training @ Rs.1000/- per annum per child | C99: 0 | D99: 0 | E99: 0 | F99: 0 | I99: 0 | J99: 0 | M99: 0 | N99: 0 | O99: 0 | P99: 0 | Q99: 0 | R99: 0 | S99: 0 | V99: 0 | W99: 0 | X99: 0 | Y99: 0 | Z99: 0 | AA99: 0 | AB99: 0
A100: =+A99+0.01 -> 3.09 | B100: Electricity / water charges @ Rs. 1000/- per annum per child | C100: 0 | D100: 0 | E100: 0 | F100: 0 | I100: 0 | J100: 0 | M100: 0 | N100: 0 | O100: 0.01 | P100: 0 | Q100: 0 | R100: 0 | S100: 0 | V100: 0 | W100: 0 | X100: 0.01 | Y100: 0 | Z100: 0 | AA100: 0 | AB100: 0
A101: 3.1 | B101: Medical care/contingencies @ Rs.1250/- per annum per child | C101: 0 | D101: 0 | E101: 0 | F101: 0 | I101: 0 | J101: 0 | M101: 0 | N101: 0 | O101: 0.0125 | P101: 0 | Q101: 0 | R101: 0 | S101: 0 | V101: 0 | W101: 0 | X101: 0.0125 | Y101: 0 | Z101: 0 | AA101: 0 | AB101: 0
A102: 3.11 | B102: Maintenance @ Rs. 750/- per child per annum | C102: 0 | D102: 0 | E102: 0 | F102: 0 | I102: 0 | J102: 0 | M102: 0 | N102: 0 | O102: 0.0075 | P102: 0 | Q102: 0 | R102: 0 | S102: 0 | V102: 0 | W102: 0 | X102: 0.0075 | Y102: 0 | Z102: 0 | AA102: 0 | AB102: 0
A103: 3.12 | B103: Miscellaneous @ Rs. 750/- per child per annum | C103: 0 | D103: 0 | E103: 0 | F103: 0 | I103: 0 | J103: 0 | M103: 0 | N103: 0 | O103: 0.0075 | P103: 0 | Q103: 0 | R103: 0 | S103: 0 | V103: 0 | W103: 0 | X103: 0.0075 | Y103: 0 | Z103: 0 | AA103: 0 | AB103: 0
A104: 3.13 | B104: Preparatory camps @ Rs. 300/- per child per annum | C104: 0 | D104: 0 | E104: 0 | F104: 0 | I104: 0 | J104: 0 | M104: 0 | N104: 0 | O104: 0 | P104: 0 | Q104: 0 | R104: 0 | S104: 0 | V104: 0 | W104: 0 | X104: 0 | Y104: 0 | Z104: 0 | AA104: 0 | AB104: 0
A105: 3.14 | B105: P.T.A / school functions @ Rs. 300/- per child per annum | C105: 0 | D105: 0 | E105: 0 | F105: 0 | I105: 0 | J105: 0 | M105: 0 | N105: 0 | O105: 0.003 | P105: 0 | Q105: 0 | R105: 0 | S105: 0 | V105: 0 | W105: 0 | X105: 0.003 | Y105: 0 | Z105: 0 | AA105: 0 | AB105: 0
A106: 3.15 | B106: Provision of Rent @ Rs. 10,000/- per child per annum | C106: 0 | D106: 0 | E106: 0 | F106: 0 | I106: 0 | J106: 0 | M106: 0 | N106: 0 | O106: 0 | P106: 0 | Q106: 0 | R106: 0 | S106: 0 | V106: 0 | W106: 0 | X106: 0 | Y106: 0 | Z106: 0 | AA106: 0 | AB106: 0
A107: 3.16 | B107: Capacity Building @ Rs. 500/- per child per annum | C107: 0 | D107: 0 | E107: 0 | F107: 0 | I107: 0 | J107: 0 | M107: 0 | N107: 0 | O107: 0.005 | P107: 0 | Q107: 0 | R107: 0 | S107: 0 | V107: 0 | W107: 0 | X107: 0.005 | Y107: 0 | Z107: 0 | AA107: 0 | AB107: 0
A108: 3.17 | B108: Physical / Self Defence Training @ Rs.200/- per child per annum | C108: 0 | D108: 0 | E108: 0 | F108: 0 | G108: =E108/C108*100 ->  | I108: =C108-E108 -> 0 | J108: =D108-F108 -> 0 | M108: 0 | N108: 0 | O108: 0 | P108: 0 | Q108: 0 | R108: 0 | S108: 0 | V108: 0 | W108: 0 | X108: 0 | Y108: 0 | Z108: 0 | AA108: 0 | AB108: 0
B109: Sub Total (Recurring) | C109: =C88 -> 0 | D109: =SUM(D88:D108) -> 0 | E109: =E88 -> 0 | F109: =SUM(F88:F108) -> 0 | I109: =SUM(I88:I108) -> 0 | J109: 0 | K109: 0 | L109: 0 | M109: 0 | N109: 0 | P109: =P88 -> 0 | Q109: =SUM(Q88:Q108) -> 0 | R109: =R88 -> 0 | S109: 0 | T109: 0 | U109: 0 | V109: 0 | W109: 0 | Y109: =Y88 -> 0 | Z109: =SUM(Z88:Z108) -> 0 | AA109: =AA88 -> 0 | AB109: =SUM(AB88:AB108) -> 0
B110: Total (Non Recurring + Recurring) | C110: =C109 -> 0 | D110: =SUM(D86+D109) -> 0 | E110: =E109 -> 0 | F110: =SUM(F86+F109) -> 0 | I110: =SUM(I86+I109) -> 0 | J110: 0 | K110: 0 | L110: 0 | M110: 0 | N110: 0 | P110: =P109 -> 0 | Q110: =SUM(Q86+Q109) -> 0 | R110: =R109 -> 0 | S110: 0 | T110: 0 | U110: 0 | V110: 0 | W110: 0 | Y110: =Y109 -> 0 | Z110: =SUM(Z86+Z109) -> 0 | AA110: =AA109 -> 0 | AB110: =SUM(AB86+AB109) -> 0
A111: (B) | B111: 100 Children
B112: Non-recurring (one time grant)
A113: 3.18 | B113: Furniture / Equipment (including kitchen equipment) | C113: 0 | D113: 0 | E113: 0 | F113: 0 | G113: =E113/C113*100 ->  | I113: =C113-E113 -> 0 | J113: 0 | M113: 0 | N113: 0 | O113: 0 | P113: 0 | Q113: =O113*P113 -> 0 | R113: =K113+M113+P113 -> 0 | S113: 0 | V113: 0 | W113: 0 | X113: 0 | Y113: 0 | Z113: =X113*Y113 -> 0 | AA113: =T113+V113+Y113 -> 0 | AB113: 0
A114: =+A113+0.01 -> 3.19 | B114: TLM and equipment including library books (New) | C114: 0 | D114: 0 | E114: 0 | F114: 0 | I114: 0 | J114: 0 | M114: 0 | N114: 0 | O114: 0 | P114: 0 | Q114: =O114*P114 -> 0 | R114: 0 | S114: 0 | V114: 0 | W114: 0 | X114: 0 | Y114: 0 | Z114: =X114*Y114 -> 0 | AA114: 0 | AB114: 0
A115: =+A114+0.01 -> 3.2 | B115: Bedding (New) | C115: 0 | D115: 0 | E115: 0 | F115: 0 | I115: 0 | J115: 0 | M115: 0 | N115: 0 | O115: 0 | P115: 0 | Q115: =O115*P115 -> 0 | R115: 0 | S115: 0 | V115: 0 | W115: 0 | X115: 0 | Y115: 0 | Z115: =X115*Y115 -> 0 | AA115: 0 | AB115: 0
A116: =+A115+0.01 -> 3.21 | B116: Replacement of bedding (once in 3 years) | C116: 0 | D116: 0 | E116: 0 | F116: 0 | I116: 0 | J116: 0 | M116: 0 | N116: 0 | O116: 0 | P116: 0 | Q116: =O116*P116 -> 0 | R116: 0 | S116: 0 | V116: 0 | W116: 0 | X116: 0 | Y116: 0 | Z116: =X116*Y116 -> 0 | AA116: 0 | AB116: 0
B117: Sub Total Non-recurring | C117: =SUM(C113:C116) -> 0 | D117: =SUM(D113:D116) -> 0 | E117: =SUM(E113:E116) -> 0 | F117: =SUM(F113:F116) -> 0 | I117: =SUM(I113:I116) -> 0 | J117: 0 | K117: 0 | L117: 0 | M117: 0 | N117: 0 | Q117: =SUM(Q113:Q116) -> 0 | R117: 0 | S117: 0 | T117: 0 | U117: 0 | V117: 0 | W117: 0 | Z117: =SUM(Z113:Z116) -> 0 | AA117: =SUM(AA113:AA116) -> 0 | AB117: =SUM(AB113:AB116) -> 0
B118: Recurring
A119: 3.22 | B119: Maintenance per child per month @ Rs. 1500/- | C119: 0 | D119: 0 | E119: 0 | F119: 0 | G119: =E119/C119*100 ->  | H119: =F119/D119*100 ->  | I119: =C119-E119 -> 0 | J119: =D119-F119 -> 0 | M119: 0 | N119: 0 | O119: 0 | P119: 0 | Q119: =O119*P119 -> 0 | R119: =K119+M119+P119 -> 0 | S119: =L119+N119+Q119 -> 0 | V119: 0 | W119: 0 | X119: 0 | Y119: 0 | Z119: =X119*Y119 -> 0 | AA119: =T119+V119+Y119 -> 0 | AB119: =U119+W119+Z119 -> 0
A120: =+A119+0.01 -> 3.23 | B120: Stipend per child per month @ Rs.100/- | C120: 0 | D120: 0 | E120: 0 | F120: 0 | I120: 0 | J120: 0 | M120: 0 | N120: 0 | O120: 0 | P120: 0 | Q120: 0 | R120: =K120+M120+P120 -> 0 | S120: 0 | V120: 0 | W120: 0 | X120: 0 | Y120: 0 | Z120: 0 | AA120: =T120+V120+Y120 -> 0 | AB120: 0
A121: =+A120+0.01 -> 3.24 | B121: Supplementary TLM, Stationery and other educational material per child @1000/- per annum | C121: 0 | D121: 0 | E121: 0 | F121: 0 | I121: 0 | J121: 0 | M121: 0 | N121: 0 | O121: 0 | P121: 0 | Q121: 0 | R121: =K121+M121+P121 -> 0 | S121: 0 | V121: 0 | W121: 0 | X121: 0 | Y121: 0 | Z121: 0 | AA121: =T121+V121+Y121 -> 0 | AB121: 0
B122: Salaries | M122: 0 | N122: 0 | O122: 0 | P122: 0 | Q122: 0 | S122: 0 | V122: 0 | W122: 0 | X122: 0 | Y122: 0 | Z122: 0 | AB122: 0
A123: (a) | B123: 1 Warden @ Rs. 25,000/- per month | C123: 0 | D123: 0 | E123: 0 | F123: 0 | I123: 0 | J123: 0 | M123: 0 | N123: 0 | O123: 0 | P123: 0 | Q123: 0 | R123: =K123+M123+P123 -> 0 | S123: 0 | V123: 0 | W123: 0 | X123: 0 | Y123: 0 | Z123: 0 | AA123: =T123+V123+Y123 -> 0 | AB123: 0
A124: (b) | B124: 1 head teacher @ Rs. 25,000/- per month in case the enrollment exceeds 100 | C124: 0 | D124: 0 | E124: 0 | F124: 0 | I124: 0 | J124: 0 | M124: 0 | N124: 0 | O124: 0 | P124: 0 | Q124: 0 | R124: 0 | S124: 0 | V124: 0 | W124: 0 | X124: 0 | Y124: 0 | Z124: 0 | AA124: 0 | AB124: 0
A125: (c) | B125: 4 - 5 Full time teachers as per RTE norms @ Rs. 20,000/- per month per teacher | C125: 0 | D125: 0 | E125: 0 | F125: 0 | I125: 0 | J125: 0 | M125: 0 | N125: 0 | O125: 0 | P125: 0 | Q125: 0 | R125: 0 | S125: 0 | V125: 0 | W125: 0 | X125: 0 | Y125: 0 | Z125: 0 | AA125: 0 | AB125: 0
A126: (d) | B126: 2 Urdu Teachers (only for blocks with muslim population above 20% and select urban areas), if required @ Rs. 12,000/- per month per teacher | C126: 0 | D126: 0 | E126: 0 | F126: 0 | I126: 0 | J126: 0 | M126: 0 | N126: 0 | O126: 0 | P126: 0 | Q126: 0 | R126: 0 | S126: 0 | V126: 0 | W126: 0 | X126: 0 | Y126: 0 | Z126: 0 | AA126: 0 | AB126: 0
A127: (e) | B127: 3 part time teachers @ Rs. 5,000/- per month per teacher | C127: 0 | D127: 0 | E127: 0 | F127: 0 | I127: 0 | J127: 0 | M127: 0 | N127: 0 | O127: 0 | P127: 0 | Q127: 0 | R127: 0 | S127: 0 | V127: 0 | W127: 0 | X127: 0 | Y127: 0 | Z127: 0 | AA127: 0 | AB127: 0
A128: (f) | B128: 1 Full time Accountant @ Rs. 10,000/- per month | C128: 0 | D128: 0 | E128: 0 | F128: 0 | I128: 0 | J128: 0 | M128: 0 | N128: 0 | O128: 0 | P128: 0 | Q128: 0 | R128: 0 | S128: 0 | V128: 0 | W128: 0 | X128: 0 | Y128: 0 | Z128: 0 | AA128: 0 | AB128: 0
A129: 3.25 | B129: 2 Support Staff – (Accountant/ Assistant, Peon, Chowkidar) @ Rs. 5,000/- per month per staff | C129: 0 | D129: 0 | E129: 0 | F129: 0 | I129: 0 | J129: 0 | M129: 0 | N129: 0 | O129: 0 | P129: 0 | Q129: 0 | R129: 0 | S129: 0 | V129: 0 | W129: 0 | X129: 0 | Y129: 0 | Z129: 0 | AA129: 0 | AB129: 0
A130: =+A129+0.01 -> 3.26 | B130: 1 Head cook @ Rs. 6,000/- per month and upto 2 Asstt. Cooks @ Rs. 4,500/- per month per cook | C130: 0 | D130: 0 | E130: 0 | F130: 0 | I130: 0 | J130: 0 | M130: 0 | N130: 0 | O130: 0 | P130: 0 | Q130: 0 | R130: 0 | S130: 0 | V130: 0 | W130: 0 | X130: 0 | Y130: 0 | Z130: 0 | AA130: 0 | AB130: 0
A131: 3.27 | B131: Specific skill training per child @ Rs.1000/- per annum | C131: 0 | D131: 0 | E131: 0 | F131: 0 | I131: 0 | J131: 0 | M131: 0 | N131: 0 | O131: 0 | P131: 0 | Q131: 0 | R131: 0 | S131: 0 | V131: 0 | W131: 0 | X131: 0 | Y131: 0 | Z131: 0 | AA131: 0 | AB131: 0
A132: 3.28 | B132: Electricity / water charges per child @Rs.1000/- per annum | C132: 0 | D132: 0 | E132: 0 | F132: 0 | I132: 0 | J132: 0 | M132: 0 | N132: 0 | O132: 0 | P132: 0 | Q132: 0 | R132: 0 | S132: 0 | V132: 0 | W132: 0 | X132: 0 | Y132: 0 | Z132: 0 | AA132: 0 | AB132: 0
A133: 3.29 | B133: Medical care/contingencies @ Rs.1250/- per child per annum | C133: 0 | D133: 0 | E133: 0 | F133: 0 | I133: 0 | J133: 0 | M133: 0 | N133: 0 | O133: 0 | P133: 0 | Q133: 0 | R133: 0 | S133: 0 | V133: 0 | W133: 0 | X133: 0 | Y133: 0 | Z133: 0 | AA133: 0 | AB133: 0
A134: 3.3 | B134: Maintenance @ Rs.750/- per child per annum | C134: 0 | D134: 0 | E134: 0 | F134: 0 | I134: 0 | J134: 0 | M134: 0 | N134: 0 | O134: 0 | P134: 0 | Q134: 0 | R134: 0 | S134: 0 | V134: 0 | W134: 0 | X134: 0 | Y134: 0 | Z134: 0 | AA134: 0 | AB134: 0
A135: 3.31 | B135: Miscellaneous @ Rs.750/- per child per annum | C135: 0 | D135: 0 | E135: 0 | F135: 0 | I135: 0 | J135: 0 | M135: 0 | N135: 0 | O135: 0 | P135: 0 | Q135: 0 | R135: 0 | S135: 0 | V135: 0 | W135: 0 | X135: 0 | Y135: 0 | Z135: 0 | AA135: 0 | AB135: 0
A136: 3.32 | B136: Preparatory camps @ Rs.200/- per child per annum | C136: 0 | D136: 0 | E136: 0 | F136: 0 | I136: 0 | J136: 0 | M136: 0 | N136: 0 | O136: 0 | P136: 0 | Q136: 0 | R136: 0 | S136: 0 | V136: 0 | W136: 0 | X136: 0 | Y136: 0 | Z136: 0 | AA136: 0 | AB136: 0
A137: 3.33 | B137: P.T.A / school functions @ Rs.200/- per child per annum | C137: 0 | D137: 0 | E137: 0 | F137: 0 | I137: 0 | J137: 0 | M137: 0 | N137: 0 | O137: 0 | P137: 0 | Q137: 0 | R137: 0 | S137: 0 | V137: 0 | W137: 0 | X137: 0 | Y137: 0 | Z137: 0 | AA137: 0 | AB137: 0
A138: 3.34 | B138: Provision of Rent @ Rs. 6000/- per child per annum | C138: 0 | D138: 0 | E138: 0 | F138: 0 | I138: 0 | J138: 0 | M138: 0 | N138: 0 | O138: 0 | P138: 0 | Q138: 0 | R138: 0 | S138: 0 | V138: 0 | W138: 0 | X138: 0 | Y138: 0 | Z138: 0 | AA138: 0 | AB138: 0
A139: 3.35 | B139: Capacity Building @ Rs.500/- per child per annum | C139: 0 | D139: 0 | E139: 0 | F139: 0 | I139: 0 | J139: 0 | M139: 0 | N139: 0 | O139: 0 | P139: 0 | Q139: 0 | R139: 0 | S139: 0 | V139: 0 | W139: 0 | X139: 0 | Y139: 0 | Z139: 0 | AA139: 0 | AB139: 0
A140: 3.36 | B140: Physical / Self Defence training @ Rs. 200/- per child per annum. | C140: 0 | D140: 0 | E140: 0 | F140: 0 | I140: 0 | J140: 0 | M140: 0 | N140: 0 | O140: 0 | P140: 0 | Q140: 0 | R140: 0 | S140: 0 | V140: 0 | W140: 0 | X140: 0 | Y140: 0 | Z140: 0 | AA140: 0 | AB140: 0
B141: Sub Total (Recurring) | C141: =SUM(C119:C140) -> 0 | D141: =SUM(D119:D140) -> 0 | E141: =SUM(E119:E140) -> 0 | F141: =SUM(F119:F140) -> 0 | G141: =E141/C141*100 ->  | I141: =SUM(I119:I140) -> 0 | J141: 0 | K141: 0 | L141: 0 | M141: 0 | N141: 0 | P141: =SUM(P119:P140) -> 0 | Q141: 0 | R141: 0 | S141: 0 | T141: 0 | U141: 0 | V141: 0 | W141: 0 | Y141: =SUM(Y119:Y140) -> 0 | Z141: =SUM(Z119:Z140) -> 0 | AA141: =SUM(AA119:AA140) -> 0 | AB141: =SUM(AB119:AB140) -> 0
B142: Total (Recurring + Non Recurring) | C142: =SUM(C117+C141) -> 0 | D142: =SUM(D117+D141) -> 0 | E142: =SUM(E117+E141) -> 0 | F142: =SUM(F117+F141) -> 0 | I142: =SUM(I117+I141) -> 0 | J142: 0 | K142: 0 | L142: 0 | M142: 0 | N142: 0 | P142: =SUM(P117+P141) -> 0 | Q142: 0 | R142: 0 | S142: 0 | T142: 0 | U142: 0 | V142: 0 | W142: 0 | Y142: =SUM(Y117+Y141) -> 0 | Z142: =SUM(Z117+Z141) -> 0 | AA142: =SUM(AA117+AA141) -> 0 | AB142: =SUM(AB117+AB141) -> 0
B143: Total (A + B) | C143: =SUM(C78+C110+C142) -> 0 | D143: =SUM(D78+D110+D142) -> 0 | E143: =SUM(E78+E110+E142) -> 0 | F143: =SUM(F78+F110+F142) -> 0 | I143: =SUM(I78+I110+I142) -> 0 | J143: 0 | K143: 0 | L143: 0 | M143: 0 | N143: 0 | P143: =SUM(P78+P110+P142) -> 0 | Q143: 0 | R143: 0 | S143: 0 | T143: 0 | U143: 0 | V143: 0 | W143: 0 | Y143: =SUM(Y78+Y110+Y142) -> 0 | Z143: =SUM(Z78+Z110+Z142) -> 0 | AA143: =SUM(AA78+AA110+AA142) -> 0 | AB143: =SUM(AB78+AB110+AB142) -> 0
A144: 4 | B144: Transport/Escort Facility
A145: 4.01 | B145: Children in remote habitation | C145: 0 | D145: 0 | E145: 0 | F145: 0 | G145: =E145/C145*100 ->  | I145: =C145-E145 -> 0 | J145: =D145-F145 -> 0 | M145: 0 | N145: 0 | O145: 0.03 | P145: =621+15 -> 636 | Q145: =O145*P145 -> 19.08 | R145: =K145+M145+P145 -> 636 | S145: =L145+N145+Q145 -> 19.08 | V145: 0 | W145: 0 | X145: 0.03 | Y145: =621+15 -> 636 | Z145: =X145*Y145 -> 19.08 | AA145: =T145+V145+Y145 -> 636 | AB145: =U145+W145+Z145 -> 19.08
A146: 4.02 | B146: Urban deprived children/children without adult protection | C146: 0 | D146: 0 | E146: 0 | F146: 0 | I146: =C146-E146 -> 0 | J146: =D146-F146 -> 0 | M146: 0 | N146: 0 | O146: 0.025 | P146: 0 | Q146: =O146*P146 -> 0 | R146: =K146+M146+P146 -> 0 | S146: =L146+N146+Q146 -> 0 | V146: 0 | W146: 0 | X146: 0.025 | Y146: 0 | Z146: =X146*Y146 -> 0 | AA146: =T146+V146+Y146 -> 0 | AB146: =U146+W146+Z146 -> 0
B147: Sub Total | C147: =SUM(C145:C146) -> 0 | D147: =SUM(D145:D146) -> 0 | E147: =SUM(E145:E146) -> 0 | F147: =SUM(F145:F146) -> 0 | I147: =SUM(I145:I146) -> 0 | J147: 0 | K147: 0 | L147: 0 | M147: 0 | N147: 0 | P147: =SUM(P145:P146) -> 636 | Q147: 19.08 | R147: 636 | S147: 19.08 | T147: 0 | U147: 0 | V147: 0 | W147: 0 | Y147: =SUM(Y145:Y146) -> 636 | Z147: =SUM(Z145:Z146) -> 19.08 | AA147: =SUM(AA145:AA146) -> 636 | AB147: =SUM(AB145:AB146) -> 19.08
A148: 5 | B148: Reimbursement of Fee against 25% admission under Section 12(1)(c) of RTE Act 2009 (Entry Level) subject to upper limit of 20% of AWP&B subject to guidelines issued by MHRD | C148: 2966 | D148: 64.35256 | E148: =C148 -> 2966 | F148: =D148 -> 64.35256 | G148: 100 | H148: 100 | I148: =C148-E148 -> 0 | J148: =D148-F148 -> 0 | M148: 0 | N148: 0 | P148: 10349 | Q148: 514.76 | R148: =K148+M148+P148 -> 10349 | S148: =L148+N148+Q148 -> 514.76 | V148: 0 | W148: 0 | Z148: 158.57065 | AA148: =T148+V148+Y148 -> 0 | AB148: =U148+W148+Z148 -> 158.57065
B149: Sub Total | C149: =SUM(C148) -> 2966 | D149: =SUM(D148) -> 64.35256 | E149: =SUM(E148) -> 2966 | F149: =SUM(F148) -> 64.35256 | G149: 100 | H149: 100 | I149: =SUM(I148) -> 0 | J149: 0 | K149: 0 | L149: 0 | M149: 0 | N149: 0 | P149: =SUM(P148) -> 10349 | Q149: 514.76 | R149: 10349 | S149: 514.76 | T149: 0 | U149: 0 | V149: 0 | W149: 0 | Y149: =SUM(Y148) -> 0 | Z149: =SUM(Z148) -> 158.57065 | AA149: =SUM(AA148) -> 0 | AB149: =SUM(AB148) -> 158.57065
A150: =+A148+1 -> 6 | B150: Special Training for mainstreaming of out of school children
A151: 6.01 | B151: Residential (Fresh)
B152: (a) 12 months | C152: 0 | D152: 0 | E152: 0 | F152: 0 | G152: =E152/C152*100 ->  | I152: =C152-E152 -> 0 | J152: 0 | M152: 0 | N152: 0 | O152: 0.2 | P152: 0 | Q152: =O152*P152 -> 0 | R152: =K152+M152+P152 -> 0 | S152: 0 | V152: 0 | W152: 0 | X152: 0.2 | Y152: 0 | Z152: =X152*Y152 -> 0 | AA152: =T152+V152+Y152 -> 0 | AB152: 0
B153: (b) 9 months | C153: 0 | D153: 0 | E153: 0 | F153: 0 | I153: 0 | J153: 0 | M153: 0 | N153: 0 | O153: =0.2/12*9 -> 0.15 | P153: 0 | Q153: =O153*P153 -> 0 | R153: 0 | S153: 0 | V153: 0 | W153: 0 | X153: =0.2/12*9 -> 0.15 | Y153: 0 | Z153: =X153*Y153 -> 0 | AA153: 0 | AB153: 0
B154: (c) 6 months | C154: 250 | D154: 25 | E154: 115 | F154: 0 | G154: 46 | H154: 0 | I154: 135 | J154: 25 | M154: 0 | N154: 0 | O154: 0.105 | P154: 150 | Q154: =O154*P154 -> 15.75 | R154: 150 | S154: 15.75 | V154: 0 | W154: 0 | X154: 0.1 | Y154: 150 | Z154: =X154*Y154 -> 15 | AA154: 150 | AB154: 15
B155: (d) 3 months | C155: 0 | D155: 0 | E155: 0 | F155: 0 | I155: 0 | J155: 0 | M155: 0 | N155: 0 | O155: =0.2/12*3 -> 0.05 | P155: 0 | Q155: =O155*P155 -> 0 | R155: 0 | S155: 0 | V155: 0 | W155: 0 | X155: =0.2/12*3 -> 0.05 | Y155: 0 | Z155: =X155*Y155 -> 0 | AA155: 0 | AB155: 0
B156: Sub Total | C156: =SUM(C152:C155) -> 250 | D156: =SUM(D152:D155) -> 25 | E156: =SUM(E152:E155) -> 115 | F156: =SUM(F152:F155) -> 0 | G156: 46 | H156: 0 | I156: =SUM(I152:I155) -> 135 | J156: 25 | K156: 0 | L156: 0 | M156: 0 | N156: 0 | P156: =SUM(P152:P155) -> 150 | Q156: 15.75 | R156: 150 | S156: 15.75 | T156: 0 | U156: 0 | V156: 0 | W156: 0 | Y156: =SUM(Y152:Y155) -> 150 | Z156: =SUM(Z152:Z155) -> 15 | AA156: =SUM(AA152:AA155) -> 150 | AB156: =SUM(AB152:AB155) -> 15
A157: =+A151+0.01 -> 6.02 | B157: Residential (Continuing from previous year)
B158: (a) 12 months | C158: 0 | D158: 0 | E158: 0 | F158: 0 | G158: =E158/C158*100 ->  | I158: =C158-E158 -> 0 | J158: 0 | M158: 0 | N158: 0 | O158: 0.2 | P158: 0 | Q158: =O158*P158 -> 0 | R158: =K158+M158+P158 -> 0 | S158: 0 | V158: 0 | W158: 0 | X158: 0.2 | Y158: 0 | Z158: =X158*Y158 -> 0 | AA158: =T158+V158+Y158 -> 0 | AB158: 0
B159: (b) 9 months | C159: 0 | D159: 0 | E159: 0 | F159: 0 | I159: 0 | J159: 0 | M159: 0 | N159: 0 | O159: =0.2/12*9 -> 0.15 | P159: 0 | Q159: =O159*P159 -> 0 | R159: 0 | S159: 0 | V159: 0 | W159: 0 | X159: =0.2/12*9 -> 0.15 | Y159: 0 | Z159: =X159*Y159 -> 0 | AA159: 0 | AB159: 0
B160: (c) 6 months | C160: 0 | D160: 0 | E160: 0 | F160: 0 | I160: 0 | J160: 0 | M160: 0 | N160: 0 | O160: =0.2/12*6 -> 0.1 | P160: 0 | Q160: =O160*P160 -> 0 | R160: 0 | S160: 0 | V160: 0 | W160: 0 | X160: =0.2/12*6 -> 0.1 | Y160: 0 | Z160: =X160*Y160 -> 0 | AA160: 0 | AB160: 0
B161: (d) 3 months | C161: 0 | D161: 0 | E161: 0 | F161: 0 | I161: 0 | J161: 0 | M161: 0 | N161: 0 | O161: 0.05 | P161: 0 | Q161: =O161*P161 -> 0 | R161: 0 | S161: 0 | V161: 0 | W161: 0 | X161: 0.05 | Y161: 0 | Z161: =X161*Y161 -> 0 | AA161: 0 | AB161: 0
B162: Sub Total | C162: =SUM(C158:C161) -> 0 | D162: =SUM(D158:D161) -> 0 | E162: =SUM(E158:E161) -> 0 | F162: =SUM(F158:F161) -> 0 | I162: =SUM(I158:I161) -> 0 | J162: 0 | K162: 0 | L162: 0 | M162: 0 | N162: 0 | P162: =SUM(P158:P161) -> 0 | Q162: 0 | R162: 0 | S162: 0 | T162: 0 | U162: 0 | V162: 0 | W162: 0 | Y162: =SUM(Y158:Y161) -> 0 | Z162: =SUM(Z158:Z161) -> 0 | AA162: =SUM(AA158:AA161) -> 0 | AB162: =SUM(AB158:AB161) -> 0
A163: 6.03 | B163: Non-Residential (Fresh)
B164: (a) 12 months | C164: 0 | D164: 0 | E164: 0 | F164: 0 | G164: =E164/C164*100 ->  | I164: =C164-E164 -> 0 | J164: 0 | M164: 0 | N164: 0 | O164: 0.06 | P164: 0 | Q164: =O164*P164 -> 0 | R164: =K164+M164+P164 -> 0 | S164: 0 | V164: 0 | W164: 0 | X164: 0.06 | Y164: 0 | Z164: =X164*Y164 -> 0 | AA164: =T164+V164+Y164 -> 0 | AB164: 0
B165: (b) 9 months | C165: 60 | D165: 2.16 | E165: 0 | F165: 0.249264 | G165: 0 | H165: 11.54 | I165: 60 | J165: 1.910736 | M165: 0 | N165: 0 | O165: 0.036 | P165: 0 | Q165: =O165*P165 -> 0 | R165: 0 | S165: 0 | V165: 0 | W165: 0 | X165: 0.036 | Y165: 0 | Z165: =X165*Y165 -> 0 | AA165: 0 | AB165: 0
B166: (c) 6 months | C166: 500 | D166: 12 | E166: 0 | F166: 3.7824 | G166: 0 | H166: 31.52 | I166: 500 | J166: 8.2176 | M166: 0 | N166: 0 | O166: 0.031 | P166: 200 | Q166: =O166*P166 -> 6.2 | R166: 200 | S166: 6.2 | V166: 0 | W166: 0 | X166: 0.03 | Y166: 200 | Z166: =X166*Y166 -> 6 | AA166: 200 | AB166: 6
B167: (d) 3 months | C167: 360 | D167: 4.32 | E167: 653 | F167: 1.643328 | G167: 181.3888889 | H167: 38.04 | I167: -293 | J167: 2.676672 | M167: 0 | N167: 0 | O167: 0.0155 | P167: 550 | Q167: =O167*P167 -> 8.525 | R167: 550 | S167: 8.525 | V167: 0 | W167: 0 | X167: 0.015 | Y167: 550 | Z167: =X167*Y167 -> 8.25 | AA167: 550 | AB167: 8.25
B168: Sub Total | C168: =SUM(C164:C167) -> 920 | D168: =SUM(D164:D167) -> 18.48 | E168: =SUM(E164:E167) -> 653 | F168: =SUM(F164:F167) -> 5.674992 | G168: 70.97826087 | H168: 30.70883117 | I168: =SUM(I164:I167) -> 267 | J168: 12.805008 | K168: 0 | L168: 0 | M168: 0 | N168: 0 | P168: =SUM(P164:P167) -> 750 | Q168: 14.725 | R168: 750 | S168: 14.725 | T168: 0 | U168: 0 | V168: 0 | W168: 0 | Y168: =SUM(Y164:Y167) -> 750 | Z168: =SUM(Z164:Z167) -> 14.25 | AA168: =SUM(AA164:AA167) -> 750 | AB168: =SUM(AB164:AB167) -> 14.25
A169: 6.04 | B169: Non-Residential (Continuing from previous year)
B170: (a) 12 months | C170: 0 | D170: 0 | E170: 0 | F170: 0 | G170: =E170/C170*100 ->  | I170: =C170-E170 -> 0 | J170: 0 | M170: 0 | N170: 0 | O170: =0.06 -> 0.06 | P170: 0 | Q170: =O170*P170 -> 0 | R170: =K170+M170+P170 -> 0 | S170: 0 | V170: 0 | W170: 0 | X170: =0.06 -> 0.06 | Y170: 0 | Z170: =X170*Y170 -> 0 | AA170: =T170+V170+Y170 -> 0 | AB170: 0
B171: (b) 9 months | C171: 0 | D171: 0 | E171: 0 | F171: 0 | I171: 0 | J171: 0 | M171: 0 | N171: 0 | O171: =0.06/12*9 -> 0.045 | P171: 0 | Q171: =O171*P171 -> 0 | R171: 0 | S171: 0 | V171: 0 | W171: 0 | X171: =0.06/12*9 -> 0.045 | Y171: 0 | Z171: =X171*Y171 -> 0 | AA171: 0 | AB171: 0
B172: (c) 6 months | C172: 0 | D172: 0 | E172: 0 | F172: 0 | I172: 0 | J172: 0 | M172: 0 | N172: 0 | O172: =0.06/12*6 -> 0.03 | P172: 0 | Q172: =O172*P172 -> 0 | R172: 0 | S172: 0 | V172: 0 | W172: 0 | X172: =0.06/12*6 -> 0.03 | Y172: 0 | Z172: =X172*Y172 -> 0 | AA172: 0 | AB172: 0
B173: (d) 3 months | C173: 0 | D173: 0 | E173: 0 | F173: 0 | I173: 0 | J173: 0 | M173: 0 | N173: 0 | O173: =0.06/12*3 -> 0.015 | P173: 0 | Q173: =O173*P173 -> 0 | R173: 0 | S173: 0 | V173: 0 | W173: 0 | X173: =0.06/12*3 -> 0.015 | Y173: 0 | Z173: =X173*Y173 -> 0 | AA173: 0 | AB173: 0
B174: Sub Total | C174: =SUM(C170:C173) -> 0 | D174: =SUM(D170:D173) -> 0 | E174: =SUM(E170:E173) -> 0 | F174: =SUM(F170:F173) -> 0 | I174: =SUM(I170:I173) -> 0 | J174: 0 | K174: 0 | L174: 0 | M174: 0 | N174: 0 | P174: =SUM(P170:P173) -> 0 | Q174: 0 | R174: 0 | S174: 0 | T174: 0 | U174: 0 | V174: 0 | W174: 0 | Y174: =SUM(Y170:Y173) -> 0 | Z174: =SUM(Z170:Z173) -> 0 | AA174: =SUM(AA170:AA173) -> 0 | AB174: =SUM(AB170:AB173) -> 0
A175: 6.05 | B175: Madarasa/Maktab
B176: (a) 12 months | C176: 0 | D176: 0 | E176: 0 | F176: 0 | G176: =E176/C176*100 ->  | I176: =C176-E176 -> 0 | J176: 0 | M176: 0 | N176: 0 | O176: =0.06 -> 0.06 | P176: 0 | Q176: =O176*P176 -> 0 | R176: =K176+M176+P176 -> 0 | S176: 0 | V176: 0 | W176: 0 | X176: =0.06 -> 0.06 | Y176: 0 | Z176: =X176*Y176 -> 0 | AA176: =T176+V176+Y176 -> 0 | AB176: 0
B177: (b) 9 months | C177: 0 | D177: 0 | E177: 0 | F177: 0 | I177: 0 | J177: 0 | M177: 0 | N177: 0 | O177: =0.06/12*9 -> 0.045 | P177: 0 | Q177: =O177*P177 -> 0 | R177: 0 | S177: 0 | V177: 0 | W177: 0 | X177: =0.06/12*9 -> 0.045 | Y177: 0 | Z177: =X177*Y177 -> 0 | AA177: 0 | AB177: 0
B178: (c) 6 months | C178: 0 | D178: 0 | E178: 0 | F178: 0 | I178: 0 | J178: 0 | M178: 0 | N178: 0 | O178: 0.0892 | P178: 0 | Q178: =O178*P178 -> 0 | R178: 0 | S178: 0 | V178: 0 | W178: 0 | X178: 0.0892 | Y178: 0 | Z178: =X178*Y178 -> 0 | AA178: 0 | AB178: 0
B179: (d) 3 months | C179: 0 | D179: 0 | E179: 0 | F179: 0 | I179: 0 | J179: 0 | M179: 0 | N179: 0 | O179: =0.06/12*3 -> 0.015 | P179: 0 | Q179: =O179*P179 -> 0 | R179: 0 | S179: 0 | V179: 0 | W179: 0 | X179: =0.06/12*3 -> 0.015 | Y179: 0 | Z179: =X179*Y179 -> 0 | AA179: 0 | AB179: 0
B180: Sub Total | C180: =SUM(C176:C179) -> 0 | D180: =SUM(D176:D179) -> 0 | E180: =SUM(E176:E179) -> 0 | F180: =SUM(F176:F179) -> 0 | I180: =SUM(I176:I179) -> 0 | J180: 0 | K180: 0 | L180: 0 | M180: 0 | N180: 0 | P180: =SUM(P176:P179) -> 0 | Q180: 0 | R180: 0 | S180: 0 | T180: 0 | U180: 0 | V180: 0 | W180: 0 | Y180: =SUM(Y176:Y179) -> 0 | Z180: =SUM(Z176:Z179) -> 0 | AA180: =SUM(AA176:AA179) -> 0 | AB180: =SUM(AB176:AB179) -> 0
A181: 6.06 | B181: Seasonal Hostel (Residential)
B182: (a) 12 months | C182: 0 | D182: 0 | E182: 0 | F182: 0 | G182: =E182/C182*100 ->  | I182: =C182-E182 -> 0 | J182: 0 | M182: 0 | N182: 0 | O182: 0.2 | P182: 0 | Q182: =O182*P182 -> 0 | R182: =K182+M182+P182 -> 0 | S182: 0 | V182: 0 | W182: 0 | X182: 0.2 | Y182: 0 | Z182: =X182*Y182 -> 0 | AA182: =T182+V182+Y182 -> 0 | AB182: 0
B183: (b) 9 months | C183: 0 | D183: 0 | E183: 0 | F183: 0 | I183: 0 | J183: 0 | M183: 0 | N183: 0 | O183: =0.2/12*9 -> 0.15 | P183: 0 | Q183: =O183*P183 -> 0 | R183: 0 | S183: 0 | V183: 0 | W183: 0 | X183: =0.2/12*9 -> 0.15 | Y183: 0 | Z183: =X183*Y183 -> 0 | AA183: 0 | AB183: 0
B184: (c) 6 months | C184: 400 | D184: 30 | E184: 240 | F184: 0 | G184: 60 | H184: 0 | I184: 160 | J184: 30 | M184: 0 | N184: 0 | O184: 0.0892 | P184: 400 | Q184: =O184*P184 -> 35.68 | R184: 400 | S184: 35.68 | V184: 0 | W184: 0 | X184: 0.1 | Y184: 400 | Z184: =X184*Y184 -> 40 | AA184: 400 | AB184: 40
B185: (d) 3 months | C185: 0 | D185: 0 | E185: 0 | F185: 0 | I185: 0 | J185: 0 | M185: 0 | N185: 0 | O185: =0.2/12*3 -> 0.05 | P185: 0 | Q185: =O185*P185 -> 0 | R185: 0 | S185: 0 | V185: 0 | W185: 0 | X185: =0.2/12*3 -> 0.05 | Y185: 0 | Z185: =X185*Y185 -> 0 | AA185: 0 | AB185: 0
B186: Sub Total | C186: =SUM(C182:C185) -> 400 | D186: =SUM(D182:D185) -> 30 | E186: =SUM(E182:E185) -> 240 | F186: =SUM(F182:F185) -> 0 | G186: 60 | H186: 0 | I186: =SUM(I182:I185) -> 160 | J186: 30 | K186: 0 | L186: 0 | M186: 0 | N186: 0 | P186: =SUM(P182:P185) -> 400 | Q186: 35.68 | R186: 400 | S186: 35.68 | T186: 0 | U186: 0 | V186: 0 | W186: 0 | Y186: =SUM(Y182:Y185) -> 400 | Z186: =SUM(Z182:Z185) -> 40 | AA186: =SUM(AA182:AA185) -> 400 | AB186: =SUM(AB182:AB185) -> 40
A187: 6.07 | B187: Seasonal Hostel (Non Residential)
B188: (a) 12 months | C188: 0 | D188: 0 | E188: 0 | F188: 0 | G188: =E188/C188*100 ->  | I188: =C188-E188 -> 0 | J188: 0 | M188: 0 | N188: 0 | O188: =0.06 -> 0.06 | P188: 0 | Q188: =O188*P188 -> 0 | R188: =K188+M188+P188 -> 0 | S188: 0 | V188: 0 | W188: 0 | X188: =0.06 -> 0.06 | Y188: 0 | Z188: =X188*Y188 -> 0 | AA188: =T188+V188+Y188 -> 0 | AB188: 0
B189: (b) 9 months | C189: 0 | D189: 0 | E189: 0 | F189: 0 | I189: 0 | J189: 0 | M189: 0 | N189: 0 | O189: =0.06/12*9 -> 0.045 | P189: 0 | Q189: =O189*P189 -> 0 | R189: 0 | S189: 0 | V189: 0 | W189: 0 | X189: =0.06/12*9 -> 0.045 | Y189: 0 | Z189: =X189*Y189 -> 0 | AA189: 0 | AB189: 0
B190: (c) 6 months | C190: 0 | D190: 0 | E190: 0 | F190: 0 | I190: 0 | J190: 0 | M190: 0 | N190: 0 | O190: =0.06/12*6 -> 0.03 | P190: 0 | Q190: =O190*P190 -> 0 | R190: 0 | S190: 0 | V190: 0 | W190: 0 | X190: =0.06/12*6 -> 0.03 | Y190: 0 | Z190: =X190*Y190 -> 0 | AA190: 0 | AB190: 0
B191: (d) 3 months | C191: 0 | D191: 0 | E191: 0 | F191: 0 | I191: 0 | J191: 0 | M191: 0 | N191: 0 | O191: =0.06/12*3 -> 0.015 | P191: 0 | Q191: =O191*P191 -> 0 | R191: 0 | S191: 0 | V191: 0 | W191: 0 | X191: =0.06/12*3 -> 0.015 | Y191: 0 | Z191: =X191*Y191 -> 0 | AA191: 0 | AB191: 0
B192: Sub Total | C192: 0 | D192: 0 | E192: =SUM(E188:E191) -> 0 | F192: =SUM(F188:F191) -> 0 | I192: =SUM(I188:I191) -> 0 | J192: 0 | K192: 0 | L192: 0 | M192: 0 | N192: 0 | P192: =SUM(P188:P191) -> 0 | Q192: 0 | R192: 0 | S192: 0 | T192: 0 | U192: 0 | V192: 0 | W192: 0 | Y192: =SUM(Y188:Y191) -> 0 | Z192: =SUM(Z188:Z191) -> 0 | AA192: =SUM(AA188:AA191) -> 0 | AB192: =SUM(AB188:AB191) -> 0
B193: Total | C193: =C156+C162+C168+C174+C180+C186+C192 -> 1570 | D193: =D156+D162+D168+D174+D180+D186+D192 -> 73.48 | E193: =E156+E162+E168+E174+E180+E186+E192 -> 1008 | F193: =F156+F162+F168+F174+F180+F186+F192 -> 5.674992 | G193: 64.20382166 | H193: 7.723179096 | I193: =I156+I162+I168+I174+I180+I186+I192 -> 562 | J193: 67.805008 | K193: 0 | L193: 0 | M193: 0 | N193: 0 | P193: =P156+P162+P168+P174+P180+P186+P192 -> 1300 | Q193: 66.155 | R193: 1300 | S193: 66.155 | T193: 0 | U193: 0 | V193: 0 | W193: 0 | Y193: =Y156+Y162+Y168+Y174+Y180+Y186+Y192 -> 1300 | Z193: =Z156+Z162+Z168+Z174+Z180+Z186+Z192 -> 69.25 | AA193: =AA156+AA162+AA168+AA174+AA180+AA186+AA192 -> 1300 | AB193: =AB156+AB162+AB168+AB174+AB180+AB186+AB192 -> 69.25
A194: II | B194: RETENTION
A195: 7 | B195: Free Text Books
A196: 7.01 | B196: Free Text Books (UP) TOPUP | Q196: =O196*P196 -> 0 | R196: =K196+M196+P196 -> 0 | S196: =L196+N196+Q196 -> 0 | Z196: =X196*Y196 -> 0 | AA196: =T196+V196+Y196 -> 0 | AB196: =U196+W196+Z196 -> 0
B197: (a) Class I & II | Q197: 0 | R197: 0 | S197: 0 | Z197: 0 | AA197: 0 | AB197: 0
B198: (b) Braille Books Class I & II | O198: 0.0015 | P198: 9 | Q198: 0.0135 | R198: 9 | S198: 0.0135 | X198: 0.0015 | Y198: 9 | Z198: 0.0135 | AA198: 9 | AB198: 0.0135 | AD198: =Y198*X198 -> 0.0135
B199: (c) Large Print Books Class I & II | O199: 0.0015 | P199: 7 | Q199: 0.0105 | R199: 7 | S199: 0.0105 | X199: 0.0015 | Y199: 7 | Z199: 0.0105 | AA199: 7 | AB199: 0.0105 | AD199: 0.0105
B200: (d) Class III to V | Q200: 0 | R200: 0 | S200: 0 | Z200: 0 | AA200: 0 | AB200: 0 | AD200: 0
... 295 more rows

Sheet BARAN
A1: S.No. | B1: Activity | C1: Year 2016-17 | K1: n | T1: Outlay Recommended for 2017-18 | AC1: Remarks
C2: Outlay approved by PAB (including spillover) | E2: Anticipated Achievement upto March 2017 | I2: Savings | K2: Spill Over | M2: Deferred laibility of 2014-15 | O2: Fresh | R2: Total | T2: Spill Over | V2: Deferred laibility of 2014-15 | X2: Fresh | AA2: Total
C3: Phy. | D3: Fin | E3: Phy. | F3: Fin. | G3: Phy. (%) | H3: Fin. (%) | I3: Phy. | J3: Fin. | K3: Phy. | L3: Fin. | M3: Phy. | N3: Fin. | O3: Unit Cost | P3: Phy. | Q3: Fin. | R3: Phy. | S3: Fin. | T3: Phy. | U3: Fin. | V3: Phy. | W3: Fin. | X3: Unit Cost | Y3: Phy. | Z3: Fin. | AA3: Phy. | AB3: Fin.
A4: I | B4: ACCESS
B5: SSA
A6: 1 | B6: Opening of New Schools
A7: 1.01 | B7: New Primary School | C7: 0 | D7: 0 | E7: 0 | F7: 0 | G7: =E7/C7*100 ->  | H7: =F7/D7*100 ->  | I7: =C7-E7 -> 0 | J7: =D7-F7 -> 0 | K7: 0 | L7: 0 | M7: 0 | N7: 0 | P7: 0 | Q7: =O7*P7 -> 0 | R7: =K7+M7+P7 -> 0 | S7: =L7+N7+Q7 -> 0 | T7: 0 | U7: 0 | V7: 0 | W7: 0 | Y7: 0 | Z7: =X7*Y7 -> 0 | AA7: =T7+V7+Y7 -> 0 | AB7: =U7+W7+Z7 -> 0
A8: 1.02 | B8: Upgradation of PS to UPS | C8: 0 | D8: 0 | E8: 0 | F8: 0 | G8: =E8/C8*100 ->  | H8: =F8/D8*100 ->  | I8: =C8-E8 -> 0 | J8: =D8-F8 -> 0 | K8: 0 | L8: 0 | M8: 0 | N8: 0 | P8: 0 | Q8: =O8*P8 -> 0 | R8: =K8+M8+P8 -> 0 | S8: 0 | T8: 0 | U8: 0 | V8: 0 | W8: 0 | Y8: 0 | Z8: =X8*Y8 -> 0 | AA8: =T8+V8+Y8 -> 0 | AB8: 0
A9: 1.03 | B9: Composite Schools | C9: 0 | D9: 0 | E9: 0 | F9: 0 | I9: 0 | J9: 0 | K9: 0 | L9: 0 | M9: 0 | N9: 0 | P9: 0 | Q9: 0 | R9: 0 | S9: 0 | T9: 0 | U9: 0 | V9: 0 | W9: 0 | Y9: 0 | Z9: 0 | AA9: 0 | AB9: 0
A10: 1.04 | B10: Residential schools for specific category of children | C10: 0 | D10: 0 | E10: 0 | F10: 0 | I10: 0 | J10: 0 | K10: 0 | L10: 0 | M10: 0 | N10: 0 | P10: 0 | Q10: 0 | R10: 0 | S10: 0 | T10: 0 | U10: 0 | V10: 0 | W10: 0 | Y10: 0 | Z10: 0 | AA10: 0 | AB10: 0
A11: 1.05 | B11: Residential Hostel | C11: 0 | D11: 0 | E11: 0 | F11: 0 | I11: 0 | J11: 0 | K11: 0 | L11: 0 | M11: 0 | N11: 0 | P11: 0 | Q11: 0 | R11: 0 | S11: 0 | T11: 0 | U11: 0 | V11: 0 | W11: 0 | Y11: 0 | Z11: 0 | AA11: 0 | AB11: 0
A12: 1.06 | B12: Integration of Class V with primary schools | C12: 0 | D12: 0 | E12: 0 | F12: 0 | I12: 0 | J12: 0 | K12: 0 | L12: 0 | M12: 0 | N12: 0 | P12: 0 | Q12: 0 | R12: 0 | S12: 0 | T12: 0 | U12: 0 | V12: 0 | W12: 0 | Y12: 0 | Z12: 0 | AA12: 0 | AB12: 0
A13: 1.07 | B13: Integration of Class VIII with upper primary schools | C13: 0 | D13: 0 | E13: 0 | F13: 0 | I13: 0 | J13: 0 | K13: 0 | L13: 0 | M13: 0 | N13: 0 | P13: 0 | Q13: 0 | R13: 0 | S13: 0 | T13: 0 | U13: 0 | V13: 0 | W13: 0 | Y13: 0 | Z13: 0 | AA13: 0 | AB13: 0
A14: 2 | B14: Residential Schools for specific category of children
B15: 50 children
B16: Non-recurring (one time grant)
A17: 2.01 | B17: Furniture/ Equipment (including kitchen) | C17: 0 | D17: 0 | E17: 0 | F17: 0 | G17: =E17/C17*100 ->  | I17: =C17-E17 -> 0 | J17: 0 | M17: 0 | N17: 0 | O17: 2 | P17: 0 | Q17: =O17*P17 -> 0 | R17: =K17+M17+P17 -> 0 | S17: 0 | V17: 0 | W17: 0 | X17: 2 | Y17: 0 | Z17: =X17*Y17 -> 0 | AA17: =T17+V17+Y17 -> 0 | AB17: 0
A18: 2.02 | B18: TLM and equipment including library books | C18: 0 | D18: 0 | E18: 0 | F18: 0 | I18: 0 | J18: 0 | M18: 0 | N18: 0 | O18: 3 | P18: 0 | Q18: =O18*P18 -> 0 | R18: 0 | S18: 0 | V18: 0 | W18: 0 | X18: 3 | Y18: 0 | Z18: =X18*Y18 -> 0 | AA18: 0 | AB18: 0
A19: 2.03 | B19: Bedding (new) | C19: 0 | D19: 0 | E19: 0 | F19: 0 | I19: 0 | J19: 0 | M19: 0 | N19: 0 | O19: 0.375 | P19: 0 | Q19: =O19*P19 -> 0 | R19: 0 | S19: 0 | V19: 0 | W19: 0 | X19: 0.375 | Y19: 0 | Z19: =X19*Y19 -> 0 | AA19: 0 | AB19: 0
A20: 2.04 | B20: Replacement of bedding (once in 3 years) | C20: 0 | D20: 0 | E20: 0 | F20: 0 | I20: 0 | J20: 0 | M20: 0 | N20: 0 | O20: 0.0075 | P20: 0 | Q20: =O20*P20 -> 0 | R20: 0 | S20: 0 | V20: 0 | W20: 0 | X20: 0.0075 | Y20: 0 | Z20: =X20*Y20 -> 0 | AA20: 0 | AB20: 0
B21: Sub Total (Non Recurring) | C21: =SUM(C17:C20) -> 0 | D21: =SUM(D17:D20) -> 0 | E21: =SUM(E17:E20) -> 0 | F21: =SUM(F17:F20) -> 0 | I21: =SUM(I17:I20) -> 0 | J21: 0 | K21: 0 | L21: 0 | M21: 0 | N21: 0 | P21: =SUM(P17:P20) -> 0 | Q21: 0 | R21: 0 | S21: 0 | T21: 0 | U21: 0 | V21: 0 | W21: 0 | Y21: =SUM(Y17:Y20) -> 0 | Z21: =SUM(Z17:Z20) -> 0 | AA21: =SUM(AA17:AA20) -> 0 | AB21: =SUM(AB17:AB20) -> 0
B22: Recurring (50 children)
A23: 2.05 | B23: Maintenance per child Per month @ Rs.1500/- | C23: 0 | D23: 0 | E23: 0 | F23: 0 | G23: =E23/C23*100 ->  | I23: =C23-E23 -> 0 | J23: 0 | M23: 0 | N23: 0 | O23: 0.18 | P23: 0 | Q23: =O23*P23 -> 0 | R23: =K23+M23+P23 -> 0 | S23: 0 | V23: 0 | W23: 0 | X23: 0.18 | Y23: 0 | Z23: =X23*Y23 -> 0 | AA23: =T23+V23+Y23 -> 0 | AB23: 0
A24: 2.06 | B24: Stipend per child per month @ Rs.100/- | C24: 0 | D24: 0 | E24: 0 | F24: 0 | I24: 0 | J24: 0 | M24: 0 | N24: 0 | O24: 0.012 | P24: 0 | Q24: =O24*P24 -> 0 | R24: 0 | S24: 0 | V24: 0 | W24: 0 | X24: 0.012 | Y24: 0 | Z24: =X24*Y24 -> 0 | AA24: 0 | AB24: 0
A25: 2.07 | B25: Supplementary TLM, Stationery and other educational material @Rs.1000/- per child per annum | C25: 0 | D25: 0 | E25: 0 | F25: 0 | I25: 0 | J25: 0 | M25: 0 | N25: 0 | O25: 0.01 | P25: 0 | Q25: =O25*P25 -> 0 | R25: 0 | S25: 0 | V25: 0 | W25: 0 | X25: 0.01 | Y25: 0 | Z25: =X25*Y25 -> 0 | AA25: 0 | AB25: 0
A26: 2.08 | B26: Salaries | C26: 0 | D26: 0 | E26: 0 | F26: 0
A27: (a) | B27: 1 Warden @ Rs.25000/- per month | C27: 0 | D27: 0 | E27: 0 | F27: 0 | G27: =E27/C27*100 ->  | H27: =F27/D27*100 ->  | I27: =C27-E27 -> 0 | J27: =D27-F27 -> 0 | M27: 0 | N27: 0 | O27: 3 | P27: 0 | Q27: =O27*P27 -> 0 | R27: =K27+M27+P27 -> 0 | S27: =L27+N27+Q27 -> 0 | V27: 0 | W27: 0 | X27: 3 | Y27: 0 | Z27: =X27*Y27 -> 0 | AA27: =T27+V27+Y27 -> 0 | AB27: =U27+W27+Z27 -> 0
A28: (b) | B28: 4 Fulltime teachers as per RTE Norms @ Rs. 20,000/- per month per teacher | C28: 0 | D28: 0 | E28: 0 | F28: 0 | I28: 0 | J28: 0 | M28: 0 | N28: 0 | O28: 0 | P28: 0 | Q28: 0 | R28: 0 | S28: 0 | V28: 0 | W28: 0 | X28: 0 | Y28: 0 | Z28: 0 | AA28: 0 | AB28: 0
A29: (c) | B29: 2 Urdu Teachers (only for Blocks with muslim population above 20% and select urban areas) @ Rs.12,000/- per month per teacher. | C29: 0 | D29: 0 | E29: 0 | F29: 0 | I29: 0 | J29: 0 | M29: 0 | N29: 0 | O29: 0 | P29: 0 | Q29: 0 | R29: 0 | S29: 0 | V29: 0 | W29: 0 | X29: 0 | Y29: 0 | Z29: 0 | AA29: 0 | AB29: 0
A30: (d) | B30: 3 Part time teachers @ Rs.5,000/- per month per teacher | C30: 0 | D30: 0 | E30: 0 | F30: 0 | I30: 0 | J30: 0 | M30: 0 | N30: 0 | O30: 0 | P30: 0 | Q30: 0 | R30: 0 | S30: 0 | V30: 0 | W30: 0 | X30: 0 | Y30: 0 | Z30: 0 | AA30: 0 | AB30: 0
A31: (e) | B31: 1 Full time Accountant @ Rs. 10,000/- per month | C31: 0 | D31: 0 | E31: 0 | F31: 0 | I31: 0 | J31: 0 | M31: 0 | N31: 0 | O31: 1.2 | P31: 0 | Q31: 0 | R31: 0 | S31: 0 | V31: 0 | W31: 0 | X31: 1.2 | Y31: 0 | Z31: 0 | AA31: 0 | AB31: 0
A32: (f) | B32: 2 Support staff - (Accountant/Assistant, Peon, Chowkidar) @ Rs. 5,000/- per month per staff | C32: 0 | D32: 0 | E32: 0 | F32: 0 | I32: 0 | J32: 0 | M32: 0 | N32: 0 | O32: 0.6 | P32: 0 | Q32: 0 | R32: 0 | S32: 0 | V32: 0 | W32: 0 | X32: 0.6 | Y32: 0 | Z32: 0 | AA32: 0 | AB32: 0
A33: (g) | B33: 1 Head Cook @ Rs. 6,000/- per month and upto 2 Asstt. Cooks @ Rs. 4,500/- per month per cook | C33: 0 | D33: 0 | E33: 0 | F33: 0 | I33: 0 | J33: 0 | M33: 0 | N33: 0 | O33: 1.8 | P33: 0 | Q33: 0 | R33: 0 | S33: 0 | V33: 0 | W33: 0 | X33: 1.8 | Y33: 0 | Z33: 0 | AA33: 0 | AB33: 0
A34: 2.09 | B34: Specific Skill training @ Rs.1000/- per annum per child | C34: 0 | D34: 0 | E34: 0 | F34: 0 | I34: 0 | J34: 0 | M34: 0 | N34: 0 | O34: 0 | P34: 0 | Q34: 0 | R34: 0 | S34: 0 | V34: 0 | W34: 0 | X34: 0 | Y34: 0 | Z34: 0 | AA34: 0 | AB34: 0
A35: 2.1 | B35: Electricity / water charges @ Rs. 1000/- per annum per child | C35: 0 | D35: 0 | E35: 0 | F35: 0 | I35: 0 | J35: 0 | M35: 0 | N35: 0 | O35: 0.01 | P35: 0 | Q35: 0 | R35: 0 | S35: 0 | V35: 0 | W35: 0 | X35: 0.01 | Y35: 0 | Z35: 0 | AA35: 0 | AB35: 0
A36: =+A35+0.01 -> 2.11 | B36: Medical care/contingencies @ Rs.1250/- per annum per child | C36: 0 | D36: 0 | E36: 0 | F36: 0 | I36: 0 | J36: 0 | M36: 0 | N36: 0 | O36: 0.0125 | P36: 0 | Q36: 0 | R36: 0 | S36: 0 | V36: 0 | W36: 0 | X36: 0.0125 | Y36: 0 | Z36: 0 | AA36: 0 | AB36: 0
A37: =+A36+0.01 -> 2.12 | B37: Maintenance @ Rs. 750/- per child per annum | C37: 0 | D37: 0 | E37: 0 | F37: 0 | I37: 0 | J37: 0 | M37: 0 | N37: 0 | O37: 0.0075 | P37: 0 | Q37: 0 | R37: 0 | S37: 0 | V37: 0 | W37: 0 | X37: 0.0075 | Y37: 0 | Z37: 0 | AA37: 0 | AB37: 0
A38: 2.13 | B38: Miscellaneous @ Rs. 750/- per child per annum | C38: 0 | D38: 0 | E38: 0 | F38: 0 | I38: 0 | J38: 0 | M38: 0 | N38: 0 | O38: 0.0075 | P38: 0 | Q38: 0 | R38: 0 | S38: 0 | V38: 0 | W38: 0 | X38: 0.0075 | Y38: 0 | Z38: 0 | AA38: 0 | AB38: 0
A39: 2.14 | B39: Preparatory camps @ Rs. 300/- per child per annum | C39: 0 | D39: 0 | E39: 0 | F39: 0 | I39: 0 | J39: 0 | M39: 0 | N39: 0 | O39: 0 | P39: 0 | Q39: 0 | R39: 0 | S39: 0 | V39: 0 | W39: 0 | X39: 0 | Y39: 0 | Z39: 0 | AA39: 0 | AB39: 0
A40: 2.15 | B40: P.T.A / school functions @ Rs. 300/- per child per annum | C40: 0 | D40: 0 | E40: 0 | F40: 0 | I40: 0 | J40: 0 | M40: 0 | N40: 0 | O40: 0.003 | P40: 0 | Q40: 0 | R40: 0 | S40: 0 | V40: 0 | W40: 0 | X40: 0.003 | Y40: 0 | Z40: 0 | AA40: 0 | AB40: 0
A41: 2.16 | B41: Provision of Rent @ Rs. 10,000/- per child per annum | C41: 0 | D41: 0 | E41: 0 | F41: 0 | I41: 0 | J41: 0 | M41: 0 | N41: 0 | O41: 0 | P41: 0 | Q41: 0 | R41: 0 | S41: 0 | V41: 0 | W41: 0 | X41: 0 | Y41: 0 | Z41: 0 | AA41: 0 | AB41: 0
A42: 2.17 | B42: Capacity Building @ Rs. 500/- per child per annum | C42: 0 | D42: 0 | E42: 0 | F42: 0 | I42: 0 | J42: 0 | M42: 0 | N42: 0 | O42: 0.005 | P42: 0 | Q42: 0 | R42: 0 | S42: 0 | V42: 0 | W42: 0 | X42: 0.005 | Y42: 0 | Z42: 0 | AA42: 0 | AB42: 0
A43: 2.18 | B43: Physical / Self Defence Training @ Rs.200/- per child per annum | C43: 0 | D43: 0 | E43: 0 | F43: 0 | I43: 0 | J43: 0 | M43: 0 | N43: 0 | O43: 0 | P43: 0 | Q43: 0 | R43: 0 | S43: 0 | V43: 0 | W43: 0 | X43: 0 | Y43: 0 | Z43: 0 | AA43: 0 | AB43: 0
B44: Sub Total (Recurring) | C44: =C23 -> 0 | D44: =SUM(D23:D43) -> 0 | E44: =E23 -> 0 | F44: =SUM(F23:F43) -> 0 | G44: =E44/C44*100 ->  | H44: =F44/D44*100 ->  | I44: =I23 -> 0 | J44: =SUM(J23:J43) -> 0 | K44: =SUM(K23:K43) -> 0 | L44: =SUM(L23:L43) -> 0 | M44: =SUM(M23:M43) -> 0 | N44: =SUM(N23:N43) -> 0 | P44: =P23 -> 0 | Q44: =SUM(Q23:Q43) -> 0 | R44: =R23 -> 0 | S44: =SUM(S23:S43) -> 0 | T44: =SUM(T23:T43) -> 0 | U44: =SUM(U23:U43) -> 0 | V44: =SUM(V23:V43) -> 0 | W44: =SUM(W23:W43) -> 0 | Y44: =Y23 -> 0 | Z44: =SUM(Z23:Z43) -> 0 | AA44: =AA23 -> 0 | AB44: =SUM(AB23:AB43) -> 0
B45: Total (Non Recurring + Recurring) | C45: =C44 -> 0 | D45: =SUM(D21+D44) -> 0 | E45: =E44 -> 0 | F45: =SUM(F21+F44) -> 0 | G45: =E45/C45*100 ->  | H45: =F45/D45*100 ->  | I45: =I44 -> 0 | J45: =SUM(J21+J44) -> 0 | K45: =SUM(K21+K44) -> 0 | L45: =SUM(L21+L44) -> 0 | M45: =SUM(M21+M44) -> 0 | N45: =SUM(N21+N44) -> 0 | P45: =P44 -> 0 | Q45: =SUM(Q21+Q44) -> 0 | R45: =R44 -> 0 | S45: =SUM(S21+S44) -> 0 | T45: =SUM(T21+T44) -> 0 | U45: =SUM(U21+U44) -> 0 | V45: =SUM(V21+V44) -> 0 | W45: =SUM(W21+W44) -> 0 | Y45: =Y44 -> 0 | Z45: =SUM(Z21+Z44) -> 0 | AA45: =AA44 -> 0 | AB45: =SUM(AB21+AB44) -> 0
B46: 100 children
B47: Non-recurring (one time grant)
A48: 2.19 | B48: Furniture / Equipment (including kitchen equipment) | C48: 0 | D48: 0 | E48: 0 | F48: 0 | G48: =E48/C48*100 ->  | I48: =C48-E48 -> 0 | J48: 0 | M48: 0 | N48: 0 | O48: 3 | P48: 0 | Q48: =O48*P48 -> 0 | R48: =K48+M48+P48 -> 0 | S48: 0 | V48: 0 | W48: 0 | X48: 3 | Y48: 0 | Z48: =X48*Y48 -> 0 | AA48: =T48+V48+Y48 -> 0 | AB48: 0
A49: =+A48+0.01 -> 2.2 | B49: TLM and equipment including library books (New) | C49: 0 | D49: 0 | E49: 0 | F49: 0 | I49: 0 | J49: 0 | M49: 0 | N49: 0 | O49: 3.5 | P49: 0 | Q49: =O49*P49 -> 0 | R49: 0 | S49: 0 | V49: 0 | W49: 0 | X49: 3.5 | Y49: 0 | Z49: =X49*Y49 -> 0 | AA49: 0 | AB49: 0
A50: =+A49+0.01 -> 2.21 | B50: Bedding (New) | C50: 0 | D50: 0 | E50: 0 | F50: 0 | I50: 0 | J50: 0 | M50: 0 | N50: 0 | O50: 0.75 | P50: 0 | Q50: =O50*P50 -> 0 | R50: 0 | S50: 0 | V50: 0 | W50: 0 | X50: 0.75 | Y50: 0 | Z50: =X50*Y50 -> 0 | AA50: 0 | AB50: 0
A51: =+A50+0.01 -> 2.22 | B51: Replacement of bedding (once in 3 years) | C51: 0 | D51: 0 | E51: 0 | F51: 0 | I51: 0 | J51: 0 | M51: 0 | N51: 0 | O51: 0.0075 | P51: 0 | Q51: =O51*P51 -> 0 | R51: 0 | S51: 0 | V51: 0 | W51: 0 | X51: 0.0075 | Y51: 0 | Z51: =X51*Y51 -> 0 | AA51: 0 | AB51: 0
B52: Sub Total Non-recurring | C52: =SUM(C48:C51) -> 0 | D52: =SUM(D48:D51) -> 0 | E52: =SUM(E48:E51) -> 0 | F52: =SUM(F48:F51) -> 0 | I52: =SUM(I48:I51) -> 0 | J52: 0 | K52: 0 | L52: 0 | M52: 0 | N52: 0 | P52: =SUM(P48:P51) -> 0 | Q52: 0 | R52: 0 | S52: 0 | T52: 0 | U52: 0 | V52: 0 | W52: 0 | Y52: =SUM(Y48:Y51) -> 0 | Z52: =SUM(Z48:Z51) -> 0 | AA52: =SUM(AA48:AA51) -> 0 | AB52: =SUM(AB48:AB51) -> 0
B53: Recurring
A54: 2.23 | B54: Maintenance per child per month @ Rs. 1500/- | C54: 0 | D54: 0 | E54: 0 | F54: 0 | G54: =E54/C54*100 ->  | H54: =F54/D54*100 ->  | I54: =C54-E54 -> 0 | J54: =D54-F54 -> 0 | M54: 0 | N54: 0 | O54: 0.18 | P54: 0 | Q54: =O54*P54 -> 0 | R54: =K54+M54+P54 -> 0 | S54: 0 | V54: 0 | W54: 0 | X54: 0.18 | Y54: 0 | Z54: =X54*Y54 -> 0 | AA54: =T54+V54+Y54 -> 0 | AB54: 0
A55: =+A54+0.01 -> 2.24 | B55: Stipend per child per month @ Rs.100/- | C55: 0 | D55: 0 | E55: 0 | F55: 0 | I55: 0 | J55: 0 | M55: 0 | N55: 0 | O55: 0.012 | P55: 0 | Q55: =O55*P55 -> 0 | R55: 0 | S55: 0 | V55: 0 | W55: 0 | X55: 0.012 | Y55: 0 | Z55: =X55*Y55 -> 0 | AA55: 0 | AB55: 0
A56: 2.25 | B56: Supplementary TLM, Stationery and other educational material per child @1000/- per annum | C56: 0 | D56: 0 | E56: 0 | F56: 0 | I56: 0 | J56: 0 | M56: 0 | N56: 0 | O56: 0.01 | P56: 0 | Q56: =O56*P56 -> 0 | R56: 0 | S56: 0 | V56: 0 | W56: 0 | X56: 0.01 | Y56: 0 | Z56: =X56*Y56 -> 0 | AA56: 0 | AB56: 0
A57: 2.26 | B57: Salaries | E57: 0 | F57: 0
A58: (a) | B58: 1 Warden @ Rs. 25,000/- per month | C58: 0 | D58: 0 | E58: 0 | F58: 0 | I58: 0 | J58: 0 | M58: 0 | N58: 0 | O58: 3 | P58: 0 | Q58: =O58*P58 -> 0 | R58: =K58+M58+P58 -> 0 | S58: =L58+N58+Q58 -> 0 | V58: 0 | W58: 0 | X58: 3 | Y58: 0 | Z58: =X58*Y58 -> 0 | AA58: =T58+V58+Y58 -> 0 | AB58: =U58+W58+Z58 -> 0
A59: (b) | B59: 1 head teacher @ Rs. 25,000/- per month in case the enrollment exceeds 100 | C59: 0 | D59: 0 | E59: 0 | F59: 0 | I59: 0 | J59: 0 | M59: 0 | N59: 0 | O59: 3 | P59: 0 | Q59: 0 | R59: 0 | S59: 0 | V59: 0 | W59: 0 | X59: 3 | Y59: 0 | Z59: 0 | AA59: 0 | AB59: 0
A60: (c) | B60: 4 - 5 Full time teachers as per RTE norms @ Rs. 20,000/- per month per teacher | C60: 0 | D60: 0 | E60: 0 | F60: 0 | I60: 0 | J60: 0 | M60: 0 | N60: 0 | O60: 2.4 | P60: 0 | Q60: 0 | R60: 0 | S60: 0 | V60: 0 | W60: 0 | X60: 2.4 | Z60: 0 | AA60: 0 | AB60: 0
A61: (d) | B61: 2 Urdu Teachers (only for blocks with muslim population above 20% and select urban areas), if required @ Rs. 12,000/- per month per teacher | C61: 0 | D61: 0 | E61: 0 | F61: 0 | I61: 0 | J61: 0 | M61: 0 | N61: 0 | O61: 0 | P61: 0 | Q61: 0 | R61: 0 | S61: 0 | V61: 0 | W61: 0 | X61: 0 | Y61: 0 | Z61: 0 | AA61: 0 | AB61: 0
A62: (e) | B62: 3 part time teachers @ Rs. 5,000/- per month per teacher | C62: 0 | D62: 0 | E62: 0 | F62: 0 | I62: 0 | J62: 0 | M62: 0 | N62: 0 | O62: 0.6 | P62: 0 | Q62: 0 | R62: 0 | S62: 0 | V62: 0 | W62: 0 | X62: 0.6 | Y62: 0 | Z62: 0 | AA62: 0 | AB62: 0
A63: (f) | B63: 1 Full time Accountant @ Rs. 10,000/- per month | C63: 0 | D63: 0 | E63: 0 | F63: 0 | I63: 0 | J63: 0 | M63: 0 | N63: 0 | O63: 1.2 | P63: 0 | Q63: 0 | R63: 0 | S63: 0 | V63: 0 | W63: 0 | X63: 1.2 | Y63: 0 | Z63: 0 | AA63: 0 | AB63: 0
A64: (g) | B64: 2 Support Staff – (Accountant/ Assistant, Peon, Chowkidar) @ Rs. 5,000/- per month per staff | C64: 0 | D64: 0 | E64: 0 | F64: 0 | I64: 0 | J64: 0 | M64: 0 | N64: 0 | O64: 0.6 | P64: 0 | Q64: 0 | R64: 0 | S64: 0 | V64: 0 | W64: 0 | X64: 0.6 | Y64: 0 | Z64: 0 | AA64: 0 | AB64: 0
A65: (h) | B65: 1 Head cook @ Rs. 6,000/- per month and upto 2 Asstt. Cooks @ Rs. 4,500/- per month per cook | C65: 0 | D65: 0 | E65: 0 | F65: 0 | I65: 0 | J65: 0 | M65: 0 | N65: 0 | O65: 1.8 | P65: 0 | Q65: 0 | R65: 0 | S65: 0 | V65: 0 | W65: 0 | X65: 1.8 | Y65: 0 | Z65: 0 | AA65: 0 | AB65: 0
A66: 2.27 | B66: Specific skill training per child @ Rs.1000/- per annum | C66: 0 | D66: 0 | E66: 0 | F66: 0 | I66: 0 | J66: 0 | M66: 0 | N66: 0 | O66: 0 | P66: 0 | Q66: 0 | R66: 0 | S66: 0 | V66: 0 | W66: 0 | X66: 0 | Y66: 0 | Z66: 0 | AA66: 0 | AB66: 0
A67: 2.28 | B67: Electricity / water charges per child @Rs.1000/- per annum | C67: 0 | D67: 0 | E67: 0 | F67: 0 | I67: 0 | J67: 0 | M67: 0 | N67: 0 | O67: 0.01 | P67: 0 | Q67: 0 | R67: 0 | S67: 0 | V67: 0 | W67: 0 | X67: 0.01 | Y67: 0 | Z67: 0 | AA67: 0 | AB67: 0
A68: 2.29 | B68: Medical care/contingencies @ Rs.1250/- per child per annum | C68: 0 | D68: 0 | E68: 0 | F68: 0 | I68: 0 | J68: 0 | M68: 0 | N68: 0 | O68: 0.013 | P68: 0 | Q68: 0 | R68: 0 | S68: 0 | V68: 0 | W68: 0 | X68: 0.013 | Y68: 0 | Z68: 0 | AA68: 0 | AB68: 0
A69: 2.3 | B69: Maintenance @ Rs.750/- per child per annum | C69: 0 | D69: 0 | E69: 0 | F69: 0 | I69: 0 | J69: 0 | M69: 0 | N69: 0 | O69: 0.008 | P69: 0 | Q69: 0 | R69: 0 | S69: 0 | V69: 0 | W69: 0 | X69: 0.008 | Y69: 0 | Z69: 0 | AA69: 0 | AB69: 0
A70: 2.31 | B70: Miscellaneous @ Rs.750/- per child per annum | C70: 0 | D70: 0 | E70: 0 | F70: 0 | I70: 0 | J70: 0 | M70: 0 | N70: 0 | O70: 0.008 | P70: 0 | Q70: 0 | R70: 0 | S70: 0 | V70: 0 | W70: 0 | X70: 0.008 | Y70: 0 | Z70: 0 | AA70: 0 | AB70: 0
A71: 2.32 | B71: Preparatory camps @ Rs.200/- per child per annum | C71: 0 | D71: 0 | E71: 0 | F71: 0 | I71: 0 | J71: 0 | M71: 0 | N71: 0 | O71: 0 | P71: 0 | Q71: 0 | R71: 0 | S71: 0 | V71: 0 | W71: 0 | X71: 0 | Y71: 0 | Z71: 0 | AA71: 0 | AB71: 0
A72: 2.33 | B72: P.T.A / school functions @ Rs.200/- per child per annum | C72: 0 | D72: 0 | E72: 0 | F72: 0 | I72: 0 | J72: 0 | M72: 0 | N72: 0 | O72: 0.003 | P72: 0 | Q72: 0 | R72: 0 | S72: 0 | V72: 0 | W72: 0 | X72: 0.003 | Y72: 0 | Z72: 0 | AA72: 0 | AB72: 0
A73: 2.34 | B73: Provision of Rent @ Rs. 6000/- per child per annum | C73: 0 | D73: 0 | E73: 0 | F73: 0 | I73: 0 | J73: 0 | M73: 0 | N73: 0 | O73: 0 | P73: 0 | Q73: 0 | R73: 0 | S73: 0 | V73: 0 | W73: 0 | X73: 0 | Y73: 0 | Z73: 0 | AA73: 0 | AB73: 0
A74: 2.35 | B74: Capacity Building @ Rs.500/- per child per annum | C74: 0 | D74: 0 | E74: 0 | F74: 0 | I74: 0 | J74: 0 | M74: 0 | N74: 0 | O74: 0.005 | P74: 0 | Q74: 0 | R74: 0 | S74: 0 | V74: 0 | W74: 0 | X74: 0.005 | Y74: 0 | Z74: 0 | AA74: 0 | AB74: 0
A75: 2.36 | B75: Physical / Self Defence training @ Rs. 200/- per child per annum. | C75: 0 | D75: 0 | E75: 0 | F75: 0 | I75: 0 | J75: 0 | M75: 0 | N75: 0 | O75: 0 | P75: 0 | Q75: 0 | R75: 0 | S75: 0 | V75: 0 | W75: 0 | X75: 0 | Y75: 0 | Z75: 0 | AA75: 0 | AB75: 0
B76: Sub Total (Recurring) | C76: =C54 -> 0 | D76: =SUM(D54:D75) -> 0 | E76: =E54 -> 0 | F76: =SUM(F54:F75) -> 0 | I76: =I54 -> 0 | J76: =SUM(J54:J75) -> 0 | K76: =SUM(K54:K75) -> 0 | L76: =SUM(L54:L75) -> 0 | M76: =SUM(M54:M75) -> 0 | N76: =SUM(N54:N75) -> 0 | P76: =P54 -> 0 | Q76: =SUM(Q54:Q75) -> 0 | R76: =R54 -> 0 | S76: 0 | T76: 0 | U76: 0 | V76: 0 | W76: 0 | Y76: =Y54 -> 0 | Z76: =SUM(Z54:Z75) -> 0 | AA76: =AA54 -> 0 | AB76: =SUM(AB54:AB75) -> 0
B77: Total (Recurring + Non Recurring) | C77: =C76 -> 0 | D77: =SUM(D52+D76) -> 0 | E77: =E76 -> 0 | F77: =SUM(F52+F76) -> 0 | I77: =I76 -> 0 | J77: =SUM(J52+J76) -> 0 | K77: =SUM(K52+K76) -> 0 | L77: =SUM(L52+L76) -> 0 | M77: =SUM(M52+M76) -> 0 | N77: =SUM(N52+N76) -> 0 | P77: =P76 -> 0 | Q77: =SUM(Q52+Q76) -> 0 | R77: =R76 -> 0 | S77: 0 | T77: 0 | U77: 0 | V77: 0 | W77: 0 | Y77: =Y76 -> 0 | Z77: =SUM(Z52+Z76) -> 0 | AA77: =AA76 -> 0 | AB77: =SUM(AB52+AB76) -> 0
B78: Total (50 + 100 children) | C78: =C45+C77 -> 0 | D78: =SUM(D45+D77) -> 0 | E78: =E45+E77 -> 0 | F78: =SUM(F45+F77) -> 0 | G78: =E78/C78*100 ->  | H78: =F78/D78*100 ->  | I78: =I45+I77 -> 0 | J78: =SUM(J45+J77) -> 0 | K78: =SUM(K45+K77) -> 0 | L78: =SUM(L45+L77) -> 0 | M78: =SUM(M45+M77) -> 0 | N78: =SUM(N45+N77) -> 0 | P78: =P45+P77 -> 0 | Q78: =SUM(Q45+Q77) -> 0 | R78: =R45+R77 -> 0 | S78: =SUM(S45+S77) -> 0 | T78: =SUM(T45+T77) -> 0 | U78: =SUM(U45+U77) -> 0 | V78: =SUM(V45+V77) -> 0 | W78: =SUM(W45+W77) -> 0 | Y78: =Y45+Y77 -> 0 | Z78: =SUM(Z45+Z77) -> 0 | AA78: =AA45+AA77 -> 0 | AB78: =SUM(AB45+AB77) -> 0
A79: 3 | B79: Residential Hostel for specific category of children
A80: (A) | B80: 50 children
B81: Non-recurring (one time grant) | R81: =K81+M81+P81 -> 0 | S81: 0 | AA81: =T81+V81+Y81 -> 0 | AB81: 0
A82: 3.01 | B82: Furniture/ Equipment (including kitchen) | C82: 0 | D82: 0 | E82: 0 | F82: 0 | G82: =E82/C82*100 ->  | I82: =C82-E82 -> 0 | J82: 0 | M82: 0 | N82: 0 | O82: 2 | P82: 0 | Q82: =O82*P82 -> 0 | R82: 0 | S82: 0 | V82: 0 | W82: 0 | X82: 2 | Y82: 0 | Z82: =X82*Y82 -> 0 | AA82: 0 | AB82: 0
A83: =+A82+0.01 -> 3.02 | B83: TLM and equipment including library books | C83: 0 | D83: 0 | E83: 0 | F83: 0 | I83: 0 | J83: 0 | M83: 0 | N83: 0 | O83: 3 | P83: 0 | Q83: =O83*P83 -> 0 | R83: 0 | S83: 0 | V83: 0 | W83: 0 | X83: 3 | Y83: 0 | Z83: =X83*Y83 -> 0 | AA83: 0 | AB83: 0
A84: =+A83+0.01 -> 3.03 | B84: Bedding (new) | C84: 0 | D84: 0 | E84: 0 | F84: 0 | I84: 0 | J84: 0 | M84: 0 | N84: 0 | O84: 0.375 | P84: 0 | Q84: =O84*P84 -> 0 | R84: 0 | S84: 0 | V84: 0 | W84: 0 | X84: 0.375 | Y84: 0 | Z84: =X84*Y84 -> 0 | AA84: 0 | AB84: 0
A85: =+A84+0.01 -> 3.04 | B85: Replacement of bedding (once in 3 years) | C85: 0 | D85: 0 | E85: 0 | F85: 0 | I85: 0 | J85: 0 | M85: 0 | N85: 0 | O85: 0.0075 | P85: 0 | Q85: =O85*P85 -> 0 | R85: 0 | S85: 0 | V85: 0 | W85: 0 | X85: 0.0075 | Y85: 0 | Z85: =X85*Y85 -> 0 | AA85: 0 | AB85: 0
B86: Sub Total (Non Recurring) | C86: =SUM(C82:C85) -> 0 | D86: =SUM(D82:D85) -> 0 | E86: =SUM(E82:E85) -> 0 | F86: =SUM(F82:F85) -> 0 | I86: =SUM(I82:I85) -> 0 | J86: 0 | K86: 0 | L86: 0 | M86: 0 | N86: 0 | P86: =SUM(P82:P85) -> 0 | Q86: 0 | R86: 0 | S86: 0 | T86: 0 | U86: 0 | V86: 0 | W86: 0 | Y86: =SUM(Y82:Y85) -> 0 | Z86: =SUM(Z82:Z85) -> 0 | AA86: =SUM(AA82:AA85) -> 0 | AB86: =SUM(AB82:AB85) -> 0
B87: Recurring (50 children)
A88: 3.05 | B88: Maintenance per child Per month @ Rs.1500/- | C88: 0 | D88: 0 | E88: 0 | F88: 0 | G88: =E88/C88*100 ->  | I88: =C88-E88 -> 0 | J88: 0 | M88: 0 | N88: 0 | O88: 0.18 | P88: 0 | Q88: =O88*P88 -> 0 | R88: =K88+M88+P88 -> 0 | S88: =L88+N88+Q88 -> 0 | V88: 0 | W88: 0 | X88: 0.18 | Y88: 0 | Z88: =X88*Y88 -> 0 | AA88: =T88+V88+Y88 -> 0 | AB88: =U88+W88+Z88 -> 0
A89: =+A88+0.01 -> 3.06 | B89: Stipend per child per month @ Rs.100/- | C89: 0 | D89: 0 | E89: 0 | F89: 0 | I89: 0 | J89: 0 | M89: 0 | N89: 0 | O89: 0.012 | P89: 0 | Q89: =O89*P89 -> 0 | R89: 0 | S89: 0 | V89: 0 | W89: 0 | X89: 0.012 | Y89: 0 | Z89: =X89*Y89 -> 0 | AA89: 0 | AB89: 0
A90: =+A89+0.01 -> 3.07 | B90: Supplementary TLM, Stationery and other educational material @Rs.1000/- per child per annum | C90: 0 | D90: 0 | E90: 0 | F90: 0 | I90: 0 | J90: 0 | M90: 0 | N90: 0 | O90: 0.01 | P90: 0 | Q90: =O90*P90 -> 0 | R90: 0 | S90: 0 | V90: 0 | W90: 0 | X90: 0.01 | Y90: 0 | Z90: =X90*Y90 -> 0 | AA90: 0 | AB90: 0
B91: Salaries | R91: 0 | S91: 0 | AA91: 0 | AB91: 0
A92: (a) | B92: 1 Warden @ Rs.25000/- per month | C92: 0 | D92: 0 | E92: 0 | F92: 0 | G92: =E92/C92*100 ->  | H92: =F92/D92*100 ->  | I92: =C92-E92 -> 0 | J92: =D92-F92 -> 0 | M92: 0 | N92: 0 | O92: 3 | P92: 0 | Q92: =O92*P92 -> 0 | R92: 0 | S92: 0 | V92: 0 | W92: 0 | X92: 3 | Y92: 0 | Z92: =X92*Y92 -> 0 | AA92: 0 | AB92: 0
A93: (b) | B93: 4 Fulltime teachers as per RTE Norms @ Rs. 20,000/- per month per teacher | C93: 0 | D93: 0 | E93: 0 | F93: 0 | I93: 0 | J93: 0 | M93: 0 | N93: 0 | O93: 0 | P93: 0 | Q93: 0 | R93: 0 | S93: 0 | V93: 0 | W93: 0 | X93: 0 | Y93: 0 | Z93: 0 | AA93: 0 | AB93: 0
A94: (c) | B94: 2 Urdu Teachers (only for Blocks with muslim population above 20% and select urban areas) @ Rs.12,000/- per month per teacher. | C94: 0 | D94: 0 | E94: 0 | F94: 0 | I94: 0 | J94: 0 | M94: 0 | N94: 0 | O94: 0 | P94: 0 | Q94: 0 | R94: 0 | S94: 0 | V94: 0 | W94: 0 | X94: 0 | Y94: 0 | Z94: 0 | AA94: 0 | AB94: 0
A95: (d) | B95: 3 Part time teachers @ Rs.5,000/- per month per teacher | C95: 0 | D95: 0 | E95: 0 | F95: 0 | I95: 0 | J95: 0 | M95: 0 | N95: 0 | O95: 1.8 | P95: 0 | Q95: 0 | R95: 0 | S95: 0 | V95: 0 | W95: 0 | X95: 1.8 | Y95: 0 | Z95: 0 | AA95: 0 | AB95: 0
A96: (e) | B96: 1 Full time Accountant @ Rs. 10,000/- per month | C96: 0 | D96: 0 | E96: 0 | F96: 0 | I96: 0 | J96: 0 | M96: 0 | N96: 0 | O96: 1.2 | P96: 0 | Q96: 0 | R96: 0 | S96: 0 | V96: 0 | W96: 0 | X96: 1.2 | Y96: 0 | Z96: 0 | AA96: 0 | AB96: 0
A97: (f) | B97: 2 Support staff - (Accountant/Assistant, Peon, Chowkidar) @ Rs. 5,000/- per month per staff | C97: 0 | D97: 0 | E97: 0 | F97: 0 | I97: 0 | J97: 0 | M97: 0 | N97: 0 | O97: 1.2 | P97: 0 | Q97: 0 | R97: 0 | S97: 0 | V97: 0 | W97: 0 | X97: 1.2 | Y97: 0 | Z97: 0 | AA97: 0 | AB97: 0
A98: (g) | B98: 1 Head Cook @ Rs. 6,000/- per month and upto 2 Asstt. Cooks @ Rs. 4,500/- per month per cook | C98: 0 | D98: 0 | E98: 0 | F98: 0 | I98: 0 | J98: 0 | M98: 0 | N98: 0 | O98: 1.8 | P98: 0 | Q98: 0 | R98: 0 | S98: 0 | V98: 0 | W98: 0 | X98: 1.8 | Y98: 0 | Z98: 0 | AA98: 0 | AB98: 0
A99: 3.08 | B99: Specific Skill training @ Rs.1000/- per annum per child | C99: 0 | D99: 0 | E99: 0 | F99: 0 | I99: 0 | J99: 0 | M99: 0 | N99: 0 | O99: 0 | P99: 0 | Q99: 0 | R99: 0 | S99: 0 | V99: 0 | W99: 0 | X99: 0 | Y99: 0 | Z99: 0 | AA99: 0 | AB99: 0
A100: =+A99+0.01 -> 3.09 | B100: Electricity / water charges @ Rs. 1000/- per annum per child | C100: 0 | D100: 0 | E100: 0 | F100: 0 | I100: 0 | J100: 0 | M100: 0 | N100: 0 | O100: 0.01 | P100: 0 | Q100: 0 | R100: 0 | S100: 0 | V100: 0 | W100: 0 | X100: 0.01 | Y100: 0 | Z100: 0 | AA100: 0 | AB100: 0
A101: 3.1 | B101: Medical care/contingencies @ Rs.1250/- per annum per child | C101: 0 | D101: 0 | E101: 0 | F101: 0 | I101: 0 | J101: 0 | M101: 0 | N101: 0 | O101: 0.0125 | P101: 0 | Q101: 0 | R101: 0 | S101: 0 | V101: 0 | W101: 0 | X101: 0.0125 | Y101: 0 | Z101: 0 | AA101: 0 | AB101: 0
A102: 3.11 | B102: Maintenance @ Rs. 750/- per child per annum | C102: 0 | D102: 0 | E102: 0 | F102: 0 | I102: 0 | J102: 0 | M102: 0 | N102: 0 | O102: 0.0075 | P102: 0 | Q102: 0 | R102: 0 | S102: 0 | V102: 0 | W102: 0 | X102: 0.0075 | Y102: 0 | Z102: 0 | AA102: 0 | AB102: 0
A103: 3.12 | B103: Miscellaneous @ Rs. 750/- per child per annum | C103: 0 | D103: 0 | E103: 0 | F103: 0 | I103: 0 | J103: 0 | M103: 0 | N103: 0 | O103: 0.0075 | P103: 0 | Q103: 0 | R103: 0 | S103: 0 | V103: 0 | W103: 0 | X103: 0.0075 | Y103: 0 | Z103: 0 | AA103: 0 | AB103: 0
A104: 3.13 | B104: Preparatory camps @ Rs. 300/- per child per annum | C104: 0 | D104: 0 | E104: 0 | F104: 0 | I104: 0 | J104: 0 | M104: 0 | N104: 0 | O104: 0 | P104: 0 | Q104: 0 | R104: 0 | S104: 0 | V104: 0 | W104: 0 | X104: 0 | Y104: 0 | Z104: 0 | AA104: 0 | AB104: 0
A105: 3.14 | B105: P.T.A / school functions @ Rs. 300/- per child per annum | C105: 0 | D105: 0 | E105: 0 | F105: 0 | I105: 0 | J105: 0 | M105: 0 | N105: 0 | O105: 0.003 | P105: 0 | Q105: 0 | R105: 0 | S105: 0 | V105: 0 | W105: 0 | X105: 0.003 | Y105: 0 | Z105: 0 | AA105: 0 | AB105: 0
A106: 3.15 | B106: Provision of Rent @ Rs. 10,000/- per child per annum | C106: 0 | D106: 0 | E106: 0 | F106: 0 | I106: 0 | J106: 0 | M106: 0 | N106: 0 | O106: 0 | P106: 0 | Q106: 0 | R106: 0 | S106: 0 | V106: 0 | W106: 0 | X106: 0 | Y106: 0 | Z106: 0 | AA106: 0 | AB106: 0
A107: 3.16 | B107: Capacity Building @ Rs. 500/- per child per annum | C107: 0 | D107: 0 | E107: 0 | F107: 0 | I107: 0 | J107: 0 | M107: 0 | N107: 0 | O107: 0.005 | P107: 0 | Q107: 0 | R107: 0 | S107: 0 | V107: 0 | W107: 0 | X107: 0.005 | Y107: 0 | Z107: 0 | AA107: 0 | AB107: 0
A108: 3.17 | B108: Physical / Self Defence Training @ Rs.200/- per child per annum | C108: 0 | D108: 0 | E108: 0 | F108: 0 | G108: =E108/C108*100 ->  | I108: =C108-E108 -> 0 | J108: =D108-F108 -> 0 | M108: 0 | N108: 0 | O108: 0 | P108: 0 | Q108: 0 | R108: 0 | S108: 0 | V108: 0 | W108: 0 | X108: 0 | Y108: 0 | Z108: 0 | AA108: 0 | AB108: 0
B109: Sub Total (Recurring) | C109: =C88 -> 0 | D109: =SUM(D88:D108) -> 0 | E109: =E88 -> 0 | F109: =SUM(F88:F108) -> 0 | I109: =SUM(I88:I108) -> 0 | J109: 0 | K109: 0 | L109: 0 | M109: 0 | N109: 0 | P109: =P88 -> 0 | Q109: =SUM(Q88:Q108) -> 0 | R109: =R88 -> 0 | S109: 0 | T109: 0 | U109: 0 | V109: 0 | W109: 0 | Y109: =Y88 -> 0 | Z109: =SUM(Z88:Z108) -> 0 | AA109: =AA88 -> 0 | AB109: =SUM(AB88:AB108) -> 0
B110: Total (Non Recurring + Recurring) | C110: =C109 -> 0 | D110: =SUM(D86+D109) -> 0 | E110: =E109 -> 0 | F110: =SUM(F86+F109) -> 0 | I110: =SUM(I86+I109) -> 0 | J110: 0 | K110: 0 | L110: 0 | M110: 0 | N110: 0 | P110: =P109 -> 0 | Q110: =SUM(Q86+Q109) -> 0 | R110: =R109 -> 0 | S110: 0 | T110: 0 | U110: 0 | V110: 0 | W110: 0 | Y110: =Y109 -> 0 | Z110: =SUM(Z86+Z109) -> 0 | AA110: =AA109 -> 0 | AB110: =SUM(AB86+AB109) -> 0
A111: (B) | B111: 100 Children
B112: Non-recurring (one time grant)
A113: 3.18 | B113: Furniture / Equipment (including kitchen equipment) | C113: 0 | D113: 0 | E113: 0 | F113: 0 | G113: =E113/C113*100 ->  | I113: =C113-E113 -> 0 | J113: 0 | M113: 0 | N113: 0 | O113: 0 | P113: 0 | Q113: =O113*P113 -> 0 | R113: =K113+M113+P113 -> 0 | S113: 0 | V113: 0 | W113: 0 | X113: 0 | Y113: 0 | Z113: =X113*Y113 -> 0 | AA113: =T113+V113+Y113 -> 0 | AB113: 0
A114: =+A113+0.01 -> 3.19 | B114: TLM and equipment including library books (New) | C114: 0 | D114: 0 | E114: 0 | F114: 0 | I114: 0 | J114: 0 | M114: 0 | N114: 0 | O114: 0 | P114: 0 | Q114: =O114*P114 -> 0 | R114: 0 | S114: 0 | V114: 0 | W114: 0 | X114: 0 | Y114: 0 | Z114: =X114*Y114 -> 0 | AA114: 0 | AB114: 0
A115: =+A114+0.01 -> 3.2 | B115: Bedding (New) | C115: 0 | D115: 0 | E115: 0 | F115: 0 | I115: 0 | J115: 0 | M115: 0 | N115: 0 | O115: 0 | P115: 0 | Q115: =O115*P115 -> 0 | R115: 0 | S115: 0 | V115: 0 | W115: 0 | X115: 0 | Y115: 0 | Z115: =X115*Y115 -> 0 | AA115: 0 | AB115: 0
A116: =+A115+0.01 -> 3.21 | B116: Replacement of bedding (once in 3 years) | C116: 0 | D116: 0 | E116: 0 | F116: 0 | I116: 0 | J116: 0 | M116: 0 | N116: 0 | O116: 0 | P116: 0 | Q116: =O116*P116 -> 0 | R116: 0 | S116: 0 | V116: 0 | W116: 0 | X116: 0 | Y116: 0 | Z116: =X116*Y116 -> 0 | AA116: 0 | AB116: 0
B117: Sub Total Non-recurring | C117: =SUM(C113:C116) -> 0 | D117: =SUM(D113:D116) -> 0 | E117: =SUM(E113:E116) -> 0 | F117: =SUM(F113:F116) -> 0 | I117: =SUM(I113:I116) -> 0 | J117: 0 | K117: 0 | L117: 0 | M117: 0 | N117: 0 | Q117: =SUM(Q113:Q116) -> 0 | R117: 0 | S117: 0 | T117: 0 | U117: 0 | V117: 0 | W117: 0 | Z117: =SUM(Z113:Z116) -> 0 | AA117: =SUM(AA113:AA116) -> 0 | AB117: =SUM(AB113:AB116) -> 0
B118: Recurring
A119: 3.22 | B119: Maintenance per child per month @ Rs. 1500/- | C119: 0 | D119: 0 | E119: 0 | F119: 0 | G119: =E119/C119*100 ->  | H119: =F119/D119*100 ->  | I119: =C119-E119 -> 0 | J119: =D119-F119 -> 0 | M119: 0 | N119: 0 | O119: 0 | P119: 0 | Q119: =O119*P119 -> 0 | R119: =K119+M119+P119 -> 0 | S119: =L119+N119+Q119 -> 0 | V119: 0 | W119: 0 | X119: 0 | Y119: 0 | Z119: =X119*Y119 -> 0 | AA119: =T119+V119+Y119 -> 0 | AB119: =U119+W119+Z119 -> 0
A120: =+A119+0.01 -> 3.23 | B120: Stipend per child per month @ Rs.100/- | C120: 0 | D120: 0 | E120: 0 | F120: 0 | I120: 0 | J120: 0 | M120: 0 | N120: 0 | O120: 0 | P120: 0 | Q120: 0 | R120: =K120+M120+P120 -> 0 | S120: 0 | V120: 0 | W120: 0 | X120: 0 | Y120: 0 | Z120: 0 | AA120: =T120+V120+Y120 -> 0 | AB120: 0
A121: =+A120+0.01 -> 3.24 | B121: Supplementary TLM, Stationery and other educational material per child @1000/- per annum | C121: 0 | D121: 0 | E121: 0 | F121: 0 | I121: 0 | J121: 0 | M121: 0 | N121: 0 | O121: 0 | P121: 0 | Q121: 0 | R121: =K121+M121+P121 -> 0 | S121: 0 | V121: 0 | W121: 0 | X121: 0 | Y121: 0 | Z121: 0 | AA121: =T121+V121+Y121 -> 0 | AB121: 0
B122: Salaries | M122: 0 | N122: 0 | O122: 0 | P122: 0 | Q122: 0 | S122: 0 | V122: 0 | W122: 0 | X122: 0 | Y122: 0 | Z122: 0 | AB122: 0
A123: (a) | B123: 1 Warden @ Rs. 25,000/- per month | C123: 0 | D123: 0 | E123: 0 | F123: 0 | I123: 0 | J123: 0 | M123: 0 | N123: 0 | O123: 0 | P123: 0 | Q123: 0 | R123: =K123+M123+P123 -> 0 | S123: 0 | V123: 0 | W123: 0 | X123: 0 | Y123: 0 | Z123: 0 | AA123: =T123+V123+Y123 -> 0 | AB123: 0
A124: (b) | B124: 1 head teacher @ Rs. 25,000/- per month in case the enrollment exceeds 100 | C124: 0 | D124: 0 | E124: 0 | F124: 0 | I124: 0 | J124: 0 | M124: 0 | N124: 0 | O124: 0 | P124: 0 | Q124: 0 | R124: 0 | S124: 0 | V124: 0 | W124: 0 | X124: 0 | Y124: 0 | Z124: 0 | AA124: 0 | AB124: 0
A125: (c) | B125: 4 - 5 Full time teachers as per RTE norms @ Rs. 20,000/- per month per teacher | C125: 0 | D125: 0 | E125: 0 | F125: 0 | I125: 0 | J125: 0 | M125: 0 | N125: 0 | O125: 0 | P125: 0 | Q125: 0 | R125: 0 | S125: 0 | V125: 0 | W125: 0 | X125: 0 | Y125: 0 | Z125: 0 | AA125: 0 | AB125: 0
A126: (d) | B126: 2 Urdu Teachers (only for blocks with muslim population above 20% and select urban areas), if required @ Rs. 12,000/- per month per teacher | C126: 0 | D126: 0 | E126: 0 | F126: 0 | I126: 0 | J126: 0 | M126: 0 | N126: 0 | O126: 0 | P126: 0 | Q126: 0 | R126: 0 | S126: 0 | V126: 0 | W126: 0 | X126: 0 | Y126: 0 | Z126: 0 | AA126: 0 | AB126: 0
A127: (e) | B127: 3 part time teachers @ Rs. 5,000/- per month per teacher | C127: 0 | D127: 0 | E127: 0 | F127: 0 | I127: 0 | J127: 0 | M127: 0 | N127: 0 | O127: 0 | P127: 0 | Q127: 0 | R127: 0 | S127: 0 | V127: 0 | W127: 0 | X127: 0 | Y127: 0 | Z127: 0 | AA127: 0 | AB127: 0
A128: (f) | B128: 1 Full time Accountant @ Rs. 10,000/- per month | C128: 0 | D128: 0 | E128: 0 | F128: 0 | I128: 0 | J128: 0 | M128: 0 | N128: 0 | O128: 0 | P128: 0 | Q128: 0 | R128: 0 | S128: 0 | V128: 0 | W128: 0 | X128: 0 | Y128: 0 | Z128: 0 | AA128: 0 | AB128: 0
A129: 3.25 | B129: 2 Support Staff – (Accountant/ Assistant, Peon, Chowkidar) @ Rs. 5,000/- per month per staff | C129: 0 | D129: 0 | E129: 0 | F129: 0 | I129: 0 | J129: 0 | M129: 0 | N129: 0 | O129: 0 | P129: 0 | Q129: 0 | R129: 0 | S129: 0 | V129: 0 | W129: 0 | X129: 0 | Y129: 0 | Z129: 0 | AA129: 0 | AB129: 0
A130: =+A129+0.01 -> 3.26 | B130: 1 Head cook @ Rs. 6,000/- per month and upto 2 Asstt. Cooks @ Rs. 4,500/- per month per cook | C130: 0 | D130: 0 | E130: 0 | F130: 0 | I130: 0 | J130: 0 | M130: 0 | N130: 0 | O130: 0 | P130: 0 | Q130: 0 | R130: 0 | S130: 0 | V130: 0 | W130: 0 | X130: 0 | Y130: 0 | Z130: 0 | AA130: 0 | AB130: 0
A131: 3.27 | B131: Specific skill training per child @ Rs.1000/- per annum | C131: 0 | D131: 0 | E131: 0 | F131: 0 | I131: 0 | J131: 0 | M131: 0 | N131: 0 | O131: 0 | P131: 0 | Q131: 0 | R131: 0 | S131: 0 | V131: 0 | W131: 0 | X131: 0 | Y131: 0 | Z131: 0 | AA131: 0 | AB131: 0
A132: 3.28 | B132: Electricity / water charges per child @Rs.1000/- per annum | C132: 0 | D132: 0 | E132: 0 | F132: 0 | I132: 0 | J132: 0 | M132: 0 | N132: 0 | O132: 0 | P132: 0 | Q132: 0 | R132: 0 | S132: 0 | V132: 0 | W132: 0 | X132: 0 | Y132: 0 | Z132: 0 | AA132: 0 | AB132: 0
A133: 3.29 | B133: Medical care/contingencies @ Rs.1250/- per child per annum | C133: 0 | D133: 0 | E133: 0 | F133: 0 | I133: 0 | J133: 0 | M133: 0 | N133: 0 | O133: 0 | P133: 0 | Q133: 0 | R133: 0 | S133: 0 | V133: 0 | W133: 0 | X133: 0 | Y133: 0 | Z133: 0 | AA133: 0 | AB133: 0
A134: 3.3 | B134: Maintenance @ Rs.750/- per child per annum | C134: 0 | D134: 0 | E134: 0 | F134: 0 | I134: 0 | J134: 0 | M134: 0 | N134: 0 | O134: 0 | P134: 0 | Q134: 0 | R134: 0 | S134: 0 | V134: 0 | W134: 0 | X134: 0 | Y134: 0 | Z134: 0 | AA134: 0 | AB134: 0
A135: 3.31 | B135: Miscellaneous @ Rs.750/- per child per annum | C135: 0 | D135: 0 | E135: 0 | F135: 0 | I135: 0 | J135: 0 | M135: 0 | N135: 0 | O135: 0 | P135: 0 | Q135: 0 | R135: 0 | S135: 0 | V135: 0 | W135: 0 | X135: 0 | Y135: 0 | Z135: 0 | AA135: 0 | AB135: 0
A136: 3.32 | B136: Preparatory camps @ Rs.200/- per child per annum | C136: 0 | D136: 0 | E136: 0 | F136: 0 | I136: 0 | J136: 0 | M136: 0 | N136: 0 | O136: 0 | P136: 0 | Q136: 0 | R136: 0 | S136: 0 | V136: 0 | W136: 0 | X136: 0 | Y136: 0 | Z136: 0 | AA136: 0 | AB136: 0
A137: 3.33 | B137: P.T.A / school functions @ Rs.200/- per child per annum | C137: 0 | D137: 0 | E137: 0 | F137: 0 | I137: 0 | J137: 0 | M137: 0 | N137: 0 | O137: 0 | P137: 0 | Q137: 0 | R137: 0 | S137: 0 | V137: 0 | W137: 0 | X137: 0 | Y137: 0 | Z137: 0 | AA137: 0 | AB137: 0
A138: 3.34 | B138: Provision of Rent @ Rs. 6000/- per child per annum | C138: 0 | D138: 0 | E138: 0 | F138: 0 | I138: 0 | J138: 0 | M138: 0 | N138: 0 | O138: 0 | P138: 0 | Q138: 0 | R138: 0 | S138: 0 | V138: 0 | W138: 0 | X138: 0 | Y138: 0 | Z138: 0 | AA138: 0 | AB138: 0
A139: 3.35 | B139: Capacity Building @ Rs.500/- per child per annum | C139: 0 | D139: 0 | E139: 0 | F139: 0 | I139: 0 | J139: 0 | M139: 0 | N139: 0 | O139: 0 | P139: 0 | Q139: 0 | R139: 0 | S139: 0 | V139: 0 | W139: 0 | X139: 0 | Y139: 0 | Z139: 0 | AA139: 0 | AB139: 0
A140: 3.36 | B140: Physical / Self Defence training @ Rs. 200/- per child per annum. | C140: 0 | D140: 0 | E140: 0 | F140: 0 | I140: 0 | J140: 0 | M140: 0 | N140: 0 | O140: 0 | P140: 0 | Q140: 0 | R140: 0 | S140: 0 | V140: 0 | W140: 0 | X140: 0 | Y140: 0 | Z140: 0 | AA140: 0 | AB140: 0
B141: Sub Total (Recurring) | C141: =SUM(C119:C140) -> 0 | D141: =SUM(D119:D140) -> 0 | E141: =SUM(E119:E140) -> 0 | F141: =SUM(F119:F140) -> 0 | G141: =E141/C141*100 ->  | I141: =SUM(I119:I140) -> 0 | J141: 0 | K141: 0 | L141: 0 | M141: 0 | N141: 0 | P141: =SUM(P119:P140) -> 0 | Q141: 0 | R141: 0 | S141: 0 | T141: 0 | U141: 0 | V141: 0 | W141: 0 | Y141: =SUM(Y119:Y140) -> 0 | Z141: =SUM(Z119:Z140) -> 0 | AA141: =SUM(AA119:AA140) -> 0 | AB141: =SUM(AB119:AB140) -> 0
B142: Total (Recurring + Non Recurring) | C142: =SUM(C117+C141) -> 0 | D142: =SUM(D117+D141) -> 0 | E142: =SUM(E117+E141) -> 0 | F142: =SUM(F117+F141) -> 0 | I142: =SUM(I117+I141) -> 0 | J142: 0 | K142: 0 | L142: 0 | M142: 0 | N142: 0 | P142: =SUM(P117+P141) -> 0 | Q142: 0 | R142: 0 | S142: 0 | T142: 0 | U142: 0 | V142: 0 | W142: 0 | Y142: =SUM(Y117+Y141) -> 0 | Z142: =SUM(Z117+Z141) -> 0 | AA142: =SUM(AA117+AA141) -> 0 | AB142: =SUM(AB117+AB141) -> 0
B143: Total (A + B) | C143: =SUM(C78+C110+C142) -> 0 | D143: =SUM(D78+D110+D142) -> 0 | E143: =SUM(E78+E110+E142) -> 0 | F143: =SUM(F78+F110+F142) -> 0 | I143: =SUM(I78+I110+I142) -> 0 | J143: 0 | K143: 0 | L143: 0 | M143: 0 | N143: 0 | P143: =SUM(P78+P110+P142) -> 0 | Q143: 0 | R143: 0 | S143: 0 | T143: 0 | U143: 0 | V143: 0 | W143: 0 | Y143: =SUM(Y78+Y110+Y142) -> 0 | Z143: =SUM(Z78+Z110+Z142) -> 0 | AA143: =SUM(AA78+AA110+AA142) -> 0 | AB143: =SUM(AB78+AB110+AB142) -> 0
A144: 4 | B144: Transport/Escort Facility
A145: 4.01 | B145: Children in remote habitation | C145: 0 | D145: 0 | E145: 0 | F145: 0 | G145: =E145/C145*100 ->  | I145: =C145-E145 -> 0 | J145: =D145-F145 -> 0 | M145: 0 | N145: 0 | O145: 0.03 | P145: =580+40 -> 620 | Q145: =O145*P145 -> 18.6 | R145: =K145+M145+P145 -> 620 | S145: =L145+N145+Q145 -> 18.6 | V145: 0 | W145: 0 | X145: 0.03 | Y145: =580+40 -> 620 | Z145: =X145*Y145 -> 18.6 | AA145: =T145+V145+Y145 -> 620 | AB145: =U145+W145+Z145 -> 18.6
A146: 4.02 | B146: Urban deprived children/children without adult protection | C146: 0 | D146: 0 | E146: 0 | F146: 0 | I146: =C146-E146 -> 0 | J146: =D146-F146 -> 0 | M146: 0 | N146: 0 | O146: 0.025 | P146: 0 | Q146: =O146*P146 -> 0 | R146: =K146+M146+P146 -> 0 | S146: =L146+N146+Q146 -> 0 | V146: 0 | W146: 0 | X146: 0.025 | Y146: 0 | Z146: =X146*Y146 -> 0 | AA146: =T146+V146+Y146 -> 0 | AB146: =U146+W146+Z146 -> 0
B147: Sub Total | C147: =SUM(C145:C146) -> 0 | D147: =SUM(D145:D146) -> 0 | E147: =SUM(E145:E146) -> 0 | F147: =SUM(F145:F146) -> 0 | I147: =SUM(I145:I146) -> 0 | J147: 0 | K147: 0 | L147: 0 | M147: 0 | N147: 0 | P147: =SUM(P145:P146) -> 620 | Q147: 18.6 | R147: 620 | S147: 18.6 | T147: 0 | U147: 0 | V147: 0 | W147: 0 | Y147: =SUM(Y145:Y146) -> 620 | Z147: =SUM(Z145:Z146) -> 18.6 | AA147: =SUM(AA145:AA146) -> 620 | AB147: =SUM(AB145:AB146) -> 18.6
A148: 5 | B148: Reimbursement of Fee against 25% admission under Section 12(1)(c) of RTE Act 2009 (Entry Level) subject to upper limit of 20% of AWP&B subject to guidelines issued by MHRD | C148: 10426 | D148: 188.60582 | E148: =C148 -> 10426 | F148: =D148 -> 188.60582 | G148: 100 | H148: 100 | I148: =C148-E148 -> 0 | J148: =D148-F148 -> 0 | M148: 0 | N148: 0 | P148: 9788 | Q148: 341.07 | R148: =K148+M148+P148 -> 9788 | S148: =L148+N148+Q148 -> 341.07 | V148: 0 | W148: 0 | Z148: 169.54193 | AA148: =T148+V148+Y148 -> 0 | AB148: =U148+W148+Z148 -> 169.54193
B149: Sub Total | C149: =SUM(C148) -> 10426 | D149: =SUM(D148) -> 188.60582 | E149: =SUM(E148) -> 10426 | F149: =SUM(F148) -> 188.60582 | G149: 100 | H149: 100 | I149: =SUM(I148) -> 0 | J149: 0 | K149: 0 | L149: 0 | M149: 0 | N149: 0 | P149: =SUM(P148) -> 9788 | Q149: 341.07 | R149: 9788 | S149: 341.07 | T149: 0 | U149: 0 | V149: 0 | W149: 0 | Y149: =SUM(Y148) -> 0 | Z149: =SUM(Z148) -> 169.54193 | AA149: =SUM(AA148) -> 0 | AB149: =SUM(AB148) -> 169.54193
A150: =+A148+1 -> 6 | B150: Special Training for mainstreaming of out of school children
A151: 6.01 | B151: Residential (Fresh)
B152: (a) 12 months | C152: 0 | D152: 0 | E152: 0 | F152: 0 | G152: =E152/C152*100 ->  | I152: =C152-E152 -> 0 | J152: 0 | M152: 0 | N152: 0 | O152: 0.2 | P152: 0 | Q152: =O152*P152 -> 0 | R152: =K152+M152+P152 -> 0 | S152: 0 | V152: 0 | W152: 0 | X152: 0.2 | Y152: 0 | Z152: =X152*Y152 -> 0 | AA152: =T152+V152+Y152 -> 0 | AB152: 0
B153: (b) 9 months | C153: 0 | D153: 0 | E153: 0 | F153: 0 | I153: 0 | J153: 0 | M153: 0 | N153: 0 | O153: =0.2/12*9 -> 0.15 | P153: 0 | Q153: =O153*P153 -> 0 | R153: 0 | S153: 0 | V153: 0 | W153: 0 | X153: =0.2/12*9 -> 0.15 | Y153: 0 | Z153: =X153*Y153 -> 0 | AA153: 0 | AB153: 0
B154: (c) 6 months | C154: 0 | D154: 0 | E154: 0 | F154: 0 | I154: 0 | J154: 0 | M154: 0 | N154: 0 | O154: 0.105 | P154: 0 | Q154: =O154*P154 -> 0 | R154: 0 | S154: 0 | V154: 0 | W154: 0 | X154: 0.1 | Y154: 0 | Z154: =X154*Y154 -> 0 | AA154: 0 | AB154: 0
B155: (d) 3 months | C155: 0 | D155: 0 | E155: 0 | F155: 0 | I155: 0 | J155: 0 | M155: 0 | N155: 0 | O155: =0.2/12*3 -> 0.05 | P155: 0 | Q155: =O155*P155 -> 0 | R155: 0 | S155: 0 | V155: 0 | W155: 0 | X155: =0.2/12*3 -> 0.05 | Y155: 0 | Z155: =X155*Y155 -> 0 | AA155: 0 | AB155: 0
B156: Sub Total | C156: =SUM(C152:C155) -> 0 | D156: =SUM(D152:D155) -> 0 | E156: =SUM(E152:E155) -> 0 | F156: =SUM(F152:F155) -> 0 | I156: =SUM(I152:I155) -> 0 | J156: 0 | K156: 0 | L156: 0 | M156: 0 | N156: 0 | P156: =SUM(P152:P155) -> 0 | Q156: 0 | R156: 0 | S156: 0 | T156: 0 | U156: 0 | V156: 0 | W156: 0 | Y156: =SUM(Y152:Y155) -> 0 | Z156: =SUM(Z152:Z155) -> 0 | AA156: =SUM(AA152:AA155) -> 0 | AB156: =SUM(AB152:AB155) -> 0
A157: =+A151+0.01 -> 6.02 | B157: Residential (Continuing from previous year)
B158: (a) 12 months | C158: 0 | D158: 0 | E158: 0 | F158: 0 | G158: =E158/C158*100 ->  | I158: =C158-E158 -> 0 | J158: 0 | M158: 0 | N158: 0 | O158: 0.2 | P158: 0 | Q158: =O158*P158 -> 0 | R158: =K158+M158+P158 -> 0 | S158: 0 | V158: 0 | W158: 0 | X158: 0.2 | Y158: 0 | Z158: =X158*Y158 -> 0 | AA158: =T158+V158+Y158 -> 0 | AB158: 0
B159: (b) 9 months | C159: 0 | D159: 0 | E159: 0 | F159: 0 | I159: 0 | J159: 0 | M159: 0 | N159: 0 | O159: =0.2/12*9 -> 0.15 | P159: 0 | Q159: =O159*P159 -> 0 | R159: 0 | S159: 0 | V159: 0 | W159: 0 | X159: =0.2/12*9 -> 0.15 | Y159: 0 | Z159: =X159*Y159 -> 0 | AA159: 0 | AB159: 0
B160: (c) 6 months | C160: 0 | D160: 0 | E160: 0 | F160: 0 | I160: 0 | J160: 0 | M160: 0 | N160: 0 | O160: =0.2/12*6 -> 0.1 | P160: 0 | Q160: =O160*P160 -> 0 | R160: 0 | S160: 0 | V160: 0 | W160: 0 | X160: =0.2/12*6 -> 0.1 | Y160: 0 | Z160: =X160*Y160 -> 0 | AA160: 0 | AB160: 0
B161: (d) 3 months | C161: 0 | D161: 0 | E161: 0 | F161: 0 | I161: 0 | J161: 0 | M161: 0 | N161: 0 | O161: 0.05 | P161: 0 | Q161: =O161*P161 -> 0 | R161: 0 | S161: 0 | V161: 0 | W161: 0 | X161: 0.05 | Y161: 0 | Z161: =X161*Y161 -> 0 | AA161: 0 | AB161: 0
B162: Sub Total | C162: =SUM(C158:C161) -> 0 | D162: =SUM(D158:D161) -> 0 | E162: =SUM(E158:E161) -> 0 | F162: =SUM(F158:F161) -> 0 | I162: =SUM(I158:I161) -> 0 | J162: 0 | K162: 0 | L162: 0 | M162: 0 | N162: 0 | P162: =SUM(P158:P161) -> 0 | Q162: 0 | R162: 0 | S162: 0 | T162: 0 | U162: 0 | V162: 0 | W162: 0 | Y162: =SUM(Y158:Y161) -> 0 | Z162: =SUM(Z158:Z161) -> 0 | AA162: =SUM(AA158:AA161) -> 0 | AB162: =SUM(AB158:AB161) -> 0
A163: 6.03 | B163: Non-Residential (Fresh)
B164: (a) 12 months | C164: 0 | D164: 0 | E164: 0 | F164: 0 | G164: =E164/C164*100 ->  | I164: =C164-E164 -> 0 | J164: 0 | M164: 0 | N164: 0 | O164: 0.06 | P164: 0 | Q164: =O164*P164 -> 0 | R164: =K164+M164+P164 -> 0 | S164: 0 | V164: 0 | W164: 0 | X164: 0.06 | Y164: 0 | Z164: =X164*Y164 -> 0 | AA164: =T164+V164+Y164 -> 0 | AB164: 0
B165: (b) 9 months | C165: 0 | D165: 0 | E165: 0 | F165: 0 | I165: 0 | J165: 0 | M165: 0 | N165: 0 | O165: 0.036 | P165: 0 | Q165: =O165*P165 -> 0 | R165: 0 | S165: 0 | V165: 0 | W165: 0 | X165: 0.036 | Y165: 0 | Z165: =X165*Y165 -> 0 | AA165: 0 | AB165: 0
B166: (c) 6 months | C166: 120 | D166: 2.88 | E166: 70 | F166: 0.907776 | G166: 58.33333333 | H166: 31.52 | I166: 50 | J166: 1.972224 | M166: 0 | N166: 0 | O166: 0.031 | P166: 100 | Q166: =O166*P166 -> 3.1 | R166: 100 | S166: 3.1 | V166: 0 | W166: 0 | X166: 0.03 | Y166: 100 | Z166: =X166*Y166 -> 3 | AA166: 100 | AB166: 3
B167: (d) 3 months | C167: 210 | D167: 2.52 | E167: 0 | F167: 0.958608 | G167: 0 | H167: 38.04 | I167: 210 | J167: 1.561392 | M167: 0 | N167: 0 | O167: 0.0155 | P167: 150 | Q167: =O167*P167 -> 2.325 | R167: 150 | S167: 2.325 | V167: 0 | W167: 0 | X167: 0.015 | Y167: 150 | Z167: =X167*Y167 -> 2.25 | AA167: 150 | AB167: 2.25
B168: Sub Total | C168: =SUM(C164:C167) -> 330 | D168: =SUM(D164:D167) -> 5.4 | E168: =SUM(E164:E167) -> 70 | F168: =SUM(F164:F167) -> 1.866384 | G168: 21.21212121 | H168: 34.56266667 | I168: =SUM(I164:I167) -> 260 | J168: 3.533616 | K168: 0 | L168: 0 | M168: 0 | N168: 0 | P168: =SUM(P164:P167) -> 250 | Q168: 5.425 | R168: 250 | S168: 5.425 | T168: 0 | U168: 0 | V168: 0 | W168: 0 | Y168: =SUM(Y164:Y167) -> 250 | Z168: =SUM(Z164:Z167) -> 5.25 | AA168: =SUM(AA164:AA167) -> 250 | AB168: =SUM(AB164:AB167) -> 5.25
A169: 6.04 | B169: Non-Residential (Continuing from previous year)
B170: (a) 12 months | C170: 0 | D170: 0 | E170: 0 | F170: 0 | G170: =E170/C170*100 ->  | I170: =C170-E170 -> 0 | J170: 0 | M170: 0 | N170: 0 | O170: =0.06 -> 0.06 | P170: 0 | Q170: =O170*P170 -> 0 | R170: =K170+M170+P170 -> 0 | S170: 0 | V170: 0 | W170: 0 | X170: =0.06 -> 0.06 | Y170: 0 | Z170: =X170*Y170 -> 0 | AA170: =T170+V170+Y170 -> 0 | AB170: 0
B171: (b) 9 months | C171: 0 | D171: 0 | E171: 0 | F171: 0 | I171: 0 | J171: 0 | M171: 0 | N171: 0 | O171: =0.06/12*9 -> 0.045 | P171: 0 | Q171: =O171*P171 -> 0 | R171: 0 | S171: 0 | V171: 0 | W171: 0 | X171: =0.06/12*9 -> 0.045 | Y171: 0 | Z171: =X171*Y171 -> 0 | AA171: 0 | AB171: 0
B172: (c) 6 months | C172: 0 | D172: 0 | E172: 0 | F172: 0 | I172: 0 | J172: 0 | M172: 0 | N172: 0 | O172: =0.06/12*6 -> 0.03 | P172: 0 | Q172: =O172*P172 -> 0 | R172: 0 | S172: 0 | V172: 0 | W172: 0 | X172: =0.06/12*6 -> 0.03 | Y172: 0 | Z172: =X172*Y172 -> 0 | AA172: 0 | AB172: 0
B173: (d) 3 months | C173: 0 | D173: 0 | E173: 0 | F173: 0 | I173: 0 | J173: 0 | M173: 0 | N173: 0 | O173: =0.06/12*3 -> 0.015 | P173: 0 | Q173: =O173*P173 -> 0 | R173: 0 | S173: 0 | V173: 0 | W173: 0 | X173: =0.06/12*3 -> 0.015 | Y173: 0 | Z173: =X173*Y173 -> 0 | AA173: 0 | AB173: 0
B174: Sub Total | C174: =SUM(C170:C173) -> 0 | D174: =SUM(D170:D173) -> 0 | E174: =SUM(E170:E173) -> 0 | F174: =SUM(F170:F173) -> 0 | I174: =SUM(I170:I173) -> 0 | J174: 0 | K174: 0 | L174: 0 | M174: 0 | N174: 0 | P174: =SUM(P170:P173) -> 0 | Q174: 0 | R174: 0 | S174: 0 | T174: 0 | U174: 0 | V174: 0 | W174: 0 | Y174: =SUM(Y170:Y173) -> 0 | Z174: =SUM(Z170:Z173) -> 0 | AA174: =SUM(AA170:AA173) -> 0 | AB174: =SUM(AB170:AB173) -> 0
A175: 6.05 | B175: Madarasa/Maktab
B176: (a) 12 months | C176: 0 | D176: 0 | E176: 0 | F176: 0 | G176: =E176/C176*100 ->  | I176: =C176-E176 -> 0 | J176: 0 | M176: 0 | N176: 0 | O176: =0.06 -> 0.06 | P176: 0 | Q176: =O176*P176 -> 0 | R176: =K176+M176+P176 -> 0 | S176: 0 | V176: 0 | W176: 0 | X176: =0.06 -> 0.06 | Y176: 0 | Z176: =X176*Y176 -> 0 | AA176: =T176+V176+Y176 -> 0 | AB176: 0
B177: (b) 9 months | C177: 0 | D177: 0 | E177: 0 | F177: 0 | I177: 0 | J177: 0 | M177: 0 | N177: 0 | O177: =0.06/12*9 -> 0.045 | P177: 0 | Q177: =O177*P177 -> 0 | R177: 0 | S177: 0 | V177: 0 | W177: 0 | X177: =0.06/12*9 -> 0.045 | Y177: 0 | Z177: =X177*Y177 -> 0 | AA177: 0 | AB177: 0
B178: (c) 6 months | C178: 0 | D178: 0 | E178: 0 | F178: 0 | I178: 0 | J178: 0 | M178: 0 | N178: 0 | O178: 0.0892 | P178: 0 | Q178: =O178*P178 -> 0 | R178: 0 | S178: 0 | V178: 0 | W178: 0 | X178: 0.0892 | Y178: 0 | Z178: =X178*Y178 -> 0 | AA178: 0 | AB178: 0
B179: (d) 3 months | C179: 0 | D179: 0 | E179: 0 | F179: 0 | I179: 0 | J179: 0 | M179: 0 | N179: 0 | O179: =0.06/12*3 -> 0.015 | P179: 0 | Q179: =O179*P179 -> 0 | R179: 0 | S179: 0 | V179: 0 | W179: 0 | X179: =0.06/12*3 -> 0.015 | Y179: 0 | Z179: =X179*Y179 -> 0 | AA179: 0 | AB179: 0
B180: Sub Total | C180: =SUM(C176:C179) -> 0 | D180: =SUM(D176:D179) -> 0 | E180: =SUM(E176:E179) -> 0 | F180: =SUM(F176:F179) -> 0 | I180: =SUM(I176:I179) -> 0 | J180: 0 | K180: 0 | L180: 0 | M180: 0 | N180: 0 | P180: =SUM(P176:P179) -> 0 | Q180: 0 | R180: 0 | S180: 0 | T180: 0 | U180: 0 | V180: 0 | W180: 0 | Y180: =SUM(Y176:Y179) -> 0 | Z180: =SUM(Z176:Z179) -> 0 | AA180: =SUM(AA176:AA179) -> 0 | AB180: =SUM(AB176:AB179) -> 0
A181: 6.06 | B181: Seasonal Hostel (Residential)
B182: (a) 12 months | C182: 0 | D182: 0 | E182: 0 | F182: 0 | G182: =E182/C182*100 ->  | I182: =C182-E182 -> 0 | J182: 0 | M182: 0 | N182: 0 | O182: 0.2 | P182: 0 | Q182: =O182*P182 -> 0 | R182: =K182+M182+P182 -> 0 | S182: 0 | V182: 0 | W182: 0 | X182: 0.2 | Y182: 0 | Z182: =X182*Y182 -> 0 | AA182: =T182+V182+Y182 -> 0 | AB182: 0
B183: (b) 9 months | C183: 0 | D183: 0 | E183: 0 | F183: 0 | I183: 0 | J183: 0 | M183: 0 | N183: 0 | O183: =0.2/12*9 -> 0.15 | P183: 0 | Q183: =O183*P183 -> 0 | R183: 0 | S183: 0 | V183: 0 | W183: 0 | X183: =0.2/12*9 -> 0.15 | Y183: 0 | Z183: =X183*Y183 -> 0 | AA183: 0 | AB183: 0
B184: (c) 6 months | C184: 50 | D184: 3.75 | E184: 0 | F184: 0 | G184: 0 | H184: 0 | I184: 50 | J184: 3.75 | M184: 0 | N184: 0 | O184: 0.0892 | P184: 50 | Q184: =O184*P184 -> 4.46 | R184: 50 | S184: 4.46 | V184: 0 | W184: 0 | X184: 0.1 | Y184: 50 | Z184: =X184*Y184 -> 5 | AA184: 50 | AB184: 5
B185: (d) 3 months | C185: 0 | D185: 0 | E185: 0 | F185: 0 | I185: 0 | J185: 0 | M185: 0 | N185: 0 | O185: =0.2/12*3 -> 0.05 | P185: 0 | Q185: =O185*P185 -> 0 | R185: 0 | S185: 0 | V185: 0 | W185: 0 | X185: =0.2/12*3 -> 0.05 | Y185: 0 | Z185: =X185*Y185 -> 0 | AA185: 0 | AB185: 0
B186: Sub Total | C186: =SUM(C182:C185) -> 50 | D186: =SUM(D182:D185) -> 3.75 | E186: =SUM(E182:E185) -> 0 | F186: =SUM(F182:F185) -> 0 | G186: 0 | H186: 0 | I186: =SUM(I182:I185) -> 50 | J186: 3.75 | K186: 0 | L186: 0 | M186: 0 | N186: 0 | P186: =SUM(P182:P185) -> 50 | Q186: 4.46 | R186: 50 | S186: 4.46 | T186: 0 | U186: 0 | V186: 0 | W186: 0 | Y186: =SUM(Y182:Y185) -> 50 | Z186: =SUM(Z182:Z185) -> 5 | AA186: =SUM(AA182:AA185) -> 50 | AB186: =SUM(AB182:AB185) -> 5
A187: 6.07 | B187: Seasonal Hostel (Non Residential)
B188: (a) 12 months | C188: 0 | D188: 0 | E188: 0 | F188: 0 | G188: =E188/C188*100 ->  | I188: =C188-E188 -> 0 | J188: 0 | M188: 0 | N188: 0 | O188: =0.06 -> 0.06 | P188: 0 | Q188: =O188*P188 -> 0 | R188: =K188+M188+P188 -> 0 | S188: 0 | V188: 0 | W188: 0 | X188: =0.06 -> 0.06 | Y188: 0 | Z188: =X188*Y188 -> 0 | AA188: =T188+V188+Y188 -> 0 | AB188: 0
B189: (b) 9 months | C189: 0 | D189: 0 | E189: 0 | F189: 0 | I189: 0 | J189: 0 | M189: 0 | N189: 0 | O189: =0.06/12*9 -> 0.045 | P189: 0 | Q189: =O189*P189 -> 0 | R189: 0 | S189: 0 | V189: 0 | W189: 0 | X189: =0.06/12*9 -> 0.045 | Y189: 0 | Z189: =X189*Y189 -> 0 | AA189: 0 | AB189: 0
B190: (c) 6 months | C190: 0 | D190: 0 | E190: 0 | F190: 0 | I190: 0 | J190: 0 | M190: 0 | N190: 0 | O190: =0.06/12*6 -> 0.03 | P190: 0 | Q190: =O190*P190 -> 0 | R190: 0 | S190: 0 | V190: 0 | W190: 0 | X190: =0.06/12*6 -> 0.03 | Y190: 0 | Z190: =X190*Y190 -> 0 | AA190: 0 | AB190: 0
B191: (d) 3 months | C191: 0 | D191: 0 | E191: 0 | F191: 0 | I191: 0 | J191: 0 | M191: 0 | N191: 0 | O191: =0.06/12*3 -> 0.015 | P191: 0 | Q191: =O191*P191 -> 0 | R191: 0 | S191: 0 | V191: 0 | W191: 0 | X191: =0.06/12*3 -> 0.015 | Y191: 0 | Z191: =X191*Y191 -> 0 | AA191: 0 | AB191: 0
B192: Sub Total | C192: 0 | D192: 0 | E192: =SUM(E188:E191) -> 0 | F192: =SUM(F188:F191) -> 0 | I192: =SUM(I188:I191) -> 0 | J192: 0 | K192: 0 | L192: 0 | M192: 0 | N192: 0 | P192: =SUM(P188:P191) -> 0 | Q192: 0 | R192: 0 | S192: 0 | T192: 0 | U192: 0 | V192: 0 | W192: 0 | Y192: =SUM(Y188:Y191) -> 0 | Z192: =SUM(Z188:Z191) -> 0 | AA192: =SUM(AA188:AA191) -> 0 | AB192: =SUM(AB188:AB191) -> 0
B193: Total | C193: =C156+C162+C168+C174+C180+C186+C192 -> 380 | D193: =D156+D162+D168+D174+D180+D186+D192 -> 9.15 | E193: =E156+E162+E168+E174+E180+E186+E192 -> 70 | F193: =F156+F162+F168+F174+F180+F186+F192 -> 1.866384 | G193: 18.42105263 | H193: 20.39763934 | I193: =I156+I162+I168+I174+I180+I186+I192 -> 310 | J193: 7.283616 | K193: 0 | L193: 0 | M193: 0 | N193: 0 | P193: =P156+P162+P168+P174+P180+P186+P192 -> 300 | Q193: 9.885 | R193: 300 | S193: 9.885 | T193: 0 | U193: 0 | V193: 0 | W193: 0 | Y193: =Y156+Y162+Y168+Y174+Y180+Y186+Y192 -> 300 | Z193: =Z156+Z162+Z168+Z174+Z180+Z186+Z192 -> 10.25 | AA193: =AA156+AA162+AA168+AA174+AA180+AA186+AA192 -> 300 | AB193: =AB156+AB162+AB168+AB174+AB180+AB186+AB192 -> 10.25
A194: II | B194: RETENTION
A195: 7 | B195: Free Text Books
A196: 7.01 | B196: Free Text Books (UP) TOPUP | Q196: =O196*P196 -> 0 | R196: =K196+M196+P196 -> 0 | S196: =L196+N196+Q196 -> 0 | Z196: =X196*Y196 -> 0 | AA196: =T196+V196+Y196 -> 0 | AB196: =U196+W196+Z196 -> 0
B197: (a) Class I & II | Q197: 0 | R197: 0 | S197: 0 | Z197: 0 | AA197: 0 | AB197: 0
B198: (b) Braille Books Class I & II | O198: 0.0015 | P198: 3 | Q198: 0.0045 | R198: 3 | S198: 0.0045 | X198: 0.0015 | Y198: 3 | Z198: 0.0045 | AA198: 3 | AB198: 0.0045 | AD198: =Y198*X198 -> 0.0045
B199: (c) Large Print Books Class I & II | O199: 0.0015 | P199: 14 | Q199: 0.021 | R199: 14 | S199: 0.021 | X199: 0.0015 | Y199: 14 | Z199: 0.021 | AA199: 14 | AB199: 0.021 | AD199: 0.021
B200: (d) Class III to V | Q200: 0 | R200: 0 | S200: 0 | Z200: 0 | AA200: 0 | AB200: 0 | AD200: 0
... 295 more rows

Sheet BARMER
A1: S.No. | B1: Activity | C1: Year 2016-17 | K1: n | T1: Outlay Recommended for 2017-18 | AC1: Remarks
C2: Outlay approved by PAB (including spillover) | E2: Anticipated Achievement upto March 2017 | I2: Savings | K2: Spill Over | M2: Deferred laibility of 2014-15 | O2: Fresh | R2: Total | T2: Spill Over | V2: Deferred laibility of 2014-15 | X2: Fresh | AA2: Total
C3: Phy. | D3: Fin | E3: Phy. | F3: Fin. | G3: Phy. (%) | H3: Fin. (%) | I3: Phy. | J3: Fin. | K3: Phy. | L3: Fin. | M3: Phy. | N3: Fin. | O3: Unit Cost | P3: Phy. | Q3: Fin. | R3: Phy. | S3: Fin. | T3: Phy. | U3: Fin. | V3: Phy. | W3: Fin. | X3: Unit Cost | Y3: Phy. | Z3: Fin. | AA3: Phy. | AB3: Fin.
A4: I | B4: ACCESS
B5: SSA
A6: 1 | B6: Opening of New Schools
A7: 1.01 | B7: New Primary School | C7: 0 | D7: 0 | E7: 0 | F7: 0 | G7: =E7/C7*100 ->  | H7: =F7/D7*100 ->  | I7: =C7-E7 -> 0 | J7: =D7-F7 -> 0 | K7: 0 | L7: 0 | M7: 0 | N7: 0 | P7: 0 | Q7: =O7*P7 -> 0 | R7: =K7+M7+P7 -> 0 | S7: =L7+N7+Q7 -> 0 | T7: 0 | U7: 0 | V7: 0 | W7: 0 | Y7: 0 | Z7: =X7*Y7 -> 0 | AA7: =T7+V7+Y7 -> 0 | AB7: =U7+W7+Z7 -> 0
A8: 1.02 | B8: Upgradation of PS to UPS | C8: 0 | D8: 0 | E8: 0 | F8: 0 | G8: =E8/C8*100 ->  | H8: =F8/D8*100 ->  | I8: =C8-E8 -> 0 | J8: =D8-F8 -> 0 | K8: 0 | L8: 0 | M8: 0 | N8: 0 | P8: 1 | Q8: =O8*P8 -> 0 | R8: =K8+M8+P8 -> 1 | S8: 0 | T8: 0 | U8: 0 | V8: 0 | W8: 0 | Y8: 1 | Z8: =X8*Y8 -> 0 | AA8: =T8+V8+Y8 -> 1 | AB8: 0
A9: 1.03 | B9: Composite Schools | C9: 0 | D9: 0 | E9: 0 | F9: 0 | I9: 0 | J9: 0 | K9: 0 | L9: 0 | M9: 0 | N9: 0 | P9: 0 | Q9: 0 | R9: 0 | S9: 0 | T9: 0 | U9: 0 | V9: 0 | W9: 0 | Y9: 0 | Z9: 0 | AA9: 0 | AB9: 0
A10: 1.04 | B10: Residential schools for specific category of children | C10: 0 | D10: 0 | E10: 0 | F10: 0 | I10: 0 | J10: 0 | K10: 0 | L10: 0 | M10: 0 | N10: 0 | P10: 0 | Q10: 0 | R10: 0 | S10: 0 | T10: 0 | U10: 0 | V10: 0 | W10: 0 | Y10: 0 | Z10: 0 | AA10: 0 | AB10: 0
A11: 1.05 | B11: Residential Hostel | C11: 0 | D11: 0 | E11: 0 | F11: 0 | I11: 0 | J11: 0 | K11: 0 | L11: 0 | M11: 0 | N11: 0 | P11: 0 | Q11: 0 | R11: 0 | S11: 0 | T11: 0 | U11: 0 | V11: 0 | W11: 0 | Y11: 0 | Z11: 0 | AA11: 0 | AB11: 0
A12: 1.06 | B12: Integration of Class V with primary schools | C12: 0 | D12: 0 | E12: 0 | F12: 0 | I12: 0 | J12: 0 | K12: 0 | L12: 0 | M12: 0 | N12: 0 | P12: 0 | Q12: 0 | R12: 0 | S12: 0 | T12: 0 | U12: 0 | V12: 0 | W12: 0 | Y12: 0 | Z12: 0 | AA12: 0 | AB12: 0
A13: 1.07 | B13: Integration of Class VIII with upper primary schools | C13: 0 | D13: 0 | E13: 0 | F13: 0 | I13: 0 | J13: 0 | K13: 0 | L13: 0 | M13: 0 | N13: 0 | P13: 0 | Q13: 0 | R13: 0 | S13: 0 | T13: 0 | U13: 0 | V13: 0 | W13: 0 | Y13: 0 | Z13: 0 | AA13: 0 | AB13: 0
A14: 2 | B14: Residential Schools for specific category of children
B15: 50 children
B16: Non-recurring (one time grant)
A17: 2.01 | B17: Furniture/ Equipment (including kitchen) | C17: 0 | D17: 0 | E17: 0 | F17: 0 | G17: =E17/C17*100 ->  | I17: =C17-E17 -> 0 | J17: 0 | M17: 0 | N17: 0 | O17: 2 | P17: 0 | Q17: =O17*P17 -> 0 | R17: =K17+M17+P17 -> 0 | S17: 0 | V17: 0 | W17: 0 | X17: 2 | Y17: 0 | Z17: =X17*Y17 -> 0 | AA17: =T17+V17+Y17 -> 0 | AB17: 0
A18: 2.02 | B18: TLM and equipment including library books | C18: 0 | D18: 0 | E18: 0 | F18: 0 | I18: 0 | J18: 0 | M18: 0 | N18: 0 | O18: 3 | P18: 0 | Q18: =O18*P18 -> 0 | R18: 0 | S18: 0 | V18: 0 | W18: 0 | X18: 3 | Y18: 0 | Z18: =X18*Y18 -> 0 | AA18: 0 | AB18: 0
A19: 2.03 | B19: Bedding (new) | C19: 0 | D19: 0 | E19: 0 | F19: 0 | I19: 0 | J19: 0 | M19: 0 | N19: 0 | O19: 0.375 | P19: 0 | Q19: =O19*P19 -> 0 | R19: 0 | S19: 0 | V19: 0 | W19: 0 | X19: 0.375 | Y19: 0 | Z19: =X19*Y19 -> 0 | AA19: 0 | AB19: 0
A20: 2.04 | B20: Replacement of bedding (once in 3 years) | C20: 0 | D20: 0 | E20: 0 | F20: 0 | I20: 0 | J20: 0 | M20: 0 | N20: 0 | O20: 0.0075 | P20: 0 | Q20: =O20*P20 -> 0 | R20: 0 | S20: 0 | V20: 0 | W20: 0 | X20: 0.0075 | Y20: 0 | Z20: =X20*Y20 -> 0 | AA20: 0 | AB20: 0
B21: Sub Total (Non Recurring) | C21: =SUM(C17:C20) -> 0 | D21: =SUM(D17:D20) -> 0 | E21: =SUM(E17:E20) -> 0 | F21: =SUM(F17:F20) -> 0 | I21: =SUM(I17:I20) -> 0 | J21: 0 | K21: 0 | L21: 0 | M21: 0 | N21: 0 | P21: =SUM(P17:P20) -> 0 | Q21: 0 | R21: 0 | S21: 0 | T21: 0 | U21: 0 | V21: 0 | W21: 0 | Y21: =SUM(Y17:Y20) -> 0 | Z21: =SUM(Z17:Z20) -> 0 | AA21: =SUM(AA17:AA20) -> 0 | AB21: =SUM(AB17:AB20) -> 0
B22: Recurring (50 children)
A23: 2.05 | B23: Maintenance per child Per month @ Rs.1500/- | C23: 0 | D23: 0 | E23: 0 | F23: 0 | G23: =E23/C23*100 ->  | I23: =C23-E23 -> 0 | J23: 0 | M23: 0 | N23: 0 | O23: 0.18 | P23: 0 | Q23: =O23*P23 -> 0 | R23: =K23+M23+P23 -> 0 | S23: 0 | V23: 0 | W23: 0 | X23: 0.18 | Y23: 0 | Z23: =X23*Y23 -> 0 | AA23: =T23+V23+Y23 -> 0 | AB23: 0
A24: 2.06 | B24: Stipend per child per month @ Rs.100/- | C24: 0 | D24: 0 | E24: 0 | F24: 0 | I24: 0 | J24: 0 | M24: 0 | N24: 0 | O24: 0.012 | P24: 0 | Q24: =O24*P24 -> 0 | R24: 0 | S24: 0 | V24: 0 | W24: 0 | X24: 0.012 | Y24: 0 | Z24: =X24*Y24 -> 0 | AA24: 0 | AB24: 0
A25: 2.07 | B25: Supplementary TLM, Stationery and other educational material @Rs.1000/- per child per annum | C25: 0 | D25: 0 | E25: 0 | F25: 0 | I25: 0 | J25: 0 | M25: 0 | N25: 0 | O25: 0.01 | P25: 0 | Q25: =O25*P25 -> 0 | R25: 0 | S25: 0 | V25: 0 | W25: 0 | X25: 0.01 | Y25: 0 | Z25: =X25*Y25 -> 0 | AA25: 0 | AB25: 0
A26: 2.08 | B26: Salaries | C26: 0 | D26: 0 | E26: 0 | F26: 0
A27: (a) | B27: 1 Warden @ Rs.25000/- per month | C27: 0 | D27: 0 | E27: 0 | F27: 0 | G27: =E27/C27*100 ->  | H27: =F27/D27*100 ->  | I27: =C27-E27 -> 0 | J27: =D27-F27 -> 0 | M27: 0 | N27: 0 | O27: 3 | P27: 0 | Q27: =O27*P27 -> 0 | R27: =K27+M27+P27 -> 0 | S27: =L27+N27+Q27 -> 0 | V27: 0 | W27: 0 | X27: 3 | Y27: 0 | Z27: =X27*Y27 -> 0 | AA27: =T27+V27+Y27 -> 0 | AB27: =U27+W27+Z27 -> 0
A28: (b) | B28: 4 Fulltime teachers as per RTE Norms @ Rs. 20,000/- per month per teacher | C28: 0 | D28: 0 | E28: 0 | F28: 0 | I28: 0 | J28: 0 | M28: 0 | N28: 0 | O28: 0 | P28: 0 | Q28: 0 | R28: 0 | S28: 0 | V28: 0 | W28: 0 | X28: 0 | Y28: 0 | Z28: 0 | AA28: 0 | AB28: 0
A29: (c) | B29: 2 Urdu Teachers (only for Blocks with muslim population above 20% and select urban areas) @ Rs.12,000/- per month per teacher. | C29: 0 | D29: 0 | E29: 0 | F29: 0 | I29: 0 | J29: 0 | M29: 0 | N29: 0 | O29: 0 | P29: 0 | Q29: 0 | R29: 0 | S29: 0 | V29: 0 | W29: 0 | X29: 0 | Y29: 0 | Z29: 0 | AA29: 0 | AB29: 0
A30: (d) | B30: 3 Part time teachers @ Rs.5,000/- per month per teacher | C30: 0 | D30: 0 | E30: 0 | F30: 0 | I30: 0 | J30: 0 | M30: 0 | N30: 0 | O30: 0 | P30: 0 | Q30: 0 | R30: 0 | S30: 0 | V30: 0 | W30: 0 | X30: 0 | Y30: 0 | Z30: 0 | AA30: 0 | AB30: 0
A31: (e) | B31: 1 Full time Accountant @ Rs. 10,000/- per month | C31: 0 | D31: 0 | E31: 0 | F31: 0 | I31: 0 | J31: 0 | M31: 0 | N31: 0 | O31: 1.2 | P31: 0 | Q31: 0 | R31: 0 | S31: 0 | V31: 0 | W31: 0 | X31: 1.2 | Y31: 0 | Z31: 0 | AA31: 0 | AB31: 0
A32: (f) | B32: 2 Support staff - (Accountant/Assistant, Peon, Chowkidar) @ Rs. 5,000/- per month per staff | C32: 0 | D32: 0 | E32: 0 | F32: 0 | I32: 0 | J32: 0 | M32: 0 | N32: 0 | O32: 0.6 | P32: 0 | Q32: 0 | R32: 0 | S32: 0 | V32: 0 | W32: 0 | X32: 0.6 | Y32: 0 | Z32: 0 | AA32: 0 | AB32: 0
A33: (g) | B33: 1 Head Cook @ Rs. 6,000/- per month and upto 2 Asstt. Cooks @ Rs. 4,500/- per month per cook | C33: 0 | D33: 0 | E33: 0 | F33: 0 | I33: 0 | J33: 0 | M33: 0 | N33: 0 | O33: 1.8 | P33: 0 | Q33: 0 | R33: 0 | S33: 0 | V33: 0 | W33: 0 | X33: 1.8 | Y33: 0 | Z33: 0 | AA33: 0 | AB33: 0
A34: 2.09 | B34: Specific Skill training @ Rs.1000/- per annum per child | C34: 0 | D34: 0 | E34: 0 | F34: 0 | I34: 0 | J34: 0 | M34: 0 | N34: 0 | O34: 0 | P34: 0 | Q34: 0 | R34: 0 | S34: 0 | V34: 0 | W34: 0 | X34: 0 | Y34: 0 | Z34: 0 | AA34: 0 | AB34: 0
A35: 2.1 | B35: Electricity / water charges @ Rs. 1000/- per annum per child | C35: 0 | D35: 0 | E35: 0 | F35: 0 | I35: 0 | J35: 0 | M35: 0 | N35: 0 | O35: 0.01 | P35: 0 | Q35: 0 | R35: 0 | S35: 0 | V35: 0 | W35: 0 | X35: 0.01 | Y35: 0 | Z35: 0 | AA35: 0 | AB35: 0
A36: =+A35+0.01 -> 2.11 | B36: Medical care/contingencies @ Rs.1250/- per annum per child | C36: 0 | D36: 0 | E36: 0 | F36: 0 | I36: 0 | J36: 0 | M36: 0 | N36: 0 | O36: 0.0125 | P36: 0 | Q36: 0 | R36: 0 | S36: 0 | V36: 0 | W36: 0 | X36: 0.0125 | Y36: 0 | Z36: 0 | AA36: 0 | AB36: 0
A37: =+A36+0.01 -> 2.12 | B37: Maintenance @ Rs. 750/- per child per annum | C37: 0 | D37: 0 | E37: 0 | F37: 0 | I37: 0 | J37: 0 | M37: 0 | N37: 0 | O37: 0.0075 | P37: 0 | Q37: 0 | R37: 0 | S37: 0 | V37: 0 | W37: 0 | X37: 0.0075 | Y37: 0 | Z37: 0 | AA37: 0 | AB37: 0
A38: 2.13 | B38: Miscellaneous @ Rs. 750/- per child per annum | C38: 0 | D38: 0 | E38: 0 | F38: 0 | I38: 0 | J38: 0 | M38: 0 | N38: 0 | O38: 0.0075 | P38: 0 | Q38: 0 | R38: 0 | S38: 0 | V38: 0 | W38: 0 | X38: 0.0075 | Y38: 0 | Z38: 0 | AA38: 0 | AB38: 0
A39: 2.14 | B39: Preparatory camps @ Rs. 300/- per child per annum | C39: 0 | D39: 0 | E39: 0 | F39: 0 | I39: 0 | J39: 0 | M39: 0 | N39: 0 | O39: 0 | P39: 0 | Q39: 0 | R39: 0 | S39: 0 | V39: 0 | W39: 0 | X39: 0 | Y39: 0 | Z39: 0 | AA39: 0 | AB39: 0
A40: 2.15 | B40: P.T.A / school functions @ Rs. 300/- per child per annum | C40: 0 | D40: 0 | E40: 0 | F40: 0 | I40: 0 | J40: 0 | M40: 0 | N40: 0 | O40: 0.003 | P40: 0 | Q40: 0 | R40: 0 | S40: 0 | V40: 0 | W40: 0 | X40: 0.003 | Y40: 0 | Z40: 0 | AA40: 0 | AB40: 0
A41: 2.16 | B41: Provision of Rent @ Rs. 10,000/- per child per annum | C41: 0 | D41: 0 | E41: 0 | F41: 0 | I41: 0 | J41: 0 | M41: 0 | N41: 0 | O41: 0 | P41: 0 | Q41: 0 | R41: 0 | S41: 0 | V41: 0 | W41: 0 | X41: 0 | Y41: 0 | Z41: 0 | AA41: 0 | AB41: 0
A42: 2.17 | B42: Capacity Building @ Rs. 500/- per child per annum | C42: 0 | D42: 0 | E42: 0 | F42: 0 | I42: 0 | J42: 0 | M42: 0 | N42: 0 | O42: 0.005 | P42: 0 | Q42: 0 | R42: 0 | S42: 0 | V42: 0 | W42: 0 | X42: 0.005 | Y42: 0 | Z42: 0 | AA42: 0 | AB42: 0
A43: 2.18 | B43: Physical / Self Defence Training @ Rs.200/- per child per annum | C43: 0 | D43: 0 | E43: 0 | F43: 0 | I43: 0 | J43: 0 | M43: 0 | N43: 0 | O43: 0 | P43: 0 | Q43: 0 | R43: 0 | S43: 0 | V43: 0 | W43: 0 | X43: 0 | Y43: 0 | Z43: 0 | AA43: 0 | AB43: 0
B44: Sub Total (Recurring) | C44: =C23 -> 0 | D44: =SUM(D23:D43) -> 0 | E44: =E23 -> 0 | F44: =SUM(F23:F43) -> 0 | G44: =E44/C44*100 ->  | H44: =F44/D44*100 ->  | I44: =I23 -> 0 | J44: =SUM(J23:J43) -> 0 | K44: =SUM(K23:K43) -> 0 | L44: =SUM(L23:L43) -> 0 | M44: =SUM(M23:M43) -> 0 | N44: =SUM(N23:N43) -> 0 | P44: =P23 -> 0 | Q44: =SUM(Q23:Q43) -> 0 | R44: =R23 -> 0 | S44: =SUM(S23:S43) -> 0 | T44: =SUM(T23:T43) -> 0 | U44: =SUM(U23:U43) -> 0 | V44: =SUM(V23:V43) -> 0 | W44: =SUM(W23:W43) -> 0 | Y44: =Y23 -> 0 | Z44: =SUM(Z23:Z43) -> 0 | AA44: =AA23 -> 0 | AB44: =SUM(AB23:AB43) -> 0
B45: Total (Non Recurring + Recurring) | C45: =C44 -> 0 | D45: =SUM(D21+D44) -> 0 | E45: =E44 -> 0 | F45: =SUM(F21+F44) -> 0 | G45: =E45/C45*100 ->  | H45: =F45/D45*100 ->  | I45: =I44 -> 0 | J45: =SUM(J21+J44) -> 0 | K45: =SUM(K21+K44) -> 0 | L45: =SUM(L21+L44) -> 0 | M45: =SUM(M21+M44) -> 0 | N45: =SUM(N21+N44) -> 0 | P45: =P44 -> 0 | Q45: =SUM(Q21+Q44) -> 0 | R45: =R44 -> 0 | S45: =SUM(S21+S44) -> 0 | T45: =SUM(T21+T44) -> 0 | U45: =SUM(U21+U44) -> 0 | V45: =SUM(V21+V44) -> 0 | W45: =SUM(W21+W44) -> 0 | Y45: =Y44 -> 0 | Z45: =SUM(Z21+Z44) -> 0 | AA45: =AA44 -> 0 | AB45: =SUM(AB21+AB44) -> 0
B46: 100 children
B47: Non-recurring (one time grant)
A48: 2.19 | B48: Furniture / Equipment (including kitchen equipment) | C48: 0 | D48: 0 | E48: 0 | F48: 0 | G48: =E48/C48*100 ->  | I48: =C48-E48 -> 0 | J48: 0 | M48: 0 | N48: 0 | O48: 3 | P48: 0 | Q48: =O48*P48 -> 0 | R48: =K48+M48+P48 -> 0 | S48: 0 | V48: 0 | W48: 0 | X48: 3 | Y48: 0 | Z48: =X48*Y48 -> 0 | AA48: =T48+V48+Y48 -> 0 | AB48: 0
A49: =+A48+0.01 -> 2.2 | B49: TLM and equipment including library books (New) | C49: 0 | D49: 0 | E49: 0 | F49: 0 | I49: 0 | J49: 0 | M49: 0 | N49: 0 | O49: 3.5 | P49: 0 | Q49: =O49*P49 -> 0 | R49: 0 | S49: 0 | V49: 0 | W49: 0 | X49: 3.5 | Y49: 0 | Z49: =X49*Y49 -> 0 | AA49: 0 | AB49: 0
A50: =+A49+0.01 -> 2.21 | B50: Bedding (New) | C50: 0 | D50: 0 | E50: 0 | F50: 0 | I50: 0 | J50: 0 | M50: 0 | N50: 0 | O50: 0.75 | P50: 0 | Q50: =O50*P50 -> 0 | R50: 0 | S50: 0 | V50: 0 | W50: 0 | X50: 0.75 | Y50: 0 | Z50: =X50*Y50 -> 0 | AA50: 0 | AB50: 0
A51: =+A50+0.01 -> 2.22 | B51: Replacement of bedding (once in 3 years) | C51: 100 | D51: 0.75 | E51: 100 | F51: 0.75 | G51: 100 | H51: 100 | I51: 0 | J51: 0 | M51: 0 | N51: 0 | O51: 0.0075 | P51: 0 | Q51: =O51*P51 -> 0 | R51: 0 | S51: 0 | V51: 0 | W51: 0 | X51: 0.0075 | Y51: 0 | Z51: =X51*Y51 -> 0 | AA51: 0 | AB51: 0
B52: Sub Total Non-recurring | C52: =SUM(C48:C51) -> 100 | D52: =SUM(D48:D51) -> 0.75 | E52: =SUM(E48:E51) -> 100 | F52: =SUM(F48:F51) -> 0.75 | G52: 100 | H52: 100 | I52: =SUM(I48:I51) -> 0 | J52: 0 | K52: 0 | L52: 0 | M52: 0 | N52: 0 | P52: =SUM(P48:P51) -> 0 | Q52: 0 | R52: 0 | S52: 0 | T52: 0 | U52: 0 | V52: 0 | W52: 0 | Y52: =SUM(Y48:Y51) -> 0 | Z52: =SUM(Z48:Z51) -> 0 | AA52: =SUM(AA48:AA51) -> 0 | AB52: =SUM(AB48:AB51) -> 0
B53: Recurring
A54: 2.23 | B54: Maintenance per child per month @ Rs. 1500/- | C54: 100 | D54: 18 | E54: 100 | F54: 12.59 | G54: =E54/C54*100 -> 100 | H54: =F54/D54*100 -> 69.94444444 | I54: =C54-E54 -> 0 | J54: =D54-F54 -> 5.41 | M54: 0 | N54: 0 | O54: 0.18 | P54: 100 | Q54: =O54*P54 -> 18 | R54: =K54+M54+P54 -> 100 | S54: 18 | V54: 0 | W54: 0 | X54: 0.18 | Y54: 100 | Z54: =X54*Y54 -> 18 | AA54: =T54+V54+Y54 -> 100 | AB54: 18
A55: =+A54+0.01 -> 2.24 | B55: Stipend per child per month @ Rs.100/- | C55: 100 | D55: 1.2 | E55: 100 | F55: 1.2 | G55: 100 | H55: 100 | I55: 0 | J55: 0 | M55: 0 | N55: 0 | O55: 0.012 | P55: 100 | Q55: =O55*P55 -> 1.2 | R55: 100 | S55: 1.2 | V55: 0 | W55: 0 | X55: 0.012 | Y55: 100 | Z55: =X55*Y55 -> 1.2 | AA55: 100 | AB55: 1.2
A56: 2.25 | B56: Supplementary TLM, Stationery and other educational material per child @1000/- per annum | C56: 100 | D56: 1 | E56: 100 | F56: 0.25 | G56: 100 | H56: 25 | I56: 0 | J56: 0.75 | M56: 0 | N56: 0 | O56: 0.01 | P56: 100 | Q56: =O56*P56 -> 1 | R56: 100 | S56: 1 | V56: 0 | W56: 0 | X56: 0.01 | Y56: 100 | Z56: =X56*Y56 -> 1 | AA56: 100 | AB56: 1
A57: 2.26 | B57: Salaries
A58: (a) | B58: 1 Warden @ Rs. 25,000/- per month | C58: 1 | D58: 3 | E58: 1 | F58: 3 | G58: 100 | H58: 100 | I58: 0 | J58: 0 | M58: 0 | N58: 0 | O58: 3 | P58: 1 | Q58: =O58*P58 -> 3 | R58: =K58+M58+P58 -> 1 | S58: =L58+N58+Q58 -> 3 | V58: 0 | W58: 0 | X58: 3 | Y58: 1 | Z58: =X58*Y58 -> 3 | AA58: =T58+V58+Y58 -> 1 | AB58: =U58+W58+Z58 -> 3
A59: (b) | B59: 1 head teacher @ Rs. 25,000/- per month in case the enrollment exceeds 100 | C59: 0 | D59: 0 | E59: 0 | F59: 0 | I59: 0 | J59: 0 | M59: 0 | N59: 0 | O59: 3 | P59: 0 | Q59: 0 | R59: 0 | S59: 0 | V59: 0 | W59: 0 | X59: 3 | Y59: 1 | Z59: 3 | AA59: 1 | AB59: 3
A60: (c) | B60: 4 - 5 Full time teachers as per RTE norms @ Rs. 20,000/- per month per teacher | C60: 2 | D60: 4.8 | E60: 2 | F60: 2.8 | G60: 100 | H60: 58.33333333 | I60: 0 | J60: 2 | M60: 0 | N60: 0 | O60: 2.4 | P60: 2 | Q60: 4.8 | R60: 2 | S60: 4.8 | V60: 0 | W60: 0 | X60: =0.2*12*4 -> 9.6 | Y60: 1 | Z60: 9.6 | AA60: 1 | AB60: 9.6
A61: (d) | B61: 2 Urdu Teachers (only for blocks with muslim population above 20% and select urban areas), if required @ Rs. 12,000/- per month per teacher | C61: 0 | D61: 0 | E61: 0 | F61: 0 | I61: 0 | J61: 0 | M61: 0 | N61: 0 | O61: 0 | P61: 0 | Q61: 0 | R61: 0 | S61: 0 | V61: 0 | W61: 0 | X61: 0 | Y61: 0 | Z61: 0 | AA61: 0 | AB61: 0
A62: (e) | B62: 3 part time teachers @ Rs. 5,000/- per month per teacher | C62: 0 | D62: 0 | E62: 0 | F62: 0 | I62: 0 | J62: 0 | M62: 0 | N62: 0 | O62: 0.6 | P62: 0 | Q62: 0 | R62: 0 | S62: 0 | V62: 0 | W62: 0 | X62: =0.05*12*3 -> 1.8 | Y62: 1 | Z62: 1.8 | AA62: 1 | AB62: 1.8
A63: (f) | B63: 1 Full time Accountant @ Rs. 10,000/- per month | C63: 1 | D63: 1.2 | E63: 1 | F63: 1.2 | G63: 100 | H63: 100 | I63: 0 | J63: 0 | M63: 0 | N63: 0 | O63: 1.2 | P63: 1 | Q63: 1.2 | R63: 1 | S63: 1.2 | V63: 0 | W63: 0 | X63: 1.2 | Y63: 1 | Z63: 1.2 | AA63: 1 | AB63: 1.2
A64: (g) | B64: 2 Support Staff – (Accountant/ Assistant, Peon, Chowkidar) @ Rs. 5,000/- per month per staff | C64: 2 | D64: 1.2 | E64: 2 | F64: 1.2 | G64: 100 | H64: 100 | I64: 0 | J64: 0 | M64: 0 | N64: 0 | O64: 0.6 | P64: 2 | Q64: 1.2 | R64: 2 | S64: 1.2 | V64: 0 | W64: 0 | X64: =0.05*12*2 -> 1.2 | Y64: 1 | Z64: 1.2 | AA64: 1 | AB64: 1.2
A65: (h) | B65: 1 Head cook @ Rs. 6,000/- per month and upto 2 Asstt. Cooks @ Rs. 4,500/- per month per cook | C65: 1 | D65: 1.8 | E65: 1 | F65: 1.8 | G65: 100 | H65: 100 | I65: 0 | J65: 0 | M65: 0 | N65: 0 | O65: 1.8 | P65: 1 | Q65: 1.8 | R65: 1 | S65: 1.8 | V65: 0 | W65: 0 | X65: 1.8 | Y65: 1 | Z65: 1.8 | AA65: 1 | AB65: 1.8
A66: 2.27 | B66: Specific skill training per child @ Rs.1000/- per annum | C66: 0 | D66: 0 | E66: 0 | F66: 0 | I66: 0 | J66: 0 | M66: 0 | N66: 0 | O66: 0 | P66: 0 | Q66: 0 | R66: 0 | S66: 0 | V66: 0 | W66: 0 | X66: 0.01 | Y66: 100 | Z66: 1 | AA66: 100 | AB66: 1
A67: 2.28 | B67: Electricity / water charges per child @Rs.1000/- per annum | C67: 100 | D67: 1 | E67: 100 | F67: 0.6 | G67: 100 | H67: 60 | I67: 0 | J67: 0.4 | M67: 0 | N67: 0 | O67: 0.01 | P67: 100 | Q67: 1 | R67: 100 | S67: 1 | V67: 0 | W67: 0 | X67: 0.01 | Y67: 100 | Z67: 1 | AA67: 100 | AB67: 1
A68: 2.29 | B68: Medical care/contingencies @ Rs.1250/- per child per annum | C68: 100 | D68: 1.25 | E68: 100 | F68: 0.4 | G68: 100 | H68: 32 | I68: 0 | J68: 0.85 | M68: 0 | N68: 0 | O68: 0.0125 | P68: 100 | Q68: 1.25 | R68: 100 | S68: 1.25 | V68: 0 | W68: 0 | X68: 0.0125 | Y68: 100 | Z68: 1.25 | AA68: 100 | AB68: 1.25
A69: 2.3 | B69: Maintenance @ Rs.750/- per child per annum | C69: 100 | D69: 0.75 | E69: 100 | F69: 0.6 | G69: 100 | H69: 80 | I69: 0 | J69: 0.15 | M69: 0 | N69: 0 | O69: 0.0075 | P69: 100 | Q69: 0.75 | R69: 100 | S69: 0.75 | V69: 0 | W69: 0 | X69: 0.0075 | Y69: 100 | Z69: 0.75 | AA69: 100 | AB69: 0.75
A70: 2.31 | B70: Miscellaneous @ Rs.750/- per child per annum | C70: 100 | D70: 0.75 | E70: 100 | F70: 0.75 | G70: 100 | H70: 100 | I70: 0 | J70: 0 | M70: 0 | N70: 0 | O70: 0.0075 | P70: 100 | Q70: 0.75 | R70: 100 | S70: 0.75 | V70: 0 | W70: 0 | X70: 0.0075 | Y70: 100 | Z70: 0.75 | AA70: 100 | AB70: 0.75
A71: 2.32 | B71: Preparatory camps @ Rs.200/- per child per annum | C71: 0 | D71: 0 | E71: 0 | F71: 0 | I71: 0 | J71: 0 | M71: 0 | N71: 0 | O71: 0 | P71: 0 | Q71: 0 | R71: 0 | S71: 0 | V71: 0 | W71: 0 | X71: 0.002 | Y71: 100 | Z71: 0.2 | AA71: 100 | AB71: 0.2
A72: 2.33 | B72: P.T.A / school functions @ Rs.200/- per child per annum | C72: 0 | D72: 0 | E72: 0 | F72: 0 | I72: 0 | J72: 0 | M72: 0 | N72: 0 | O72: 0.003 | P72: 100 | Q72: 0.3 | R72: 100 | S72: 0.3 | V72: 0 | W72: 0 | X72: 0.002 | Y72: 100 | Z72: 0.2 | AA72: 100 | AB72: 0.2
A73: 2.34 | B73: Provision of Rent @ Rs. 6000/- per child per annum | C73: 0 | D73: 0 | E73: 0 | F73: 0 | I73: 0 | J73: 0 | M73: 0 | N73: 0 | O73: 0 | P73: 0 | Q73: 0 | R73: 0 | S73: 0 | V73: 0 | W73: 0 | X73: 0 | Y73: 0 | Z73: 0 | AA73: 0 | AB73: 0
A74: 2.35 | B74: Capacity Building @ Rs.500/- per child per annum | C74: 100 | D74: 0.5 | E74: 100 | F74: 0 | G74: 100 | H74: 0 | I74: 0 | J74: 0.5 | M74: 0 | N74: 0 | O74: 0.005 | P74: 100 | Q74: 0.5 | R74: 100 | S74: 0.5 | V74: 0 | W74: 0 | X74: 0.005 | Y74: 100 | Z74: 0.5 | AA74: 100 | AB74: 0.5
A75: 2.36 | B75: Physical / Self Defence training @ Rs. 200/- per child per annum. | C75: 0 | D75: 0 | E75: 0 | F75: 0 | I75: 0 | J75: 0 | M75: 0 | N75: 0 | O75: 0 | P75: 0 | Q75: 0 | R75: 0 | S75: 0 | V75: 0 | W75: 0 | X75: 0.002 | Y75: 100 | Z75: 0.2 | AA75: 100 | AB75: 0.2
B76: Sub Total (Recurring) | C76: =C54 -> 100 | D76: =SUM(D54:D75) -> 36.45 | E76: =E54 -> 100 | F76: =SUM(F54:F75) -> 26.39 | G76: 100 | H76: 72.4005487 | I76: =I54 -> 0 | J76: =SUM(J54:J75) -> 10.06 | K76: =SUM(K54:K75) -> 0 | L76: =SUM(L54:L75) -> 0 | M76: =SUM(M54:M75) -> 0 | N76: =SUM(N54:N75) -> 0 | P76: =P54 -> 100 | Q76: =SUM(Q54:Q75) -> 36.75 | R76: =R54 -> 100 | S76: 36.75 | T76: 0 | U76: 0 | V76: 0 | W76: 0 | Y76: =Y54 -> 100 | Z76: =SUM(Z54:Z75) -> 47.65 | AA76: =AA54 -> 100 | AB76: =SUM(AB54:AB75) -> 47.65
B77: Total (Recurring + Non Recurring) | C77: =C76 -> 100 | D77: =SUM(D52+D76) -> 37.2 | E77: =E76 -> 100 | F77: =SUM(F52+F76) -> 27.14 | G77: 100 | H77: 72.95698925 | I77: =I76 -> 0 | J77: =SUM(J52+J76) -> 10.06 | K77: =SUM(K52+K76) -> 0 | L77: =SUM(L52+L76) -> 0 | M77: =SUM(M52+M76) -> 0 | N77: =SUM(N52+N76) -> 0 | P77: =P76 -> 100 | Q77: =SUM(Q52+Q76) -> 36.75 | R77: =R76 -> 100 | S77: 36.75 | T77: 0 | U77: 0 | V77: 0 | W77: 0 | Y77: =Y76 -> 100 | Z77: =SUM(Z52+Z76) -> 47.65 | AA77: =AA76 -> 100 | AB77: =SUM(AB52+AB76) -> 47.65
B78: Total (50 + 100 children) | C78: =C45+C77 -> 100 | D78: =SUM(D45+D77) -> 37.2 | E78: =E45+E77 -> 100 | F78: =SUM(F45+F77) -> 27.14 | G78: =E78/C78*100 -> 100 | H78: =F78/D78*100 -> 72.95698925 | I78: =I45+I77 -> 0 | J78: =SUM(J45+J77) -> 10.06 | K78: =SUM(K45+K77) -> 0 | L78: =SUM(L45+L77) -> 0 | M78: =SUM(M45+M77) -> 0 | N78: =SUM(N45+N77) -> 0 | P78: =P45+P77 -> 100 | Q78: =SUM(Q45+Q77) -> 36.75 | R78: =R45+R77 -> 100 | S78: =SUM(S45+S77) -> 36.75 | T78: =SUM(T45+T77) -> 0 | U78: =SUM(U45+U77) -> 0 | V78: =SUM(V45+V77) -> 0 | W78: =SUM(W45+W77) -> 0 | Y78: =Y45+Y77 -> 100 | Z78: =SUM(Z45+Z77) -> 47.65 | AA78: =AA45+AA77 -> 100 | AB78: =SUM(AB45+AB77) -> 47.65
A79: 3 | B79: Residential Hostel for specific category of children
A80: (A) | B80: 50 children
B81: Non-recurring (one time grant) | R81: =K81+M81+P81 -> 0 | S81: 0 | AA81: =T81+V81+Y81 -> 0 | AB81: 0
A82: 3.01 | B82: Furniture/ Equipment (including kitchen) | C82: 0 | D82: 0 | E82: 0 | F82: 0 | G82: =E82/C82*100 ->  | I82: =C82-E82 -> 0 | J82: 0 | M82: 0 | N82: 0 | O82: 2 | P82: 0 | Q82: =O82*P82 -> 0 | R82: 0 | S82: 0 | V82: 0 | W82: 0 | X82: 2 | Y82: 0 | Z82: =X82*Y82 -> 0 | AA82: 0 | AB82: 0
A83: =+A82+0.01 -> 3.02 | B83: TLM and equipment including library books | C83: 0 | D83: 0 | E83: 0 | F83: 0 | I83: 0 | J83: 0 | M83: 0 | N83: 0 | O83: 3 | P83: 0 | Q83: =O83*P83 -> 0 | R83: 0 | S83: 0 | V83: 0 | W83: 0 | X83: 3 | Y83: 0 | Z83: =X83*Y83 -> 0 | AA83: 0 | AB83: 0
A84: =+A83+0.01 -> 3.03 | B84: Bedding (new) | C84: 0 | D84: 0 | E84: 0 | F84: 0 | I84: 0 | J84: 0 | M84: 0 | N84: 0 | O84: 0.375 | P84: 0 | Q84: =O84*P84 -> 0 | R84: 0 | S84: 0 | V84: 0 | W84: 0 | X84: 0.375 | Y84: 0 | Z84: =X84*Y84 -> 0 | AA84: 0 | AB84: 0
A85: =+A84+0.01 -> 3.04 | B85: Replacement of bedding (once in 3 years) | C85: 0 | D85: 0 | E85: 0 | F85: 0 | I85: 0 | J85: 0 | M85: 0 | N85: 0 | O85: 0.0075 | P85: 0 | Q85: =O85*P85 -> 0 | R85: 0 | S85: 0 | V85: 0 | W85: 0 | X85: 0.0075 | Y85: 0 | Z85: =X85*Y85 -> 0 | AA85: 0 | AB85: 0
B86: Sub Total (Non Recurring) | C86: =SUM(C82:C85) -> 0 | D86: =SUM(D82:D85) -> 0 | E86: =SUM(E82:E85) -> 0 | F86: =SUM(F82:F85) -> 0 | I86: =SUM(I82:I85) -> 0 | J86: 0 | K86: 0 | L86: 0 | M86: 0 | N86: 0 | P86: =SUM(P82:P85) -> 0 | Q86: 0 | R86: 0 | S86: 0 | T86: 0 | U86: 0 | V86: 0 | W86: 0 | Y86: =SUM(Y82:Y85) -> 0 | Z86: =SUM(Z82:Z85) -> 0 | AA86: =SUM(AA82:AA85) -> 0 | AB86: =SUM(AB82:AB85) -> 0
B87: Recurring (50 children)
A88: 3.05 | B88: Maintenance per child Per month @ Rs.1500/- | C88: 0 | D88: 0 | E88: 0 | F88: 0 | G88: =E88/C88*100 ->  | I88: =C88-E88 -> 0 | J88: 0 | M88: 0 | N88: 0 | O88: 0.18 | P88: 0 | Q88: =O88*P88 -> 0 | R88: =K88+M88+P88 -> 0 | S88: =L88+N88+Q88 -> 0 | V88: 0 | W88: 0 | X88: 0.18 | Y88: 0 | Z88: =X88*Y88 -> 0 | AA88: =T88+V88+Y88 -> 0 | AB88: =U88+W88+Z88 -> 0
A89: =+A88+0.01 -> 3.06 | B89: Stipend per child per month @ Rs.100/- | C89: 0 | D89: 0 | E89: 0 | F89: 0 | I89: 0 | J89: 0 | M89: 0 | N89: 0 | O89: 0.012 | P89: 0 | Q89: =O89*P89 -> 0 | R89: 0 | S89: 0 | V89: 0 | W89: 0 | X89: 0.012 | Y89: 0 | Z89: =X89*Y89 -> 0 | AA89: 0 | AB89: 0
A90: =+A89+0.01 -> 3.07 | B90: Supplementary TLM, Stationery and other educational material @Rs.1000/- per child per annum | C90: 0 | D90: 0 | E90: 0 | F90: 0 | I90: 0 | J90: 0 | M90: 0 | N90: 0 | O90: 0.01 | P90: 0 | Q90: =O90*P90 -> 0 | R90: 0 | S90: 0 | V90: 0 | W90: 0 | X90: 0.01 | Y90: 0 | Z90: =X90*Y90 -> 0 | AA90: 0 | AB90: 0
B91: Salaries | R91: 0 | S91: 0 | AA91: 0 | AB91: 0
A92: (a) | B92: 1 Warden @ Rs.25000/- per month | C92: 0 | D92: 0 | E92: 0 | F92: 0 | G92: =E92/C92*100 ->  | H92: =F92/D92*100 ->  | I92: =C92-E92 -> 0 | J92: =D92-F92 -> 0 | M92: 0 | N92: 0 | O92: 3 | P92: 0 | Q92: =O92*P92 -> 0 | R92: 0 | S92: 0 | V92: 0 | W92: 0 | X92: 3 | Y92: 0 | Z92: =X92*Y92 -> 0 | AA92: 0 | AB92: 0
A93: (b) | B93: 4 Fulltime teachers as per RTE Norms @ Rs. 20,000/- per month per teacher | C93: 0 | D93: 0 | E93: 0 | F93: 0 | I93: 0 | J93: 0 | M93: 0 | N93: 0 | O93: 0 | P93: 0 | Q93: 0 | R93: 0 | S93: 0 | V93: 0 | W93: 0 | X93: 0 | Y93: 0 | Z93: 0 | AA93: 0 | AB93: 0
A94: (c) | B94: 2 Urdu Teachers (only for Blocks with muslim population above 20% and select urban areas) @ Rs.12,000/- per month per teacher. | C94: 0 | D94: 0 | E94: 0 | F94: 0 | I94: 0 | J94: 0 | M94: 0 | N94: 0 | O94: 0 | P94: 0 | Q94: 0 | R94: 0 | S94: 0 | V94: 0 | W94: 0 | X94: 0 | Y94: 0 | Z94: 0 | AA94: 0 | AB94: 0
A95: (d) | B95: 3 Part time teachers @ Rs.5,000/- per month per teacher | C95: 0 | D95: 0 | E95: 0 | F95: 0 | I95: 0 | J95: 0 | M95: 0 | N95: 0 | O95: 1.8 | P95: 0 | Q95: 0 | R95: 0 | S95: 0 | V95: 0 | W95: 0 | X95: 1.8 | Y95: 0 | Z95: 0 | AA95: 0 | AB95: 0
A96: (e) | B96: 1 Full time Accountant @ Rs. 10,000/- per month | C96: 0 | D96: 0 | E96: 0 | F96: 0 | I96: 0 | J96: 0 | M96: 0 | N96: 0 | O96: 1.2 | P96: 0 | Q96: 0 | R96: 0 | S96: 0 | V96: 0 | W96: 0 | X96: 1.2 | Y96: 0 | Z96: 0 | AA96: 0 | AB96: 0
A97: (f) | B97: 2 Support staff - (Accountant/Assistant, Peon, Chowkidar) @ Rs. 5,000/- per month per staff | C97: 0 | D97: 0 | E97: 0 | F97: 0 | I97: 0 | J97: 0 | M97: 0 | N97: 0 | O97: 1.2 | P97: 0 | Q97: 0 | R97: 0 | S97: 0 | V97: 0 | W97: 0 | X97: 1.2 | Y97: 0 | Z97: 0 | AA97: 0 | AB97: 0
A98: (g) | B98: 1 Head Cook @ Rs. 6,000/- per month and upto 2 Asstt. Cooks @ Rs. 4,500/- per month per cook | C98: 0 | D98: 0 | E98: 0 | F98: 0 | I98: 0 | J98: 0 | M98: 0 | N98: 0 | O98: 1.8 | P98: 0 | Q98: 0 | R98: 0 | S98: 0 | V98: 0 | W98: 0 | X98: 1.8 | Y98: 0 | Z98: 0 | AA98: 0 | AB98: 0
A99: 3.08 | B99: Specific Skill training @ Rs.1000/- per annum per child | C99: 0 | D99: 0 | E99: 0 | F99: 0 | I99: 0 | J99: 0 | M99: 0 | N99: 0 | O99: 0 | P99: 0 | Q99: 0 | R99: 0 | S99: 0 | V99: 0 | W99: 0 | X99: 0 | Y99: 0 | Z99: 0 | AA99: 0 | AB99: 0
A100: =+A99+0.01 -> 3.09 | B100: Electricity / water charges @ Rs. 1000/- per annum per child | C100: 0 | D100: 0 | E100: 0 | F100: 0 | I100: 0 | J100: 0 | M100: 0 | N100: 0 | O100: 0.01 | P100: 0 | Q100: 0 | R100: 0 | S100: 0 | V100: 0 | W100: 0 | X100: 0.01 | Y100: 0 | Z100: 0 | AA100: 0 | AB100: 0
A101: 3.1 | B101: Medical care/contingencies @ Rs.1250/- per annum per child | C101: 0 | D101: 0 | E101: 0 | F101: 0 | I101: 0 | J101: 0 | M101: 0 | N101: 0 | O101: 0.0125 | P101: 0 | Q101: 0 | R101: 0 | S101: 0 | V101: 0 | W101: 0 | X101: 0.0125 | Y101: 0 | Z101: 0 | AA101: 0 | AB101: 0
A102: 3.11 | B102: Maintenance @ Rs. 750/- per child per annum | C102: 0 | D102: 0 | E102: 0 | F102: 0 | I102: 0 | J102: 0 | M102: 0 | N102: 0 | O102: 0.0075 | P102: 0 | Q102: 0 | R102: 0 | S102: 0 | V102: 0 | W102: 0 | X102: 0.0075 | Y102: 0 | Z102: 0 | AA102: 0 | AB102: 0
A103: 3.12 | B103: Miscellaneous @ Rs. 750/- per child per annum | C103: 0 | D103: 0 | E103: 0 | F103: 0 | I103: 0 | J103: 0 | M103: 0 | N103: 0 | O103: 0.0075 | P103: 0 | Q103: 0 | R103: 0 | S103: 0 | V103: 0 | W103: 0 | X103: 0.0075 | Y103: 0 | Z103: 0 | AA103: 0 | AB103: 0
A104: 3.13 | B104: Preparatory camps @ Rs. 300/- per child per annum | C104: 0 | D104: 0 | E104: 0 | F104: 0 | I104: 0 | J104: 0 | M104: 0 | N104: 0 | O104: 0 | P104: 0 | Q104: 0 | R104: 0 | S104: 0 | V104: 0 | W104: 0 | X104: 0 | Y104: 0 | Z104: 0 | AA104: 0 | AB104: 0
A105: 3.14 | B105: P.T.A / school functions @ Rs. 300/- per child per annum | C105: 0 | D105: 0 | E105: 0 | F105: 0 | I105: 0 | J105: 0 | M105: 0 | N105: 0 | O105: 0.003 | P105: 0 | Q105: 0 | R105: 0 | S105: 0 | V105: 0 | W105: 0 | X105: 0.003 | Y105: 0 | Z105: 0 | AA105: 0 | AB105: 0
A106: 3.15 | B106: Provision of Rent @ Rs. 10,000/- per child per annum | C106: 0 | D106: 0 | E106: 0 | F106: 0 | I106: 0 | J106: 0 | M106: 0 | N106: 0 | O106: 0 | P106: 0 | Q106: 0 | R106: 0 | S106: 0 | V106: 0 | W106: 0 | X106: 0 | Y106: 0 | Z106: 0 | AA106: 0 | AB106: 0
A107: 3.16 | B107: Capacity Building @ Rs. 500/- per child per annum | C107: 0 | D107: 0 | E107: 0 | F107: 0 | I107: 0 | J107: 0 | M107: 0 | N107: 0 | O107: 0.005 | P107: 0 | Q107: 0 | R107: 0 | S107: 0 | V107: 0 | W107: 0 | X107: 0.005 | Y107: 0 | Z107: 0 | AA107: 0 | AB107: 0
A108: 3.17 | B108: Physical / Self Defence Training @ Rs.200/- per child per annum | C108: 0 | D108: 0 | E108: 0 | F108: 0 | G108: =E108/C108*100 ->  | I108: =C108-E108 -> 0 | J108: =D108-F108 -> 0 | M108: 0 | N108: 0 | O108: 0 | P108: 0 | Q108: 0 | R108: 0 | S108: 0 | V108: 0 | W108: 0 | X108: 0 | Y108: 0 | Z108: 0 | AA108: 0 | AB108: 0
B109: Sub Total (Recurring) | C109: =C88 -> 0 | D109: =SUM(D88:D108) -> 0 | E109: =E88 -> 0 | F109: =SUM(F88:F108) -> 0 | I109: =SUM(I88:I108) -> 0 | J109: 0 | K109: 0 | L109: 0 | M109: 0 | N109: 0 | P109: =P88 -> 0 | Q109: =SUM(Q88:Q108) -> 0 | R109: =R88 -> 0 | S109: 0 | T109: 0 | U109: 0 | V109: 0 | W109: 0 | Y109: =Y88 -> 0 | Z109: =SUM(Z88:Z108) -> 0 | AA109: =AA88 -> 0 | AB109: =SUM(AB88:AB108) -> 0
B110: Total (Non Recurring + Recurring) | C110: =C109 -> 0 | D110: =SUM(D86+D109) -> 0 | E110: =E109 -> 0 | F110: =SUM(F86+F109) -> 0 | I110: =SUM(I86+I109) -> 0 | J110: 0 | K110: 0 | L110: 0 | M110: 0 | N110: 0 | P110: =P109 -> 0 | Q110: =SUM(Q86+Q109) -> 0 | R110: =R109 -> 0 | S110: 0 | T110: 0 | U110: 0 | V110: 0 | W110: 0 | Y110: =Y109 -> 0 | Z110: =SUM(Z86+Z109) -> 0 | AA110: =AA109 -> 0 | AB110: =SUM(AB86+AB109) -> 0
A111: (B) | B111: 100 Children
B112: Non-recurring (one time grant)
A113: 3.18 | B113: Furniture / Equipment (including kitchen equipment) | C113: 0 | D113: 0 | E113: 0 | F113: 0 | G113: =E113/C113*100 ->  | I113: =C113-E113 -> 0 | J113: 0 | M113: 0 | N113: 0 | O113: 0 | P113: 0 | Q113: =O113*P113 -> 0 | R113: =K113+M113+P113 -> 0 | S113: 0 | V113: 0 | W113: 0 | X113: 0 | Y113: 0 | Z113: =X113*Y113 -> 0 | AA113: =T113+V113+Y113 -> 0 | AB113: 0
A114: =+A113+0.01 -> 3.19 | B114: TLM and equipment including library books (New) | C114: 0 | D114: 0 | E114: 0 | F114: 0 | I114: 0 | J114: 0 | M114: 0 | N114: 0 | O114: 0 | P114: 0 | Q114: =O114*P114 -> 0 | R114: 0 | S114: 0 | V114: 0 | W114: 0 | X114: 0 | Y114: 0 | Z114: =X114*Y114 -> 0 | AA114: 0 | AB114: 0
A115: =+A114+0.01 -> 3.2 | B115: Bedding (New) | C115: 0 | D115: 0 | E115: 0 | F115: 0 | I115: 0 | J115: 0 | M115: 0 | N115: 0 | O115: 0 | P115: 0 | Q115: =O115*P115 -> 0 | R115: 0 | S115: 0 | V115: 0 | W115: 0 | X115: 0 | Y115: 0 | Z115: =X115*Y115 -> 0 | AA115: 0 | AB115: 0
A116: =+A115+0.01 -> 3.21 | B116: Replacement of bedding (once in 3 years) | C116: 0 | D116: 0 | E116: 0 | F116: 0 | I116: 0 | J116: 0 | M116: 0 | N116: 0 | O116: 0 | P116: 0 | Q116: =O116*P116 -> 0 | R116: 0 | S116: 0 | V116: 0 | W116: 0 | X116: 0 | Y116: 0 | Z116: =X116*Y116 -> 0 | AA116: 0 | AB116: 0
B117: Sub Total Non-recurring | C117: =SUM(C113:C116) -> 0 | D117: =SUM(D113:D116) -> 0 | E117: =SUM(E113:E116) -> 0 | F117: =SUM(F113:F116) -> 0 | I117: =SUM(I113:I116) -> 0 | J117: 0 | K117: 0 | L117: 0 | M117: 0 | N117: 0 | Q117: =SUM(Q113:Q116) -> 0 | R117: 0 | S117: 0 | T117: 0 | U117: 0 | V117: 0 | W117: 0 | Z117: =SUM(Z113:Z116) -> 0 | AA117: =SUM(AA113:AA116) -> 0 | AB117: =SUM(AB113:AB116) -> 0
B118: Recurring
A119: 3.22 | B119: Maintenance per child per month @ Rs. 1500/- | C119: 0 | D119: 0 | E119: 0 | F119: 0 | G119: =E119/C119*100 ->  | H119: =F119/D119*100 ->  | I119: =C119-E119 -> 0 | J119: =D119-F119 -> 0 | M119: 0 | N119: 0 | O119: 0 | P119: 0 | Q119: =O119*P119 -> 0 | R119: =K119+M119+P119 -> 0 | S119: =L119+N119+Q119 -> 0 | V119: 0 | W119: 0 | X119: 0 | Y119: 0 | Z119: =X119*Y119 -> 0 | AA119: =T119+V119+Y119 -> 0 | AB119: =U119+W119+Z119 -> 0
A120: =+A119+0.01 -> 3.23 | B120: Stipend per child per month @ Rs.100/- | C120: 0 | D120: 0 | E120: 0 | F120: 0 | I120: 0 | J120: 0 | M120: 0 | N120: 0 | O120: 0 | P120: 0 | Q120: 0 | R120: =K120+M120+P120 -> 0 | S120: 0 | V120: 0 | W120: 0 | X120: 0 | Y120: 0 | Z120: 0 | AA120: =T120+V120+Y120 -> 0 | AB120: 0
A121: =+A120+0.01 -> 3.24 | B121: Supplementary TLM, Stationery and other educational material per child @1000/- per annum | C121: 0 | D121: 0 | E121: 0 | F121: 0 | I121: 0 | J121: 0 | M121: 0 | N121: 0 | O121: 0 | P121: 0 | Q121: 0 | R121: =K121+M121+P121 -> 0 | S121: 0 | V121: 0 | W121: 0 | X121: 0 | Y121: 0 | Z121: 0 | AA121: =T121+V121+Y121 -> 0 | AB121: 0
B122: Salaries | M122: 0 | N122: 0 | O122: 0 | P122: 0 | Q122: 0 | S122: 0 | V122: 0 | W122: 0 | X122: 0 | Y122: 0 | Z122: 0 | AB122: 0
A123: (a) | B123: 1 Warden @ Rs. 25,000/- per month | C123: 0 | D123: 0 | E123: 0 | F123: 0 | I123: 0 | J123: 0 | M123: 0 | N123: 0 | O123: 0 | P123: 0 | Q123: 0 | R123: =K123+M123+P123 -> 0 | S123: 0 | V123: 0 | W123: 0 | X123: 0 | Y123: 0 | Z123: 0 | AA123: =T123+V123+Y123 -> 0 | AB123: 0
A124: (b) | B124: 1 head teacher @ Rs. 25,000/- per month in case the enrollment exceeds 100 | C124: 0 | D124: 0 | E124: 0 | F124: 0 | I124: 0 | J124: 0 | M124: 0 | N124: 0 | O124: 0 | P124: 0 | Q124: 0 | R124: 0 | S124: 0 | V124: 0 | W124: 0 | X124: 0 | Y124: 0 | Z124: 0 | AA124: 0 | AB124: 0
A125: (c) | B125: 4 - 5 Full time teachers as per RTE norms @ Rs. 20,000/- per month per teacher | C125: 0 | D125: 0 | E125: 0 | F125: 0 | I125: 0 | J125: 0 | M125: 0 | N125: 0 | O125: 0 | P125: 0 | Q125: 0 | R125: 0 | S125: 0 | V125: 0 | W125: 0 | X125: 0 | Y125: 0 | Z125: 0 | AA125: 0 | AB125: 0
A126: (d) | B126: 2 Urdu Teachers (only for blocks with muslim population above 20% and select urban areas), if required @ Rs. 12,000/- per month per teacher | C126: 0 | D126: 0 | E126: 0 | F126: 0 | I126: 0 | J126: 0 | M126: 0 | N126: 0 | O126: 0 | P126: 0 | Q126: 0 | R126: 0 | S126: 0 | V126: 0 | W126: 0 | X126: 0 | Y126: 0 | Z126: 0 | AA126: 0 | AB126: 0
A127: (e) | B127: 3 part time teachers @ Rs. 5,000/- per month per teacher | C127: 0 | D127: 0 | E127: 0 | F127: 0 | I127: 0 | J127: 0 | M127: 0 | N127: 0 | O127: 0 | P127: 0 | Q127: 0 | R127: 0 | S127: 0 | V127: 0 | W127: 0 | X127: 0 | Y127: 0 | Z127: 0 | AA127: 0 | AB127: 0
A128: (f) | B128: 1 Full time Accountant @ Rs. 10,000/- per month | C128: 0 | D128: 0 | E128: 0 | F128: 0 | I128: 0 | J128: 0 | M128: 0 | N128: 0 | O128: 0 | P128: 0 | Q128: 0 | R128: 0 | S128: 0 | V128: 0 | W128: 0 | X128: 0 | Y128: 0 | Z128: 0 | AA128: 0 | AB128: 0
A129: 3.25 | B129: 2 Support Staff – (Accountant/ Assistant, Peon, Chowkidar) @ Rs. 5,000/- per month per staff | C129: 0 | D129: 0 | E129: 0 | F129: 0 | I129: 0 | J129: 0 | M129: 0 | N129: 0 | O129: 0 | P129: 0 | Q129: 0 | R129: 0 | S129: 0 | V129: 0 | W129: 0 | X129: 0 | Y129: 0 | Z129: 0 | AA129: 0 | AB129: 0
A130: =+A129+0.01 -> 3.26 | B130: 1 Head cook @ Rs. 6,000/- per month and upto 2 Asstt. Cooks @ Rs. 4,500/- per month per cook | C130: 0 | D130: 0 | E130: 0 | F130: 0 | I130: 0 | J130: 0 | M130: 0 | N130: 0 | O130: 0 | P130: 0 | Q130: 0 | R130: 0 | S130: 0 | V130: 0 | W130: 0 | X130: 0 | Y130: 0 | Z130: 0 | AA130: 0 | AB130: 0
A131: 3.27 | B131: Specific skill training per child @ Rs.1000/- per annum | C131: 0 | D131: 0 | E131: 0 | F131: 0 | I131: 0 | J131: 0 | M131: 0 | N131: 0 | O131: 0 | P131: 0 | Q131: 0 | R131: 0 | S131: 0 | V131: 0 | W131: 0 | X131: 0 | Y131: 0 | Z131: 0 | AA131: 0 | AB131: 0
A132: 3.28 | B132: Electricity / water charges per child @Rs.1000/- per annum | C132: 0 | D132: 0 | E132: 0 | F132: 0 | I132: 0 | J132: 0 | M132: 0 | N132: 0 | O132: 0 | P132: 0 | Q132: 0 | R132: 0 | S132: 0 | V132: 0 | W132: 0 | X132: 0 | Y132: 0 | Z132: 0 | AA132: 0 | AB132: 0
A133: 3.29 | B133: Medical care/contingencies @ Rs.1250/- per child per annum | C133: 0 | D133: 0 | E133: 0 | F133: 0 | I133: 0 | J133: 0 | M133: 0 | N133: 0 | O133: 0 | P133: 0 | Q133: 0 | R133: 0 | S133: 0 | V133: 0 | W133: 0 | X133: 0 | Y133: 0 | Z133: 0 | AA133: 0 | AB133: 0
A134: 3.3 | B134: Maintenance @ Rs.750/- per child per annum | C134: 0 | D134: 0 | E134: 0 | F134: 0 | I134: 0 | J134: 0 | M134: 0 | N134: 0 | O134: 0 | P134: 0 | Q134: 0 | R134: 0 | S134: 0 | V134: 0 | W134: 0 | X134: 0 | Y134: 0 | Z134: 0 | AA134: 0 | AB134: 0
A135: 3.31 | B135: Miscellaneous @ Rs.750/- per child per annum | C135: 0 | D135: 0 | E135: 0 | F135: 0 | I135: 0 | J135: 0 | M135: 0 | N135: 0 | O135: 0 | P135: 0 | Q135: 0 | R135: 0 | S135: 0 | V135: 0 | W135: 0 | X135: 0 | Y135: 0 | Z135: 0 | AA135: 0 | AB135: 0
A136: 3.32 | B136: Preparatory camps @ Rs.200/- per child per annum | C136: 0 | D136: 0 | E136: 0 | F136: 0 | I136: 0 | J136: 0 | M136: 0 | N136: 0 | O136: 0 | P136: 0 | Q136: 0 | R136: 0 | S136: 0 | V136: 0 | W136: 0 | X136: 0 | Y136: 0 | Z136: 0 | AA136: 0 | AB136: 0
A137: 3.33 | B137: P.T.A / school functions @ Rs.200/- per child per annum | C137: 0 | D137: 0 | E137: 0 | F137: 0 | I137: 0 | J137: 0 | M137: 0 | N137: 0 | O137: 0 | P137: 0 | Q137: 0 | R137: 0 | S137: 0 | V137: 0 | W137: 0 | X137: 0 | Y137: 0 | Z137: 0 | AA137: 0 | AB137: 0
A138: 3.34 | B138: Provision of Rent @ Rs. 6000/- per child per annum | C138: 0 | D138: 0 | E138: 0 | F138: 0 | I138: 0 | J138: 0 | M138: 0 | N138: 0 | O138: 0 | P138: 0 | Q138: 0 | R138: 0 | S138: 0 | V138: 0 | W138: 0 | X138: 0 | Y138: 0 | Z138: 0 | AA138: 0 | AB138: 0
A139: 3.35 | B139: Capacity Building @ Rs.500/- per child per annum | C139: 0 | D139: 0 | E139: 0 | F139: 0 | I139: 0 | J139: 0 | M139: 0 | N139: 0 | O139: 0 | P139: 0 | Q139: 0 | R139: 0 | S139: 0 | V139: 0 | W139: 0 | X139: 0 | Y139: 0 | Z139: 0 | AA139: 0 | AB139: 0
A140: 3.36 | B140: Physical / Self Defence training @ Rs. 200/- per child per annum. | C140: 0 | D140: 0 | E140: 0 | F140: 0 | I140: 0 | J140: 0 | M140: 0 | N140: 0 | O140: 0 | P140: 0 | Q140: 0 | R140: 0 | S140: 0 | V140: 0 | W140: 0 | X140: 0 | Y140: 0 | Z140: 0 | AA140: 0 | AB140: 0
B141: Sub Total (Recurring) | C141: =SUM(C119:C140) -> 0 | D141: =SUM(D119:D140) -> 0 | E141: =SUM(E119:E140) -> 0 | F141: =SUM(F119:F140) -> 0 | G141: =E141/C141*100 ->  | I141: =SUM(I119:I140) -> 0 | J141: 0 | K141: 0 | L141: 0 | M141: 0 | N141: 0 | P141: =SUM(P119:P140) -> 0 | Q141: 0 | R141: 0 | S141: 0 | T141: 0 | U141: 0 | V141: 0 | W141: 0 | Y141: =SUM(Y119:Y140) -> 0 | Z141: =SUM(Z119:Z140) -> 0 | AA141: =SUM(AA119:AA140) -> 0 | AB141: =SUM(AB119:AB140) -> 0
B142: Total (Recurring + Non Recurring) | C142: =SUM(C117+C141) -> 0 | D142: =SUM(D117+D141) -> 0 | E142: =SUM(E117+E141) -> 0 | F142: =SUM(F117+F141) -> 0 | I142: =SUM(I117+I141) -> 0 | J142: 0 | K142: 0 | L142: 0 | M142: 0 | N142: 0 | P142: =SUM(P117+P141) -> 0 | Q142: 0 | R142: 0 | S142: 0 | T142: 0 | U142: 0 | V142: 0 | W142: 0 | Y142: =SUM(Y117+Y141) -> 0 | Z142: =SUM(Z117+Z141) -> 0 | AA142: =SUM(AA117+AA141) -> 0 | AB142: =SUM(AB117+AB141) -> 0
B143: Total (A + B) | C143: =SUM(C78+C110+C142) -> 100 | D143: =SUM(D78+D110+D142) -> 37.2 | E143: =SUM(E78+E110+E142) -> 100 | F143: =SUM(F78+F110+F142) -> 27.14 | G143: 100 | H143: 72.95698925 | I143: =SUM(I78+I110+I142) -> 0 | J143: 10.06 | K143: 0 | L143: 0 | M143: 0 | N143: 0 | P143: =SUM(P78+P110+P142) -> 100 | Q143: 36.75 | R143: 100 | S143: 36.75 | T143: 0 | U143: 0 | V143: 0 | W143: 0 | Y143: =SUM(Y78+Y110+Y142) -> 100 | Z143: =SUM(Z78+Z110+Z142) -> 47.65 | AA143: =SUM(AA78+AA110+AA142) -> 100 | AB143: =SUM(AB78+AB110+AB142) -> 47.65
A144: 4 | B144: Transport/Escort Facility
A145: 4.01 | B145: Children in remote habitation | C145: 0 | D145: 0 | E145: 0 | F145: 0 | G145: =E145/C145*100 ->  | I145: =C145-E145 -> 0 | J145: =D145-F145 -> 0 | M145: 0 | N145: 0 | O145: 0.03 | P145: =2371+118 -> 2489 | Q145: =O145*P145 -> 74.67 | R145: =K145+M145+P145 -> 2489 | S145: =L145+N145+Q145 -> 74.67 | V145: 0 | W145: 0 | X145: 0.03 | Y145: =2371+118 -> 2489 | Z145: =X145*Y145 -> 74.67 | AA145: =T145+V145+Y145 -> 2489 | AB145: =U145+W145+Z145 -> 74.67
A146: 4.02 | B146: Urban deprived children/children without adult protection | C146: 0 | D146: 0 | E146: 0 | F146: 0 | I146: =C146-E146 -> 0 | J146: =D146-F146 -> 0 | M146: 0 | N146: 0 | O146: 0.025 | P146: 0 | Q146: =O146*P146 -> 0 | R146: =K146+M146+P146 -> 0 | S146: =L146+N146+Q146 -> 0 | V146: 0 | W146: 0 | X146: 0.025 | Y146: 0 | Z146: =X146*Y146 -> 0 | AA146: =T146+V146+Y146 -> 0 | AB146: =U146+W146+Z146 -> 0
B147: Sub Total | C147: =SUM(C145:C146) -> 0 | D147: =SUM(D145:D146) -> 0 | E147: =SUM(E145:E146) -> 0 | F147: =SUM(F145:F146) -> 0 | I147: =SUM(I145:I146) -> 0 | J147: 0 | K147: 0 | L147: 0 | M147: 0 | N147: 0 | P147: =SUM(P145:P146) -> 2489 | Q147: 74.67 | R147: 2489 | S147: 74.67 | T147: 0 | U147: 0 | V147: 0 | W147: 0 | Y147: =SUM(Y145:Y146) -> 2489 | Z147: =SUM(Z145:Z146) -> 74.67 | AA147: =SUM(AA145:AA146) -> 2489 | AB147: =SUM(AB145:AB146) -> 74.67
A148: 5 | B148: Reimbursement of Fee against 25% admission under Section 12(1)(c) of RTE Act 2009 (Entry Level) subject to upper limit of 20% of AWP&B subject to guidelines issued by MHRD | C148: 8943 | D148: 172.38831 | E148: =C148 -> 8943 | F148: =D148 -> 172.38831 | G148: 100 | H148: 100 | I148: =C148-E148 -> 0 | J148: =D148-F148 -> 0 | M148: 0 | N148: 0 | P148: 13395 | Q148: 469.91 | R148: =K148+M148+P148 -> 13395 | S148: =L148+N148+Q148 -> 469.91 | V148: 0 | W148: 0 | Z148: 224.28848 | AA148: =T148+V148+Y148 -> 0 | AB148: =U148+W148+Z148 -> 224.28848
B149: Sub Total | C149: =SUM(C148) -> 8943 | D149: =SUM(D148) -> 172.38831 | E149: =SUM(E148) -> 8943 | F149: =SUM(F148) -> 172.38831 | G149: 100 | H149: 100 | I149: =SUM(I148) -> 0 | J149: 0 | K149: 0 | L149: 0 | M149: 0 | N149: 0 | P149: =SUM(P148) -> 13395 | Q149: 469.91 | R149: 13395 | S149: 469.91 | T149: 0 | U149: 0 | V149: 0 | W149: 0 | Y149: =SUM(Y148) -> 0 | Z149: =SUM(Z148) -> 224.28848 | AA149: =SUM(AA148) -> 0 | AB149: =SUM(AB148) -> 224.28848
A150: =+A148+1 -> 6 | B150: Special Training for mainstreaming of out of school children
A151: 6.01 | B151: Residential (Fresh)
B152: (a) 12 months | C152: 0 | D152: 0 | E152: 0 | F152: 0 | G152: =E152/C152*100 ->  | I152: =C152-E152 -> 0 | J152: 0 | M152: 0 | N152: 0 | O152: 0.2 | P152: 0 | Q152: =O152*P152 -> 0 | R152: =K152+M152+P152 -> 0 | S152: 0 | V152: 0 | W152: 0 | X152: 0.2 | Y152: 0 | Z152: =X152*Y152 -> 0 | AA152: =T152+V152+Y152 -> 0 | AB152: 0
B153: (b) 9 months | C153: 0 | D153: 0 | E153: 0 | F153: 0 | I153: 0 | J153: 0 | M153: 0 | N153: 0 | O153: =0.2/12*9 -> 0.15 | P153: 0 | Q153: =O153*P153 -> 0 | R153: 0 | S153: 0 | V153: 0 | W153: 0 | X153: =0.2/12*9 -> 0.15 | Y153: 0 | Z153: =X153*Y153 -> 0 | AA153: 0 | AB153: 0
B154: (c) 6 months | C154: 0 | D154: 0 | E154: 0 | F154: 0 | I154: 0 | J154: 0 | M154: 0 | N154: 0 | O154: 0.105 | P154: 0 | Q154: =O154*P154 -> 0 | R154: 0 | S154: 0 | V154: 0 | W154: 0 | X154: 0.1 | Y154: 0 | Z154: =X154*Y154 -> 0 | AA154: 0 | AB154: 0
B155: (d) 3 months | C155: 0 | D155: 0 | E155: 0 | F155: 0 | I155: 0 | J155: 0 | M155: 0 | N155: 0 | O155: =0.2/12*3 -> 0.05 | P155: 0 | Q155: =O155*P155 -> 0 | R155: 0 | S155: 0 | V155: 0 | W155: 0 | X155: =0.2/12*3 -> 0.05 | Y155: 0 | Z155: =X155*Y155 -> 0 | AA155: 0 | AB155: 0
B156: Sub Total | C156: =SUM(C152:C155) -> 0 | D156: =SUM(D152:D155) -> 0 | E156: =SUM(E152:E155) -> 0 | F156: =SUM(F152:F155) -> 0 | I156: =SUM(I152:I155) -> 0 | J156: 0 | K156: 0 | L156: 0 | M156: 0 | N156: 0 | P156: =SUM(P152:P155) -> 0 | Q156: 0 | R156: 0 | S156: 0 | T156: 0 | U156: 0 | V156: 0 | W156: 0 | Y156: =SUM(Y152:Y155) -> 0 | Z156: =SUM(Z152:Z155) -> 0 | AA156: =SUM(AA152:AA155) -> 0 | AB156: =SUM(AB152:AB155) -> 0
A157: =+A151+0.01 -> 6.02 | B157: Residential (Continuing from previous year)
B158: (a) 12 months | C158: 0 | D158: 0 | E158: 0 | F158: 0 | G158: =E158/C158*100 ->  | I158: =C158-E158 -> 0 | J158: 0 | M158: 0 | N158: 0 | O158: 0.2 | P158: 0 | Q158: =O158*P158 -> 0 | R158: =K158+M158+P158 -> 0 | S158: 0 | V158: 0 | W158: 0 | X158: 0.2 | Y158: 0 | Z158: =X158*Y158 -> 0 | AA158: =T158+V158+Y158 -> 0 | AB158: 0
B159: (b) 9 months | C159: 0 | D159: 0 | E159: 0 | F159: 0 | I159: 0 | J159: 0 | M159: 0 | N159: 0 | O159: =0.2/12*9 -> 0.15 | P159: 0 | Q159: =O159*P159 -> 0 | R159: 0 | S159: 0 | V159: 0 | W159: 0 | X159: =0.2/12*9 -> 0.15 | Y159: 0 | Z159: =X159*Y159 -> 0 | AA159: 0 | AB159: 0
B160: (c) 6 months | C160: 0 | D160: 0 | E160: 0 | F160: 0 | I160: 0 | J160: 0 | M160: 0 | N160: 0 | O160: =0.2/12*6 -> 0.1 | P160: 0 | Q160: =O160*P160 -> 0 | R160: 0 | S160: 0 | V160: 0 | W160: 0 | X160: =0.2/12*6 -> 0.1 | Y160: 0 | Z160: =X160*Y160 -> 0 | AA160: 0 | AB160: 0
B161: (d) 3 months | C161: 0 | D161: 0 | E161: 0 | F161: 0 | I161: 0 | J161: 0 | M161: 0 | N161: 0 | O161: 0.05 | P161: 0 | Q161: =O161*P161 -> 0 | R161: 0 | S161: 0 | V161: 0 | W161: 0 | X161: 0.05 | Y161: 0 | Z161: =X161*Y161 -> 0 | AA161: 0 | AB161: 0
B162: Sub Total | C162: =SUM(C158:C161) -> 0 | D162: =SUM(D158:D161) -> 0 | E162: =SUM(E158:E161) -> 0 | F162: =SUM(F158:F161) -> 0 | I162: =SUM(I158:I161) -> 0 | J162: 0 | K162: 0 | L162: 0 | M162: 0 | N162: 0 | P162: =SUM(P158:P161) -> 0 | Q162: 0 | R162: 0 | S162: 0 | T162: 0 | U162: 0 | V162: 0 | W162: 0 | Y162: =SUM(Y158:Y161) -> 0 | Z162: =SUM(Z158:Z161) -> 0 | AA162: =SUM(AA158:AA161) -> 0 | AB162: =SUM(AB158:AB161) -> 0
A163: 6.03 | B163: Non-Residential (Fresh)
B164: (a) 12 months | C164: 0 | D164: 0 | E164: 0 | F164: 0 | G164: =E164/C164*100 ->  | I164: =C164-E164 -> 0 | J164: 0 | M164: 0 | N164: 0 | O164: 0.06 | P164: 0 | Q164: =O164*P164 -> 0 | R164: =K164+M164+P164 -> 0 | S164: 0 | V164: 0 | W164: 0 | X164: 0.06 | Y164: 0 | Z164: =X164*Y164 -> 0 | AA164: =T164+V164+Y164 -> 0 | AB164: 0
B165: (b) 9 months | C165: 50 | D165: 1.8 | E165: 0 | F165: 0.20772 | G165: 0 | H165: 11.54 | I165: 50 | J165: 1.59228 | M165: 0 | N165: 0 | O165: 0.036 | P165: 0 | Q165: =O165*P165 -> 0 | R165: 0 | S165: 0 | V165: 0 | W165: 0 | X165: 0.036 | Y165: 0 | Z165: =X165*Y165 -> 0 | AA165: 0 | AB165: 0
B166: (c) 6 months | C166: 400 | D166: 9.6 | E166: 0 | F166: 3.02592 | G166: 0 | H166: 31.52 | I166: 400 | J166: 6.57408 | M166: 0 | N166: 0 | O166: 0.031 | P166: 400 | Q166: =O166*P166 -> 12.4 | R166: 400 | S166: 12.4 | V166: 0 | W166: 0 | X166: 0.03 | Y166: 400 | Z166: =X166*Y166 -> 12 | AA166: 400 | AB166: 12
B167: (d) 3 months | C167: 800 | D167: 9.6 | E167: 0 | F167: 3.65184 | G167: 0 | H167: 38.04 | I167: 800 | J167: 5.94816 | M167: 0 | N167: 0 | O167: 0.0155 | P167: 600 | Q167: =O167*P167 -> 9.3 | R167: 600 | S167: 9.3 | V167: 0 | W167: 0 | X167: 0.015 | Y167: 600 | Z167: =X167*Y167 -> 9 | AA167: 600 | AB167: 9
B168: Sub Total | C168: =SUM(C164:C167) -> 1250 | D168: =SUM(D164:D167) -> 21 | E168: =SUM(E164:E167) -> 0 | F168: =SUM(F164:F167) -> 6.88548 | G168: 0 | H168: 32.788 | I168: =SUM(I164:I167) -> 1250 | J168: 14.11452 | K168: 0 | L168: 0 | M168: 0 | N168: 0 | P168: =SUM(P164:P167) -> 1000 | Q168: 21.7 | R168: 1000 | S168: 21.7 | T168: 0 | U168: 0 | V168: 0 | W168: 0 | Y168: =SUM(Y164:Y167) -> 1000 | Z168: =SUM(Z164:Z167) -> 21 | AA168: =SUM(AA164:AA167) -> 1000 | AB168: =SUM(AB164:AB167) -> 21
A169: 6.04 | B169: Non-Residential (Continuing from previous year)
B170: (a) 12 months | C170: 0 | D170: 0 | E170: 0 | F170: 0 | G170: =E170/C170*100 ->  | I170: =C170-E170 -> 0 | J170: 0 | M170: 0 | N170: 0 | O170: =0.06 -> 0.06 | P170: 0 | Q170: =O170*P170 -> 0 | R170: =K170+M170+P170 -> 0 | S170: 0 | V170: 0 | W170: 0 | X170: =0.06 -> 0.06 | Y170: 0 | Z170: =X170*Y170 -> 0 | AA170: =T170+V170+Y170 -> 0 | AB170: 0
B171: (b) 9 months | C171: 0 | D171: 0 | E171: 0 | F171: 0 | I171: 0 | J171: 0 | M171: 0 | N171: 0 | O171: =0.06/12*9 -> 0.045 | P171: 0 | Q171: =O171*P171 -> 0 | R171: 0 | S171: 0 | V171: 0 | W171: 0 | X171: =0.06/12*9 -> 0.045 | Y171: 0 | Z171: =X171*Y171 -> 0 | AA171: 0 | AB171: 0
B172: (c) 6 months | C172: 0 | D172: 0 | E172: 0 | F172: 0 | I172: 0 | J172: 0 | M172: 0 | N172: 0 | O172: =0.06/12*6 -> 0.03 | P172: 0 | Q172: =O172*P172 -> 0 | R172: 0 | S172: 0 | V172: 0 | W172: 0 | X172: =0.06/12*6 -> 0.03 | Y172: 0 | Z172: =X172*Y172 -> 0 | AA172: 0 | AB172: 0
B173: (d) 3 months | C173: 0 | D173: 0 | E173: 0 | F173: 0 | I173: 0 | J173: 0 | M173: 0 | N173: 0 | O173: =0.06/12*3 -> 0.015 | P173: 0 | Q173: =O173*P173 -> 0 | R173: 0 | S173: 0 | V173: 0 | W173: 0 | X173: =0.06/12*3 -> 0.015 | Y173: 0 | Z173: =X173*Y173 -> 0 | AA173: 0 | AB173: 0
B174: Sub Total | C174: =SUM(C170:C173) -> 0 | D174: =SUM(D170:D173) -> 0 | E174: =SUM(E170:E173) -> 0 | F174: =SUM(F170:F173) -> 0 | I174: =SUM(I170:I173) -> 0 | J174: 0 | K174: 0 | L174: 0 | M174: 0 | N174: 0 | P174: =SUM(P170:P173) -> 0 | Q174: 0 | R174: 0 | S174: 0 | T174: 0 | U174: 0 | V174: 0 | W174: 0 | Y174: =SUM(Y170:Y173) -> 0 | Z174: =SUM(Z170:Z173) -> 0 | AA174: =SUM(AA170:AA173) -> 0 | AB174: =SUM(AB170:AB173) -> 0
A175: 6.05 | B175: Madarasa/Maktab
B176: (a) 12 months | C176: 0 | D176: 0 | E176: 0 | F176: 0 | G176: =E176/C176*100 ->  | I176: =C176-E176 -> 0 | J176: 0 | M176: 0 | N176: 0 | O176: =0.06 -> 0.06 | P176: 0 | Q176: =O176*P176 -> 0 | R176: =K176+M176+P176 -> 0 | S176: 0 | V176: 0 | W176: 0 | X176: =0.06 -> 0.06 | Y176: 0 | Z176: =X176*Y176 -> 0 | AA176: =T176+V176+Y176 -> 0 | AB176: 0
B177: (b) 9 months | C177: 0 | D177: 0 | E177: 0 | F177: 0 | I177: 0 | J177: 0 | M177: 0 | N177: 0 | O177: =0.06/12*9 -> 0.045 | P177: 0 | Q177: =O177*P177 -> 0 | R177: 0 | S177: 0 | V177: 0 | W177: 0 | X177: =0.06/12*9 -> 0.045 | Y177: 0 | Z177: =X177*Y177 -> 0 | AA177: 0 | AB177: 0
B178: (c) 6 months | C178: 0 | D178: 0 | E178: 0 | F178: 0 | I178: 0 | J178: 0 | M178: 0 | N178: 0 | O178: 0.0892 | P178: 0 | Q178: =O178*P178 -> 0 | R178: 0 | S178: 0 | V178: 0 | W178: 0 | X178: 0.0892 | Y178: 0 | Z178: =X178*Y178 -> 0 | AA178: 0 | AB178: 0
B179: (d) 3 months | C179: 0 | D179: 0 | E179: 0 | F179: 0 | I179: 0 | J179: 0 | M179: 0 | N179: 0 | O179: =0.06/12*3 -> 0.015 | P179: 0 | Q179: =O179*P179 -> 0 | R179: 0 | S179: 0 | V179: 0 | W179: 0 | X179: =0.06/12*3 -> 0.015 | Y179: 0 | Z179: =X179*Y179 -> 0 | AA179: 0 | AB179: 0
B180: Sub Total | C180: =SUM(C176:C179) -> 0 | D180: =SUM(D176:D179) -> 0 | E180: =SUM(E176:E179) -> 0 | F180: =SUM(F176:F179) -> 0 | I180: =SUM(I176:I179) -> 0 | J180: 0 | K180: 0 | L180: 0 | M180: 0 | N180: 0 | P180: =SUM(P176:P179) -> 0 | Q180: 0 | R180: 0 | S180: 0 | T180: 0 | U180: 0 | V180: 0 | W180: 0 | Y180: =SUM(Y176:Y179) -> 0 | Z180: =SUM(Z176:Z179) -> 0 | AA180: =SUM(AA176:AA179) -> 0 | AB180: =SUM(AB176:AB179) -> 0
A181: 6.06 | B181: Seasonal Hostel (Residential)
B182: (a) 12 months | C182: 0 | D182: 0 | E182: 0 | F182: 0 | G182: =E182/C182*100 ->  | I182: =C182-E182 -> 0 | J182: 0 | M182: 0 | N182: 0 | O182: 0.2 | P182: 0 | Q182: =O182*P182 -> 0 | R182: =K182+M182+P182 -> 0 | S182: 0 | V182: 0 | W182: 0 | X182: 0.2 | Y182: 0 | Z182: =X182*Y182 -> 0 | AA182: =T182+V182+Y182 -> 0 | AB182: 0
B183: (b) 9 months | C183: 0 | D183: 0 | E183: 0 | F183: 0 | I183: 0 | J183: 0 | M183: 0 | N183: 0 | O183: =0.2/12*9 -> 0.15 | P183: 0 | Q183: =O183*P183 -> 0 | R183: 0 | S183: 0 | V183: 0 | W183: 0 | X183: =0.2/12*9 -> 0.15 | Y183: 0 | Z183: =X183*Y183 -> 0 | AA183: 0 | AB183: 0
B184: (c) 6 months | C184: 0 | D184: 0 | E184: 0 | F184: 0 | I184: 0 | J184: 0 | M184: 0 | N184: 0 | O184: 0.0892 | P184: 0 | Q184: =O184*P184 -> 0 | R184: 0 | S184: 0 | V184: 0 | W184: 0 | X184: 0.1 | Y184: 0 | Z184: =X184*Y184 -> 0 | AA184: 0 | AB184: 0
B185: (d) 3 months | C185: 0 | D185: 0 | E185: 0 | F185: 0 | I185: 0 | J185: 0 | M185: 0 | N185: 0 | O185: =0.2/12*3 -> 0.05 | P185: 0 | Q185: =O185*P185 -> 0 | R185: 0 | S185: 0 | V185: 0 | W185: 0 | X185: =0.2/12*3 -> 0.05 | Y185: 0 | Z185: =X185*Y185 -> 0 | AA185: 0 | AB185: 0
B186: Sub Total | C186: =SUM(C182:C185) -> 0 | D186: =SUM(D182:D185) -> 0 | E186: =SUM(E182:E185) -> 0 | F186: =SUM(F182:F185) -> 0 | I186: =SUM(I182:I185) -> 0 | J186: 0 | K186: 0 | L186: 0 | M186: 0 | N186: 0 | P186: =SUM(P182:P185) -> 0 | Q186: 0 | R186: 0 | S186: 0 | T186: 0 | U186: 0 | V186: 0 | W186: 0 | Y186: =SUM(Y182:Y185) -> 0 | Z186: =SUM(Z182:Z185) -> 0 | AA186: =SUM(AA182:AA185) -> 0 | AB186: =SUM(AB182:AB185) -> 0
A187: 6.07 | B187: Seasonal Hostel (Non Residential)
B188: (a) 12 months | C188: 0 | D188: 0 | E188: 0 | F188: 0 | G188: =E188/C188*100 ->  | I188: =C188-E188 -> 0 | J188: 0 | M188: 0 | N188: 0 | O188: =0.06 -> 0.06 | P188: 0 | Q188: =O188*P188 -> 0 | R188: =K188+M188+P188 -> 0 | S188: 0 | V188: 0 | W188: 0 | X188: =0.06 -> 0.06 | Y188: 0 | Z188: =X188*Y188 -> 0 | AA188: =T188+V188+Y188 -> 0 | AB188: 0
B189: (b) 9 months | C189: 0 | D189: 0 | E189: 0 | F189: 0 | I189: 0 | J189: 0 | M189: 0 | N189: 0 | O189: =0.06/12*9 -> 0.045 | P189: 0 | Q189: =O189*P189 -> 0 | R189: 0 | S189: 0 | V189: 0 | W189: 0 | X189: =0.06/12*9 -> 0.045 | Y189: 0 | Z189: =X189*Y189 -> 0 | AA189: 0 | AB189: 0
B190: (c) 6 months | C190: 0 | D190: 0 | E190: 0 | F190: 0 | I190: 0 | J190: 0 | M190: 0 | N190: 0 | O190: =0.06/12*6 -> 0.03 | P190: 0 | Q190: =O190*P190 -> 0 | R190: 0 | S190: 0 | V190: 0 | W190: 0 | X190: =0.06/12*6 -> 0.03 | Y190: 0 | Z190: =X190*Y190 -> 0 | AA190: 0 | AB190: 0
B191: (d) 3 months | C191: 0 | D191: 0 | E191: 0 | F191: 0 | I191: 0 | J191: 0 | M191: 0 | N191: 0 | O191: =0.06/12*3 -> 0.015 | P191: 0 | Q191: =O191*P191 -> 0 | R191: 0 | S191: 0 | V191: 0 | W191: 0 | X191: =0.06/12*3 -> 0.015 | Y191: 0 | Z191: =X191*Y191 -> 0 | AA191: 0 | AB191: 0
B192: Sub Total | C192: 0 | D192: 0 | E192: =SUM(E188:E191) -> 0 | F192: =SUM(F188:F191) -> 0 | I192: =SUM(I188:I191) -> 0 | J192: 0 | K192: 0 | L192: 0 | M192: 0 | N192: 0 | P192: =SUM(P188:P191) -> 0 | Q192: 0 | R192: 0 | S192: 0 | T192: 0 | U192: 0 | V192: 0 | W192: 0 | Y192: =SUM(Y188:Y191) -> 0 | Z192: =SUM(Z188:Z191) -> 0 | AA192: =SUM(AA188:AA191) -> 0 | AB192: =SUM(AB188:AB191) -> 0
B193: Total | C193: =C156+C162+C168+C174+C180+C186+C192 -> 1250 | D193: =D156+D162+D168+D174+D180+D186+D192 -> 21 | E193: =E156+E162+E168+E174+E180+E186+E192 -> 0 | F193: =F156+F162+F168+F174+F180+F186+F192 -> 6.88548 | G193: 0 | H193: 32.788 | I193: =I156+I162+I168+I174+I180+I186+I192 -> 1250 | J193: 14.11452 | K193: 0 | L193: 0 | M193: 0 | N193: 0 | P193: =P156+P162+P168+P174+P180+P186+P192 -> 1000 | Q193: 21.7 | R193: 1000 | S193: 21.7 | T193: 0 | U193: 0 | V193: 0 | W193: 0 | Y193: =Y156+Y162+Y168+Y174+Y180+Y186+Y192 -> 1000 | Z193: =Z156+Z162+Z168+Z174+Z180+Z186+Z192 -> 21 | AA193: =AA156+AA162+AA168+AA174+AA180+AA186+AA192 -> 1000 | AB193: =AB156+AB162+AB168+AB174+AB180+AB186+AB192 -> 21
A194: II | B194: RETENTION
A195: 7 | B195: Free Text Books
A196: 7.01 | B196: Free Text Books (UP) TOPUP | Q196: =O196*P196 -> 0 | R196: =K196+M196+P196 -> 0 | S196: =L196+N196+Q196 -> 0 | Z196: =X196*Y196 -> 0 | AA196: =T196+V196+Y196 -> 0 | AB196: =U196+W196+Z196 -> 0
B197: (a) Class I & II | Q197: 0 | R197: 0 | S197: 0 | Z197: 0 | AA197: 0 | AB197: 0
B198: (b) Braille Books Class I & II | O198: 0.0015 | P198: 10 | Q198: 0.015 | R198: 10 | S198: 0.015 | X198: 0.0015 | Y198: 10 | Z198: 0.015 | AA198: 10 | AB198: 0.015 | AD198: =Y198*X198 -> 0.015
B199: (c) Large Print Books Class I & II | O199: 0.0015 | P199: 31 | Q199: 0.0465 | R199: 31 | S199: 0.0465 | X199: 0.0015 | Y199: 31 | Z199: 0.0465 | AA199: 31 | AB199: 0.0465 | AD199: 0.0465
B200: (d) Class III to V | Q200: 0 | R200: 0 | S200: 0 | Z200: 0 | AA200: 0 | AB200: 0 | AD200: 0
... 295 more rows

Sheet BHARATPUR
A1: S.No. | B1: Activity | C1: Year 2016-17 | K1: n | T1: Outlay Recommended for 2017-18 | AC1: Remarks
C2: Outlay approved by PAB (including spillover) | E2: Anticipated Achievement upto March 2017 | I2: Savings | K2: Spill Over | M2: Deferred laibility of 2014-15 | O2: Fresh | R2: Total | T2: Spill Over | V2: Deferred laibility of 2014-15 | X2: Fresh | AA2: Total
C3: Phy. | D3: Fin | E3: Phy. | F3: Fin. | G3: Phy. (%) | H3: Fin. (%) | I3: Phy. | J3: Fin. | K3: Phy. | L3: Fin. | M3: Phy. | N3: Fin. | O3: Unit Cost | P3: Phy. | Q3: Fin. | R3: Phy. | S3: Fin. | T3: Phy. | U3: Fin. | V3: Phy. | W3: Fin. | X3: Unit Cost | Y3: Phy. | Z3: Fin. | AA3: Phy. | AB3: Fin.
A4: I | B4: ACCESS
B5: SSA
A6: 1 | B6: Opening of New Schools
A7: 1.01 | B7: New Primary School | C7: 0 | D7: 0 | E7: 0 | F7: 0 | G7: =E7/C7*100 ->  | H7: =F7/D7*100 ->  | I7: =C7-E7 -> 0 | J7: =D7-F7 -> 0 | K7: 0 | L7: 0 | M7: 0 | N7: 0 | P7: 0 | Q7: =O7*P7 -> 0 | R7: =K7+M7+P7 -> 0 | S7: =L7+N7+Q7 -> 0 | T7: 0 | U7: 0 | V7: 0 | W7: 0 | Y7: 0 | Z7: =X7*Y7 -> 0 | AA7: =T7+V7+Y7 -> 0 | AB7: =U7+W7+Z7 -> 0
A8: 1.02 | B8: Upgradation of PS to UPS | C8: 0 | D8: 0 | E8: 0 | F8: 0 | G8: =E8/C8*100 ->  | H8: =F8/D8*100 ->  | I8: =C8-E8 -> 0 | J8: =D8-F8 -> 0 | K8: 0 | L8: 0 | M8: 0 | N8: 0 | P8: 0 | Q8: =O8*P8 -> 0 | R8: =K8+M8+P8 -> 0 | S8: 0 | T8: 0 | U8: 0 | V8: 0 | W8: 0 | Y8: 0 | Z8: =X8*Y8 -> 0 | AA8: =T8+V8+Y8 -> 0 | AB8: 0
A9: 1.03 | B9: Composite Schools | C9: 0 | D9: 0 | E9: 0 | F9: 0 | I9: 0 | J9: 0 | K9: 0 | L9: 0 | M9: 0 | N9: 0 | P9: 0 | Q9: 0 | R9: 0 | S9: 0 | T9: 0 | U9: 0 | V9: 0 | W9: 0 | Y9: 0 | Z9: 0 | AA9: 0 | AB9: 0
A10: 1.04 | B10: Residential schools for specific category of children | C10: 0 | D10: 0 | E10: 0 | F10: 0 | I10: 0 | J10: 0 | K10: 0 | L10: 0 | M10: 0 | N10: 0 | P10: 0 | Q10: 0 | R10: 0 | S10: 0 | T10: 0 | U10: 0 | V10: 0 | W10: 0 | Y10: 0 | Z10: 0 | AA10: 0 | AB10: 0
A11: 1.05 | B11: Residential Hostel | C11: 0 | D11: 0 | E11: 0 | F11: 0 | I11: 0 | J11: 0 | K11: 0 | L11: 0 | M11: 0 | N11: 0 | P11: 0 | Q11: 0 | R11: 0 | S11: 0 | T11: 0 | U11: 0 | V11: 0 | W11: 0 | Y11: 0 | Z11: 0 | AA11: 0 | AB11: 0
A12: 1.06 | B12: Integration of Class V with primary schools | C12: 0 | D12: 0 | E12: 0 | F12: 0 | I12: 0 | J12: 0 | K12: 0 | L12: 0 | M12: 0 | N12: 0 | P12: 0 | Q12: 0 | R12: 0 | S12: 0 | T12: 0 | U12: 0 | V12: 0 | W12: 0 | Y12: 0 | Z12: 0 | AA12: 0 | AB12: 0
A13: 1.07 | B13: Integration of Class VIII with upper primary schools | C13: 0 | D13: 0 | E13: 0 | F13: 0 | I13: 0 | J13: 0 | K13: 0 | L13: 0 | M13: 0 | N13: 0 | P13: 0 | Q13: 0 | R13: 0 | S13: 0 | T13: 0 | U13: 0 | V13: 0 | W13: 0 | Y13: 0 | Z13: 0 | AA13: 0 | AB13: 0
A14: 2 | B14: Residential Schools for specific category of children
B15: 50 children
B16: Non-recurring (one time grant)
A17: 2.01 | B17: Furniture/ Equipment (including kitchen) | C17: 0 | D17: 0 | E17: 0 | F17: 0 | G17: =E17/C17*100 ->  | I17: =C17-E17 -> 0 | J17: 0 | M17: 0 | N17: 0 | O17: 2 | P17: 0 | Q17: =O17*P17 -> 0 | R17: =K17+M17+P17 -> 0 | S17: 0 | V17: 0 | W17: 0 | X17: 2 | Y17: 0 | Z17: =X17*Y17 -> 0 | AA17: =T17+V17+Y17 -> 0 | AB17: 0
A18: 2.02 | B18: TLM and equipment including library books | C18: 0 | D18: 0 | E18: 0 | F18: 0 | I18: 0 | J18: 0 | M18: 0 | N18: 0 | O18: 3 | P18: 0 | Q18: =O18*P18 -> 0 | R18: 0 | S18: 0 | V18: 0 | W18: 0 | X18: 3 | Y18: 0 | Z18: =X18*Y18 -> 0 | AA18: 0 | AB18: 0
A19: 2.03 | B19: Bedding (new) | C19: 0 | D19: 0 | E19: 0 | F19: 0 | I19: 0 | J19: 0 | M19: 0 | N19: 0 | O19: 0.375 | P19: 0 | Q19: =O19*P19 -> 0 | R19: 0 | S19: 0 | V19: 0 | W19: 0 | X19: 0.375 | Y19: 0 | Z19: =X19*Y19 -> 0 | AA19: 0 | AB19: 0
A20: 2.04 | B20: Replacement of bedding (once in 3 years) | C20: 0 | D20: 0 | E20: 0 | F20: 0 | I20: 0 | J20: 0 | M20: 0 | N20: 0 | O20: 0.0075 | P20: 0 | Q20: =O20*P20 -> 0 | R20: 0 | S20: 0 | V20: 0 | W20: 0 | X20: 0.0075 | Y20: 0 | Z20: =X20*Y20 -> 0 | AA20: 0 | AB20: 0
B21: Sub Total (Non Recurring) | C21: =SUM(C17:C20) -> 0 | D21: =SUM(D17:D20) -> 0 | E21: =SUM(E17:E20) -> 0 | F21: =SUM(F17:F20) -> 0 | I21: =SUM(I17:I20) -> 0 | J21: 0 | K21: 0 | L21: 0 | M21: 0 | N21: 0 | P21: =SUM(P17:P20) -> 0 | Q21: 0 | R21: 0 | S21: 0 | T21: 0 | U21: 0 | V21: 0 | W21: 0 | Y21: =SUM(Y17:Y20) -> 0 | Z21: =SUM(Z17:Z20) -> 0 | AA21: =SUM(AA17:AA20) -> 0 | AB21: =SUM(AB17:AB20) -> 0
B22: Recurring (50 children)
A23: 2.05 | B23: Maintenance per child Per month @ Rs.1500/- | C23: 0 | D23: 0 | E23: 0 | F23: 0 | G23: =E23/C23*100 ->  | I23: =C23-E23 -> 0 | J23: 0 | M23: 0 | N23: 0 | O23: 0.18 | P23: 0 | Q23: =O23*P23 -> 0 | R23: =K23+M23+P23 -> 0 | S23: 0 | V23: 0 | W23: 0 | X23: 0.18 | Y23: 0 | Z23: =X23*Y23 -> 0 | AA23: =T23+V23+Y23 -> 0 | AB23: 0
A24: 2.06 | B24: Stipend per child per month @ Rs.100/- | C24: 0 | D24: 0 | E24: 0 | F24: 0 | I24: 0 | J24: 0 | M24: 0 | N24: 0 | O24: 0.012 | P24: 0 | Q24: =O24*P24 -> 0 | R24: 0 | S24: 0 | V24: 0 | W24: 0 | X24: 0.012 | Y24: 0 | Z24: =X24*Y24 -> 0 | AA24: 0 | AB24: 0
A25: 2.07 | B25: Supplementary TLM, Stationery and other educational material @Rs.1000/- per child per annum | C25: 0 | D25: 0 | E25: 0 | F25: 0 | I25: 0 | J25: 0 | M25: 0 | N25: 0 | O25: 0.01 | P25: 0 | Q25: =O25*P25 -> 0 | R25: 0 | S25: 0 | V25: 0 | W25: 0 | X25: 0.01 | Y25: 0 | Z25: =X25*Y25 -> 0 | AA25: 0 | AB25: 0
A26: 2.08 | B26: Salaries | C26: 0 | D26: 0 | E26: 0 | F26: 0
A27: (a) | B27: 1 Warden @ Rs.25000/- per month | C27: 0 | D27: 0 | E27: 0 | F27: 0 | G27: =E27/C27*100 ->  | H27: =F27/D27*100 ->  | I27: =C27-E27 -> 0 | J27: =D27-F27 -> 0 | M27: 0 | N27: 0 | O27: 3 | P27: 0 | Q27: =O27*P27 -> 0 | R27: =K27+M27+P27 -> 0 | S27: =L27+N27+Q27 -> 0 | V27: 0 | W27: 0 | X27: 3 | Y27: 0 | Z27: =X27*Y27 -> 0 | AA27: =T27+V27+Y27 -> 0 | AB27: =U27+W27+Z27 -> 0
A28: (b) | B28: 4 Fulltime teachers as per RTE Norms @ Rs. 20,000/- per month per teacher | C28: 0 | D28: 0 | E28: 0 | F28: 0 | I28: 0 | J28: 0 | M28: 0 | N28: 0 | O28: 0 | P28: 0 | Q28: 0 | R28: 0 | S28: 0 | V28: 0 | W28: 0 | X28: 0 | Y28: 0 | Z28: 0 | AA28: 0 | AB28: 0
A29: (c) | B29: 2 Urdu Teachers (only for Blocks with muslim population above 20% and select urban areas) @ Rs.12,000/- per month per teacher. | C29: 0 | D29: 0 | E29: 0 | F29: 0 | I29: 0 | J29: 0 | M29: 0 | N29: 0 | O29: 0 | P29: 0 | Q29: 0 | R29: 0 | S29: 0 | V29: 0 | W29: 0 | X29: 0 | Y29: 0 | Z29: 0 | AA29: 0 | AB29: 0
A30: (d) | B30: 3 Part time teachers @ Rs.5,000/- per month per teacher | C30: 0 | D30: 0 | E30: 0 | F30: 0 | I30: 0 | J30: 0 | M30: 0 | N30: 0 | O30: 0 | P30: 0 | Q30: 0 | R30: 0 | S30: 0 | V30: 0 | W30: 0 | X30: 0 | Y30: 0 | Z30: 0 | AA30: 0 | AB30: 0
A31: (e) | B31: 1 Full time Accountant @ Rs. 10,000/- per month | C31: 0 | D31: 0 | E31: 0 | F31: 0 | I31: 0 | J31: 0 | M31: 0 | N31: 0 | O31: 1.2 | P31: 0 | Q31: 0 | R31: 0 | S31: 0 | V31: 0 | W31: 0 | X31: 1.2 | Y31: 0 | Z31: 0 | AA31: 0 | AB31: 0
A32: (f) | B32: 2 Support staff - (Accountant/Assistant, Peon, Chowkidar) @ Rs. 5,000/- per month per staff | C32: 0 | D32: 0 | E32: 0 | F32: 0 | I32: 0 | J32: 0 | M32: 0 | N32: 0 | O32: 0.6 | P32: 0 | Q32: 0 | R32: 0 | S32: 0 | V32: 0 | W32: 0 | X32: 0.6 | Y32: 0 | Z32: 0 | AA32: 0 | AB32: 0
A33: (g) | B33: 1 Head Cook @ Rs. 6,000/- per month and upto 2 Asstt. Cooks @ Rs. 4,500/- per month per cook | C33: 0 | D33: 0 | E33: 0 | F33: 0 | I33: 0 | J33: 0 | M33: 0 | N33: 0 | O33: 1.8 | P33: 0 | Q33: 0 | R33: 0 | S33: 0 | V33: 0 | W33: 0 | X33: 1.8 | Y33: 0 | Z33: 0 | AA33: 0 | AB33: 0
A34: 2.09 | B34: Specific Skill training @ Rs.1000/- per annum per child | C34: 0 | D34: 0 | E34: 0 | F34: 0 | I34: 0 | J34: 0 | M34: 0 | N34: 0 | O34: 0 | P34: 0 | Q34: 0 | R34: 0 | S34: 0 | V34: 0 | W34: 0 | X34: 0 | Y34: 0 | Z34: 0 | AA34: 0 | AB34: 0
A35: 2.1 | B35: Electricity / water charges @ Rs. 1000/- per annum per child | C35: 0 | D35: 0 | E35: 0 | F35: 0 | I35: 0 | J35: 0 | M35: 0 | N35: 0 | O35: 0.01 | P35: 0 | Q35: 0 | R35: 0 | S35: 0 | V35: 0 | W35: 0 | X35: 0.01 | Y35: 0 | Z35: 0 | AA35: 0 | AB35: 0
A36: =+A35+0.01 -> 2.11 | B36: Medical care/contingencies @ Rs.1250/- per annum per child | C36: 0 | D36: 0 | E36: 0 | F36: 0 | I36: 0 | J36: 0 | M36: 0 | N36: 0 | O36: 0.0125 | P36: 0 | Q36: 0 | R36: 0 | S36: 0 | V36: 0 | W36: 0 | X36: 0.0125 | Y36: 0 | Z36: 0 | AA36: 0 | AB36: 0
A37: =+A36+0.01 -> 2.12 | B37: Maintenance @ Rs. 750/- per child per annum | C37: 0 | D37: 0 | E37: 0 | F37: 0 | I37: 0 | J37: 0 | M37: 0 | N37: 0 | O37: 0.0075 | P37: 0 | Q37: 0 | R37: 0 | S37: 0 | V37: 0 | W37: 0 | X37: 0.0075 | Y37: 0 | Z37: 0 | AA37: 0 | AB37: 0
A38: 2.13 | B38: Miscellaneous @ Rs. 750/- per child per annum | C38: 0 | D38: 0 | E38: 0 | F38: 0 | I38: 0 | J38: 0 | M38: 0 | N38: 0 | O38: 0.0075 | P38: 0 | Q38: 0 | R38: 0 | S38: 0 | V38: 0 | W38: 0 | X38: 0.0075 | Y38: 0 | Z38: 0 | AA38: 0 | AB38: 0
A39: 2.14 | B39: Preparatory camps @ Rs. 300/- per child per annum | C39: 0 | D39: 0 | E39: 0 | F39: 0 | I39: 0 | J39: 0 | M39: 0 | N39: 0 | O39: 0 | P39: 0 | Q39: 0 | R39: 0 | S39: 0 | V39: 0 | W39: 0 | X39: 0 | Y39: 0 | Z39: 0 | AA39: 0 | AB39: 0
A40: 2.15 | B40: P.T.A / school functions @ Rs. 300/- per child per annum | C40: 0 | D40: 0 | E40: 0 | F40: 0 | I40: 0 | J40: 0 | M40: 0 | N40: 0 | O40: 0.003 | P40: 0 | Q40: 0 | R40: 0 | S40: 0 | V40: 0 | W40: 0 | X40: 0.003 | Y40: 0 | Z40: 0 | AA40: 0 | AB40: 0
A41: 2.16 | B41: Provision of Rent @ Rs. 10,000/- per child per annum | C41: 0 | D41: 0 | E41: 0 | F41: 0 | I41: 0 | J41: 0 | M41: 0 | N41: 0 | O41: 0 | P41: 0 | Q41: 0 | R41: 0 | S41: 0 | V41: 0 | W41: 0 | X41: 0 | Y41: 0 | Z41: 0 | AA41: 0 | AB41: 0
A42: 2.17 | B42: Capacity Building @ Rs. 500/- per child per annum | C42: 0 | D42: 0 | E42: 0 | F42: 0 | I42: 0 | J42: 0 | M42: 0 | N42: 0 | O42: 0.005 | P42: 0 | Q42: 0 | R42: 0 | S42: 0 | V42: 0 | W42: 0 | X42: 0.005 | Y42: 0 | Z42: 0 | AA42: 0 | AB42: 0
A43: 2.18 | B43: Physical / Self Defence Training @ Rs.200/- per child per annum | C43: 0 | D43: 0 | E43: 0 | F43: 0 | I43: 0 | J43: 0 | M43: 0 | N43: 0 | O43: 0 | P43: 0 | Q43: 0 | R43: 0 | S43: 0 | V43: 0 | W43: 0 | X43: 0 | Y43: 0 | Z43: 0 | AA43: 0 | AB43: 0
B44: Sub Total (Recurring) | C44: =C23 -> 0 | D44: =SUM(D23:D43) -> 0 | E44: =E23 -> 0 | F44: =SUM(F23:F43) -> 0 | G44: =E44/C44*100 ->  | H44: =F44/D44*100 ->  | I44: =I23 -> 0 | J44: =SUM(J23:J43) -> 0 | K44: =SUM(K23:K43) -> 0 | L44: =SUM(L23:L43) -> 0 | M44: =SUM(M23:M43) -> 0 | N44: =SUM(N23:N43) -> 0 | P44: =P23 -> 0 | Q44: =SUM(Q23:Q43) -> 0 | R44: =R23 -> 0 | S44: =SUM(S23:S43) -> 0 | T44: =SUM(T23:T43) -> 0 | U44: =SUM(U23:U43) -> 0 | V44: =SUM(V23:V43) -> 0 | W44: =SUM(W23:W43) -> 0 | Y44: =Y23 -> 0 | Z44: =SUM(Z23:Z43) -> 0 | AA44: =AA23 -> 0 | AB44: =SUM(AB23:AB43) -> 0
B45: Total (Non Recurring + Recurring) | C45: =C44 -> 0 | D45: =SUM(D21+D44) -> 0 | E45: =E44 -> 0 | F45: =SUM(F21+F44) -> 0 | G45: =E45/C45*100 ->  | H45: =F45/D45*100 ->  | I45: =I44 -> 0 | J45: =SUM(J21+J44) -> 0 | K45: =SUM(K21+K44) -> 0 | L45: =SUM(L21+L44) -> 0 | M45: =SUM(M21+M44) -> 0 | N45: =SUM(N21+N44) -> 0 | P45: =P44 -> 0 | Q45: =SUM(Q21+Q44) -> 0 | R45: =R44 -> 0 | S45: =SUM(S21+S44) -> 0 | T45: =SUM(T21+T44) -> 0 | U45: =SUM(U21+U44) -> 0 | V45: =SUM(V21+V44) -> 0 | W45: =SUM(W21+W44) -> 0 | Y45: =Y44 -> 0 | Z45: =SUM(Z21+Z44) -> 0 | AA45: =AA44 -> 0 | AB45: =SUM(AB21+AB44) -> 0
B46: 100 children
B47: Non-recurring (one time grant)
A48: 2.19 | B48: Furniture / Equipment (including kitchen equipment) | C48: 0 | D48: 0 | E48: 0 | F48: 0 | G48: =E48/C48*100 ->  | I48: =C48-E48 -> 0 | J48: 0 | M48: 0 | N48: 0 | O48: 3 | P48: 0 | Q48: =O48*P48 -> 0 | R48: =K48+M48+P48 -> 0 | S48: 0 | V48: 0 | W48: 0 | X48: 3 | Y48: 0 | Z48: =X48*Y48 -> 0 | AA48: =T48+V48+Y48 -> 0 | AB48: 0
A49: =+A48+0.01 -> 2.2 | B49: TLM and equipment including library books (New) | C49: 0 | D49: 0 | E49: 0 | F49: 0 | I49: 0 | J49: 0 | M49: 0 | N49: 0 | O49: 3.5 | P49: 0 | Q49: =O49*P49 -> 0 | R49: 0 | S49: 0 | V49: 0 | W49: 0 | X49: 3.5 | Y49: 0 | Z49: =X49*Y49 -> 0 | AA49: 0 | AB49: 0
A50: =+A49+0.01 -> 2.21 | B50: Bedding (New) | C50: 0 | D50: 0 | E50: 0 | F50: 0 | I50: 0 | J50: 0 | M50: 0 | N50: 0 | O50: 0.75 | P50: 0 | Q50: =O50*P50 -> 0 | R50: 0 | S50: 0 | V50: 0 | W50: 0 | X50: 0.75 | Y50: 0 | Z50: =X50*Y50 -> 0 | AA50: 0 | AB50: 0
A51: =+A50+0.01 -> 2.22 | B51: Replacement of bedding (once in 3 years) | C51: 100 | D51: 0.75 | E51: 100 | F51: 0.749 | G51: 100 | H51: 99.86666667 | I51: 0 | J51: 0.001 | M51: 0 | N51: 0 | O51: 0.0075 | P51: 0 | Q51: =O51*P51 -> 0 | R51: 0 | S51: 0 | V51: 0 | W51: 0 | X51: 0.0075 | Y51: 0 | Z51: =X51*Y51 -> 0 | AA51: 0 | AB51: 0
B52: Sub Total Non-recurring | C52: =SUM(C48:C51) -> 100 | D52: =SUM(D48:D51) -> 0.75 | E52: =SUM(E48:E51) -> 100 | F52: =SUM(F48:F51) -> 0.749 | G52: 100 | H52: 99.86666667 | I52: =SUM(I48:I51) -> 0 | J52: 0.001 | K52: 0 | L52: 0 | M52: 0 | N52: 0 | P52: =SUM(P48:P51) -> 0 | Q52: 0 | R52: 0 | S52: 0 | T52: 0 | U52: 0 | V52: 0 | W52: 0 | Y52: =SUM(Y48:Y51) -> 0 | Z52: =SUM(Z48:Z51) -> 0 | AA52: =SUM(AA48:AA51) -> 0 | AB52: =SUM(AB48:AB51) -> 0
B53: Recurring
A54: 2.23 | B54: Maintenance per child per month @ Rs. 1500/- | C54: 100 | D54: 18 | E54: 100 | F54: 11.03 | G54: =E54/C54*100 -> 100 | H54: =F54/D54*100 -> 61.27777778 | I54: =C54-E54 -> 0 | J54: =D54-F54 -> 6.97 | M54: 0 | N54: 0 | O54: 0.18 | P54: 100 | Q54: =O54*P54 -> 18 | R54: =K54+M54+P54 -> 100 | S54: 18 | V54: 0 | W54: 0 | X54: 0.18 | Y54: 100 | Z54: =X54*Y54 -> 18 | AA54: =T54+V54+Y54 -> 100 | AB54: 18
A55: =+A54+0.01 -> 2.24 | B55: Stipend per child per month @ Rs.100/- | C55: 100 | D55: 1.2 | E55: 100 | F55: 1.2 | G55: 100 | H55: 100 | I55: 0 | J55: 0 | M55: 0 | N55: 0 | O55: 0.012 | P55: 100 | Q55: =O55*P55 -> 1.2 | R55: 100 | S55: 1.2 | V55: 0 | W55: 0 | X55: 0.012 | Y55: 100 | Z55: =X55*Y55 -> 1.2 | AA55: 100 | AB55: 1.2
A56: 2.25 | B56: Supplementary TLM, Stationery and other educational material per child @1000/- per annum | C56: 100 | D56: 1 | E56: 100 | F56: 0.617 | G56: 100 | H56: 61.7 | I56: 0 | J56: 0.383 | M56: 0 | N56: 0 | O56: 0.01 | P56: 100 | Q56: =O56*P56 -> 1 | R56: 100 | S56: 1 | V56: 0 | W56: 0 | X56: 0.01 | Y56: 100 | Z56: =X56*Y56 -> 1 | AA56: 100 | AB56: 1
A57: 2.26 | B57: Salaries
A58: (a) | B58: 1 Warden @ Rs. 25,000/- per month | C58: 1 | D58: 3 | E58: 1 | F58: 2 | G58: 100 | H58: 66.66666667 | I58: 0 | J58: 1 | M58: 0 | N58: 0 | O58: 3 | P58: 1 | Q58: =O58*P58 -> 3 | R58: =K58+M58+P58 -> 1 | S58: =L58+N58+Q58 -> 3 | V58: 0 | W58: 0 | X58: 3 | Y58: 1 | Z58: =X58*Y58 -> 3 | AA58: =T58+V58+Y58 -> 1 | AB58: =U58+W58+Z58 -> 3
A59: (b) | B59: 1 head teacher @ Rs. 25,000/- per month in case the enrollment exceeds 100 | C59: 0 | D59: 0 | E59: 0 | F59: 0 | I59: 0 | J59: 0 | M59: 0 | N59: 0 | O59: 3 | P59: 0 | Q59: 0 | R59: 0 | S59: 0 | V59: 0 | W59: 0 | X59: 3 | Y59: 1 | Z59: 3 | AA59: 1 | AB59: 3
A60: (c) | B60: 4 - 5 Full time teachers as per RTE norms @ Rs. 20,000/- per month per teacher | C60: 2 | D60: 4.8 | E60: 2 | F60: 2.8 | G60: 100 | H60: 58.33333333 | I60: 0 | J60: 2 | M60: 0 | N60: 0 | O60: 2.4 | P60: 2 | Q60: 4.8 | R60: 2 | S60: 4.8 | V60: 0 | W60: 0 | X60: =0.2*12*4 -> 9.6 | Y60: 1 | Z60: 9.6 | AA60: 1 | AB60: 9.6
A61: (d) | B61: 2 Urdu Teachers (only for blocks with muslim population above 20% and select urban areas), if required @ Rs. 12,000/- per month per teacher | C61: 0 | D61: 0 | E61: 0 | F61: 0 | I61: 0 | J61: 0 | M61: 0 | N61: 0 | O61: 0 | P61: 0 | Q61: 0 | R61: 0 | S61: 0 | V61: 0 | W61: 0 | X61: 0 | Y61: 0 | Z61: 0 | AA61: 0 | AB61: 0
A62: (e) | B62: 3 part time teachers @ Rs. 5,000/- per month per teacher | C62: 0 | D62: 0 | E62: 0 | F62: 0 | I62: 0 | J62: 0 | M62: 0 | N62: 0 | O62: 0.6 | P62: 0 | Q62: 0 | R62: 0 | S62: 0 | V62: 0 | W62: 0 | X62: =0.05*12*3 -> 1.8 | Y62: 1 | Z62: 1.8 | AA62: 1 | AB62: 1.8
A63: (f) | B63: 1 Full time Accountant @ Rs. 10,000/- per month | C63: 1 | D63: 1.2 | E63: 1 | F63: 1.2 | G63: 100 | H63: 100 | I63: 0 | J63: 0 | M63: 0 | N63: 0 | O63: 1.2 | P63: 1 | Q63: 1.2 | R63: 1 | S63: 1.2 | V63: 0 | W63: 0 | X63: 1.2 | Y63: 1 | Z63: 1.2 | AA63: 1 | AB63: 1.2
A64: (g) | B64: 2 Support Staff – (Accountant/ Assistant, Peon, Chowkidar) @ Rs. 5,000/- per month per staff | C64: 2 | D64: 1.2 | E64: 2 | F64: 1.2 | G64: 100 | H64: 100 | I64: 0 | J64: 0 | M64: 0 | N64: 0 | O64: 0.6 | P64: 2 | Q64: 1.2 | R64: 2 | S64: 1.2 | V64: 0 | W64: 0 | X64: =0.05*12*2 -> 1.2 | Y64: 1 | Z64: 1.2 | AA64: 1 | AB64: 1.2
A65: (h) | B65: 1 Head cook @ Rs. 6,000/- per month and upto 2 Asstt. Cooks @ Rs. 4,500/- per month per cook | C65: 1 | D65: 1.8 | E65: 1 | F65: 1.8 | G65: 100 | H65: 100 | I65: 0 | J65: 0 | M65: 0 | N65: 0 | O65: 1.8 | P65: 1 | Q65: 1.8 | R65: 1 | S65: 1.8 | V65: 0 | W65: 0 | X65: 1.8 | Y65: 1 | Z65: 1.8 | AA65: 1 | AB65: 1.8
A66: 2.27 | B66: Specific skill training per child @ Rs.1000/- per annum | C66: 0 | D66: 0 | E66: 0 | F66: 0 | I66: 0 | J66: 0 | M66: 0 | N66: 0 | O66: 0 | P66: 0 | Q66: 0 | R66: 0 | S66: 0 | V66: 0 | W66: 0 | X66: 0.01 | Y66: 100 | Z66: 1 | AA66: 100 | AB66: 1
A67: 2.28 | B67: Electricity / water charges per child @Rs.1000/- per annum | C67: 100 | D67: 1 | E67: 100 | F67: 0.8 | G67: 100 | H67: 80 | I67: 0 | J67: 0.2 | M67: 0 | N67: 0 | O67: 0.01 | P67: 100 | Q67: 1 | R67: 100 | S67: 1 | V67: 0 | W67: 0 | X67: 0.01 | Y67: 100 | Z67: 1 | AA67: 100 | AB67: 1
A68: 2.29 | B68: Medical care/contingencies @ Rs.1250/- per child per annum | C68: 100 | D68: 1.25 | E68: 100 | F68: 0.5 | G68: 100 | H68: 40 | I68: 0 | J68: 0.75 | M68: 0 | N68: 0 | O68: 0.0125 | P68: 100 | Q68: 1.25 | R68: 100 | S68: 1.25 | V68: 0 | W68: 0 | X68: 0.0125 | Y68: 100 | Z68: 1.25 | AA68: 100 | AB68: 1.25
A69: 2.3 | B69: Maintenance @ Rs.750/- per child per annum | C69: 100 | D69: 0.75 | E69: 100 | F69: 0.6 | G69: 100 | H69: 80 | I69: 0 | J69: 0.15 | M69: 0 | N69: 0 | O69: 0.0075 | P69: 100 | Q69: 0.75 | R69: 100 | S69: 0.75 | V69: 0 | W69: 0 | X69: 0.0075 | Y69: 100 | Z69: 0.75 | AA69: 100 | AB69: 0.75
A70: 2.31 | B70: Miscellaneous @ Rs.750/- per child per annum | C70: 100 | D70: 0.75 | E70: 100 | F70: 0.75 | G70: 100 | H70: 100 | I70: 0 | J70: 0 | M70: 0 | N70: 0 | O70: 0.0075 | P70: 100 | Q70: 0.75 | R70: 100 | S70: 0.75 | V70: 0 | W70: 0 | X70: 0.0075 | Y70: 100 | Z70: 0.75 | AA70: 100 | AB70: 0.75
A71: 2.32 | B71: Preparatory camps @ Rs.200/- per child per annum | C71: 0 | D71: 0 | E71: 0 | F71: 0 | I71: 0 | J71: 0 | M71: 0 | N71: 0 | O71: 0 | P71: 0 | Q71: 0 | R71: 0 | S71: 0 | V71: 0 | W71: 0 | X71: 0.002 | Y71: 100 | Z71: 0.2 | AA71: 100 | AB71: 0.2
A72: 2.33 | B72: P.T.A / school functions @ Rs.200/- per child per annum | C72: 0 | D72: 0 | E72: 0 | F72: 0 | I72: 0 | J72: 0 | M72: 0 | N72: 0 | O72: 0.003 | P72: 100 | Q72: 0.3 | R72: 100 | S72: 0.3 | V72: 0 | W72: 0 | X72: 0.002 | Y72: 100 | Z72: 0.2 | AA72: 100 | AB72: 0.2
A73: 2.34 | B73: Provision of Rent @ Rs. 6000/- per child per annum | C73: 0 | D73: 0 | E73: 0 | F73: 0 | I73: 0 | J73: 0 | M73: 0 | N73: 0 | O73: 0 | P73: 0 | Q73: 0 | R73: 0 | S73: 0 | V73: 0 | W73: 0 | X73: 0 | Y73: 0 | Z73: 0 | AA73: 0 | AB73: 0
A74: 2.35 | B74: Capacity Building @ Rs.500/- per child per annum | C74: 100 | D74: 0.5 | E74: 100 | F74: 0.5 | G74: 100 | H74: 100 | I74: 0 | J74: 0 | M74: 0 | N74: 0 | O74: 0.005 | P74: 100 | Q74: 0.5 | R74: 100 | S74: 0.5 | V74: 0 | W74: 0 | X74: 0.005 | Y74: 100 | Z74: 0.5 | AA74: 100 | AB74: 0.5
A75: 2.36 | B75: Physical / Self Defence training @ Rs. 200/- per child per annum. | C75: 0 | D75: 0 | E75: 0 | F75: 0 | I75: 0 | J75: 0 | M75: 0 | N75: 0 | O75: 0 | P75: 0 | Q75: 0 | R75: 0 | S75: 0 | V75: 0 | W75: 0 | X75: 0.002 | Y75: 100 | Z75: 0.2 | AA75: 100 | AB75: 0.2
B76: Sub Total (Recurring) | C76: =C54 -> 100 | D76: =SUM(D54:D75) -> 36.45 | E76: =E54 -> 100 | F76: =SUM(F54:F75) -> 24.997 | G76: 100 | H76: 68.57887517 | I76: =I54 -> 0 | J76: =SUM(J54:J75) -> 11.453 | K76: =SUM(K54:K75) -> 0 | L76: =SUM(L54:L75) -> 0 | M76: =SUM(M54:M75) -> 0 | N76: =SUM(N54:N75) -> 0 | P76: =P54 -> 100 | Q76: =SUM(Q54:Q75) -> 36.75 | R76: =R54 -> 100 | S76: 36.75 | T76: 0 | U76: 0 | V76: 0 | W76: 0 | Y76: =Y54 -> 100 | Z76: =SUM(Z54:Z75) -> 47.65 | AA76: =AA54 -> 100 | AB76: =SUM(AB54:AB75) -> 47.65
B77: Total (Recurring + Non Recurring) | C77: =C76 -> 100 | D77: =SUM(D52+D76) -> 37.2 | E77: =E76 -> 100 | F77: =SUM(F52+F76) -> 25.746 | G77: 100 | H77: 69.20967742 | I77: =I76 -> 0 | J77: =SUM(J52+J76) -> 11.454 | K77: =SUM(K52+K76) -> 0 | L77: =SUM(L52+L76) -> 0 | M77: =SUM(M52+M76) -> 0 | N77: =SUM(N52+N76) -> 0 | P77: =P76 -> 100 | Q77: =SUM(Q52+Q76) -> 36.75 | R77: =R76 -> 100 | S77: 36.75 | T77: 0 | U77: 0 | V77: 0 | W77: 0 | Y77: =Y76 -> 100 | Z77: =SUM(Z52+Z76) -> 47.65 | AA77: =AA76 -> 100 | AB77: =SUM(AB52+AB76) -> 47.65
B78: Total (50 + 100 children) | C78: =C45+C77 -> 100 | D78: =SUM(D45+D77) -> 37.2 | E78: =E45+E77 -> 100 | F78: =SUM(F45+F77) -> 25.746 | G78: =E78/C78*100 -> 100 | H78: =F78/D78*100 -> 69.20967742 | I78: =I45+I77 -> 0 | J78: =SUM(J45+J77) -> 11.454 | K78: =SUM(K45+K77) -> 0 | L78: =SUM(L45+L77) -> 0 | M78: =SUM(M45+M77) -> 0 | N78: =SUM(N45+N77) -> 0 | P78: =P45+P77 -> 100 | Q78: =SUM(Q45+Q77) -> 36.75 | R78: =R45+R77 -> 100 | S78: =SUM(S45+S77) -> 36.75 | T78: =SUM(T45+T77) -> 0 | U78: =SUM(U45+U77) -> 0 | V78: =SUM(V45+V77) -> 0 | W78: =SUM(W45+W77) -> 0 | Y78: =Y45+Y77 -> 100 | Z78: =SUM(Z45+Z77) -> 47.65 | AA78: =AA45+AA77 -> 100 | AB78: =SUM(AB45+AB77) -> 47.65
A79: 3 | B79: Residential Hostel for specific category of children
A80: (A) | B80: 50 children
B81: Non-recurring (one time grant) | R81: =K81+M81+P81 -> 0 | S81: 0 | AA81: =T81+V81+Y81 -> 0 | AB81: 0
A82: 3.01 | B82: Furniture/ Equipment (including kitchen) | C82: 0 | D82: 0 | E82: 0 | F82: 0 | G82: =E82/C82*100 ->  | I82: =C82-E82 -> 0 | J82: 0 | M82: 0 | N82: 0 | O82: 2 | P82: 0 | Q82: =O82*P82 -> 0 | R82: 0 | S82: 0 | V82: 0 | W82: 0 | X82: 2 | Y82: 0 | Z82: =X82*Y82 -> 0 | AA82: 0 | AB82: 0
A83: =+A82+0.01 -> 3.02 | B83: TLM and equipment including library books | C83: 0 | D83: 0 | E83: 0 | F83: 0 | I83: 0 | J83: 0 | M83: 0 | N83: 0 | O83: 3 | P83: 0 | Q83: =O83*P83 -> 0 | R83: 0 | S83: 0 | V83: 0 | W83: 0 | X83: 3 | Y83: 0 | Z83: =X83*Y83 -> 0 | AA83: 0 | AB83: 0
A84: =+A83+0.01 -> 3.03 | B84: Bedding (new) | C84: 0 | D84: 0 | E84: 0 | F84: 0 | I84: 0 | J84: 0 | M84: 0 | N84: 0 | O84: 0.375 | P84: 0 | Q84: =O84*P84 -> 0 | R84: 0 | S84: 0 | V84: 0 | W84: 0 | X84: 0.375 | Y84: 0 | Z84: =X84*Y84 -> 0 | AA84: 0 | AB84: 0
A85: =+A84+0.01 -> 3.04 | B85: Replacement of bedding (once in 3 years) | C85: 0 | D85: 0 | E85: 0 | F85: 0 | I85: 0 | J85: 0 | M85: 0 | N85: 0 | O85: 0.0075 | P85: 0 | Q85: =O85*P85 -> 0 | R85: 0 | S85: 0 | V85: 0 | W85: 0 | X85: 0.0075 | Y85: 0 | Z85: =X85*Y85 -> 0 | AA85: 0 | AB85: 0
B86: Sub Total (Non Recurring) | C86: =SUM(C82:C85) -> 0 | D86: =SUM(D82:D85) -> 0 | E86: =SUM(E82:E85) -> 0 | F86: =SUM(F82:F85) -> 0 | I86: =SUM(I82:I85) -> 0 | J86: 0 | K86: 0 | L86: 0 | M86: 0 | N86: 0 | P86: =SUM(P82:P85) -> 0 | Q86: 0 | R86: 0 | S86: 0 | T86: 0 | U86: 0 | V86: 0 | W86: 0 | Y86: =SUM(Y82:Y85) -> 0 | Z86: =SUM(Z82:Z85) -> 0 | AA86: =SUM(AA82:AA85) -> 0 | AB86: =SUM(AB82:AB85) -> 0
B87: Recurring (50 children)
A88: 3.05 | B88: Maintenance per child Per month @ Rs.1500/- | C88: 0 | D88: 0 | E88: 0 | F88: 0 | G88: =E88/C88*100 ->  | I88: =C88-E88 -> 0 | J88: 0 | M88: 0 | N88: 0 | O88: 0.18 | P88: 0 | Q88: =O88*P88 -> 0 | R88: =K88+M88+P88 -> 0 | S88: =L88+N88+Q88 -> 0 | V88: 0 | W88: 0 | X88: 0.18 | Y88: 0 | Z88: =X88*Y88 -> 0 | AA88: =T88+V88+Y88 -> 0 | AB88: =U88+W88+Z88 -> 0
A89: =+A88+0.01 -> 3.06 | B89: Stipend per child per month @ Rs.100/- | C89: 0 | D89: 0 | E89: 0 | F89: 0 | I89: 0 | J89: 0 | M89: 0 | N89: 0 | O89: 0.012 | P89: 0 | Q89: =O89*P89 -> 0 | R89: 0 | S89: 0 | V89: 0 | W89: 0 | X89: 0.012 | Y89: 0 | Z89: =X89*Y89 -> 0 | AA89: 0 | AB89: 0
A90: =+A89+0.01 -> 3.07 | B90: Supplementary TLM, Stationery and other educational material @Rs.1000/- per child per annum | C90: 0 | D90: 0 | E90: 0 | F90: 0 | I90: 0 | J90: 0 | M90: 0 | N90: 0 | O90: 0.01 | P90: 0 | Q90: =O90*P90 -> 0 | R90: 0 | S90: 0 | V90: 0 | W90: 0 | X90: 0.01 | Y90: 0 | Z90: =X90*Y90 -> 0 | AA90: 0 | AB90: 0
B91: Salaries | R91: 0 | S91: 0 | AA91: 0 | AB91: 0
A92: (a) | B92: 1 Warden @ Rs.25000/- per month | C92: 0 | D92: 0 | E92: 0 | F92: 0 | G92: =E92/C92*100 ->  | H92: =F92/D92*100 ->  | I92: =C92-E92 -> 0 | J92: =D92-F92 -> 0 | M92: 0 | N92: 0 | O92: 3 | P92: 0 | Q92: =O92*P92 -> 0 | R92: 0 | S92: 0 | V92: 0 | W92: 0 | X92: 3 | Y92: 0 | Z92: =X92*Y92 -> 0 | AA92: 0 | AB92: 0
A93: (b) | B93: 4 Fulltime teachers as per RTE Norms @ Rs. 20,000/- per month per teacher | C93: 0 | D93: 0 | E93: 0 | F93: 0 | I93: 0 | J93: 0 | M93: 0 | N93: 0 | O93: 0 | P93: 0 | Q93: 0 | R93: 0 | S93: 0 | V93: 0 | W93: 0 | X93: 0 | Y93: 0 | Z93: 0 | AA93: 0 | AB93: 0
A94: (c) | B94: 2 Urdu Teachers (only for Blocks with muslim population above 20% and select urban areas) @ Rs.12,000/- per month per teacher. | C94: 0 | D94: 0 | E94: 0 | F94: 0 | I94: 0 | J94: 0 | M94: 0 | N94: 0 | O94: 0 | P94: 0 | Q94: 0 | R94: 0 | S94: 0 | V94: 0 | W94: 0 | X94: 0 | Y94: 0 | Z94: 0 | AA94: 0 | AB94: 0
A95: (d) | B95: 3 Part time teachers @ Rs.5,000/- per month per teacher | C95: 0 | D95: 0 | E95: 0 | F95: 0 | I95: 0 | J95: 0 | M95: 0 | N95: 0 | O95: 1.8 | P95: 0 | Q95: 0 | R95: 0 | S95: 0 | V95: 0 | W95: 0 | X95: 1.8 | Y95: 0 | Z95: 0 | AA95: 0 | AB95: 0
A96: (e) | B96: 1 Full time Accountant @ Rs. 10,000/- per month | C96: 0 | D96: 0 | E96: 0 | F96: 0 | I96: 0 | J96: 0 | M96: 0 | N96: 0 | O96: 1.2 | P96: 0 | Q96: 0 | R96: 0 | S96: 0 | V96: 0 | W96: 0 | X96: 1.2 | Y96: 0 | Z96: 0 | AA96: 0 | AB96: 0
